Workbook

Sheet Index
A1: 2016/17 Budget
A2: Benefit rate assumptions by employee group
A4: Benefit Cost Matrix
A5: Global Assumptions
A6: MUFA Faculty Fund 20 & 45
A7: MUFA Faculty Fund 30
A8: TMG Fund 20 & 45
A9: TMG Fund 30
A10: Staff Unifor Unit 1 Fund 20 & 45
A11: Staff Unifor Unit 1 Fund 30
A12: Interim
A13: Parking Unifor Unit 3
A14: Security Unifor Unit 4
A15: MUFA Librarians Fund 20 & 45
A16: MUFA Librarians Fund 30
A17: MUALA
A18: Clinical Faculty
A19: Clinical Fellows
A20: Clinical Scholars
A21: Teaching Assistants CUPE Unit 1
A22: Sessional Faculty CUPE Unit 2
A23: Sessional Music Faculty CUPE Unit 2
A24: Post-Doctoral Fellows CUPE Unit 3
A25: Post-Doctoral Fellows Non-Union
A26: Hospitality SEIU
A27: Machinists SEIU
A28: Operations & Maintenance BUC
A29: Operations & Maintenance Casual
A30: Senior Academic Officers Fund 20 & 45
A31: Senior Academic Officers Fund 30
A32: Senior Administrative Officers Fund 20 & 45
A33: Senior Administrative Officers Fund 30
A34: Research Associate Academic Fund 20 & 45
A35: Research Associate Academic Fund 30
A36: Conversational Assistants
A37: Academic Converted

Sheet Benefit Cost Matrix
A1: Budget Employer Benefit Cost Matrix by Employee Group | G1: Participation rate weighting factor is applied to groups with both pension and group RRSP
A2: 2016/17 Budget
C3: CPP | D3: EI | E3: EHT | F3: WSIB | G3: Pension | H3: Group RRSP | I3: Major Medical | J3: Dental | K3: Life Insurance | L3: Travel Insurance | M3: Social Justice / PEL Fund | N3: Benefits Surcharge | O3: PRB Surcharge | P3: WSIB NEER Surcharge | Q3: Salary Continuance
C4: % of (annual salary - $3,500) to a maximum of YMPE: | D4: % of annual salary x employer factor to a maximum of: | E4: % of annual salary | F4: % of annual salary to a maximum of: | G4: YMPE: | H4: ITA maximum: | I4: Family/Single weighted for enrolment | J4: Family/Single weighted for enrolment | K4: % of annual salary | L4: Flat rate | M4: Hours worked | N4: % of annual salary | O4: % of annual salary | P4: % of annual salary | Q4: % of annual salary
C5: FY16 $53,600 | D5: FY16 $49,500 | F5: FY16 $85,200 | G5: =+C5 -> FY16 $53,600 | H5: FY16 $158,878 (Unifor1 $198,597) | I5: FY16-17 F $2,490 | J5: FY16-17 F $1,596 | K5: FY16 0.119232%
C6: FY17 $54,600 | D6: FY17 $50,800 | F6: FY17 $88,000 | G6: =+C6 -> FY17 $54,600 | H6: FY17 $162,100 (Unifor1 $202,600) | I6: FY16-17 S $1,119 | J6: FY16-17 S $684 | K6: FY17-19 0.138672%
C7: FY18 $55,600 | D7: FY18 $52,100 | F7: FY18 $90,900 | G7: FY18 $55,600 | H7: FY18 $165,400 (Unifor1 $206,700) | I7: FY18 F $2,515 S $1,130 | J7: FY18 F $1,612 S $691
C8: FY19 $56,600 | D8: FY19 $53,400 | F8: FY19 $93,900 | G8: FY19 $56,600 | H8: FY19 $168,800 (Unifor1 $210,900) | I8: FY19 F $2,591 S $1,164 | J8: FY19 F $1,661 S $712
A9: MUFA Faculty | B9: MFF | C9: 4.95% | D9: 1.88% x 1.224 | E9: 1.95% | F9: 0.36% | G9: 7% to YMPE + 10% to ITA maximum Fund 20 & 45 FY16 x 158%, FY17-19 155% Fund 30 x 175% | H9: N/A | I9: 100% employer | J9: 100% employer | K9: 1.75 x percentage of annual salary to a maximum of $100,000 | L9: $260.40/year | M9: N/A | N9: FY16 4.2% FY17-19 4.0% | O9: 0.25% | P9: FY16-17 0.15% FY18-19 0.10% | Q9: N/A | T9: 0.1070000
A10: The Management Group | B10: TMG | C10: 4.95% | D10: 1.88% x 1.224 | E10: 1.95% | F10: 0.36% | G10: 7% to YMPE + 10% to ITA maximum Fund 20 & 45 FY16 x 158%, FY17-19 155% Fund 30 x 175% | H10: 3.5% to YMPE + 7% to 2x YMPE + 10.5% to ITA Maximum | I10: 100% employer | J10: 100% employer | K10: 1.75 x percentage of annual salary to a maximum of $100,000 | L10: N/A | M10: N/A | N10: FY16 4.2% FY17-19 4.0% | O10: 0.25% | P10: FY16-17 0.15% FY18-19 0.10% | Q10: 1.00% | T10: =+T9/1000*12*1.08 -> 0.13867200000%
A11: Staff Unifor Unit 1 | B11: UF1 | C11: 4.95% | D11: 1.88% x 1.224 | E11: 1.95% | F11: 0.36% | G11: 7.56% to YMPE + 10.56% to ITA maximum Fund 20 & 45 FY16 x 158%, FY17-19 155% Fund 30 x 175% | H11: N/A | I11: 100% employer | J11: 100% employer | K11: 1.75 x percentage of annual salary to a maximum of $100,000 | L11: N/A | M11: $0.04/hour | N11: FY16 4.2% FY17-19 4.0% | O11: 0.25% | P11: FY16-17 0.15% FY18-19 0.10% | Q11: 1.00%
A12: Interim | B12: ESA | C12: 4.95% | D12: 1.88% x 1.4 | E12: 1.95% | F12: 0.36% | G12: N/A | H12: N/A | I12: N/A | J12: N/A | K12: N/A | L12: N/A | M12: N/A | N12: N/A | O12: N/A | P12: FY16-17 0.15% FY18-19 0.10% | Q12: N/A
A13: Parking Unifor Unit 3 | B13: UF3 | C13: 4.95% | D13: 1.88% x 1.224 | E13: 1.95% | F13: 0.36% | G13: 6.5% to YMPE + 8.75% to ITA maximum x 340% | H13: 3.5% to YMPE + 5% to ITA maximum | I13: 100% employer (Full-time only) | J13: 100% employer (Full-time only) | K13: 1.75 x percentage of annual salary to a maximum of $100,000 | L13: N/A | M13: $0.04/hour | N13: FY16 4.2% FY17-19 4.0% | O13: 0.25% | P13: FY16-17 0.15% FY18-19 0.10% | Q13: N/A
A14: Security Unifor Unit 4 | B14: UF4 | C14: 4.95% | D14: 1.88% x 1.298 | E14: 1.95% | F14: 0.36% | G14: 6.5% to YMPE + 8.75% to ITA maximum x 340% Full-time only | H14: 3.5% to YMPE + 7% to ITA maximum Full-time only | I14: 100% employer (Full-time only) | J14: 100% employer (Full-time only) | K14: 1 x percentage of annual salary to a maximum of $100,000 | L14: N/A | M14: $0.04/hour | N14: FY16 4.2% FY17-19 4.0% Full-time only | O14: 0.25% Full-time only | P14: FY16-17 0.15% FY18-19 0.10% | Q14: N/A
A15: MUFA Librarians | B15: MFL | C15: 4.95% | D15: 1.88% x 1.224 | E15: 1.95% | F15: 0.36% | G15: 7% to YMPE + 10% to ITA maximum Fund 20 & 45 FY16 x 158%, FY17-19 155% Fund 30 x 175% | H15: N/A | I15: 100% employer | J15: 100% employer | K15: 1.75 x percentage of annual salary to a maximum of $100,000 | L15: $260.40/year | M15: N/A | N15: FY16 4.2% FY17-19 4.0% | O15: 0.25% | P15: FY16-17 0.15% FY18-19 0.10% | Q15: N/A
A16: MUALA | B16: MUL | C16: 4.95% | D16: 1.88% x 1.224 | E16: 1.95% | F16: 0.36% | G16: 6.5% to YMPE + 8.75% to ITA maximum Fund 20 & 45 FY16 x 158%, FY17-19 155% Fund 30 x 175% | H16: 3.5% to YMPE + 7% to ITA maximum | I16: 100% employer | J16: 100% employer | K16: 1.75 x percentage of annual salary to a maximum of $100,000 | L16: $260.40/year | M16: N/A | N16: FY16 4.2% FY17-19 4.0% | O16: 0.25% | P16: FY16-17 0.15% FY18-19 0.10% | Q16: N/A
A17: Clinical Faculty | B17: CFA | C17: 4.95% | D17: 1.88% x 1.224 | E17: 1.95% | F17: 0.36% | G17: 7% to YMPE + 10% to ITA maximum Fund 20 & 45 FY16 x 158%, FY17-19 155% Fund 30 x 175% Grandparented employees only | H17: N/A | I17: 100% employer | J17: 100% employer | K17: 1.75 x percentage of annual salary to a maximum of $100,000 | L17: $260.40/year | M17: N/A | N17: FY16 4.2% FY17-19 4.0% | O17: 0.25% | P17: FY16-17 0.15% FY18-19 0.10% | Q17: N/A
A18: Clinical Fellows | B18: CLF | C18: 4.95% | D18: 1.88% x 1.4 | E18: 1.95% | F18: 0.36% | G18: N/A | H18: N/A | I18: 100% employer | J18: Optional - employee paid | K18: 1.75 x percentage of annual salary to a maximum of $100,000 | L18: N/A | M18: N/A | N18: N/A | O18: N/A | P18: FY16-17 0.15% FY18-19 0.10% | Q18: N/A
A19: Clinical Scholars | B19: CLS | C19: 4.95% | D19: 1.88% x 1.224 | E19: 1.95% | F19: 0.36% | G19: N/A | H19: N/A | I19: 100% employer | J19: Optional - employee paid | K19: 1.75 x percentage of annual salary to a maximum of $100,000 | L19: N/A | M19: N/A | N19: FY16 4.2% FY17-19 4.0% | O19: 0.25% | P19: FY16-17 0.15% FY18-19 0.10% | Q19: 1.00%
A20: Teaching Assistants CUPE Unit 1 | B20: CP1 | C20: 4.95% | D20: 1.88% x 1.4 | E20: 1.95% | F20: 0.36% | G20: N/A | H20: N/A | I20: N/A | J20: $28.44/month for eligible employes | K20: N/A | L20: N/A | M20: N/A | N20: N/A | O20: N/A | P20: FY16-17 0.15% FY18-19 0.10% | Q20: N/A
A21: Sessional Faculty CUPE Unit 2 | B21: CP2 | C21: 4.95% | D21: 1.88% x 1.4 | E21: 1.95% | F21: 0.36% | G21: N/A | H21: N/A | I21: N/A | J21: N/A | K21: N/A | L21: N/A | M21: N/A | N21: N/A | O21: N/A | P21: FY16-17 0.15% FY18-19 0.10% | Q21: N/A
A22: Sessional Music Faculty CUPE Unit 2 | B22: CPM | C22: 4.95% | D22: 1.88% x 1.4 | E22: 1.95% | F22: 0.36% | G22: N/A | H22: N/A | I22: N/A | J22: N/A | K22: N/A | L22: N/A | M22: N/A | N22: N/A | O22: N/A | P22: FY16-17 0.15% FY18-19 0.10% | Q22: N/A
A23: Post-Doctoral Fellows CUPE Unit 3 | B23: CP3 | C23: 4.95% | D23: 1.88% x 1.4 | E23: 1.95% | F23: 0.36% | G23: N/A | H23: N/A | I23: 100% employer | J23: $30/month for eligible employes | K23: 1.75 x percentage of annual salary to a maximum of $100,000 | L23: N/A | M23: N/A | N23: N/A | O23: N/A | P23: FY16-17 0.15% FY18-19 0.10% | Q23: N/A
A24: Post-Doctoral Fellows Non-Union | B24: PDF | C24: 4.95% | D24: 1.88% x 1.4 | E24: 1.95% | F24: 0.36% | G24: N/A | H24: N/A | I24: 100% employer | J24: Optional - employee paid | K24: 1.75 x percentage of annual salary to a maximum of $100,000 | L24: N/A | M24: N/A | N24: N/A | O24: N/A | P24: FY16-17 0.15% FY18-19 0.10% | Q24: N/A
A25: Hospitality SEIU | B25: HSP | C25: 4.95% | D25: 1.88% x 1.298 | E25: 1.95% | F25: 0.36% | G25: 6.5% to YMPE + 8.75% to ITA maximum x 340% Full-time only | H25: 3.5% to YMPE + 5% to ITA maximum Full-time only | I25: Co-Pay 75% employer | J25: Co-Pay 75% employer | K25: 1 x percentage of annual salary to a maximum of $100,000 | L25: N/A | M25: $0.02/hour | N25: FY16 4.2% FY17-19 4.0% | O25: 0.25% Full-time only | P25: FY16-17 1.5% FY18-19 1.0% | Q25: N/A
A26: Machinists SEIU | B26: MCH | C26: 4.95% | D26: 1.88% x 1.298 | E26: 1.95% | F26: 0.36% | G26: 6.5% to YMPE + 8.75% to ITA maximum x 340% | H26: 3.5% to YMPE + 5% to ITA maximum | I26: 100% employer | J26: 100% employer | K26: 1 x percentage of annual salary to a maximum of $100,000 | L26: N/A | M26: $0.02/hour | N26: FY16 4.2% FY17-19 4.0% | O26: 0.25% | P26: FY16-17 1.5% FY18-19 1.0% | Q26: N/A
A27: Operations & Maintenance BUC | B27: OPM | C27: 4.95% | D27: 1.88% x 1.298 | E27: 1.95% | F27: 0.36% | G27: 6.5% to YMPE + 8.75% to ITA maximum x 340% | H27: 3.5% to YMPE + 5% to ITA maximum | I27: 100% employer | J27: 100% employer | K27: 1 x percentage of annual salary to a maximum of $100,000 | L27: N/A | M27: N/A | N27: FY16 4.2% FY17-19 4.0% | O27: 0.25% | P27: FY16-17 1.5% FY18-19 1.0% | Q27: N/A
A28: Operations & Maintenance Casual | B28: OMC | C28: 4.95% | D28: 1.88% x 1.4 | E28: 1.95% | F28: 0.36% | G28: N/A | H28: N/A | I28: N/A | J28: N/A | K28: N/A | L28: N/A | M28: N/A | N28: N/A | O28: N/A | P28: FY16-17 1.5% FY18-19 1.0% | Q28: N/A
A29: Senior Academic Officers | B29: SAA | C29: 4.95% | D29: 1.88% x 1.224 | E29: 1.95% | F29: 0.36% | G29: 7% to YMPE + 10% to ITA maximum Fund 20 & 45 FY16 x 158%, FY17-19 155% Fund 30 x 175% | H29: 3.5% to YMPE + 7% to 2x YMPE + 10.5% to ITA Maximum | I29: 100% employer | J29: 100% employer | K29: 1.75 x percentage of annual salary to a maximum of $500,000 | L29: $260.40/year | M29: N/A | N29: FY16 4.2% FY17-19 4.0% | O29: 0.25% | P29: FY16-17 0.15% FY18-19 0.10% | Q29: N/A
A30: Senior Adminstrative Officers | B30: SAO | C30: 4.95% | D30: 1.88% x 1.224 | E30: 1.95% | F30: 0.36% | G30: 7% to YMPE + 10% to ITA maximum Fund 20 & 45 FY16 x 158%, FY17-19 155% Fund 30 x 175% | H30: 3.5% to YMPE + 7% to 2x YMPE + 10.5% to ITA Maximum | I30: 100% employer | J30: 100% employer | K30: 1.75 x percentage of annual salary to a maximum of $500,000 | L30: N/A | M30: N/A | N30: FY16 4.2% FY17-19 4.0% | O30: 0.25% | P30: FY16-17 0.15% FY18-19 0.10% | Q30: 1.00%
A31: Research Associate Academic | B31: RAA | C31: 4.95% | D31: 1.88% x 1.224 | E31: 1.95% | F31: 0.36% | G31: N/A | H31: For employees > 1 year 3.5% to YMPE + 7% to 2x YMPE + 10.5% to ITA Maximum | I31: 100% employer | J31: 100% employer | K31: 1.75 x percentage of annual salary to a maximum of $100,000 | L31: N/A | M31: N/A | N31: FY16 4.2% FY17-19 4.0% | O31: 0.25% | P31: FY16-17 0.15% FY18-19 0.10% | Q31: 1.00%
A32: Conversational Assistants | B32: CVA | C32: 4.95% | D32: 1.88% x 1.4 | E32: 1.95% | F32: 0.36% | G32: N/A | H32: N/A | I32: 100% employer | J32: N/A | K32: For employees > 1 year 1.75 x percentage of annual salary to a maximum of $100,000 | L32: N/A | M32: N/A | N32: N/A | O32: N/A | P32: FY16-17 0.15% FY18-19 0.10% | Q32: N/A
A33: Academic Converted | B33: ZAC | C33: 4.95% | D33: 1.88% x 1.4 | E33: 1.95% | F33: 0.36% | G33: N/A | H33: N/A | I33: N/A | J33: N/A | K33: N/A | L33: N/A | M33: N/A | N33: N/A | O33: N/A | P33: FY16-17 0.15% FY18-19 0.10% | Q33: N/A

Sheet Global Assumptions
A1: 2016/17 Budget
A2: Global Assumptions
B4: FY16 8 Month Review | C4: FY17 Budget | D4: FY18 Plan | E4: FY19 Plan
A6: Statutory deductions
A7: Yearly maximum pensionable earnings (YMPE) | B7: $53,600 | C7: $54,600 | D7: =ROUND(C7/B7*C7,-2) -> $55,600 | E7: =ROUND(D7/C7*D7,-2) -> $56,600
A8: CPP annual exemption | B8: $3,500 | C8: $3,500 | D8: $3,500 | E8: $3,500
A9: CPP rate | B9: 4.95% | C9: 4.95% | D9: 4.95% | E9: 4.95%
A10: EI maximum insurable earnings | B10: $49,500 | C10: $50,800 | D10: =ROUND(C10/B10*C10,-2) -> $52,100 | E10: =ROUND(D10/C10*D10,-2) -> $53,400
A11: EI employee contribution rate | B11: 1.88% | C11: 1.88% | D11: 1.88% | E11: 1.88%
A12: EHT rate | B12: 1.95% | C12: 1.95% | D12: 1.95% | E12: 1.95%
A13: WSIB rate | B13: 0.36% | C13: 0.36% | D13: 0.36% | E13: 0.36%
A14: WSIB maximum insurable earnings | B14: $85,200 | C14: $88,000 | D14: =ROUND(C14/B14*C14,-2) -> $90,900 | E14: =ROUND(D14/C14*D14,-2) -> $93,900
A15: ITA maximum pension contribution (except Unifor1) | B15: $157,025 | C15: =ROUND(B15*C7/B7,-2) -> $160,000 | D15: =ROUND(C15*D7/C7,-2) -> $162,900 | E15: $165,800
A16: ITA maximum pension contribution (Unifor1) | B16: $196,281 | C16: =ROUND(B16*C7/B7,-2) -> $199,900 | D16: =ROUND(C16*D7/C7,-2) -> $203,600 | E16: $207,300
A18: Insurance premiums
A19: Health (family) including 8% tax | B19: =2306*1.08 -> $2,490 | C19: =2306*1.08 -> $2,490 | D19: =2329*1.08 -> $2,515 | E19: =2399*1.08 -> $2,591
A20: Health (single) including 8% tax | B20: =1036*1.08 -> $1,119 | C20: =1036*1.08 -> $1,119 | D20: =1046*1.08 -> $1,130 | E20: =1078*1.08 -> $1,164
A21: Dental (family) including 8% tax | B21: =1478*1.08 -> $1,596 | C21: $1,596 | D21: =1493*1.08 -> $1,612 | E21: =1538*1.08 -> $1,661
A22: Dental (single) including 8% tax | B22: =634*1.08 -> $685 | C22: =634*1.08 -> $685 | D22: =640*1.08 -> $691 | E22: =659*1.08 -> $712
A23: Monthly life insurance rate/$1,000 excluding 8% tax | B23: $0.092 | C23: $0.107 | D23: =+C23 -> $0.107 | E23: =+D23 -> $0.107
A24: Travel insurance including 8% tax | B24: =10.85*24*1.08 -> $281 | C24: =10.85*24*1.08 -> $281 | D24: $281 | E24: $281
A25: CUPE 1 TA dental for eligible employees | B25: =28.44*12 -> $341 | C25: =28.44*12 -> $341 | D25: $341 | E25: $341
A26: CUPE 3 PDF dental for eligible employees | B26: =30*12 -> $360 | C26: =30*12 -> $360 | D26: $360 | E26: $360

Sheet MFF 20 & 45
A1: MUFA Faculty (MFF)
A2: Fund 20 & 45
C3: Employee group assumptions | D3: Employer EI rate: | H3: 1.224
D4: Health & Dental participation: | G4: Family | H4: 88%
G5: Single | H5: =1-H4 -> 12%
D6: Life insurance coverage (x earnings): | H6: 1.75
D7: Life insurance maximum insured earnings: | H7: 100,000
D8: Employer pension contributions:
D9: Pension contribution to YMPE | E9: Pension contribution to ITA max | F9: ITA max | G9: Employer contribution rate | M9: Social Justice/PEL Fund ($/hr) | N9: Benefits Surcharge | O9: PRB Surcharge | P9: WSIB NEER Surcharge | Q9: Salary Continuance
C10: =+'Global Assumptions'!B4 -> FY16 8 Month Review | D10: 7.00% | E10: 10.00% | F10: =+'Global Assumptions'!$B$15 -> 157,025 | G10: 158% | M10: 0 | N10: 4.20% | O10: 0.25% | P10: 0.15% | Q10: 0.00%
C11: =+'Global Assumptions'!C4 -> FY17 Budget | D11: 7.00% | E11: 10.00% | F11: =+'Global Assumptions'!$C$15 -> 160,000 | G11: 155% | M11: 0 | N11: 4.00% | O11: 0.25% | P11: 0.15% | Q11: 0.00%
C12: =+'Global Assumptions'!D4 -> FY18 Plan | D12: 7.00% | E12: 10.00% | F12: =+'Global Assumptions'!$D$15 -> 162,900 | G12: 155% | M12: 0 | N12: 4.00% | O12: 0.25% | P12: 0.10% | Q12: 0.00%
C13: =+'Global Assumptions'!E4 -> FY19 Plan | D13: 7.00% | E13: 10.00% | F13: =+'Global Assumptions'!$E$15 -> 165,800 | G13: 155% | M13: 0 | N13: 4.00% | O13: 0.25% | P13: 0.10% | Q13: 0.00%
A14: Back to Index
A15: Annual Salary | B15: Rate | C15: Total Cost | D15: CPP | E15: EI | F15: EHT | G15: WSIB | H15: Pension | I15: Major Medical | J15: Dental | K15: Life Insurance | L15: Travel Insurance | M15: Social Justice/PEL | N15: Benefits Surcharge | O15: PRB Surcharge | P15: WSIB NEER Surcharge | Q15: Salary Continuance
A16: =+'Global Assumptions'!B4 -> FY16 8 Month Review
A17: 20,000 | B17: =+C17/A17 -> 45.03% | C17: =SUM(D17:Q17) -> 9,007 | D17: =IF(A17<'Global Assumptions'!$B$7,(A17-'Global Assumptions'!$B$8)*'Global Assumptions'!$B$9,('Global Assumptions'!$B$7-'Global Assumptions'!$B$8)*'Global Assumptions'!$B$9) -> 817 | E17: =IF(A17<'Global Assumptions'!$B$10,A17*'Global Assumptions'!$B$11*$H$3,'Global Assumptions'!$B$10*'Global Assumptions'!$B$11*$H$3) -> 460 | F17: =+A17*'Global Assumptions'!$B$12 -> 390 | G17: =IF(A17<'Global Assumptions'!$B$14,A17*'Global Assumptions'!$B$13,'Global Assumptions'!$B$14*'Global Assumptions'!$B$13) -> 72 | H17: =IF(A17<'Global Assumptions'!$B$7,A17*$D$10,IF(A17<$F$10,(A17-'Global Assumptions'!$B$7)*$E$10+'Global Assumptions'!$B$7*$D$10,($F$10-'Global Assumptions'!$B$7)*$E$10+'Global Assumptions'!$B$7*$D$10))*$G$10 -> 2,212 | I17: =+'Global Assumptions'!$B$19*$H$4+'Global Assumptions'!$B$20*$H$5 -> 2,326 | J17: =+'Global Assumptions'!$B$21*$H$4+'Global Assumptions'!$B$22*$H$5 -> 1,487 | K17: =IF(A17<$H$7,A17*'Global Assumptions'!$B$23/1000*$H$6*1.08*12,$H$7*'Global Assumptions'!$B$23/1000*$H$6*1.08*12) -> 42 | L17: ='Global Assumptions'!$B$24 -> 281 | M17: =1825*$M$10 -> 0 | N17: =+$A17*N$10 -> 840 | O17: 50 | P17: 30 | Q17: 0
A18: 25,000 | B18: 41.11% | C18: 10,278 | D18: =IF(A18<'Global Assumptions'!$B$7,(A18-'Global Assumptions'!$B$8)*'Global Assumptions'!$B$9,('Global Assumptions'!$B$7-'Global Assumptions'!$B$8)*'Global Assumptions'!$B$9) -> 1,064 | E18: =IF(A18<'Global Assumptions'!$B$10,A18*'Global Assumptions'!$B$11*$H$3,'Global Assumptions'!$B$10*'Global Assumptions'!$B$11*$H$3) -> 575 | F18: =+A18*'Global Assumptions'!$B$12 -> 488 | G18: =IF(A18<'Global Assumptions'!$B$14,A18*'Global Assumptions'!$B$13,'Global Assumptions'!$B$14*'Global Assumptions'!$B$13) -> 90 | H18: =IF(A18<'Global Assumptions'!$B$7,A18*$D$10,IF(A18<$F$10,(A18-'Global Assumptions'!$B$7)*$E$10+'Global Assumptions'!$B$7*$D$10,($F$10-'Global Assumptions'!$B$7)*$E$10+'Global Assumptions'!$B$7*$D$10))*$G$10 -> 2,765 | I18: =+'Global Assumptions'!$B$19*$H$4+'Global Assumptions'!$B$20*$H$5 -> 2,326 | J18: =+'Global Assumptions'!$B$21*$H$4+'Global Assumptions'!$B$22*$H$5 -> 1,487 | K18: =IF(A18<$H$7,A18*'Global Assumptions'!$B$23/1000*$H$6*1.08*12,$H$7*'Global Assumptions'!$B$23/1000*$H$6*1.08*12) -> 52 | L18: ='Global Assumptions'!$B$24 -> 281 | M18: 0 | N18: 1,050 | O18: 63 | P18: 38 | Q18: 0
A19: 30,000 | B19: 38.50% | C19: 11,550 | D19: =IF(A19<'Global Assumptions'!$B$7,(A19-'Global Assumptions'!$B$8)*'Global Assumptions'!$B$9,('Global Assumptions'!$B$7-'Global Assumptions'!$B$8)*'Global Assumptions'!$B$9) -> 1,312 | E19: =IF(A19<'Global Assumptions'!$B$10,A19*'Global Assumptions'!$B$11*$H$3,'Global Assumptions'!$B$10*'Global Assumptions'!$B$11*$H$3) -> 690 | F19: =+A19*'Global Assumptions'!$B$12 -> 585 | G19: =IF(A19<'Global Assumptions'!$B$14,A19*'Global Assumptions'!$B$13,'Global Assumptions'!$B$14*'Global Assumptions'!$B$13) -> 108 | H19: =IF(A19<'Global Assumptions'!$B$7,A19*$D$10,IF(A19<$F$10,(A19-'Global Assumptions'!$B$7)*$E$10+'Global Assumptions'!$B$7*$D$10,($F$10-'Global Assumptions'!$B$7)*$E$10+'Global Assumptions'!$B$7*$D$10))*$G$10 -> 3,318 | I19: =+'Global Assumptions'!$B$19*$H$4+'Global Assumptions'!$B$20*$H$5 -> 2,326 | J19: =+'Global Assumptions'!$B$21*$H$4+'Global Assumptions'!$B$22*$H$5 -> 1,487 | K19: =IF(A19<$H$7,A19*'Global Assumptions'!$B$23/1000*$H$6*1.08*12,$H$7*'Global Assumptions'!$B$23/1000*$H$6*1.08*12) -> 63 | L19: ='Global Assumptions'!$B$24 -> 281 | M19: 0 | N19: 1,260 | O19: 75 | P19: 45 | Q19: 0
A20: 35,000 | B20: 36.63% | C20: 12,821 | D20: =IF(A20<'Global Assumptions'!$B$7,(A20-'Global Assumptions'!$B$8)*'Global Assumptions'!$B$9,('Global Assumptions'!$B$7-'Global Assumptions'!$B$8)*'Global Assumptions'!$B$9) -> 1,559 | E20: =IF(A20<'Global Assumptions'!$B$10,A20*'Global Assumptions'!$B$11*$H$3,'Global Assumptions'!$B$10*'Global Assumptions'!$B$11*$H$3) -> 805 | F20: =+A20*'Global Assumptions'!$B$12 -> 683 | G20: =IF(A20<'Global Assumptions'!$B$14,A20*'Global Assumptions'!$B$13,'Global Assumptions'!$B$14*'Global Assumptions'!$B$13) -> 126 | H20: =IF(A20<'Global Assumptions'!$B$7,A20*$D$10,IF(A20<$F$10,(A20-'Global Assumptions'!$B$7)*$E$10+'Global Assumptions'!$B$7*$D$10,($F$10-'Global Assumptions'!$B$7)*$E$10+'Global Assumptions'!$B$7*$D$10))*$G$10 -> 3,871 | I20: =+'Global Assumptions'!$B$19*$H$4+'Global Assumptions'!$B$20*$H$5 -> 2,326 | J20: =+'Global Assumptions'!$B$21*$H$4+'Global Assumptions'!$B$22*$H$5 -> 1,487 | K20: =IF(A20<$H$7,A20*'Global Assumptions'!$B$23/1000*$H$6*1.08*12,$H$7*'Global Assumptions'!$B$23/1000*$H$6*1.08*12) -> 73 | L20: ='Global Assumptions'!$B$24 -> 281 | M20: 0 | N20: 1,470 | O20: 88 | P20: 53 | Q20: 0
A21: 40,000 | B21: 35.23% | C21: 14,093 | D21: =IF(A21<'Global Assumptions'!$B$7,(A21-'Global Assumptions'!$B$8)*'Global Assumptions'!$B$9,('Global Assumptions'!$B$7-'Global Assumptions'!$B$8)*'Global Assumptions'!$B$9) -> 1,807 | E21: =IF(A21<'Global Assumptions'!$B$10,A21*'Global Assumptions'!$B$11*$H$3,'Global Assumptions'!$B$10*'Global Assumptions'!$B$11*$H$3) -> 920 | F21: =+A21*'Global Assumptions'!$B$12 -> 780 | G21: =IF(A21<'Global Assumptions'!$B$14,A21*'Global Assumptions'!$B$13,'Global Assumptions'!$B$14*'Global Assumptions'!$B$13) -> 144 | H21: =IF(A21<'Global Assumptions'!$B$7,A21*$D$10,IF(A21<$F$10,(A21-'Global Assumptions'!$B$7)*$E$10+'Global Assumptions'!$B$7*$D$10,($F$10-'Global Assumptions'!$B$7)*$E$10+'Global Assumptions'!$B$7*$D$10))*$G$10 -> 4,424 | I21: =+'Global Assumptions'!$B$19*$H$4+'Global Assumptions'!$B$20*$H$5 -> 2,326 | J21: =+'Global Assumptions'!$B$21*$H$4+'Global Assumptions'!$B$22*$H$5 -> 1,487 | K21: =IF(A21<$H$7,A21*'Global Assumptions'!$B$23/1000*$H$6*1.08*12,$H$7*'Global Assumptions'!$B$23/1000*$H$6*1.08*12) -> 83 | L21: ='Global Assumptions'!$B$24 -> 281 | M21: 0 | N21: 1,680 | O21: 100 | P21: 60 | Q21: 0
A22: 45,000 | B22: 34.14% | C22: 15,364 | D22: =IF(A22<'Global Assumptions'!$B$7,(A22-'Global Assumptions'!$B$8)*'Global Assumptions'!$B$9,('Global Assumptions'!$B$7-'Global Assumptions'!$B$8)*'Global Assumptions'!$B$9) -> 2,054 | E22: =IF(A22<'Global Assumptions'!$B$10,A22*'Global Assumptions'!$B$11*$H$3,'Global Assumptions'!$B$10*'Global Assumptions'!$B$11*$H$3) -> 1,036 | F22: =+A22*'Global Assumptions'!$B$12 -> 878 | G22: =IF(A22<'Global Assumptions'!$B$14,A22*'Global Assumptions'!$B$13,'Global Assumptions'!$B$14*'Global Assumptions'!$B$13) -> 162 | H22: =IF(A22<'Global Assumptions'!$B$7,A22*$D$10,IF(A22<$F$10,(A22-'Global Assumptions'!$B$7)*$E$10+'Global Assumptions'!$B$7*$D$10,($F$10-'Global Assumptions'!$B$7)*$E$10+'Global Assumptions'!$B$7*$D$10))*$G$10 -> 4,977 | I22: =+'Global Assumptions'!$B$19*$H$4+'Global Assumptions'!$B$20*$H$5 -> 2,326 | J22: =+'Global Assumptions'!$B$21*$H$4+'Global Assumptions'!$B$22*$H$5 -> 1,487 | K22: =IF(A22<$H$7,A22*'Global Assumptions'!$B$23/1000*$H$6*1.08*12,$H$7*'Global Assumptions'!$B$23/1000*$H$6*1.08*12) -> 94 | L22: ='Global Assumptions'!$B$24 -> 281 | M22: 0 | N22: 1,890 | O22: 113 | P22: 68 | Q22: 0
A23: 50,000 | B23: 33.25% | C23: 16,624 | D23: =IF(A23<'Global Assumptions'!$B$7,(A23-'Global Assumptions'!$B$8)*'Global Assumptions'!$B$9,('Global Assumptions'!$B$7-'Global Assumptions'!$B$8)*'Global Assumptions'!$B$9) -> 2,302 | E23: =IF(A23<'Global Assumptions'!$B$10,A23*'Global Assumptions'!$B$11*$H$3,'Global Assumptions'!$B$10*'Global Assumptions'!$B$11*$H$3) -> 1,139 | F23: =+A23*'Global Assumptions'!$B$12 -> 975 | G23: =IF(A23<'Global Assumptions'!$B$14,A23*'Global Assumptions'!$B$13,'Global Assumptions'!$B$14*'Global Assumptions'!$B$13) -> 180 | H23: =IF(A23<'Global Assumptions'!$B$7,A23*$D$10,IF(A23<$F$10,(A23-'Global Assumptions'!$B$7)*$E$10+'Global Assumptions'!$B$7*$D$10,($F$10-'Global Assumptions'!$B$7)*$E$10+'Global Assumptions'!$B$7*$D$10))*$G$10 -> 5,530 | I23: =+'Global Assumptions'!$B$19*$H$4+'Global Assumptions'!$B$20*$H$5 -> 2,326 | J23: =+'Global Assumptions'!$B$21*$H$4+'Global Assumptions'!$B$22*$H$5 -> 1,487 | K23: =IF(A23<$H$7,A23*'Global Assumptions'!$B$23/1000*$H$6*1.08*12,$H$7*'Global Assumptions'!$B$23/1000*$H$6*1.08*12) -> 104 | L23: ='Global Assumptions'!$B$24 -> 281 | M23: 0 | N23: 2,100 | O23: 125 | P23: 75 | Q23: 0
A24: 55,000 | B24: 32.32% | C24: 17,778 | D24: =IF(A24<'Global Assumptions'!$B$7,(A24-'Global Assumptions'!$B$8)*'Global Assumptions'!$B$9,('Global Assumptions'!$B$7-'Global Assumptions'!$B$8)*'Global Assumptions'!$B$9) -> 2,480 | E24: =IF(A24<'Global Assumptions'!$B$10,A24*'Global Assumptions'!$B$11*$H$3,'Global Assumptions'!$B$10*'Global Assumptions'!$B$11*$H$3) -> 1,139 | F24: =+A24*'Global Assumptions'!$B$12 -> 1,073 | G24: =IF(A24<'Global Assumptions'!$B$14,A24*'Global Assumptions'!$B$13,'Global Assumptions'!$B$14*'Global Assumptions'!$B$13) -> 198 | H24: =IF(A24<'Global Assumptions'!$B$7,A24*$D$10,IF(A24<$F$10,(A24-'Global Assumptions'!$B$7)*$E$10+'Global Assumptions'!$B$7*$D$10,($F$10-'Global Assumptions'!$B$7)*$E$10+'Global Assumptions'!$B$7*$D$10))*$G$10 -> 6,149 | I24: =+'Global Assumptions'!$B$19*$H$4+'Global Assumptions'!$B$20*$H$5 -> 2,326 | J24: =+'Global Assumptions'!$B$21*$H$4+'Global Assumptions'!$B$22*$H$5 -> 1,487 | K24: =IF(A24<$H$7,A24*'Global Assumptions'!$B$23/1000*$H$6*1.08*12,$H$7*'Global Assumptions'!$B$23/1000*$H$6*1.08*12) -> 115 | L24: ='Global Assumptions'!$B$24 -> 281 | M24: 0 | N24: 2,310 | O24: 138 | P24: 83 | Q24: 0
A25: 60,000 | B25: 31.54% | C25: 18,924 | D25: =IF(A25<'Global Assumptions'!$B$7,(A25-'Global Assumptions'!$B$8)*'Global Assumptions'!$B$9,('Global Assumptions'!$B$7-'Global Assumptions'!$B$8)*'Global Assumptions'!$B$9) -> 2,480 | E25: =IF(A25<'Global Assumptions'!$B$10,A25*'Global Assumptions'!$B$11*$H$3,'Global Assumptions'!$B$10*'Global Assumptions'!$B$11*$H$3) -> 1,139 | F25: =+A25*'Global Assumptions'!$B$12 -> 1,170 | G25: =IF(A25<'Global Assumptions'!$B$14,A25*'Global Assumptions'!$B$13,'Global Assumptions'!$B$14*'Global Assumptions'!$B$13) -> 216 | H25: =IF(A25<'Global Assumptions'!$B$7,A25*$D$10,IF(A25<$F$10,(A25-'Global Assumptions'!$B$7)*$E$10+'Global Assumptions'!$B$7*$D$10,($F$10-'Global Assumptions'!$B$7)*$E$10+'Global Assumptions'!$B$7*$D$10))*$G$10 -> 6,939 | I25: =+'Global Assumptions'!$B$19*$H$4+'Global Assumptions'!$B$20*$H$5 -> 2,326 | J25: =+'Global Assumptions'!$B$21*$H$4+'Global Assumptions'!$B$22*$H$5 -> 1,487 | K25: =IF(A25<$H$7,A25*'Global Assumptions'!$B$23/1000*$H$6*1.08*12,$H$7*'Global Assumptions'!$B$23/1000*$H$6*1.08*12) -> 125 | L25: ='Global Assumptions'!$B$24 -> 281 | M25: 0 | N25: 2,520 | O25: 150 | P25: 90 | Q25: 0
A26: 65,000 | B26: 30.88% | C26: 20,069 | D26: =IF(A26<'Global Assumptions'!$B$7,(A26-'Global Assumptions'!$B$8)*'Global Assumptions'!$B$9,('Global Assumptions'!$B$7-'Global Assumptions'!$B$8)*'Global Assumptions'!$B$9) -> 2,480 | E26: =IF(A26<'Global Assumptions'!$B$10,A26*'Global Assumptions'!$B$11*$H$3,'Global Assumptions'!$B$10*'Global Assumptions'!$B$11*$H$3) -> 1,139 | F26: =+A26*'Global Assumptions'!$B$12 -> 1,268 | G26: =IF(A26<'Global Assumptions'!$B$14,A26*'Global Assumptions'!$B$13,'Global Assumptions'!$B$14*'Global Assumptions'!$B$13) -> 234 | H26: =IF(A26<'Global Assumptions'!$B$7,A26*$D$10,IF(A26<$F$10,(A26-'Global Assumptions'!$B$7)*$E$10+'Global Assumptions'!$B$7*$D$10,($F$10-'Global Assumptions'!$B$7)*$E$10+'Global Assumptions'!$B$7*$D$10))*$G$10 -> 7,729 | I26: =+'Global Assumptions'!$B$19*$H$4+'Global Assumptions'!$B$20*$H$5 -> 2,326 | J26: =+'Global Assumptions'!$B$21*$H$4+'Global Assumptions'!$B$22*$H$5 -> 1,487 | K26: =IF(A26<$H$7,A26*'Global Assumptions'!$B$23/1000*$H$6*1.08*12,$H$7*'Global Assumptions'!$B$23/1000*$H$6*1.08*12) -> 136 | L26: ='Global Assumptions'!$B$24 -> 281 | M26: 0 | N26: 2,730 | O26: 163 | P26: 98 | Q26: 0
A27: 70,000 | B27: 30.31% | C27: 21,215 | D27: =IF(A27<'Global Assumptions'!$B$7,(A27-'Global Assumptions'!$B$8)*'Global Assumptions'!$B$9,('Global Assumptions'!$B$7-'Global Assumptions'!$B$8)*'Global Assumptions'!$B$9) -> 2,480 | E27: =IF(A27<'Global Assumptions'!$B$10,A27*'Global Assumptions'!$B$11*$H$3,'Global Assumptions'!$B$10*'Global Assumptions'!$B$11*$H$3) -> 1,139 | F27: =+A27*'Global Assumptions'!$B$12 -> 1,365 | G27: =IF(A27<'Global Assumptions'!$B$14,A27*'Global Assumptions'!$B$13,'Global Assumptions'!$B$14*'Global Assumptions'!$B$13) -> 252 | H27: =IF(A27<'Global Assumptions'!$B$7,A27*$D$10,IF(A27<$F$10,(A27-'Global Assumptions'!$B$7)*$E$10+'Global Assumptions'!$B$7*$D$10,($F$10-'Global Assumptions'!$B$7)*$E$10+'Global Assumptions'!$B$7*$D$10))*$G$10 -> 8,519 | I27: =+'Global Assumptions'!$B$19*$H$4+'Global Assumptions'!$B$20*$H$5 -> 2,326 | J27: =+'Global Assumptions'!$B$21*$H$4+'Global Assumptions'!$B$22*$H$5 -> 1,487 | K27: =IF(A27<$H$7,A27*'Global Assumptions'!$B$23/1000*$H$6*1.08*12,$H$7*'Global Assumptions'!$B$23/1000*$H$6*1.08*12) -> 146 | L27: ='Global Assumptions'!$B$24 -> 281 | M27: 0 | N27: 2,940 | O27: 175 | P27: 105 | Q27: 0
A28: 75,000 | B28: 29.82% | C28: 22,361 | D28: =IF(A28<'Global Assumptions'!$B$7,(A28-'Global Assumptions'!$B$8)*'Global Assumptions'!$B$9,('Global Assumptions'!$B$7-'Global Assumptions'!$B$8)*'Global Assumptions'!$B$9) -> 2,480 | E28: =IF(A28<'Global Assumptions'!$B$10,A28*'Global Assumptions'!$B$11*$H$3,'Global Assumptions'!$B$10*'Global Assumptions'!$B$11*$H$3) -> 1,139 | F28: =+A28*'Global Assumptions'!$B$12 -> 1,463 | G28: =IF(A28<'Global Assumptions'!$B$14,A28*'Global Assumptions'!$B$13,'Global Assumptions'!$B$14*'Global Assumptions'!$B$13) -> 270 | H28: =IF(A28<'Global Assumptions'!$B$7,A28*$D$10,IF(A28<$F$10,(A28-'Global Assumptions'!$B$7)*$E$10+'Global Assumptions'!$B$7*$D$10,($F$10-'Global Assumptions'!$B$7)*$E$10+'Global Assumptions'!$B$7*$D$10))*$G$10 -> 9,309 | I28: =+'Global Assumptions'!$B$19*$H$4+'Global Assumptions'!$B$20*$H$5 -> 2,326 | J28: =+'Global Assumptions'!$B$21*$H$4+'Global Assumptions'!$B$22*$H$5 -> 1,487 | K28: =IF(A28<$H$7,A28*'Global Assumptions'!$B$23/1000*$H$6*1.08*12,$H$7*'Global Assumptions'!$B$23/1000*$H$6*1.08*12) -> 156 | L28: ='Global Assumptions'!$B$24 -> 281 | M28: 0 | N28: 3,150 | O28: 188 | P28: 113 | Q28: 0
A29: 80,000 | B29: 29.38% | C29: 23,507 | D29: =IF(A29<'Global Assumptions'!$B$7,(A29-'Global Assumptions'!$B$8)*'Global Assumptions'!$B$9,('Global Assumptions'!$B$7-'Global Assumptions'!$B$8)*'Global Assumptions'!$B$9) -> 2,480 | E29: =IF(A29<'Global Assumptions'!$B$10,A29*'Global Assumptions'!$B$11*$H$3,'Global Assumptions'!$B$10*'Global Assumptions'!$B$11*$H$3) -> 1,139 | F29: =+A29*'Global Assumptions'!$B$12 -> 1,560 | G29: =IF(A29<'Global Assumptions'!$B$14,A29*'Global Assumptions'!$B$13,'Global Assumptions'!$B$14*'Global Assumptions'!$B$13) -> 288 | H29: =IF(A29<'Global Assumptions'!$B$7,A29*$D$10,IF(A29<$F$10,(A29-'Global Assumptions'!$B$7)*$E$10+'Global Assumptions'!$B$7*$D$10,($F$10-'Global Assumptions'!$B$7)*$E$10+'Global Assumptions'!$B$7*$D$10))*$G$10 -> 10,099 | I29: =+'Global Assumptions'!$B$19*$H$4+'Global Assumptions'!$B$20*$H$5 -> 2,326 | J29: =+'Global Assumptions'!$B$21*$H$4+'Global Assumptions'!$B$22*$H$5 -> 1,487 | K29: =IF(A29<$H$7,A29*'Global Assumptions'!$B$23/1000*$H$6*1.08*12,$H$7*'Global Assumptions'!$B$23/1000*$H$6*1.08*12) -> 167 | L29: ='Global Assumptions'!$B$24 -> 281 | M29: 0 | N29: 3,360 | O29: 200 | P29: 120 | Q29: 0
A30: 85,000 | B30: 29.00% | C30: 24,653 | D30: =IF(A30<'Global Assumptions'!$B$7,(A30-'Global Assumptions'!$B$8)*'Global Assumptions'!$B$9,('Global Assumptions'!$B$7-'Global Assumptions'!$B$8)*'Global Assumptions'!$B$9) -> 2,480 | E30: =IF(A30<'Global Assumptions'!$B$10,A30*'Global Assumptions'!$B$11*$H$3,'Global Assumptions'!$B$10*'Global Assumptions'!$B$11*$H$3) -> 1,139 | F30: =+A30*'Global Assumptions'!$B$12 -> 1,658 | G30: =IF(A30<'Global Assumptions'!$B$14,A30*'Global Assumptions'!$B$13,'Global Assumptions'!$B$14*'Global Assumptions'!$B$13) -> 306 | H30: =IF(A30<'Global Assumptions'!$B$7,A30*$D$10,IF(A30<$F$10,(A30-'Global Assumptions'!$B$7)*$E$10+'Global Assumptions'!$B$7*$D$10,($F$10-'Global Assumptions'!$B$7)*$E$10+'Global Assumptions'!$B$7*$D$10))*$G$10 -> 10,889 | I30: =+'Global Assumptions'!$B$19*$H$4+'Global Assumptions'!$B$20*$H$5 -> 2,326 | J30: =+'Global Assumptions'!$B$21*$H$4+'Global Assumptions'!$B$22*$H$5 -> 1,487 | K30: =IF(A30<$H$7,A30*'Global Assumptions'!$B$23/1000*$H$6*1.08*12,$H$7*'Global Assumptions'!$B$23/1000*$H$6*1.08*12) -> 177 | L30: ='Global Assumptions'!$B$24 -> 281 | M30: 0 | N30: 3,570 | O30: 213 | P30: 128 | Q30: 0
A31: 90,000 | B31: 28.65% | C31: 25,782 | D31: =IF(A31<'Global Assumptions'!$B$7,(A31-'Global Assumptions'!$B$8)*'Global Assumptions'!$B$9,('Global Assumptions'!$B$7-'Global Assumptions'!$B$8)*'Global Assumptions'!$B$9) -> 2,480 | E31: =IF(A31<'Global Assumptions'!$B$10,A31*'Global Assumptions'!$B$11*$H$3,'Global Assumptions'!$B$10*'Global Assumptions'!$B$11*$H$3) -> 1,139 | F31: =+A31*'Global Assumptions'!$B$12 -> 1,755 | G31: =IF(A31<'Global Assumptions'!$B$14,A31*'Global Assumptions'!$B$13,'Global Assumptions'!$B$14*'Global Assumptions'!$B$13) -> 307 | H31: =IF(A31<'Global Assumptions'!$B$7,A31*$D$10,IF(A31<$F$10,(A31-'Global Assumptions'!$B$7)*$E$10+'Global Assumptions'!$B$7*$D$10,($F$10-'Global Assumptions'!$B$7)*$E$10+'Global Assumptions'!$B$7*$D$10))*$G$10 -> 11,679 | I31: =+'Global Assumptions'!$B$19*$H$4+'Global Assumptions'!$B$20*$H$5 -> 2,326 | J31: =+'Global Assumptions'!$B$21*$H$4+'Global Assumptions'!$B$22*$H$5 -> 1,487 | K31: =IF(A31<$H$7,A31*'Global Assumptions'!$B$23/1000*$H$6*1.08*12,$H$7*'Global Assumptions'!$B$23/1000*$H$6*1.08*12) -> 188 | L31: ='Global Assumptions'!$B$24 -> 281 | M31: 0 | N31: 3,780 | O31: 225 | P31: 135 | Q31: 0
A32: 95,000 | B32: 28.33% | C32: 26,910 | D32: =IF(A32<'Global Assumptions'!$B$7,(A32-'Global Assumptions'!$B$8)*'Global Assumptions'!$B$9,('Global Assumptions'!$B$7-'Global Assumptions'!$B$8)*'Global Assumptions'!$B$9) -> 2,480 | E32: =IF(A32<'Global Assumptions'!$B$10,A32*'Global Assumptions'!$B$11*$H$3,'Global Assumptions'!$B$10*'Global Assumptions'!$B$11*$H$3) -> 1,139 | F32: =+A32*'Global Assumptions'!$B$12 -> 1,853 | G32: =IF(A32<'Global Assumptions'!$B$14,A32*'Global Assumptions'!$B$13,'Global Assumptions'!$B$14*'Global Assumptions'!$B$13) -> 307 | H32: =IF(A32<'Global Assumptions'!$B$7,A32*$D$10,IF(A32<$F$10,(A32-'Global Assumptions'!$B$7)*$E$10+'Global Assumptions'!$B$7*$D$10,($F$10-'Global Assumptions'!$B$7)*$E$10+'Global Assumptions'!$B$7*$D$10))*$G$10 -> 12,469 | I32: =+'Global Assumptions'!$B$19*$H$4+'Global Assumptions'!$B$20*$H$5 -> 2,326 | J32: =+'Global Assumptions'!$B$21*$H$4+'Global Assumptions'!$B$22*$H$5 -> 1,487 | K32: =IF(A32<$H$7,A32*'Global Assumptions'!$B$23/1000*$H$6*1.08*12,$H$7*'Global Assumptions'!$B$23/1000*$H$6*1.08*12) -> 198 | L32: ='Global Assumptions'!$B$24 -> 281 | M32: 0 | N32: 3,990 | O32: 238 | P32: 143 | Q32: 0
A33: 100,000 | B33: 28.04% | C33: 28,038 | D33: =IF(A33<'Global Assumptions'!$B$7,(A33-'Global Assumptions'!$B$8)*'Global Assumptions'!$B$9,('Global Assumptions'!$B$7-'Global Assumptions'!$B$8)*'Global Assumptions'!$B$9) -> 2,480 | E33: =IF(A33<'Global Assumptions'!$B$10,A33*'Global Assumptions'!$B$11*$H$3,'Global Assumptions'!$B$10*'Global Assumptions'!$B$11*$H$3) -> 1,139 | F33: =+A33*'Global Assumptions'!$B$12 -> 1,950 | G33: =IF(A33<'Global Assumptions'!$B$14,A33*'Global Assumptions'!$B$13,'Global Assumptions'!$B$14*'Global Assumptions'!$B$13) -> 307 | H33: =IF(A33<'Global Assumptions'!$B$7,A33*$D$10,IF(A33<$F$10,(A33-'Global Assumptions'!$B$7)*$E$10+'Global Assumptions'!$B$7*$D$10,($F$10-'Global Assumptions'!$B$7)*$E$10+'Global Assumptions'!$B$7*$D$10))*$G$10 -> 13,259 | I33: =+'Global Assumptions'!$B$19*$H$4+'Global Assumptions'!$B$20*$H$5 -> 2,326 | J33: =+'Global Assumptions'!$B$21*$H$4+'Global Assumptions'!$B$22*$H$5 -> 1,487 | K33: =IF(A33<$H$7,A33*'Global Assumptions'!$B$23/1000*$H$6*1.08*12,$H$7*'Global Assumptions'!$B$23/1000*$H$6*1.08*12) -> 209 | L33: ='Global Assumptions'!$B$24 -> 281 | M33: 0 | N33: 4,200 | O33: 250 | P33: 150 | Q33: 0
A34: 105,000 | B34: 27.77% | C34: 29,155 | D34: =IF(A34<'Global Assumptions'!$B$7,(A34-'Global Assumptions'!$B$8)*'Global Assumptions'!$B$9,('Global Assumptions'!$B$7-'Global Assumptions'!$B$8)*'Global Assumptions'!$B$9) -> 2,480 | E34: =IF(A34<'Global Assumptions'!$B$10,A34*'Global Assumptions'!$B$11*$H$3,'Global Assumptions'!$B$10*'Global Assumptions'!$B$11*$H$3) -> 1,139 | F34: =+A34*'Global Assumptions'!$B$12 -> 2,048 | G34: =IF(A34<'Global Assumptions'!$B$14,A34*'Global Assumptions'!$B$13,'Global Assumptions'!$B$14*'Global Assumptions'!$B$13) -> 307 | H34: =IF(A34<'Global Assumptions'!$B$7,A34*$D$10,IF(A34<$F$10,(A34-'Global Assumptions'!$B$7)*$E$10+'Global Assumptions'!$B$7*$D$10,($F$10-'Global Assumptions'!$B$7)*$E$10+'Global Assumptions'!$B$7*$D$10))*$G$10 -> 14,049 | I34: =+'Global Assumptions'!$B$19*$H$4+'Global Assumptions'!$B$20*$H$5 -> 2,326 | J34: =+'Global Assumptions'!$B$21*$H$4+'Global Assumptions'!$B$22*$H$5 -> 1,487 | K34: =IF(A34<$H$7,A34*'Global Assumptions'!$B$23/1000*$H$6*1.08*12,$H$7*'Global Assumptions'!$B$23/1000*$H$6*1.08*12) -> 209 | L34: ='Global Assumptions'!$B$24 -> 281 | M34: 0 | N34: 4,410 | O34: 263 | P34: 158 | Q34: 0
A35: 110,000 | B35: 27.52% | C35: 30,273 | D35: =IF(A35<'Global Assumptions'!$B$7,(A35-'Global Assumptions'!$B$8)*'Global Assumptions'!$B$9,('Global Assumptions'!$B$7-'Global Assumptions'!$B$8)*'Global Assumptions'!$B$9) -> 2,480 | E35: =IF(A35<'Global Assumptions'!$B$10,A35*'Global Assumptions'!$B$11*$H$3,'Global Assumptions'!$B$10*'Global Assumptions'!$B$11*$H$3) -> 1,139 | F35: =+A35*'Global Assumptions'!$B$12 -> 2,145 | G35: =IF(A35<'Global Assumptions'!$B$14,A35*'Global Assumptions'!$B$13,'Global Assumptions'!$B$14*'Global Assumptions'!$B$13) -> 307 | H35: =IF(A35<'Global Assumptions'!$B$7,A35*$D$10,IF(A35<$F$10,(A35-'Global Assumptions'!$B$7)*$E$10+'Global Assumptions'!$B$7*$D$10,($F$10-'Global Assumptions'!$B$7)*$E$10+'Global Assumptions'!$B$7*$D$10))*$G$10 -> 14,839 | I35: =+'Global Assumptions'!$B$19*$H$4+'Global Assumptions'!$B$20*$H$5 -> 2,326 | J35: =+'Global Assumptions'!$B$21*$H$4+'Global Assumptions'!$B$22*$H$5 -> 1,487 | K35: =IF(A35<$H$7,A35*'Global Assumptions'!$B$23/1000*$H$6*1.08*12,$H$7*'Global Assumptions'!$B$23/1000*$H$6*1.08*12) -> 209 | L35: ='Global Assumptions'!$B$24 -> 281 | M35: 0 | N35: 4,620 | O35: 275 | P35: 165 | Q35: 0
A36: 115,000 | B36: 27.30% | C36: 31,390 | D36: =IF(A36<'Global Assumptions'!$B$7,(A36-'Global Assumptions'!$B$8)*'Global Assumptions'!$B$9,('Global Assumptions'!$B$7-'Global Assumptions'!$B$8)*'Global Assumptions'!$B$9) -> 2,480 | E36: =IF(A36<'Global Assumptions'!$B$10,A36*'Global Assumptions'!$B$11*$H$3,'Global Assumptions'!$B$10*'Global Assumptions'!$B$11*$H$3) -> 1,139 | F36: =+A36*'Global Assumptions'!$B$12 -> 2,243 | G36: =IF(A36<'Global Assumptions'!$B$14,A36*'Global Assumptions'!$B$13,'Global Assumptions'!$B$14*'Global Assumptions'!$B$13) -> 307 | H36: =IF(A36<'Global Assumptions'!$B$7,A36*$D$10,IF(A36<$F$10,(A36-'Global Assumptions'!$B$7)*$E$10+'Global Assumptions'!$B$7*$D$10,($F$10-'Global Assumptions'!$B$7)*$E$10+'Global Assumptions'!$B$7*$D$10))*$G$10 -> 15,629 | I36: =+'Global Assumptions'!$B$19*$H$4+'Global Assumptions'!$B$20*$H$5 -> 2,326 | J36: =+'Global Assumptions'!$B$21*$H$4+'Global Assumptions'!$B$22*$H$5 -> 1,487 | K36: =IF(A36<$H$7,A36*'Global Assumptions'!$B$23/1000*$H$6*1.08*12,$H$7*'Global Assumptions'!$B$23/1000*$H$6*1.08*12) -> 209 | L36: ='Global Assumptions'!$B$24 -> 281 | M36: 0 | N36: 4,830 | O36: 288 | P36: 173 | Q36: 0
A37: 120,000 | B37: 27.09% | C37: 32,508 | D37: =IF(A37<'Global Assumptions'!$B$7,(A37-'Global Assumptions'!$B$8)*'Global Assumptions'!$B$9,('Global Assumptions'!$B$7-'Global Assumptions'!$B$8)*'Global Assumptions'!$B$9) -> 2,480 | E37: =IF(A37<'Global Assumptions'!$B$10,A37*'Global Assumptions'!$B$11*$H$3,'Global Assumptions'!$B$10*'Global Assumptions'!$B$11*$H$3) -> 1,139 | F37: =+A37*'Global Assumptions'!$B$12 -> 2,340 | G37: =IF(A37<'Global Assumptions'!$B$14,A37*'Global Assumptions'!$B$13,'Global Assumptions'!$B$14*'Global Assumptions'!$B$13) -> 307 | H37: =IF(A37<'Global Assumptions'!$B$7,A37*$D$10,IF(A37<$F$10,(A37-'Global Assumptions'!$B$7)*$E$10+'Global Assumptions'!$B$7*$D$10,($F$10-'Global Assumptions'!$B$7)*$E$10+'Global Assumptions'!$B$7*$D$10))*$G$10 -> 16,419 | I37: =+'Global Assumptions'!$B$19*$H$4+'Global Assumptions'!$B$20*$H$5 -> 2,326 | J37: =+'Global Assumptions'!$B$21*$H$4+'Global Assumptions'!$B$22*$H$5 -> 1,487 | K37: =IF(A37<$H$7,A37*'Global Assumptions'!$B$23/1000*$H$6*1.08*12,$H$7*'Global Assumptions'!$B$23/1000*$H$6*1.08*12) -> 209 | L37: ='Global Assumptions'!$B$24 -> 281 | M37: 0 | N37: =+$A37*N$10 -> 5,040 | O37: 300 | P37: 180 | Q37: 0
A38: 125,000 | B38: 26.90% | C38: 33,625 | D38: =IF(A38<'Global Assumptions'!$B$7,(A38-'Global Assumptions'!$B$8)*'Global Assumptions'!$B$9,('Global Assumptions'!$B$7-'Global Assumptions'!$B$8)*'Global Assumptions'!$B$9) -> 2,480 | E38: =IF(A38<'Global Assumptions'!$B$10,A38*'Global Assumptions'!$B$11*$H$3,'Global Assumptions'!$B$10*'Global Assumptions'!$B$11*$H$3) -> 1,139 | F38: =+A38*'Global Assumptions'!$B$12 -> 2,438 | G38: =IF(A38<'Global Assumptions'!$B$14,A38*'Global Assumptions'!$B$13,'Global Assumptions'!$B$14*'Global Assumptions'!$B$13) -> 307 | H38: =IF(A38<'Global Assumptions'!$B$7,A38*$D$10,IF(A38<$F$10,(A38-'Global Assumptions'!$B$7)*$E$10+'Global Assumptions'!$B$7*$D$10,($F$10-'Global Assumptions'!$B$7)*$E$10+'Global Assumptions'!$B$7*$D$10))*$G$10 -> 17,209 | I38: =+'Global Assumptions'!$B$19*$H$4+'Global Assumptions'!$B$20*$H$5 -> 2,326 | J38: =+'Global Assumptions'!$B$21*$H$4+'Global Assumptions'!$B$22*$H$5 -> 1,487 | K38: =IF(A38<$H$7,A38*'Global Assumptions'!$B$23/1000*$H$6*1.08*12,$H$7*'Global Assumptions'!$B$23/1000*$H$6*1.08*12) -> 209 | L38: ='Global Assumptions'!$B$24 -> 281 | M38: 0 | N38: 5,250 | O38: 313 | P38: 188 | Q38: 0
A39: 130,000 | B39: 26.73% | C39: 34,743 | D39: =IF(A39<'Global Assumptions'!$B$7,(A39-'Global Assumptions'!$B$8)*'Global Assumptions'!$B$9,('Global Assumptions'!$B$7-'Global Assumptions'!$B$8)*'Global Assumptions'!$B$9) -> 2,480 | E39: =IF(A39<'Global Assumptions'!$B$10,A39*'Global Assumptions'!$B$11*$H$3,'Global Assumptions'!$B$10*'Global Assumptions'!$B$11*$H$3) -> 1,139 | F39: =+A39*'Global Assumptions'!$B$12 -> 2,535 | G39: =IF(A39<'Global Assumptions'!$B$14,A39*'Global Assumptions'!$B$13,'Global Assumptions'!$B$14*'Global Assumptions'!$B$13) -> 307 | H39: =IF(A39<'Global Assumptions'!$B$7,A39*$D$10,IF(A39<$F$10,(A39-'Global Assumptions'!$B$7)*$E$10+'Global Assumptions'!$B$7*$D$10,($F$10-'Global Assumptions'!$B$7)*$E$10+'Global Assumptions'!$B$7*$D$10))*$G$10 -> 17,999 | I39: =+'Global Assumptions'!$B$19*$H$4+'Global Assumptions'!$B$20*$H$5 -> 2,326 | J39: =+'Global Assumptions'!$B$21*$H$4+'Global Assumptions'!$B$22*$H$5 -> 1,487 | K39: =IF(A39<$H$7,A39*'Global Assumptions'!$B$23/1000*$H$6*1.08*12,$H$7*'Global Assumptions'!$B$23/1000*$H$6*1.08*12) -> 209 | L39: ='Global Assumptions'!$B$24 -> 281 | M39: 0 | N39: 5,460 | O39: 325 | P39: 195 | Q39: 0
A40: 135,000 | B40: 26.56% | C40: 35,860 | D40: =IF(A40<'Global Assumptions'!$B$7,(A40-'Global Assumptions'!$B$8)*'Global Assumptions'!$B$9,('Global Assumptions'!$B$7-'Global Assumptions'!$B$8)*'Global Assumptions'!$B$9) -> 2,480 | E40: =IF(A40<'Global Assumptions'!$B$10,A40*'Global Assumptions'!$B$11*$H$3,'Global Assumptions'!$B$10*'Global Assumptions'!$B$11*$H$3) -> 1,139 | F40: =+A40*'Global Assumptions'!$B$12 -> 2,633 | G40: =IF(A40<'Global Assumptions'!$B$14,A40*'Global Assumptions'!$B$13,'Global Assumptions'!$B$14*'Global Assumptions'!$B$13) -> 307 | H40: =IF(A40<'Global Assumptions'!$B$7,A40*$D$10,IF(A40<$F$10,(A40-'Global Assumptions'!$B$7)*$E$10+'Global Assumptions'!$B$7*$D$10,($F$10-'Global Assumptions'!$B$7)*$E$10+'Global Assumptions'!$B$7*$D$10))*$G$10 -> 18,789 | I40: =+'Global Assumptions'!$B$19*$H$4+'Global Assumptions'!$B$20*$H$5 -> 2,326 | J40: =+'Global Assumptions'!$B$21*$H$4+'Global Assumptions'!$B$22*$H$5 -> 1,487 | K40: =IF(A40<$H$7,A40*'Global Assumptions'!$B$23/1000*$H$6*1.08*12,$H$7*'Global Assumptions'!$B$23/1000*$H$6*1.08*12) -> 209 | L40: ='Global Assumptions'!$B$24 -> 281 | M40: 0 | N40: 5,670 | O40: 338 | P40: 203 | Q40: 0
A41: 140,000 | B41: 26.41% | C41: 36,978 | D41: =IF(A41<'Global Assumptions'!$B$7,(A41-'Global Assumptions'!$B$8)*'Global Assumptions'!$B$9,('Global Assumptions'!$B$7-'Global Assumptions'!$B$8)*'Global Assumptions'!$B$9) -> 2,480 | E41: =IF(A41<'Global Assumptions'!$B$10,A41*'Global Assumptions'!$B$11*$H$3,'Global Assumptions'!$B$10*'Global Assumptions'!$B$11*$H$3) -> 1,139 | F41: =+A41*'Global Assumptions'!$B$12 -> 2,730 | G41: =IF(A41<'Global Assumptions'!$B$14,A41*'Global Assumptions'!$B$13,'Global Assumptions'!$B$14*'Global Assumptions'!$B$13) -> 307 | H41: =IF(A41<'Global Assumptions'!$B$7,A41*$D$10,IF(A41<$F$10,(A41-'Global Assumptions'!$B$7)*$E$10+'Global Assumptions'!$B$7*$D$10,($F$10-'Global Assumptions'!$B$7)*$E$10+'Global Assumptions'!$B$7*$D$10))*$G$10 -> 19,579 | I41: =+'Global Assumptions'!$B$19*$H$4+'Global Assumptions'!$B$20*$H$5 -> 2,326 | J41: =+'Global Assumptions'!$B$21*$H$4+'Global Assumptions'!$B$22*$H$5 -> 1,487 | K41: =IF(A41<$H$7,A41*'Global Assumptions'!$B$23/1000*$H$6*1.08*12,$H$7*'Global Assumptions'!$B$23/1000*$H$6*1.08*12) -> 209 | L41: ='Global Assumptions'!$B$24 -> 281 | M41: 0 | N41: 5,880 | O41: 350 | P41: 210 | Q41: 0
A42: 145,000 | B42: 26.27% | C42: 38,095 | D42: =IF(A42<'Global Assumptions'!$B$7,(A42-'Global Assumptions'!$B$8)*'Global Assumptions'!$B$9,('Global Assumptions'!$B$7-'Global Assumptions'!$B$8)*'Global Assumptions'!$B$9) -> 2,480 | E42: =IF(A42<'Global Assumptions'!$B$10,A42*'Global Assumptions'!$B$11*$H$3,'Global Assumptions'!$B$10*'Global Assumptions'!$B$11*$H$3) -> 1,139 | F42: =+A42*'Global Assumptions'!$B$12 -> 2,828 | G42: =IF(A42<'Global Assumptions'!$B$14,A42*'Global Assumptions'!$B$13,'Global Assumptions'!$B$14*'Global Assumptions'!$B$13) -> 307 | H42: =IF(A42<'Global Assumptions'!$B$7,A42*$D$10,IF(A42<$F$10,(A42-'Global Assumptions'!$B$7)*$E$10+'Global Assumptions'!$B$7*$D$10,($F$10-'Global Assumptions'!$B$7)*$E$10+'Global Assumptions'!$B$7*$D$10))*$G$10 -> 20,369 | I42: =+'Global Assumptions'!$B$19*$H$4+'Global Assumptions'!$B$20*$H$5 -> 2,326 | J42: =+'Global Assumptions'!$B$21*$H$4+'Global Assumptions'!$B$22*$H$5 -> 1,487 | K42: =IF(A42<$H$7,A42*'Global Assumptions'!$B$23/1000*$H$6*1.08*12,$H$7*'Global Assumptions'!$B$23/1000*$H$6*1.08*12) -> 209 | L42: ='Global Assumptions'!$B$24 -> 281 | M42: 0 | N42: 6,090 | O42: 363 | P42: 218 | Q42: 0
A43: 150,000 | B43: 26.14% | C43: 39,213 | D43: =IF(A43<'Global Assumptions'!$B$7,(A43-'Global Assumptions'!$B$8)*'Global Assumptions'!$B$9,('Global Assumptions'!$B$7-'Global Assumptions'!$B$8)*'Global Assumptions'!$B$9) -> 2,480 | E43: =IF(A43<'Global Assumptions'!$B$10,A43*'Global Assumptions'!$B$11*$H$3,'Global Assumptions'!$B$10*'Global Assumptions'!$B$11*$H$3) -> 1,139 | F43: =+A43*'Global Assumptions'!$B$12 -> 2,925 | G43: =IF(A43<'Global Assumptions'!$B$14,A43*'Global Assumptions'!$B$13,'Global Assumptions'!$B$14*'Global Assumptions'!$B$13) -> 307 | H43: =IF(A43<'Global Assumptions'!$B$7,A43*$D$10,IF(A43<$F$10,(A43-'Global Assumptions'!$B$7)*$E$10+'Global Assumptions'!$B$7*$D$10,($F$10-'Global Assumptions'!$B$7)*$E$10+'Global Assumptions'!$B$7*$D$10))*$G$10 -> 21,159 | I43: =+'Global Assumptions'!$B$19*$H$4+'Global Assumptions'!$B$20*$H$5 -> 2,326 | J43: =+'Global Assumptions'!$B$21*$H$4+'Global Assumptions'!$B$22*$H$5 -> 1,487 | K43: =IF(A43<$H$7,A43*'Global Assumptions'!$B$23/1000*$H$6*1.08*12,$H$7*'Global Assumptions'!$B$23/1000*$H$6*1.08*12) -> 209 | L43: ='Global Assumptions'!$B$24 -> 281 | M43: 0 | N43: 6,300 | O43: 375 | P43: 225 | Q43: 0
A44: 155,000 | B44: 26.02% | C44: 40,330 | D44: =IF(A44<'Global Assumptions'!$B$7,(A44-'Global Assumptions'!$B$8)*'Global Assumptions'!$B$9,('Global Assumptions'!$B$7-'Global Assumptions'!$B$8)*'Global Assumptions'!$B$9) -> 2,480 | E44: =IF(A44<'Global Assumptions'!$B$10,A44*'Global Assumptions'!$B$11*$H$3,'Global Assumptions'!$B$10*'Global Assumptions'!$B$11*$H$3) -> 1,139 | F44: =+A44*'Global Assumptions'!$B$12 -> 3,023 | G44: =IF(A44<'Global Assumptions'!$B$14,A44*'Global Assumptions'!$B$13,'Global Assumptions'!$B$14*'Global Assumptions'!$B$13) -> 307 | H44: =IF(A44<'Global Assumptions'!$B$7,A44*$D$10,IF(A44<$F$10,(A44-'Global Assumptions'!$B$7)*$E$10+'Global Assumptions'!$B$7*$D$10,($F$10-'Global Assumptions'!$B$7)*$E$10+'Global Assumptions'!$B$7*$D$10))*$G$10 -> 21,949 | I44: =+'Global Assumptions'!$B$19*$H$4+'Global Assumptions'!$B$20*$H$5 -> 2,326 | J44: =+'Global Assumptions'!$B$21*$H$4+'Global Assumptions'!$B$22*$H$5 -> 1,487 | K44: =IF(A44<$H$7,A44*'Global Assumptions'!$B$23/1000*$H$6*1.08*12,$H$7*'Global Assumptions'!$B$23/1000*$H$6*1.08*12) -> 209 | L44: ='Global Assumptions'!$B$24 -> 281 | M44: 0 | N44: 6,510 | O44: 388 | P44: 233 | Q44: 0
A45: 160,000 | B45: 25.61% | C45: 40,978 | D45: =IF(A45<'Global Assumptions'!$B$7,(A45-'Global Assumptions'!$B$8)*'Global Assumptions'!$B$9,('Global Assumptions'!$B$7-'Global Assumptions'!$B$8)*'Global Assumptions'!$B$9) -> 2,480 | E45: =IF(A45<'Global Assumptions'!$B$10,A45*'Global Assumptions'!$B$11*$H$3,'Global Assumptions'!$B$10*'Global Assumptions'!$B$11*$H$3) -> 1,139 | F45: =+A45*'Global Assumptions'!$B$12 -> 3,120 | G45: =IF(A45<'Global Assumptions'!$B$14,A45*'Global Assumptions'!$B$13,'Global Assumptions'!$B$14*'Global Assumptions'!$B$13) -> 307 | H45: =IF(A45<'Global Assumptions'!$B$7,A45*$D$10,IF(A45<$F$10,(A45-'Global Assumptions'!$B$7)*$E$10+'Global Assumptions'!$B$7*$D$10,($F$10-'Global Assumptions'!$B$7)*$E$10+'Global Assumptions'!$B$7*$D$10))*$G$10 -> 22,269 | I45: =+'Global Assumptions'!$B$19*$H$4+'Global Assumptions'!$B$20*$H$5 -> 2,326 | J45: =+'Global Assumptions'!$B$21*$H$4+'Global Assumptions'!$B$22*$H$5 -> 1,487 | K45: =IF(A45<$H$7,A45*'Global Assumptions'!$B$23/1000*$H$6*1.08*12,$H$7*'Global Assumptions'!$B$23/1000*$H$6*1.08*12) -> 209 | L45: ='Global Assumptions'!$B$24 -> 281 | M45: 0 | N45: 6,720 | O45: 400 | P45: 240 | Q45: 0
A46: 165,000 | B46: 25.03% | C46: 41,305 | D46: =IF(A46<'Global Assumptions'!$B$7,(A46-'Global Assumptions'!$B$8)*'Global Assumptions'!$B$9,('Global Assumptions'!$B$7-'Global Assumptions'!$B$8)*'Global Assumptions'!$B$9) -> 2,480 | E46: =IF(A46<'Global Assumptions'!$B$10,A46*'Global Assumptions'!$B$11*$H$3,'Global Assumptions'!$B$10*'Global Assumptions'!$B$11*$H$3) -> 1,139 | F46: =+A46*'Global Assumptions'!$B$12 -> 3,218 | G46: =IF(A46<'Global Assumptions'!$B$14,A46*'Global Assumptions'!$B$13,'Global Assumptions'!$B$14*'Global Assumptions'!$B$13) -> 307 | H46: =IF(A46<'Global Assumptions'!$B$7,A46*$D$10,IF(A46<$F$10,(A46-'Global Assumptions'!$B$7)*$E$10+'Global Assumptions'!$B$7*$D$10,($F$10-'Global Assumptions'!$B$7)*$E$10+'Global Assumptions'!$B$7*$D$10))*$G$10 -> 22,269 | I46: =+'Global Assumptions'!$B$19*$H$4+'Global Assumptions'!$B$20*$H$5 -> 2,326 | J46: =+'Global Assumptions'!$B$21*$H$4+'Global Assumptions'!$B$22*$H$5 -> 1,487 | K46: =IF(A46<$H$7,A46*'Global Assumptions'!$B$23/1000*$H$6*1.08*12,$H$7*'Global Assumptions'!$B$23/1000*$H$6*1.08*12) -> 209 | L46: ='Global Assumptions'!$B$24 -> 281 | M46: 0 | N46: 6,930 | O46: 413 | P46: 248 | Q46: 0
A47: 170,000 | B47: 24.49% | C47: 41,633 | D47: =IF(A47<'Global Assumptions'!$B$7,(A47-'Global Assumptions'!$B$8)*'Global Assumptions'!$B$9,('Global Assumptions'!$B$7-'Global Assumptions'!$B$8)*'Global Assumptions'!$B$9) -> 2,480 | E47: =IF(A47<'Global Assumptions'!$B$10,A47*'Global Assumptions'!$B$11*$H$3,'Global Assumptions'!$B$10*'Global Assumptions'!$B$11*$H$3) -> 1,139 | F47: =+A47*'Global Assumptions'!$B$12 -> 3,315 | G47: =IF(A47<'Global Assumptions'!$B$14,A47*'Global Assumptions'!$B$13,'Global Assumptions'!$B$14*'Global Assumptions'!$B$13) -> 307 | H47: =IF(A47<'Global Assumptions'!$B$7,A47*$D$10,IF(A47<$F$10,(A47-'Global Assumptions'!$B$7)*$E$10+'Global Assumptions'!$B$7*$D$10,($F$10-'Global Assumptions'!$B$7)*$E$10+'Global Assumptions'!$B$7*$D$10))*$G$10 -> 22,269 | I47: =+'Global Assumptions'!$B$19*$H$4+'Global Assumptions'!$B$20*$H$5 -> 2,326 | J47: =+'Global Assumptions'!$B$21*$H$4+'Global Assumptions'!$B$22*$H$5 -> 1,487 | K47: =IF(A47<$H$7,A47*'Global Assumptions'!$B$23/1000*$H$6*1.08*12,$H$7*'Global Assumptions'!$B$23/1000*$H$6*1.08*12) -> 209 | L47: ='Global Assumptions'!$B$24 -> 281 | M47: 0 | N47: 7,140 | O47: 425 | P47: 255 | Q47: 0
A48: 175,000 | B48: 23.98% | C48: 41,960 | D48: =IF(A48<'Global Assumptions'!$B$7,(A48-'Global Assumptions'!$B$8)*'Global Assumptions'!$B$9,('Global Assumptions'!$B$7-'Global Assumptions'!$B$8)*'Global Assumptions'!$B$9) -> 2,480 | E48: =IF(A48<'Global Assumptions'!$B$10,A48*'Global Assumptions'!$B$11*$H$3,'Global Assumptions'!$B$10*'Global Assumptions'!$B$11*$H$3) -> 1,139 | F48: =+A48*'Global Assumptions'!$B$12 -> 3,413 | G48: =IF(A48<'Global Assumptions'!$B$14,A48*'Global Assumptions'!$B$13,'Global Assumptions'!$B$14*'Global Assumptions'!$B$13) -> 307 | H48: =IF(A48<'Global Assumptions'!$B$7,A48*$D$10,IF(A48<$F$10,(A48-'Global Assumptions'!$B$7)*$E$10+'Global Assumptions'!$B$7*$D$10,($F$10-'Global Assumptions'!$B$7)*$E$10+'Global Assumptions'!$B$7*$D$10))*$G$10 -> 22,269 | I48: =+'Global Assumptions'!$B$19*$H$4+'Global Assumptions'!$B$20*$H$5 -> 2,326 | J48: =+'Global Assumptions'!$B$21*$H$4+'Global Assumptions'!$B$22*$H$5 -> 1,487 | K48: =IF(A48<$H$7,A48*'Global Assumptions'!$B$23/1000*$H$6*1.08*12,$H$7*'Global Assumptions'!$B$23/1000*$H$6*1.08*12) -> 209 | L48: ='Global Assumptions'!$B$24 -> 281 | M48: 0 | N48: 7,350 | O48: 438 | P48: 263 | Q48: 0
A49: 180,000 | B49: 23.49% | C49: 42,288 | D49: =IF(A49<'Global Assumptions'!$B$7,(A49-'Global Assumptions'!$B$8)*'Global Assumptions'!$B$9,('Global Assumptions'!$B$7-'Global Assumptions'!$B$8)*'Global Assumptions'!$B$9) -> 2,480 | E49: =IF(A49<'Global Assumptions'!$B$10,A49*'Global Assumptions'!$B$11*$H$3,'Global Assumptions'!$B$10*'Global Assumptions'!$B$11*$H$3) -> 1,139 | F49: =+A49*'Global Assumptions'!$B$12 -> 3,510 | G49: =IF(A49<'Global Assumptions'!$B$14,A49*'Global Assumptions'!$B$13,'Global Assumptions'!$B$14*'Global Assumptions'!$B$13) -> 307 | H49: =IF(A49<'Global Assumptions'!$B$7,A49*$D$10,IF(A49<$F$10,(A49-'Global Assumptions'!$B$7)*$E$10+'Global Assumptions'!$B$7*$D$10,($F$10-'Global Assumptions'!$B$7)*$E$10+'Global Assumptions'!$B$7*$D$10))*$G$10 -> 22,269 | I49: =+'Global Assumptions'!$B$19*$H$4+'Global Assumptions'!$B$20*$H$5 -> 2,326 | J49: =+'Global Assumptions'!$B$21*$H$4+'Global Assumptions'!$B$22*$H$5 -> 1,487 | K49: =IF(A49<$H$7,A49*'Global Assumptions'!$B$23/1000*$H$6*1.08*12,$H$7*'Global Assumptions'!$B$23/1000*$H$6*1.08*12) -> 209 | L49: ='Global Assumptions'!$B$24 -> 281 | M49: 0 | N49: 7,560 | O49: 450 | P49: 270 | Q49: 0
A50: 185,000 | B50: 23.04% | C50: 42,615 | D50: =IF(A50<'Global Assumptions'!$B$7,(A50-'Global Assumptions'!$B$8)*'Global Assumptions'!$B$9,('Global Assumptions'!$B$7-'Global Assumptions'!$B$8)*'Global Assumptions'!$B$9) -> 2,480 | E50: =IF(A50<'Global Assumptions'!$B$10,A50*'Global Assumptions'!$B$11*$H$3,'Global Assumptions'!$B$10*'Global Assumptions'!$B$11*$H$3) -> 1,139 | F50: =+A50*'Global Assumptions'!$B$12 -> 3,608 | G50: =IF(A50<'Global Assumptions'!$B$14,A50*'Global Assumptions'!$B$13,'Global Assumptions'!$B$14*'Global Assumptions'!$B$13) -> 307 | H50: =IF(A50<'Global Assumptions'!$B$7,A50*$D$10,IF(A50<$F$10,(A50-'Global Assumptions'!$B$7)*$E$10+'Global Assumptions'!$B$7*$D$10,($F$10-'Global Assumptions'!$B$7)*$E$10+'Global Assumptions'!$B$7*$D$10))*$G$10 -> 22,269 | I50: =+'Global Assumptions'!$B$19*$H$4+'Global Assumptions'!$B$20*$H$5 -> 2,326 | J50: =+'Global Assumptions'!$B$21*$H$4+'Global Assumptions'!$B$22*$H$5 -> 1,487 | K50: =IF(A50<$H$7,A50*'Global Assumptions'!$B$23/1000*$H$6*1.08*12,$H$7*'Global Assumptions'!$B$23/1000*$H$6*1.08*12) -> 209 | L50: ='Global Assumptions'!$B$24 -> 281 | M50: 0 | N50: 7,770 | O50: 463 | P50: 278 | Q50: 0
A51: 190,000 | B51: 22.60% | C51: 42,943 | D51: =IF(A51<'Global Assumptions'!$B$7,(A51-'Global Assumptions'!$B$8)*'Global Assumptions'!$B$9,('Global Assumptions'!$B$7-'Global Assumptions'!$B$8)*'Global Assumptions'!$B$9) -> 2,480 | E51: =IF(A51<'Global Assumptions'!$B$10,A51*'Global Assumptions'!$B$11*$H$3,'Global Assumptions'!$B$10*'Global Assumptions'!$B$11*$H$3) -> 1,139 | F51: =+A51*'Global Assumptions'!$B$12 -> 3,705 | G51: =IF(A51<'Global Assumptions'!$B$14,A51*'Global Assumptions'!$B$13,'Global Assumptions'!$B$14*'Global Assumptions'!$B$13) -> 307 | H51: =IF(A51<'Global Assumptions'!$B$7,A51*$D$10,IF(A51<$F$10,(A51-'Global Assumptions'!$B$7)*$E$10+'Global Assumptions'!$B$7*$D$10,($F$10-'Global Assumptions'!$B$7)*$E$10+'Global Assumptions'!$B$7*$D$10))*$G$10 -> 22,269 | I51: =+'Global Assumptions'!$B$19*$H$4+'Global Assumptions'!$B$20*$H$5 -> 2,326 | J51: =+'Global Assumptions'!$B$21*$H$4+'Global Assumptions'!$B$22*$H$5 -> 1,487 | K51: =IF(A51<$H$7,A51*'Global Assumptions'!$B$23/1000*$H$6*1.08*12,$H$7*'Global Assumptions'!$B$23/1000*$H$6*1.08*12) -> 209 | L51: ='Global Assumptions'!$B$24 -> 281 | M51: 0 | N51: 7,980 | O51: 475 | P51: 285 | Q51: 0
A52: 195,000 | B52: 22.19% | C52: 43,270 | D52: =IF(A52<'Global Assumptions'!$B$7,(A52-'Global Assumptions'!$B$8)*'Global Assumptions'!$B$9,('Global Assumptions'!$B$7-'Global Assumptions'!$B$8)*'Global Assumptions'!$B$9) -> 2,480 | E52: =IF(A52<'Global Assumptions'!$B$10,A52*'Global Assumptions'!$B$11*$H$3,'Global Assumptions'!$B$10*'Global Assumptions'!$B$11*$H$3) -> 1,139 | F52: =+A52*'Global Assumptions'!$B$12 -> 3,803 | G52: =IF(A52<'Global Assumptions'!$B$14,A52*'Global Assumptions'!$B$13,'Global Assumptions'!$B$14*'Global Assumptions'!$B$13) -> 307 | H52: =IF(A52<'Global Assumptions'!$B$7,A52*$D$10,IF(A52<$F$10,(A52-'Global Assumptions'!$B$7)*$E$10+'Global Assumptions'!$B$7*$D$10,($F$10-'Global Assumptions'!$B$7)*$E$10+'Global Assumptions'!$B$7*$D$10))*$G$10 -> 22,269 | I52: =+'Global Assumptions'!$B$19*$H$4+'Global Assumptions'!$B$20*$H$5 -> 2,326 | J52: =+'Global Assumptions'!$B$21*$H$4+'Global Assumptions'!$B$22*$H$5 -> 1,487 | K52: =IF(A52<$H$7,A52*'Global Assumptions'!$B$23/1000*$H$6*1.08*12,$H$7*'Global Assumptions'!$B$23/1000*$H$6*1.08*12) -> 209 | L52: ='Global Assumptions'!$B$24 -> 281 | M52: 0 | N52: 8,190 | O52: 488 | P52: 293 | Q52: 0
A53: 200,000 | B53: 21.80% | C53: 43,598 | D53: =IF(A53<'Global Assumptions'!$B$7,(A53-'Global Assumptions'!$B$8)*'Global Assumptions'!$B$9,('Global Assumptions'!$B$7-'Global Assumptions'!$B$8)*'Global Assumptions'!$B$9) -> 2,480 | E53: =IF(A53<'Global Assumptions'!$B$10,A53*'Global Assumptions'!$B$11*$H$3,'Global Assumptions'!$B$10*'Global Assumptions'!$B$11*$H$3) -> 1,139 | F53: =+A53*'Global Assumptions'!$B$12 -> 3,900 | G53: =IF(A53<'Global Assumptions'!$B$14,A53*'Global Assumptions'!$B$13,'Global Assumptions'!$B$14*'Global Assumptions'!$B$13) -> 307 | H53: =IF(A53<'Global Assumptions'!$B$7,A53*$D$10,IF(A53<$F$10,(A53-'Global Assumptions'!$B$7)*$E$10+'Global Assumptions'!$B$7*$D$10,($F$10-'Global Assumptions'!$B$7)*$E$10+'Global Assumptions'!$B$7*$D$10))*$G$10 -> 22,269 | I53: =+'Global Assumptions'!$B$19*$H$4+'Global Assumptions'!$B$20*$H$5 -> 2,326 | J53: =+'Global Assumptions'!$B$21*$H$4+'Global Assumptions'!$B$22*$H$5 -> 1,487 | K53: =IF(A53<$H$7,A53*'Global Assumptions'!$B$23/1000*$H$6*1.08*12,$H$7*'Global Assumptions'!$B$23/1000*$H$6*1.08*12) -> 209 | L53: ='Global Assumptions'!$B$24 -> 281 | M53: 0 | N53: 8,400 | O53: 500 | P53: 300 | Q53: 0
A55: =+'Global Assumptions'!C4 -> FY17 Budget
A56: 20,000 | B56: =+C56/A56 -> 44.66% | C56: =SUM(D56:Q56) -> 8,931 | D56: =IF(A56<'Global Assumptions'!$C$7,(A56-'Global Assumptions'!$C$8)*'Global Assumptions'!$C$9,('Global Assumptions'!$C$7-'Global Assumptions'!$C$8)*'Global Assumptions'!$C$9) -> 817 | E56: =IF(A56<'Global Assumptions'!$C$10,A56*'Global Assumptions'!$C$11*$H$3,'Global Assumptions'!$C$10*'Global Assumptions'!$C$11*$H$3) -> 460 | F56: =+A56*'Global Assumptions'!$C$12 -> 390 | G56: =IF(A56<'Global Assumptions'!$C$14,A56*'Global Assumptions'!$C$13,'Global Assumptions'!$C$14*'Global Assumptions'!$C$13) -> 72 | H56: =IF(A56<'Global Assumptions'!$C$7,A56*$D$11,IF(A56<$F$11,(A56-'Global Assumptions'!$C$7)*$E$11+'Global Assumptions'!$C$7*$D$11,($F$11-'Global Assumptions'!$C$7)*$E$11+'Global Assumptions'!$C$7*$D$11))*$G$11 -> 2,170 | I56: =+'Global Assumptions'!$C$19*$H$4+'Global Assumptions'!$C$20*$H$5 -> 2,326 | J56: =+'Global Assumptions'!$C$21*$H$4+'Global Assumptions'!$C$22*$H$5 -> 1,487 | K56: =IF(A56<$H$7,A56*'Global Assumptions'!$C$23/1000*$H$6*1.08*12,$H$7*'Global Assumptions'!$C$23/1000*$H$6*1.08*12) -> 49 | L56: ='Global Assumptions'!$C$24 -> 281 | M56: =1825*$M$11 -> 0 | N56: =+$A56*N$11 -> 800 | O56: 50 | P56: 30 | Q56: 0
A57: 25,000 | B57: 40.74% | C57: 10,184 | D57: =IF(A57<'Global Assumptions'!$C$7,(A57-'Global Assumptions'!$C$8)*'Global Assumptions'!$C$9,('Global Assumptions'!$C$7-'Global Assumptions'!$C$8)*'Global Assumptions'!$C$9) -> 1,064 | E57: =IF(A57<'Global Assumptions'!$C$10,A57*'Global Assumptions'!$C$11*$H$3,'Global Assumptions'!$C$10*'Global Assumptions'!$C$11*$H$3) -> 575 | F57: =+A57*'Global Assumptions'!$C$12 -> 488 | G57: =IF(A57<'Global Assumptions'!$C$14,A57*'Global Assumptions'!$C$13,'Global Assumptions'!$C$14*'Global Assumptions'!$C$13) -> 90 | H57: =IF(A57<'Global Assumptions'!$C$7,A57*$D$11,IF(A57<$F$11,(A57-'Global Assumptions'!$C$7)*$E$11+'Global Assumptions'!$C$7*$D$11,($F$11-'Global Assumptions'!$C$7)*$E$11+'Global Assumptions'!$C$7*$D$11))*$G$11 -> 2,713 | I57: =+'Global Assumptions'!$C$19*$H$4+'Global Assumptions'!$C$20*$H$5 -> 2,326 | J57: =+'Global Assumptions'!$C$21*$H$4+'Global Assumptions'!$C$22*$H$5 -> 1,487 | K57: =IF(A57<$H$7,A57*'Global Assumptions'!$C$23/1000*$H$6*1.08*12,$H$7*'Global Assumptions'!$C$23/1000*$H$6*1.08*12) -> 61 | L57: ='Global Assumptions'!$C$24 -> 281 | M57: 0 | N57: 1,000 | O57: 63 | P57: 38 | Q57: 0
A58: 30,000 | B58: 38.12% | C58: 11,437 | D58: =IF(A58<'Global Assumptions'!$C$7,(A58-'Global Assumptions'!$C$8)*'Global Assumptions'!$C$9,('Global Assumptions'!$C$7-'Global Assumptions'!$C$8)*'Global Assumptions'!$C$9) -> 1,312 | E58: =IF(A58<'Global Assumptions'!$C$10,A58*'Global Assumptions'!$C$11*$H$3,'Global Assumptions'!$C$10*'Global Assumptions'!$C$11*$H$3) -> 690 | F58: =+A58*'Global Assumptions'!$C$12 -> 585 | G58: =IF(A58<'Global Assumptions'!$C$14,A58*'Global Assumptions'!$C$13,'Global Assumptions'!$C$14*'Global Assumptions'!$C$13) -> 108 | H58: =IF(A58<'Global Assumptions'!$C$7,A58*$D$11,IF(A58<$F$11,(A58-'Global Assumptions'!$C$7)*$E$11+'Global Assumptions'!$C$7*$D$11,($F$11-'Global Assumptions'!$C$7)*$E$11+'Global Assumptions'!$C$7*$D$11))*$G$11 -> 3,255 | I58: =+'Global Assumptions'!$C$19*$H$4+'Global Assumptions'!$C$20*$H$5 -> 2,326 | J58: =+'Global Assumptions'!$C$21*$H$4+'Global Assumptions'!$C$22*$H$5 -> 1,487 | K58: =IF(A58<$H$7,A58*'Global Assumptions'!$C$23/1000*$H$6*1.08*12,$H$7*'Global Assumptions'!$C$23/1000*$H$6*1.08*12) -> 73 | L58: ='Global Assumptions'!$C$24 -> 281 | M58: 0 | N58: 1,200 | O58: 75 | P58: 45 | Q58: 0
A59: 35,000 | B59: 36.26% | C59: 12,690 | D59: =IF(A59<'Global Assumptions'!$C$7,(A59-'Global Assumptions'!$C$8)*'Global Assumptions'!$C$9,('Global Assumptions'!$C$7-'Global Assumptions'!$C$8)*'Global Assumptions'!$C$9) -> 1,559 | E59: =IF(A59<'Global Assumptions'!$C$10,A59*'Global Assumptions'!$C$11*$H$3,'Global Assumptions'!$C$10*'Global Assumptions'!$C$11*$H$3) -> 805 | F59: =+A59*'Global Assumptions'!$C$12 -> 683 | G59: =IF(A59<'Global Assumptions'!$C$14,A59*'Global Assumptions'!$C$13,'Global Assumptions'!$C$14*'Global Assumptions'!$C$13) -> 126 | H59: =IF(A59<'Global Assumptions'!$C$7,A59*$D$11,IF(A59<$F$11,(A59-'Global Assumptions'!$C$7)*$E$11+'Global Assumptions'!$C$7*$D$11,($F$11-'Global Assumptions'!$C$7)*$E$11+'Global Assumptions'!$C$7*$D$11))*$G$11 -> 3,798 | I59: =+'Global Assumptions'!$C$19*$H$4+'Global Assumptions'!$C$20*$H$5 -> 2,326 | J59: =+'Global Assumptions'!$C$21*$H$4+'Global Assumptions'!$C$22*$H$5 -> 1,487 | K59: =IF(A59<$H$7,A59*'Global Assumptions'!$C$23/1000*$H$6*1.08*12,$H$7*'Global Assumptions'!$C$23/1000*$H$6*1.08*12) -> 85 | L59: ='Global Assumptions'!$C$24 -> 281 | M59: 0 | N59: 1,400 | O59: 88 | P59: 53 | Q59: 0
A60: 40,000 | B60: 34.86% | C60: 13,942 | D60: =IF(A60<'Global Assumptions'!$C$7,(A60-'Global Assumptions'!$C$8)*'Global Assumptions'!$C$9,('Global Assumptions'!$C$7-'Global Assumptions'!$C$8)*'Global Assumptions'!$C$9) -> 1,807 | E60: =IF(A60<'Global Assumptions'!$C$10,A60*'Global Assumptions'!$C$11*$H$3,'Global Assumptions'!$C$10*'Global Assumptions'!$C$11*$H$3) -> 920 | F60: =+A60*'Global Assumptions'!$C$12 -> 780 | G60: =IF(A60<'Global Assumptions'!$C$14,A60*'Global Assumptions'!$C$13,'Global Assumptions'!$C$14*'Global Assumptions'!$C$13) -> 144 | H60: =IF(A60<'Global Assumptions'!$C$7,A60*$D$11,IF(A60<$F$11,(A60-'Global Assumptions'!$C$7)*$E$11+'Global Assumptions'!$C$7*$D$11,($F$11-'Global Assumptions'!$C$7)*$E$11+'Global Assumptions'!$C$7*$D$11))*$G$11 -> 4,340 | I60: =+'Global Assumptions'!$C$19*$H$4+'Global Assumptions'!$C$20*$H$5 -> 2,326 | J60: =+'Global Assumptions'!$C$21*$H$4+'Global Assumptions'!$C$22*$H$5 -> 1,487 | K60: =IF(A60<$H$7,A60*'Global Assumptions'!$C$23/1000*$H$6*1.08*12,$H$7*'Global Assumptions'!$C$23/1000*$H$6*1.08*12) -> 97 | L60: ='Global Assumptions'!$C$24 -> 281 | M60: 0 | N60: 1,600 | O60: 100 | P60: 60 | Q60: 0
A61: 45,000 | B61: 33.77% | C61: 15,195 | D61: =IF(A61<'Global Assumptions'!$C$7,(A61-'Global Assumptions'!$C$8)*'Global Assumptions'!$C$9,('Global Assumptions'!$C$7-'Global Assumptions'!$C$8)*'Global Assumptions'!$C$9) -> 2,054 | E61: =IF(A61<'Global Assumptions'!$C$10,A61*'Global Assumptions'!$C$11*$H$3,'Global Assumptions'!$C$10*'Global Assumptions'!$C$11*$H$3) -> 1,036 | F61: =+A61*'Global Assumptions'!$C$12 -> 878 | G61: =IF(A61<'Global Assumptions'!$C$14,A61*'Global Assumptions'!$C$13,'Global Assumptions'!$C$14*'Global Assumptions'!$C$13) -> 162 | H61: =IF(A61<'Global Assumptions'!$C$7,A61*$D$11,IF(A61<$F$11,(A61-'Global Assumptions'!$C$7)*$E$11+'Global Assumptions'!$C$7*$D$11,($F$11-'Global Assumptions'!$C$7)*$E$11+'Global Assumptions'!$C$7*$D$11))*$G$11 -> 4,883 | I61: =+'Global Assumptions'!$C$19*$H$4+'Global Assumptions'!$C$20*$H$5 -> 2,326 | J61: =+'Global Assumptions'!$C$21*$H$4+'Global Assumptions'!$C$22*$H$5 -> 1,487 | K61: =IF(A61<$H$7,A61*'Global Assumptions'!$C$23/1000*$H$6*1.08*12,$H$7*'Global Assumptions'!$C$23/1000*$H$6*1.08*12) -> 109 | L61: ='Global Assumptions'!$C$24 -> 281 | M61: 0 | N61: 1,800 | O61: 113 | P61: 68 | Q61: 0
A62: 50,000 | B62: 32.90% | C62: 16,448 | D62: =IF(A62<'Global Assumptions'!$C$7,(A62-'Global Assumptions'!$C$8)*'Global Assumptions'!$C$9,('Global Assumptions'!$C$7-'Global Assumptions'!$C$8)*'Global Assumptions'!$C$9) -> 2,302 | E62: =IF(A62<'Global Assumptions'!$C$10,A62*'Global Assumptions'!$C$11*$H$3,'Global Assumptions'!$C$10*'Global Assumptions'!$C$11*$H$3) -> 1,151 | F62: =+A62*'Global Assumptions'!$C$12 -> 975 | G62: =IF(A62<'Global Assumptions'!$C$14,A62*'Global Assumptions'!$C$13,'Global Assumptions'!$C$14*'Global Assumptions'!$C$13) -> 180 | H62: =IF(A62<'Global Assumptions'!$C$7,A62*$D$11,IF(A62<$F$11,(A62-'Global Assumptions'!$C$7)*$E$11+'Global Assumptions'!$C$7*$D$11,($F$11-'Global Assumptions'!$C$7)*$E$11+'Global Assumptions'!$C$7*$D$11))*$G$11 -> 5,425 | I62: =+'Global Assumptions'!$C$19*$H$4+'Global Assumptions'!$C$20*$H$5 -> 2,326 | J62: =+'Global Assumptions'!$C$21*$H$4+'Global Assumptions'!$C$22*$H$5 -> 1,487 | K62: =IF(A62<$H$7,A62*'Global Assumptions'!$C$23/1000*$H$6*1.08*12,$H$7*'Global Assumptions'!$C$23/1000*$H$6*1.08*12) -> 121 | L62: ='Global Assumptions'!$C$24 -> 281 | M62: 0 | N62: 2,000 | O62: 125 | P62: 75 | Q62: 0
A63: 55,000 | B63: 32.00% | C63: 17,602 | D63: =IF(A63<'Global Assumptions'!$C$7,(A63-'Global Assumptions'!$C$8)*'Global Assumptions'!$C$9,('Global Assumptions'!$C$7-'Global Assumptions'!$C$8)*'Global Assumptions'!$C$9) -> 2,529 | E63: =IF(A63<'Global Assumptions'!$C$10,A63*'Global Assumptions'!$C$11*$H$3,'Global Assumptions'!$C$10*'Global Assumptions'!$C$11*$H$3) -> 1,169 | F63: =+A63*'Global Assumptions'!$C$12 -> 1,073 | G63: =IF(A63<'Global Assumptions'!$C$14,A63*'Global Assumptions'!$C$13,'Global Assumptions'!$C$14*'Global Assumptions'!$C$13) -> 198 | H63: =IF(A63<'Global Assumptions'!$C$7,A63*$D$11,IF(A63<$F$11,(A63-'Global Assumptions'!$C$7)*$E$11+'Global Assumptions'!$C$7*$D$11,($F$11-'Global Assumptions'!$C$7)*$E$11+'Global Assumptions'!$C$7*$D$11))*$G$11 -> 5,986 | I63: =+'Global Assumptions'!$C$19*$H$4+'Global Assumptions'!$C$20*$H$5 -> 2,326 | J63: =+'Global Assumptions'!$C$21*$H$4+'Global Assumptions'!$C$22*$H$5 -> 1,487 | K63: =IF(A63<$H$7,A63*'Global Assumptions'!$C$23/1000*$H$6*1.08*12,$H$7*'Global Assumptions'!$C$23/1000*$H$6*1.08*12) -> 133 | L63: ='Global Assumptions'!$C$24 -> 281 | M63: 0 | N63: 2,200 | O63: 138 | P63: 83 | Q63: 0
A64: 60,000 | B64: 31.21% | C64: 18,725 | D64: =IF(A64<'Global Assumptions'!$C$7,(A64-'Global Assumptions'!$C$8)*'Global Assumptions'!$C$9,('Global Assumptions'!$C$7-'Global Assumptions'!$C$8)*'Global Assumptions'!$C$9) -> 2,529 | E64: =IF(A64<'Global Assumptions'!$C$10,A64*'Global Assumptions'!$C$11*$H$3,'Global Assumptions'!$C$10*'Global Assumptions'!$C$11*$H$3) -> 1,169 | F64: =+A64*'Global Assumptions'!$C$12 -> 1,170 | G64: =IF(A64<'Global Assumptions'!$C$14,A64*'Global Assumptions'!$C$13,'Global Assumptions'!$C$14*'Global Assumptions'!$C$13) -> 216 | H64: =IF(A64<'Global Assumptions'!$C$7,A64*$D$11,IF(A64<$F$11,(A64-'Global Assumptions'!$C$7)*$E$11+'Global Assumptions'!$C$7*$D$11,($F$11-'Global Assumptions'!$C$7)*$E$11+'Global Assumptions'!$C$7*$D$11))*$G$11 -> 6,761 | I64: =+'Global Assumptions'!$C$19*$H$4+'Global Assumptions'!$C$20*$H$5 -> 2,326 | J64: =+'Global Assumptions'!$C$21*$H$4+'Global Assumptions'!$C$22*$H$5 -> 1,487 | K64: =IF(A64<$H$7,A64*'Global Assumptions'!$C$23/1000*$H$6*1.08*12,$H$7*'Global Assumptions'!$C$23/1000*$H$6*1.08*12) -> 146 | L64: ='Global Assumptions'!$C$24 -> 281 | M64: 0 | N64: 2,400 | O64: 150 | P64: 90 | Q64: 0
A65: 65,000 | B65: 30.53% | C65: 19,848 | D65: =IF(A65<'Global Assumptions'!$C$7,(A65-'Global Assumptions'!$C$8)*'Global Assumptions'!$C$9,('Global Assumptions'!$C$7-'Global Assumptions'!$C$8)*'Global Assumptions'!$C$9) -> 2,529 | E65: =IF(A65<'Global Assumptions'!$C$10,A65*'Global Assumptions'!$C$11*$H$3,'Global Assumptions'!$C$10*'Global Assumptions'!$C$11*$H$3) -> 1,169 | F65: =+A65*'Global Assumptions'!$C$12 -> 1,268 | G65: =IF(A65<'Global Assumptions'!$C$14,A65*'Global Assumptions'!$C$13,'Global Assumptions'!$C$14*'Global Assumptions'!$C$13) -> 234 | H65: =IF(A65<'Global Assumptions'!$C$7,A65*$D$11,IF(A65<$F$11,(A65-'Global Assumptions'!$C$7)*$E$11+'Global Assumptions'!$C$7*$D$11,($F$11-'Global Assumptions'!$C$7)*$E$11+'Global Assumptions'!$C$7*$D$11))*$G$11 -> 7,536 | I65: =+'Global Assumptions'!$C$19*$H$4+'Global Assumptions'!$C$20*$H$5 -> 2,326 | J65: =+'Global Assumptions'!$C$21*$H$4+'Global Assumptions'!$C$22*$H$5 -> 1,487 | K65: =IF(A65<$H$7,A65*'Global Assumptions'!$C$23/1000*$H$6*1.08*12,$H$7*'Global Assumptions'!$C$23/1000*$H$6*1.08*12) -> 158 | L65: ='Global Assumptions'!$C$24 -> 281 | M65: 0 | N65: 2,600 | O65: 163 | P65: 98 | Q65: 0
A66: 70,000 | B66: 29.96% | C66: 20,970 | D66: =IF(A66<'Global Assumptions'!$C$7,(A66-'Global Assumptions'!$C$8)*'Global Assumptions'!$C$9,('Global Assumptions'!$C$7-'Global Assumptions'!$C$8)*'Global Assumptions'!$C$9) -> 2,529 | E66: =IF(A66<'Global Assumptions'!$C$10,A66*'Global Assumptions'!$C$11*$H$3,'Global Assumptions'!$C$10*'Global Assumptions'!$C$11*$H$3) -> 1,169 | F66: =+A66*'Global Assumptions'!$C$12 -> 1,365 | G66: =IF(A66<'Global Assumptions'!$C$14,A66*'Global Assumptions'!$C$13,'Global Assumptions'!$C$14*'Global Assumptions'!$C$13) -> 252 | H66: =IF(A66<'Global Assumptions'!$C$7,A66*$D$11,IF(A66<$F$11,(A66-'Global Assumptions'!$C$7)*$E$11+'Global Assumptions'!$C$7*$D$11,($F$11-'Global Assumptions'!$C$7)*$E$11+'Global Assumptions'!$C$7*$D$11))*$G$11 -> 8,311 | I66: =+'Global Assumptions'!$C$19*$H$4+'Global Assumptions'!$C$20*$H$5 -> 2,326 | J66: =+'Global Assumptions'!$C$21*$H$4+'Global Assumptions'!$C$22*$H$5 -> 1,487 | K66: =IF(A66<$H$7,A66*'Global Assumptions'!$C$23/1000*$H$6*1.08*12,$H$7*'Global Assumptions'!$C$23/1000*$H$6*1.08*12) -> 170 | L66: ='Global Assumptions'!$C$24 -> 281 | M66: 0 | N66: 2,800 | O66: 175 | P66: 105 | Q66: 0
A67: 75,000 | B67: 29.46% | C67: 22,093 | D67: =IF(A67<'Global Assumptions'!$C$7,(A67-'Global Assumptions'!$C$8)*'Global Assumptions'!$C$9,('Global Assumptions'!$C$7-'Global Assumptions'!$C$8)*'Global Assumptions'!$C$9) -> 2,529 | E67: =IF(A67<'Global Assumptions'!$C$10,A67*'Global Assumptions'!$C$11*$H$3,'Global Assumptions'!$C$10*'Global Assumptions'!$C$11*$H$3) -> 1,169 | F67: =+A67*'Global Assumptions'!$C$12 -> 1,463 | G67: =IF(A67<'Global Assumptions'!$C$14,A67*'Global Assumptions'!$C$13,'Global Assumptions'!$C$14*'Global Assumptions'!$C$13) -> 270 | H67: =IF(A67<'Global Assumptions'!$C$7,A67*$D$11,IF(A67<$F$11,(A67-'Global Assumptions'!$C$7)*$E$11+'Global Assumptions'!$C$7*$D$11,($F$11-'Global Assumptions'!$C$7)*$E$11+'Global Assumptions'!$C$7*$D$11))*$G$11 -> 9,086 | I67: =+'Global Assumptions'!$C$19*$H$4+'Global Assumptions'!$C$20*$H$5 -> 2,326 | J67: =+'Global Assumptions'!$C$21*$H$4+'Global Assumptions'!$C$22*$H$5 -> 1,487 | K67: =IF(A67<$H$7,A67*'Global Assumptions'!$C$23/1000*$H$6*1.08*12,$H$7*'Global Assumptions'!$C$23/1000*$H$6*1.08*12) -> 182 | L67: ='Global Assumptions'!$C$24 -> 281 | M67: 0 | N67: 3,000 | O67: 188 | P67: 113 | Q67: 0
A68: 80,000 | B68: 29.02% | C68: 23,216 | D68: =IF(A68<'Global Assumptions'!$C$7,(A68-'Global Assumptions'!$C$8)*'Global Assumptions'!$C$9,('Global Assumptions'!$C$7-'Global Assumptions'!$C$8)*'Global Assumptions'!$C$9) -> 2,529 | E68: =IF(A68<'Global Assumptions'!$C$10,A68*'Global Assumptions'!$C$11*$H$3,'Global Assumptions'!$C$10*'Global Assumptions'!$C$11*$H$3) -> 1,169 | F68: =+A68*'Global Assumptions'!$C$12 -> 1,560 | G68: =IF(A68<'Global Assumptions'!$C$14,A68*'Global Assumptions'!$C$13,'Global Assumptions'!$C$14*'Global Assumptions'!$C$13) -> 288 | H68: =IF(A68<'Global Assumptions'!$C$7,A68*$D$11,IF(A68<$F$11,(A68-'Global Assumptions'!$C$7)*$E$11+'Global Assumptions'!$C$7*$D$11,($F$11-'Global Assumptions'!$C$7)*$E$11+'Global Assumptions'!$C$7*$D$11))*$G$11 -> 9,861 | I68: =+'Global Assumptions'!$C$19*$H$4+'Global Assumptions'!$C$20*$H$5 -> 2,326 | J68: =+'Global Assumptions'!$C$21*$H$4+'Global Assumptions'!$C$22*$H$5 -> 1,487 | K68: =IF(A68<$H$7,A68*'Global Assumptions'!$C$23/1000*$H$6*1.08*12,$H$7*'Global Assumptions'!$C$23/1000*$H$6*1.08*12) -> 194 | L68: ='Global Assumptions'!$C$24 -> 281 | M68: 0 | N68: 3,200 | O68: 200 | P68: 120 | Q68: 0
A69: 85,000 | B69: 28.63% | C69: 24,338 | D69: =IF(A69<'Global Assumptions'!$C$7,(A69-'Global Assumptions'!$C$8)*'Global Assumptions'!$C$9,('Global Assumptions'!$C$7-'Global Assumptions'!$C$8)*'Global Assumptions'!$C$9) -> 2,529 | E69: =IF(A69<'Global Assumptions'!$C$10,A69*'Global Assumptions'!$C$11*$H$3,'Global Assumptions'!$C$10*'Global Assumptions'!$C$11*$H$3) -> 1,169 | F69: =+A69*'Global Assumptions'!$C$12 -> 1,658 | G69: =IF(A69<'Global Assumptions'!$C$14,A69*'Global Assumptions'!$C$13,'Global Assumptions'!$C$14*'Global Assumptions'!$C$13) -> 306 | H69: =IF(A69<'Global Assumptions'!$C$7,A69*$D$11,IF(A69<$F$11,(A69-'Global Assumptions'!$C$7)*$E$11+'Global Assumptions'!$C$7*$D$11,($F$11-'Global Assumptions'!$C$7)*$E$11+'Global Assumptions'!$C$7*$D$11))*$G$11 -> 10,636 | I69: =+'Global Assumptions'!$C$19*$H$4+'Global Assumptions'!$C$20*$H$5 -> 2,326 | J69: =+'Global Assumptions'!$C$21*$H$4+'Global Assumptions'!$C$22*$H$5 -> 1,487 | K69: =IF(A69<$H$7,A69*'Global Assumptions'!$C$23/1000*$H$6*1.08*12,$H$7*'Global Assumptions'!$C$23/1000*$H$6*1.08*12) -> 206 | L69: ='Global Assumptions'!$C$24 -> 281 | M69: 0 | N69: 3,400 | O69: 213 | P69: 128 | Q69: 0
A70: 90,000 | B70: 28.28% | C70: 25,454 | D70: =IF(A70<'Global Assumptions'!$C$7,(A70-'Global Assumptions'!$C$8)*'Global Assumptions'!$C$9,('Global Assumptions'!$C$7-'Global Assumptions'!$C$8)*'Global Assumptions'!$C$9) -> 2,529 | E70: =IF(A70<'Global Assumptions'!$C$10,A70*'Global Assumptions'!$C$11*$H$3,'Global Assumptions'!$C$10*'Global Assumptions'!$C$11*$H$3) -> 1,169 | F70: =+A70*'Global Assumptions'!$C$12 -> 1,755 | G70: =IF(A70<'Global Assumptions'!$C$14,A70*'Global Assumptions'!$C$13,'Global Assumptions'!$C$14*'Global Assumptions'!$C$13) -> 317 | H70: =IF(A70<'Global Assumptions'!$C$7,A70*$D$11,IF(A70<$F$11,(A70-'Global Assumptions'!$C$7)*$E$11+'Global Assumptions'!$C$7*$D$11,($F$11-'Global Assumptions'!$C$7)*$E$11+'Global Assumptions'!$C$7*$D$11))*$G$11 -> 11,411 | I70: =+'Global Assumptions'!$C$19*$H$4+'Global Assumptions'!$C$20*$H$5 -> 2,326 | J70: =+'Global Assumptions'!$C$21*$H$4+'Global Assumptions'!$C$22*$H$5 -> 1,487 | K70: =IF(A70<$H$7,A70*'Global Assumptions'!$C$23/1000*$H$6*1.08*12,$H$7*'Global Assumptions'!$C$23/1000*$H$6*1.08*12) -> 218 | L70: ='Global Assumptions'!$C$24 -> 281 | M70: 0 | N70: 3,600 | O70: 225 | P70: 135 | Q70: 0
A71: 95,000 | B71: 27.96% | C71: 26,558 | D71: =IF(A71<'Global Assumptions'!$C$7,(A71-'Global Assumptions'!$C$8)*'Global Assumptions'!$C$9,('Global Assumptions'!$C$7-'Global Assumptions'!$C$8)*'Global Assumptions'!$C$9) -> 2,529 | E71: =IF(A71<'Global Assumptions'!$C$10,A71*'Global Assumptions'!$C$11*$H$3,'Global Assumptions'!$C$10*'Global Assumptions'!$C$11*$H$3) -> 1,169 | F71: =+A71*'Global Assumptions'!$C$12 -> 1,853 | G71: =IF(A71<'Global Assumptions'!$C$14,A71*'Global Assumptions'!$C$13,'Global Assumptions'!$C$14*'Global Assumptions'!$C$13) -> 317 | H71: =IF(A71<'Global Assumptions'!$C$7,A71*$D$11,IF(A71<$F$11,(A71-'Global Assumptions'!$C$7)*$E$11+'Global Assumptions'!$C$7*$D$11,($F$11-'Global Assumptions'!$C$7)*$E$11+'Global Assumptions'!$C$7*$D$11))*$G$11 -> 12,186 | I71: =+'Global Assumptions'!$C$19*$H$4+'Global Assumptions'!$C$20*$H$5 -> 2,326 | J71: =+'Global Assumptions'!$C$21*$H$4+'Global Assumptions'!$C$22*$H$5 -> 1,487 | K71: =IF(A71<$H$7,A71*'Global Assumptions'!$C$23/1000*$H$6*1.08*12,$H$7*'Global Assumptions'!$C$23/1000*$H$6*1.08*12) -> 231 | L71: ='Global Assumptions'!$C$24 -> 281 | M71: 0 | N71: 3,800 | O71: 238 | P71: 143 | Q71: 0
A72: 100,000 | B72: 27.66% | C72: 27,663 | D72: =IF(A72<'Global Assumptions'!$C$7,(A72-'Global Assumptions'!$C$8)*'Global Assumptions'!$C$9,('Global Assumptions'!$C$7-'Global Assumptions'!$C$8)*'Global Assumptions'!$C$9) -> 2,529 | E72: =IF(A72<'Global Assumptions'!$C$10,A72*'Global Assumptions'!$C$11*$H$3,'Global Assumptions'!$C$10*'Global Assumptions'!$C$11*$H$3) -> 1,169 | F72: =+A72*'Global Assumptions'!$C$12 -> 1,950 | G72: =IF(A72<'Global Assumptions'!$C$14,A72*'Global Assumptions'!$C$13,'Global Assumptions'!$C$14*'Global Assumptions'!$C$13) -> 317 | H72: =IF(A72<'Global Assumptions'!$C$7,A72*$D$11,IF(A72<$F$11,(A72-'Global Assumptions'!$C$7)*$E$11+'Global Assumptions'!$C$7*$D$11,($F$11-'Global Assumptions'!$C$7)*$E$11+'Global Assumptions'!$C$7*$D$11))*$G$11 -> 12,961 | I72: =+'Global Assumptions'!$C$19*$H$4+'Global Assumptions'!$C$20*$H$5 -> 2,326 | J72: =+'Global Assumptions'!$C$21*$H$4+'Global Assumptions'!$C$22*$H$5 -> 1,487 | K72: =IF(A72<$H$7,A72*'Global Assumptions'!$C$23/1000*$H$6*1.08*12,$H$7*'Global Assumptions'!$C$23/1000*$H$6*1.08*12) -> 243 | L72: ='Global Assumptions'!$C$24 -> 281 | M72: 0 | N72: 4,000 | O72: 250 | P72: 150 | Q72: 0
A73: 105,000 | B73: 27.39% | C73: 28,755 | D73: =IF(A73<'Global Assumptions'!$C$7,(A73-'Global Assumptions'!$C$8)*'Global Assumptions'!$C$9,('Global Assumptions'!$C$7-'Global Assumptions'!$C$8)*'Global Assumptions'!$C$9) -> 2,529 | E73: =IF(A73<'Global Assumptions'!$C$10,A73*'Global Assumptions'!$C$11*$H$3,'Global Assumptions'!$C$10*'Global Assumptions'!$C$11*$H$3) -> 1,169 | F73: =+A73*'Global Assumptions'!$C$12 -> 2,048 | G73: =IF(A73<'Global Assumptions'!$C$14,A73*'Global Assumptions'!$C$13,'Global Assumptions'!$C$14*'Global Assumptions'!$C$13) -> 317 | H73: =IF(A73<'Global Assumptions'!$C$7,A73*$D$11,IF(A73<$F$11,(A73-'Global Assumptions'!$C$7)*$E$11+'Global Assumptions'!$C$7*$D$11,($F$11-'Global Assumptions'!$C$7)*$E$11+'Global Assumptions'!$C$7*$D$11))*$G$11 -> 13,736 | I73: =+'Global Assumptions'!$C$19*$H$4+'Global Assumptions'!$C$20*$H$5 -> 2,326 | J73: =+'Global Assumptions'!$C$21*$H$4+'Global Assumptions'!$C$22*$H$5 -> 1,487 | K73: =IF(A73<$H$7,A73*'Global Assumptions'!$C$23/1000*$H$6*1.08*12,$H$7*'Global Assumptions'!$C$23/1000*$H$6*1.08*12) -> 243 | L73: ='Global Assumptions'!$C$24 -> 281 | M73: 0 | N73: 4,200 | O73: 263 | P73: 158 | Q73: 0
A74: 110,000 | B74: 27.13% | C74: 29,848 | D74: =IF(A74<'Global Assumptions'!$C$7,(A74-'Global Assumptions'!$C$8)*'Global Assumptions'!$C$9,('Global Assumptions'!$C$7-'Global Assumptions'!$C$8)*'Global Assumptions'!$C$9) -> 2,529 | E74: =IF(A74<'Global Assumptions'!$C$10,A74*'Global Assumptions'!$C$11*$H$3,'Global Assumptions'!$C$10*'Global Assumptions'!$C$11*$H$3) -> 1,169 | F74: =+A74*'Global Assumptions'!$C$12 -> 2,145 | G74: =IF(A74<'Global Assumptions'!$C$14,A74*'Global Assumptions'!$C$13,'Global Assumptions'!$C$14*'Global Assumptions'!$C$13) -> 317 | H74: =IF(A74<'Global Assumptions'!$C$7,A74*$D$11,IF(A74<$F$11,(A74-'Global Assumptions'!$C$7)*$E$11+'Global Assumptions'!$C$7*$D$11,($F$11-'Global Assumptions'!$C$7)*$E$11+'Global Assumptions'!$C$7*$D$11))*$G$11 -> 14,511 | I74: =+'Global Assumptions'!$C$19*$H$4+'Global Assumptions'!$C$20*$H$5 -> 2,326 | J74: =+'Global Assumptions'!$C$21*$H$4+'Global Assumptions'!$C$22*$H$5 -> 1,487 | K74: =IF(A74<$H$7,A74*'Global Assumptions'!$C$23/1000*$H$6*1.08*12,$H$7*'Global Assumptions'!$C$23/1000*$H$6*1.08*12) -> 243 | L74: ='Global Assumptions'!$C$24 -> 281 | M74: 0 | N74: 4,400 | O74: 275 | P74: 165 | Q74: 0
A75: 115,000 | B75: 26.90% | C75: 30,940 | D75: =IF(A75<'Global Assumptions'!$C$7,(A75-'Global Assumptions'!$C$8)*'Global Assumptions'!$C$9,('Global Assumptions'!$C$7-'Global Assumptions'!$C$8)*'Global Assumptions'!$C$9) -> 2,529 | E75: =IF(A75<'Global Assumptions'!$C$10,A75*'Global Assumptions'!$C$11*$H$3,'Global Assumptions'!$C$10*'Global Assumptions'!$C$11*$H$3) -> 1,169 | F75: =+A75*'Global Assumptions'!$C$12 -> 2,243 | G75: =IF(A75<'Global Assumptions'!$C$14,A75*'Global Assumptions'!$C$13,'Global Assumptions'!$C$14*'Global Assumptions'!$C$13) -> 317 | H75: =IF(A75<'Global Assumptions'!$C$7,A75*$D$11,IF(A75<$F$11,(A75-'Global Assumptions'!$C$7)*$E$11+'Global Assumptions'!$C$7*$D$11,($F$11-'Global Assumptions'!$C$7)*$E$11+'Global Assumptions'!$C$7*$D$11))*$G$11 -> 15,286 | I75: =+'Global Assumptions'!$C$19*$H$4+'Global Assumptions'!$C$20*$H$5 -> 2,326 | J75: =+'Global Assumptions'!$C$21*$H$4+'Global Assumptions'!$C$22*$H$5 -> 1,487 | K75: =IF(A75<$H$7,A75*'Global Assumptions'!$C$23/1000*$H$6*1.08*12,$H$7*'Global Assumptions'!$C$23/1000*$H$6*1.08*12) -> 243 | L75: ='Global Assumptions'!$C$24 -> 281 | M75: 0 | N75: 4,600 | O75: 288 | P75: 173 | Q75: 0
A76: 120,000 | B76: 26.69% | C76: 32,033 | D76: =IF(A76<'Global Assumptions'!$C$7,(A76-'Global Assumptions'!$C$8)*'Global Assumptions'!$C$9,('Global Assumptions'!$C$7-'Global Assumptions'!$C$8)*'Global Assumptions'!$C$9) -> 2,529 | E76: =IF(A76<'Global Assumptions'!$C$10,A76*'Global Assumptions'!$C$11*$H$3,'Global Assumptions'!$C$10*'Global Assumptions'!$C$11*$H$3) -> 1,169 | F76: =+A76*'Global Assumptions'!$C$12 -> 2,340 | G76: =IF(A76<'Global Assumptions'!$C$14,A76*'Global Assumptions'!$C$13,'Global Assumptions'!$C$14*'Global Assumptions'!$C$13) -> 317 | H76: =IF(A76<'Global Assumptions'!$C$7,A76*$D$11,IF(A76<$F$11,(A76-'Global Assumptions'!$C$7)*$E$11+'Global Assumptions'!$C$7*$D$11,($F$11-'Global Assumptions'!$C$7)*$E$11+'Global Assumptions'!$C$7*$D$11))*$G$11 -> 16,061 | I76: =+'Global Assumptions'!$C$19*$H$4+'Global Assumptions'!$C$20*$H$5 -> 2,326 | J76: =+'Global Assumptions'!$C$21*$H$4+'Global Assumptions'!$C$22*$H$5 -> 1,487 | K76: =IF(A76<$H$7,A76*'Global Assumptions'!$C$23/1000*$H$6*1.08*12,$H$7*'Global Assumptions'!$C$23/1000*$H$6*1.08*12) -> 243 | L76: ='Global Assumptions'!$C$24 -> 281 | M76: 0 | N76: =+$A76*N$11 -> 4,800 | O76: 300 | P76: 180 | Q76: 0
A77: 125,000 | B77: 26.50% | C77: 33,125 | D77: =IF(A77<'Global Assumptions'!$C$7,(A77-'Global Assumptions'!$C$8)*'Global Assumptions'!$C$9,('Global Assumptions'!$C$7-'Global Assumptions'!$C$8)*'Global Assumptions'!$C$9) -> 2,529 | E77: =IF(A77<'Global Assumptions'!$C$10,A77*'Global Assumptions'!$C$11*$H$3,'Global Assumptions'!$C$10*'Global Assumptions'!$C$11*$H$3) -> 1,169 | F77: =+A77*'Global Assumptions'!$C$12 -> 2,438 | G77: =IF(A77<'Global Assumptions'!$C$14,A77*'Global Assumptions'!$C$13,'Global Assumptions'!$C$14*'Global Assumptions'!$C$13) -> 317 | H77: =IF(A77<'Global Assumptions'!$C$7,A77*$D$11,IF(A77<$F$11,(A77-'Global Assumptions'!$C$7)*$E$11+'Global Assumptions'!$C$7*$D$11,($F$11-'Global Assumptions'!$C$7)*$E$11+'Global Assumptions'!$C$7*$D$11))*$G$11 -> 16,836 | I77: =+'Global Assumptions'!$C$19*$H$4+'Global Assumptions'!$C$20*$H$5 -> 2,326 | J77: =+'Global Assumptions'!$C$21*$H$4+'Global Assumptions'!$C$22*$H$5 -> 1,487 | K77: =IF(A77<$H$7,A77*'Global Assumptions'!$C$23/1000*$H$6*1.08*12,$H$7*'Global Assumptions'!$C$23/1000*$H$6*1.08*12) -> 243 | L77: ='Global Assumptions'!$C$24 -> 281 | M77: 0 | N77: 5,000 | O77: 313 | P77: 188 | Q77: 0
A78: 130,000 | B78: 26.32% | C78: 34,218 | D78: =IF(A78<'Global Assumptions'!$C$7,(A78-'Global Assumptions'!$C$8)*'Global Assumptions'!$C$9,('Global Assumptions'!$C$7-'Global Assumptions'!$C$8)*'Global Assumptions'!$C$9) -> 2,529 | E78: =IF(A78<'Global Assumptions'!$C$10,A78*'Global Assumptions'!$C$11*$H$3,'Global Assumptions'!$C$10*'Global Assumptions'!$C$11*$H$3) -> 1,169 | F78: =+A78*'Global Assumptions'!$C$12 -> 2,535 | G78: =IF(A78<'Global Assumptions'!$C$14,A78*'Global Assumptions'!$C$13,'Global Assumptions'!$C$14*'Global Assumptions'!$C$13) -> 317 | H78: =IF(A78<'Global Assumptions'!$C$7,A78*$D$11,IF(A78<$F$11,(A78-'Global Assumptions'!$C$7)*$E$11+'Global Assumptions'!$C$7*$D$11,($F$11-'Global Assumptions'!$C$7)*$E$11+'Global Assumptions'!$C$7*$D$11))*$G$11 -> 17,611 | I78: =+'Global Assumptions'!$C$19*$H$4+'Global Assumptions'!$C$20*$H$5 -> 2,326 | J78: =+'Global Assumptions'!$C$21*$H$4+'Global Assumptions'!$C$22*$H$5 -> 1,487 | K78: =IF(A78<$H$7,A78*'Global Assumptions'!$C$23/1000*$H$6*1.08*12,$H$7*'Global Assumptions'!$C$23/1000*$H$6*1.08*12) -> 243 | L78: ='Global Assumptions'!$C$24 -> 281 | M78: 0 | N78: 5,200 | O78: 325 | P78: 195 | Q78: 0
A79: 135,000 | B79: 26.16% | C79: 35,310 | D79: =IF(A79<'Global Assumptions'!$C$7,(A79-'Global Assumptions'!$C$8)*'Global Assumptions'!$C$9,('Global Assumptions'!$C$7-'Global Assumptions'!$C$8)*'Global Assumptions'!$C$9) -> 2,529 | E79: =IF(A79<'Global Assumptions'!$C$10,A79*'Global Assumptions'!$C$11*$H$3,'Global Assumptions'!$C$10*'Global Assumptions'!$C$11*$H$3) -> 1,169 | F79: =+A79*'Global Assumptions'!$C$12 -> 2,633 | G79: =IF(A79<'Global Assumptions'!$C$14,A79*'Global Assumptions'!$C$13,'Global Assumptions'!$C$14*'Global Assumptions'!$C$13) -> 317 | H79: =IF(A79<'Global Assumptions'!$C$7,A79*$D$11,IF(A79<$F$11,(A79-'Global Assumptions'!$C$7)*$E$11+'Global Assumptions'!$C$7*$D$11,($F$11-'Global Assumptions'!$C$7)*$E$11+'Global Assumptions'!$C$7*$D$11))*$G$11 -> 18,386 | I79: =+'Global Assumptions'!$C$19*$H$4+'Global Assumptions'!$C$20*$H$5 -> 2,326 | J79: =+'Global Assumptions'!$C$21*$H$4+'Global Assumptions'!$C$22*$H$5 -> 1,487 | K79: =IF(A79<$H$7,A79*'Global Assumptions'!$C$23/1000*$H$6*1.08*12,$H$7*'Global Assumptions'!$C$23/1000*$H$6*1.08*12) -> 243 | L79: ='Global Assumptions'!$C$24 -> 281 | M79: 0 | N79: 5,400 | O79: 338 | P79: 203 | Q79: 0
A80: 140,000 | B80: 26.00% | C80: 36,403 | D80: =IF(A80<'Global Assumptions'!$C$7,(A80-'Global Assumptions'!$C$8)*'Global Assumptions'!$C$9,('Global Assumptions'!$C$7-'Global Assumptions'!$C$8)*'Global Assumptions'!$C$9) -> 2,529 | E80: =IF(A80<'Global Assumptions'!$C$10,A80*'Global Assumptions'!$C$11*$H$3,'Global Assumptions'!$C$10*'Global Assumptions'!$C$11*$H$3) -> 1,169 | F80: =+A80*'Global Assumptions'!$C$12 -> 2,730 | G80: =IF(A80<'Global Assumptions'!$C$14,A80*'Global Assumptions'!$C$13,'Global Assumptions'!$C$14*'Global Assumptions'!$C$13) -> 317 | H80: =IF(A80<'Global Assumptions'!$C$7,A80*$D$11,IF(A80<$F$11,(A80-'Global Assumptions'!$C$7)*$E$11+'Global Assumptions'!$C$7*$D$11,($F$11-'Global Assumptions'!$C$7)*$E$11+'Global Assumptions'!$C$7*$D$11))*$G$11 -> 19,161 | I80: =+'Global Assumptions'!$C$19*$H$4+'Global Assumptions'!$C$20*$H$5 -> 2,326 | J80: =+'Global Assumptions'!$C$21*$H$4+'Global Assumptions'!$C$22*$H$5 -> 1,487 | K80: =IF(A80<$H$7,A80*'Global Assumptions'!$C$23/1000*$H$6*1.08*12,$H$7*'Global Assumptions'!$C$23/1000*$H$6*1.08*12) -> 243 | L80: ='Global Assumptions'!$C$24 -> 281 | M80: 0 | N80: 5,600 | O80: 350 | P80: 210 | Q80: 0
A81: 145,000 | B81: 25.86% | C81: 37,495 | D81: =IF(A81<'Global Assumptions'!$C$7,(A81-'Global Assumptions'!$C$8)*'Global Assumptions'!$C$9,('Global Assumptions'!$C$7-'Global Assumptions'!$C$8)*'Global Assumptions'!$C$9) -> 2,529 | E81: =IF(A81<'Global Assumptions'!$C$10,A81*'Global Assumptions'!$C$11*$H$3,'Global Assumptions'!$C$10*'Global Assumptions'!$C$11*$H$3) -> 1,169 | F81: =+A81*'Global Assumptions'!$C$12 -> 2,828 | G81: =IF(A81<'Global Assumptions'!$C$14,A81*'Global Assumptions'!$C$13,'Global Assumptions'!$C$14*'Global Assumptions'!$C$13) -> 317 | H81: =IF(A81<'Global Assumptions'!$C$7,A81*$D$11,IF(A81<$F$11,(A81-'Global Assumptions'!$C$7)*$E$11+'Global Assumptions'!$C$7*$D$11,($F$11-'Global Assumptions'!$C$7)*$E$11+'Global Assumptions'!$C$7*$D$11))*$G$11 -> 19,936 | I81: =+'Global Assumptions'!$C$19*$H$4+'Global Assumptions'!$C$20*$H$5 -> 2,326 | J81: =+'Global Assumptions'!$C$21*$H$4+'Global Assumptions'!$C$22*$H$5 -> 1,487 | K81: =IF(A81<$H$7,A81*'Global Assumptions'!$C$23/1000*$H$6*1.08*12,$H$7*'Global Assumptions'!$C$23/1000*$H$6*1.08*12) -> 243 | L81: ='Global Assumptions'!$C$24 -> 281 | M81: 0 | N81: 5,800 | O81: 363 | P81: 218 | Q81: 0
A82: 150,000 | B82: 25.73% | C82: 38,588 | D82: =IF(A82<'Global Assumptions'!$C$7,(A82-'Global Assumptions'!$C$8)*'Global Assumptions'!$C$9,('Global Assumptions'!$C$7-'Global Assumptions'!$C$8)*'Global Assumptions'!$C$9) -> 2,529 | E82: =IF(A82<'Global Assumptions'!$C$10,A82*'Global Assumptions'!$C$11*$H$3,'Global Assumptions'!$C$10*'Global Assumptions'!$C$11*$H$3) -> 1,169 | F82: =+A82*'Global Assumptions'!$C$12 -> 2,925 | G82: =IF(A82<'Global Assumptions'!$C$14,A82*'Global Assumptions'!$C$13,'Global Assumptions'!$C$14*'Global Assumptions'!$C$13) -> 317 | H82: =IF(A82<'Global Assumptions'!$C$7,A82*$D$11,IF(A82<$F$11,(A82-'Global Assumptions'!$C$7)*$E$11+'Global Assumptions'!$C$7*$D$11,($F$11-'Global Assumptions'!$C$7)*$E$11+'Global Assumptions'!$C$7*$D$11))*$G$11 -> 20,711 | I82: =+'Global Assumptions'!$C$19*$H$4+'Global Assumptions'!$C$20*$H$5 -> 2,326 | J82: =+'Global Assumptions'!$C$21*$H$4+'Global Assumptions'!$C$22*$H$5 -> 1,487 | K82: =IF(A82<$H$7,A82*'Global Assumptions'!$C$23/1000*$H$6*1.08*12,$H$7*'Global Assumptions'!$C$23/1000*$H$6*1.08*12) -> 243 | L82: ='Global Assumptions'!$C$24 -> 281 | M82: 0 | N82: 6,000 | O82: 375 | P82: 225 | Q82: 0
A83: 155,000 | B83: 25.60% | C83: 39,680 | D83: =IF(A83<'Global Assumptions'!$C$7,(A83-'Global Assumptions'!$C$8)*'Global Assumptions'!$C$9,('Global Assumptions'!$C$7-'Global Assumptions'!$C$8)*'Global Assumptions'!$C$9) -> 2,529 | E83: =IF(A83<'Global Assumptions'!$C$10,A83*'Global Assumptions'!$C$11*$H$3,'Global Assumptions'!$C$10*'Global Assumptions'!$C$11*$H$3) -> 1,169 | F83: =+A83*'Global Assumptions'!$C$12 -> 3,023 | G83: =IF(A83<'Global Assumptions'!$C$14,A83*'Global Assumptions'!$C$13,'Global Assumptions'!$C$14*'Global Assumptions'!$C$13) -> 317 | H83: =IF(A83<'Global Assumptions'!$C$7,A83*$D$11,IF(A83<$F$11,(A83-'Global Assumptions'!$C$7)*$E$11+'Global Assumptions'!$C$7*$D$11,($F$11-'Global Assumptions'!$C$7)*$E$11+'Global Assumptions'!$C$7*$D$11))*$G$11 -> 21,486 | I83: =+'Global Assumptions'!$C$19*$H$4+'Global Assumptions'!$C$20*$H$5 -> 2,326 | J83: =+'Global Assumptions'!$C$21*$H$4+'Global Assumptions'!$C$22*$H$5 -> 1,487 | K83: =IF(A83<$H$7,A83*'Global Assumptions'!$C$23/1000*$H$6*1.08*12,$H$7*'Global Assumptions'!$C$23/1000*$H$6*1.08*12) -> 243 | L83: ='Global Assumptions'!$C$24 -> 281 | M83: 0 | N83: 6,200 | O83: 388 | P83: 233 | Q83: 0
A84: 160,000 | B84: 25.48% | C84: 40,773 | D84: =IF(A84<'Global Assumptions'!$C$7,(A84-'Global Assumptions'!$C$8)*'Global Assumptions'!$C$9,('Global Assumptions'!$C$7-'Global Assumptions'!$C$8)*'Global Assumptions'!$C$9) -> 2,529 | E84: =IF(A84<'Global Assumptions'!$C$10,A84*'Global Assumptions'!$C$11*$H$3,'Global Assumptions'!$C$10*'Global Assumptions'!$C$11*$H$3) -> 1,169 | F84: =+A84*'Global Assumptions'!$C$12 -> 3,120 | G84: =IF(A84<'Global Assumptions'!$C$14,A84*'Global Assumptions'!$C$13,'Global Assumptions'!$C$14*'Global Assumptions'!$C$13) -> 317 | H84: =IF(A84<'Global Assumptions'!$C$7,A84*$D$11,IF(A84<$F$11,(A84-'Global Assumptions'!$C$7)*$E$11+'Global Assumptions'!$C$7*$D$11,($F$11-'Global Assumptions'!$C$7)*$E$11+'Global Assumptions'!$C$7*$D$11))*$G$11 -> 22,261 | I84: =+'Global Assumptions'!$C$19*$H$4+'Global Assumptions'!$C$20*$H$5 -> 2,326 | J84: =+'Global Assumptions'!$C$21*$H$4+'Global Assumptions'!$C$22*$H$5 -> 1,487 | K84: =IF(A84<$H$7,A84*'Global Assumptions'!$C$23/1000*$H$6*1.08*12,$H$7*'Global Assumptions'!$C$23/1000*$H$6*1.08*12) -> 243 | L84: ='Global Assumptions'!$C$24 -> 281 | M84: 0 | N84: 6,400 | O84: 400 | P84: 240 | Q84: 0
A85: 165,000 | B85: 24.90% | C85: 41,090 | D85: =IF(A85<'Global Assumptions'!$C$7,(A85-'Global Assumptions'!$C$8)*'Global Assumptions'!$C$9,('Global Assumptions'!$C$7-'Global Assumptions'!$C$8)*'Global Assumptions'!$C$9) -> 2,529 | E85: =IF(A85<'Global Assumptions'!$C$10,A85*'Global Assumptions'!$C$11*$H$3,'Global Assumptions'!$C$10*'Global Assumptions'!$C$11*$H$3) -> 1,169 | F85: =+A85*'Global Assumptions'!$C$12 -> 3,218 | G85: =IF(A85<'Global Assumptions'!$C$14,A85*'Global Assumptions'!$C$13,'Global Assumptions'!$C$14*'Global Assumptions'!$C$13) -> 317 | H85: =IF(A85<'Global Assumptions'!$C$7,A85*$D$11,IF(A85<$F$11,(A85-'Global Assumptions'!$C$7)*$E$11+'Global Assumptions'!$C$7*$D$11,($F$11-'Global Assumptions'!$C$7)*$E$11+'Global Assumptions'!$C$7*$D$11))*$G$11 -> 22,261 | I85: =+'Global Assumptions'!$C$19*$H$4+'Global Assumptions'!$C$20*$H$5 -> 2,326 | J85: =+'Global Assumptions'!$C$21*$H$4+'Global Assumptions'!$C$22*$H$5 -> 1,487 | K85: =IF(A85<$H$7,A85*'Global Assumptions'!$C$23/1000*$H$6*1.08*12,$H$7*'Global Assumptions'!$C$23/1000*$H$6*1.08*12) -> 243 | L85: ='Global Assumptions'!$C$24 -> 281 | M85: 0 | N85: 6,600 | O85: 413 | P85: 248 | Q85: 0
A86: 170,000 | B86: 24.36% | C86: 41,408 | D86: =IF(A86<'Global Assumptions'!$C$7,(A86-'Global Assumptions'!$C$8)*'Global Assumptions'!$C$9,('Global Assumptions'!$C$7-'Global Assumptions'!$C$8)*'Global Assumptions'!$C$9) -> 2,529 | E86: =IF(A86<'Global Assumptions'!$C$10,A86*'Global Assumptions'!$C$11*$H$3,'Global Assumptions'!$C$10*'Global Assumptions'!$C$11*$H$3) -> 1,169 | F86: =+A86*'Global Assumptions'!$C$12 -> 3,315 | G86: =IF(A86<'Global Assumptions'!$C$14,A86*'Global Assumptions'!$C$13,'Global Assumptions'!$C$14*'Global Assumptions'!$C$13) -> 317 | H86: =IF(A86<'Global Assumptions'!$C$7,A86*$D$11,IF(A86<$F$11,(A86-'Global Assumptions'!$C$7)*$E$11+'Global Assumptions'!$C$7*$D$11,($F$11-'Global Assumptions'!$C$7)*$E$11+'Global Assumptions'!$C$7*$D$11))*$G$11 -> 22,261 | I86: =+'Global Assumptions'!$C$19*$H$4+'Global Assumptions'!$C$20*$H$5 -> 2,326 | J86: =+'Global Assumptions'!$C$21*$H$4+'Global Assumptions'!$C$22*$H$5 -> 1,487 | K86: =IF(A86<$H$7,A86*'Global Assumptions'!$C$23/1000*$H$6*1.08*12,$H$7*'Global Assumptions'!$C$23/1000*$H$6*1.08*12) -> 243 | L86: ='Global Assumptions'!$C$24 -> 281 | M86: 0 | N86: 6,800 | O86: 425 | P86: 255 | Q86: 0
A87: 175,000 | B87: 23.84% | C87: 41,725 | D87: =IF(A87<'Global Assumptions'!$C$7,(A87-'Global Assumptions'!$C$8)*'Global Assumptions'!$C$9,('Global Assumptions'!$C$7-'Global Assumptions'!$C$8)*'Global Assumptions'!$C$9) -> 2,529 | E87: =IF(A87<'Global Assumptions'!$C$10,A87*'Global Assumptions'!$C$11*$H$3,'Global Assumptions'!$C$10*'Global Assumptions'!$C$11*$H$3) -> 1,169 | F87: =+A87*'Global Assumptions'!$C$12 -> 3,413 | G87: =IF(A87<'Global Assumptions'!$C$14,A87*'Global Assumptions'!$C$13,'Global Assumptions'!$C$14*'Global Assumptions'!$C$13) -> 317 | H87: =IF(A87<'Global Assumptions'!$C$7,A87*$D$11,IF(A87<$F$11,(A87-'Global Assumptions'!$C$7)*$E$11+'Global Assumptions'!$C$7*$D$11,($F$11-'Global Assumptions'!$C$7)*$E$11+'Global Assumptions'!$C$7*$D$11))*$G$11 -> 22,261 | I87: =+'Global Assumptions'!$C$19*$H$4+'Global Assumptions'!$C$20*$H$5 -> 2,326 | J87: =+'Global Assumptions'!$C$21*$H$4+'Global Assumptions'!$C$22*$H$5 -> 1,487 | K87: =IF(A87<$H$7,A87*'Global Assumptions'!$C$23/1000*$H$6*1.08*12,$H$7*'Global Assumptions'!$C$23/1000*$H$6*1.08*12) -> 243 | L87: ='Global Assumptions'!$C$24 -> 281 | M87: 0 | N87: 7,000 | O87: 438 | P87: 263 | Q87: 0
A88: 180,000 | B88: 23.36% | C88: 42,043 | D88: =IF(A88<'Global Assumptions'!$C$7,(A88-'Global Assumptions'!$C$8)*'Global Assumptions'!$C$9,('Global Assumptions'!$C$7-'Global Assumptions'!$C$8)*'Global Assumptions'!$C$9) -> 2,529 | E88: =IF(A88<'Global Assumptions'!$C$10,A88*'Global Assumptions'!$C$11*$H$3,'Global Assumptions'!$C$10*'Global Assumptions'!$C$11*$H$3) -> 1,169 | F88: =+A88*'Global Assumptions'!$C$12 -> 3,510 | G88: =IF(A88<'Global Assumptions'!$C$14,A88*'Global Assumptions'!$C$13,'Global Assumptions'!$C$14*'Global Assumptions'!$C$13) -> 317 | H88: =IF(A88<'Global Assumptions'!$C$7,A88*$D$11,IF(A88<$F$11,(A88-'Global Assumptions'!$C$7)*$E$11+'Global Assumptions'!$C$7*$D$11,($F$11-'Global Assumptions'!$C$7)*$E$11+'Global Assumptions'!$C$7*$D$11))*$G$11 -> 22,261 | I88: =+'Global Assumptions'!$C$19*$H$4+'Global Assumptions'!$C$20*$H$5 -> 2,326 | J88: =+'Global Assumptions'!$C$21*$H$4+'Global Assumptions'!$C$22*$H$5 -> 1,487 | K88: =IF(A88<$H$7,A88*'Global Assumptions'!$C$23/1000*$H$6*1.08*12,$H$7*'Global Assumptions'!$C$23/1000*$H$6*1.08*12) -> 243 | L88: ='Global Assumptions'!$C$24 -> 281 | M88: 0 | N88: 7,200 | O88: 450 | P88: 270 | Q88: 0
A89: 185,000 | B89: 22.90% | C89: 42,360 | D89: =IF(A89<'Global Assumptions'!$C$7,(A89-'Global Assumptions'!$C$8)*'Global Assumptions'!$C$9,('Global Assumptions'!$C$7-'Global Assumptions'!$C$8)*'Global Assumptions'!$C$9) -> 2,529 | E89: =IF(A89<'Global Assumptions'!$C$10,A89*'Global Assumptions'!$C$11*$H$3,'Global Assumptions'!$C$10*'Global Assumptions'!$C$11*$H$3) -> 1,169 | F89: =+A89*'Global Assumptions'!$C$12 -> 3,608 | G89: =IF(A89<'Global Assumptions'!$C$14,A89*'Global Assumptions'!$C$13,'Global Assumptions'!$C$14*'Global Assumptions'!$C$13) -> 317 | H89: =IF(A89<'Global Assumptions'!$C$7,A89*$D$11,IF(A89<$F$11,(A89-'Global Assumptions'!$C$7)*$E$11+'Global Assumptions'!$C$7*$D$11,($F$11-'Global Assumptions'!$C$7)*$E$11+'Global Assumptions'!$C$7*$D$11))*$G$11 -> 22,261 | I89: =+'Global Assumptions'!$C$19*$H$4+'Global Assumptions'!$C$20*$H$5 -> 2,326 | J89: =+'Global Assumptions'!$C$21*$H$4+'Global Assumptions'!$C$22*$H$5 -> 1,487 | K89: =IF(A89<$H$7,A89*'Global Assumptions'!$C$23/1000*$H$6*1.08*12,$H$7*'Global Assumptions'!$C$23/1000*$H$6*1.08*12) -> 243 | L89: ='Global Assumptions'!$C$24 -> 281 | M89: 0 | N89: 7,400 | O89: 463 | P89: 278 | Q89: 0
A90: 190,000 | B90: 22.46% | C90: 42,678 | D90: =IF(A90<'Global Assumptions'!$C$7,(A90-'Global Assumptions'!$C$8)*'Global Assumptions'!$C$9,('Global Assumptions'!$C$7-'Global Assumptions'!$C$8)*'Global Assumptions'!$C$9) -> 2,529 | E90: =IF(A90<'Global Assumptions'!$C$10,A90*'Global Assumptions'!$C$11*$H$3,'Global Assumptions'!$C$10*'Global Assumptions'!$C$11*$H$3) -> 1,169 | F90: =+A90*'Global Assumptions'!$C$12 -> 3,705 | G90: =IF(A90<'Global Assumptions'!$C$14,A90*'Global Assumptions'!$C$13,'Global Assumptions'!$C$14*'Global Assumptions'!$C$13) -> 317 | H90: =IF(A90<'Global Assumptions'!$C$7,A90*$D$11,IF(A90<$F$11,(A90-'Global Assumptions'!$C$7)*$E$11+'Global Assumptions'!$C$7*$D$11,($F$11-'Global Assumptions'!$C$7)*$E$11+'Global Assumptions'!$C$7*$D$11))*$G$11 -> 22,261 | I90: =+'Global Assumptions'!$C$19*$H$4+'Global Assumptions'!$C$20*$H$5 -> 2,326 | J90: =+'Global Assumptions'!$C$21*$H$4+'Global Assumptions'!$C$22*$H$5 -> 1,487 | K90: =IF(A90<$H$7,A90*'Global Assumptions'!$C$23/1000*$H$6*1.08*12,$H$7*'Global Assumptions'!$C$23/1000*$H$6*1.08*12) -> 243 | L90: ='Global Assumptions'!$C$24 -> 281 | M90: 0 | N90: 7,600 | O90: 475 | P90: 285 | Q90: 0
A91: 195,000 | B91: 22.05% | C91: 42,995 | D91: =IF(A91<'Global Assumptions'!$C$7,(A91-'Global Assumptions'!$C$8)*'Global Assumptions'!$C$9,('Global Assumptions'!$C$7-'Global Assumptions'!$C$8)*'Global Assumptions'!$C$9) -> 2,529 | E91: =IF(A91<'Global Assumptions'!$C$10,A91*'Global Assumptions'!$C$11*$H$3,'Global Assumptions'!$C$10*'Global Assumptions'!$C$11*$H$3) -> 1,169 | F91: =+A91*'Global Assumptions'!$C$12 -> 3,803 | G91: =IF(A91<'Global Assumptions'!$C$14,A91*'Global Assumptions'!$C$13,'Global Assumptions'!$C$14*'Global Assumptions'!$C$13) -> 317 | H91: =IF(A91<'Global Assumptions'!$C$7,A91*$D$11,IF(A91<$F$11,(A91-'Global Assumptions'!$C$7)*$E$11+'Global Assumptions'!$C$7*$D$11,($F$11-'Global Assumptions'!$C$7)*$E$11+'Global Assumptions'!$C$7*$D$11))*$G$11 -> 22,261 | I91: =+'Global Assumptions'!$C$19*$H$4+'Global Assumptions'!$C$20*$H$5 -> 2,326 | J91: =+'Global Assumptions'!$C$21*$H$4+'Global Assumptions'!$C$22*$H$5 -> 1,487 | K91: =IF(A91<$H$7,A91*'Global Assumptions'!$C$23/1000*$H$6*1.08*12,$H$7*'Global Assumptions'!$C$23/1000*$H$6*1.08*12) -> 243 | L91: ='Global Assumptions'!$C$24 -> 281 | M91: 0 | N91: 7,800 | O91: 488 | P91: 293 | Q91: 0
A92: 200,000 | B92: 21.66% | C92: 43,313 | D92: =IF(A92<'Global Assumptions'!$C$7,(A92-'Global Assumptions'!$C$8)*'Global Assumptions'!$C$9,('Global Assumptions'!$C$7-'Global Assumptions'!$C$8)*'Global Assumptions'!$C$9) -> 2,529 | E92: =IF(A92<'Global Assumptions'!$C$10,A92*'Global Assumptions'!$C$11*$H$3,'Global Assumptions'!$C$10*'Global Assumptions'!$C$11*$H$3) -> 1,169 | F92: =+A92*'Global Assumptions'!$C$12 -> 3,900 | G92: =IF(A92<'Global Assumptions'!$C$14,A92*'Global Assumptions'!$C$13,'Global Assumptions'!$C$14*'Global Assumptions'!$C$13) -> 317 | H92: =IF(A92<'Global Assumptions'!$C$7,A92*$D$11,IF(A92<$F$11,(A92-'Global Assumptions'!$C$7)*$E$11+'Global Assumptions'!$C$7*$D$11,($F$11-'Global Assumptions'!$C$7)*$E$11+'Global Assumptions'!$C$7*$D$11))*$G$11 -> 22,261 | I92: =+'Global Assumptions'!$C$19*$H$4+'Global Assumptions'!$C$20*$H$5 -> 2,326 | J92: =+'Global Assumptions'!$C$21*$H$4+'Global Assumptions'!$C$22*$H$5 -> 1,487 | K92: =IF(A92<$H$7,A92*'Global Assumptions'!$C$23/1000*$H$6*1.08*12,$H$7*'Global Assumptions'!$C$23/1000*$H$6*1.08*12) -> 243 | L92: ='Global Assumptions'!$C$24 -> 281 | M92: 0 | N92: 8,000 | O92: 500 | P92: 300 | Q92: 0
A94: =+'Global Assumptions'!D4 -> FY18 Plan
A95: 20,000 | B95: =+C95/A95 -> 44.80% | C95: =SUM(D95:Q95) -> 8,960 | D95: =IF(A95<'Global Assumptions'!$D$7,(A95-'Global Assumptions'!$D$8)*'Global Assumptions'!$D$9,('Global Assumptions'!$D$7-'Global Assumptions'!$D$8)*'Global Assumptions'!$D$9) -> 817 | E95: =IF(A95<'Global Assumptions'!$D$10,A95*'Global Assumptions'!$D$11*$H$3,'Global Assumptions'!$D$10*'Global Assumptions'!$D$11*$H$3) -> 460 | F95: =+A95*'Global Assumptions'!$D$12 -> 390 | G95: =IF(A95<'Global Assumptions'!$D$14,A95*'Global Assumptions'!$D$13,'Global Assumptions'!$D$14*'Global Assumptions'!$D$13) -> 72 | H95: =IF(A95<'Global Assumptions'!$D$7,A95*$D$12,IF(A95<$F$12,(A95-'Global Assumptions'!$D$7)*$E$12+'Global Assumptions'!$D$7*$D$12,($F$12-'Global Assumptions'!$D$7)*$E$12+'Global Assumptions'!$D$7*$D$12))*$G$12 -> 2,170 | I95: =+'Global Assumptions'!$D$19*$H$4+'Global Assumptions'!$D$20*$H$5 -> 2,349 | J95: =+'Global Assumptions'!$D$21*$H$4+'Global Assumptions'!$D$22*$H$5 -> 1,502 | K95: =IF(A95<$H$7,A95*'Global Assumptions'!$D$23/1000*$H$6*1.08*12,$H$7*'Global Assumptions'!$D$23/1000*$H$6*1.08*12) -> 49 | L95: ='Global Assumptions'!$D$24 -> 281 | M95: =1825*$M$12 -> 0 | N95: =+$A95*N$12 -> 800 | O95: 50 | P95: 20 | Q95: 0
A96: 25,000 | B96: 40.84% | C96: 10,210 | D96: =IF(A96<'Global Assumptions'!$D$7,(A96-'Global Assumptions'!$D$8)*'Global Assumptions'!$D$9,('Global Assumptions'!$D$7-'Global Assumptions'!$D$8)*'Global Assumptions'!$D$9) -> 1,064 | E96: =IF(A96<'Global Assumptions'!$D$10,A96*'Global Assumptions'!$D$11*$H$3,'Global Assumptions'!$D$10*'Global Assumptions'!$D$11*$H$3) -> 575 | F96: =+A96*'Global Assumptions'!$D$12 -> 488 | G96: =IF(A96<'Global Assumptions'!$D$14,A96*'Global Assumptions'!$D$13,'Global Assumptions'!$D$14*'Global Assumptions'!$D$13) -> 90 | H96: =IF(A96<'Global Assumptions'!$D$7,A96*$D$12,IF(A96<$F$12,(A96-'Global Assumptions'!$D$7)*$E$12+'Global Assumptions'!$D$7*$D$12,($F$12-'Global Assumptions'!$D$7)*$E$12+'Global Assumptions'!$D$7*$D$12))*$G$12 -> 2,713 | I96: =+'Global Assumptions'!$D$19*$H$4+'Global Assumptions'!$D$20*$H$5 -> 2,349 | J96: =+'Global Assumptions'!$D$21*$H$4+'Global Assumptions'!$D$22*$H$5 -> 1,502 | K96: =IF(A96<$H$7,A96*'Global Assumptions'!$D$23/1000*$H$6*1.08*12,$H$7*'Global Assumptions'!$D$23/1000*$H$6*1.08*12) -> 61 | L96: ='Global Assumptions'!$D$24 -> 281 | M96: 0 | N96: 1,000 | O96: 63 | P96: 25 | Q96: 0
A97: 30,000 | B97: 38.20% | C97: 11,460 | D97: =IF(A97<'Global Assumptions'!$D$7,(A97-'Global Assumptions'!$D$8)*'Global Assumptions'!$D$9,('Global Assumptions'!$D$7-'Global Assumptions'!$D$8)*'Global Assumptions'!$D$9) -> 1,312 | E97: =IF(A97<'Global Assumptions'!$D$10,A97*'Global Assumptions'!$D$11*$H$3,'Global Assumptions'!$D$10*'Global Assumptions'!$D$11*$H$3) -> 690 | F97: =+A97*'Global Assumptions'!$D$12 -> 585 | G97: =IF(A97<'Global Assumptions'!$D$14,A97*'Global Assumptions'!$D$13,'Global Assumptions'!$D$14*'Global Assumptions'!$D$13) -> 108 | H97: =IF(A97<'Global Assumptions'!$D$7,A97*$D$12,IF(A97<$F$12,(A97-'Global Assumptions'!$D$7)*$E$12+'Global Assumptions'!$D$7*$D$12,($F$12-'Global Assumptions'!$D$7)*$E$12+'Global Assumptions'!$D$7*$D$12))*$G$12 -> 3,255 | I97: =+'Global Assumptions'!$D$19*$H$4+'Global Assumptions'!$D$20*$H$5 -> 2,349 | J97: =+'Global Assumptions'!$D$21*$H$4+'Global Assumptions'!$D$22*$H$5 -> 1,502 | K97: =IF(A97<$H$7,A97*'Global Assumptions'!$D$23/1000*$H$6*1.08*12,$H$7*'Global Assumptions'!$D$23/1000*$H$6*1.08*12) -> 73 | L97: ='Global Assumptions'!$D$24 -> 281 | M97: 0 | N97: 1,200 | O97: 75 | P97: 30 | Q97: 0
A98: 35,000 | B98: 36.31% | C98: 12,710 | D98: =IF(A98<'Global Assumptions'!$D$7,(A98-'Global Assumptions'!$D$8)*'Global Assumptions'!$D$9,('Global Assumptions'!$D$7-'Global Assumptions'!$D$8)*'Global Assumptions'!$D$9) -> 1,559 | E98: =IF(A98<'Global Assumptions'!$D$10,A98*'Global Assumptions'!$D$11*$H$3,'Global Assumptions'!$D$10*'Global Assumptions'!$D$11*$H$3) -> 805 | F98: =+A98*'Global Assumptions'!$D$12 -> 683 | G98: =IF(A98<'Global Assumptions'!$D$14,A98*'Global Assumptions'!$D$13,'Global Assumptions'!$D$14*'Global Assumptions'!$D$13) -> 126 | H98: =IF(A98<'Global Assumptions'!$D$7,A98*$D$12,IF(A98<$F$12,(A98-'Global Assumptions'!$D$7)*$E$12+'Global Assumptions'!$D$7*$D$12,($F$12-'Global Assumptions'!$D$7)*$E$12+'Global Assumptions'!$D$7*$D$12))*$G$12 -> 3,798 | I98: =+'Global Assumptions'!$D$19*$H$4+'Global Assumptions'!$D$20*$H$5 -> 2,349 | J98: =+'Global Assumptions'!$D$21*$H$4+'Global Assumptions'!$D$22*$H$5 -> 1,502 | K98: =IF(A98<$H$7,A98*'Global Assumptions'!$D$23/1000*$H$6*1.08*12,$H$7*'Global Assumptions'!$D$23/1000*$H$6*1.08*12) -> 85 | L98: ='Global Assumptions'!$D$24 -> 281 | M98: 0 | N98: 1,400 | O98: 88 | P98: 35 | Q98: 0
A99: 40,000 | B99: 34.90% | C99: 13,960 | D99: =IF(A99<'Global Assumptions'!$D$7,(A99-'Global Assumptions'!$D$8)*'Global Assumptions'!$D$9,('Global Assumptions'!$D$7-'Global Assumptions'!$D$8)*'Global Assumptions'!$D$9) -> 1,807 | E99: =IF(A99<'Global Assumptions'!$D$10,A99*'Global Assumptions'!$D$11*$H$3,'Global Assumptions'!$D$10*'Global Assumptions'!$D$11*$H$3) -> 920 | F99: =+A99*'Global Assumptions'!$D$12 -> 780 | G99: =IF(A99<'Global Assumptions'!$D$14,A99*'Global Assumptions'!$D$13,'Global Assumptions'!$D$14*'Global Assumptions'!$D$13) -> 144 | H99: =IF(A99<'Global Assumptions'!$D$7,A99*$D$12,IF(A99<$F$12,(A99-'Global Assumptions'!$D$7)*$E$12+'Global Assumptions'!$D$7*$D$12,($F$12-'Global Assumptions'!$D$7)*$E$12+'Global Assumptions'!$D$7*$D$12))*$G$12 -> 4,340 | I99: =+'Global Assumptions'!$D$19*$H$4+'Global Assumptions'!$D$20*$H$5 -> 2,349 | J99: =+'Global Assumptions'!$D$21*$H$4+'Global Assumptions'!$D$22*$H$5 -> 1,502 | K99: =IF(A99<$H$7,A99*'Global Assumptions'!$D$23/1000*$H$6*1.08*12,$H$7*'Global Assumptions'!$D$23/1000*$H$6*1.08*12) -> 97 | L99: ='Global Assumptions'!$D$24 -> 281 | M99: 0 | N99: 1,600 | O99: 100 | P99: 40 | Q99: 0
A100: 45,000 | B100: 33.80% | C100: 15,211 | D100: =IF(A100<'Global Assumptions'!$D$7,(A100-'Global Assumptions'!$D$8)*'Global Assumptions'!$D$9,('Global Assumptions'!$D$7-'Global Assumptions'!$D$8)*'Global Assumptions'!$D$9) -> 2,054 | E100: =IF(A100<'Global Assumptions'!$D$10,A100*'Global Assumptions'!$D$11*$H$3,'Global Assumptions'!$D$10*'Global Assumptions'!$D$11*$H$3) -> 1,036 | F100: =+A100*'Global Assumptions'!$D$12 -> 878 | G100: =IF(A100<'Global Assumptions'!$D$14,A100*'Global Assumptions'!$D$13,'Global Assumptions'!$D$14*'Global Assumptions'!$D$13) -> 162 | H100: =IF(A100<'Global Assumptions'!$D$7,A100*$D$12,IF(A100<$F$12,(A100-'Global Assumptions'!$D$7)*$E$12+'Global Assumptions'!$D$7*$D$12,($F$12-'Global Assumptions'!$D$7)*$E$12+'Global Assumptions'!$D$7*$D$12))*$G$12 -> 4,883 | I100: =+'Global Assumptions'!$D$19*$H$4+'Global Assumptions'!$D$20*$H$5 -> 2,349 | J100: =+'Global Assumptions'!$D$21*$H$4+'Global Assumptions'!$D$22*$H$5 -> 1,502 | K100: =IF(A100<$H$7,A100*'Global Assumptions'!$D$23/1000*$H$6*1.08*12,$H$7*'Global Assumptions'!$D$23/1000*$H$6*1.08*12) -> 109 | L100: ='Global Assumptions'!$D$24 -> 281 | M100: 0 | N100: 1,800 | O100: 113 | P100: 45 | Q100: 0
A101: 50,000 | B101: 32.92% | C101: 16,461 | D101: =IF(A101<'Global Assumptions'!$D$7,(A101-'Global Assumptions'!$D$8)*'Global Assumptions'!$D$9,('Global Assumptions'!$D$7-'Global Assumptions'!$D$8)*'Global Assumptions'!$D$9) -> 2,302 | E101: =IF(A101<'Global Assumptions'!$D$10,A101*'Global Assumptions'!$D$11*$H$3,'Global Assumptions'!$D$10*'Global Assumptions'!$D$11*$H$3) -> 1,151 | F101: =+A101*'Global Assumptions'!$D$12 -> 975 | G101: =IF(A101<'Global Assumptions'!$D$14,A101*'Global Assumptions'!$D$13,'Global Assumptions'!$D$14*'Global Assumptions'!$D$13) -> 180 | H101: =IF(A101<'Global Assumptions'!$D$7,A101*$D$12,IF(A101<$F$12,(A101-'Global Assumptions'!$D$7)*$E$12+'Global Assumptions'!$D$7*$D$12,($F$12-'Global Assumptions'!$D$7)*$E$12+'Global Assumptions'!$D$7*$D$12))*$G$12 -> 5,425 | I101: =+'Global Assumptions'!$D$19*$H$4+'Global Assumptions'!$D$20*$H$5 -> 2,349 | J101: =+'Global Assumptions'!$D$21*$H$4+'Global Assumptions'!$D$22*$H$5 -> 1,502 | K101: =IF(A101<$H$7,A101*'Global Assumptions'!$D$23/1000*$H$6*1.08*12,$H$7*'Global Assumptions'!$D$23/1000*$H$6*1.08*12) -> 121 | L101: ='Global Assumptions'!$D$24 -> 281 | M101: 0 | N101: 2,000 | O101: 125 | P101: 50 | Q101: 0
A102: 55,000 | B102: 32.08% | C102: 17,644 | D102: =IF(A102<'Global Assumptions'!$D$7,(A102-'Global Assumptions'!$D$8)*'Global Assumptions'!$D$9,('Global Assumptions'!$D$7-'Global Assumptions'!$D$8)*'Global Assumptions'!$D$9) -> 2,549 | E102: =IF(A102<'Global Assumptions'!$D$10,A102*'Global Assumptions'!$D$11*$H$3,'Global Assumptions'!$D$10*'Global Assumptions'!$D$11*$H$3) -> 1,199 | F102: =+A102*'Global Assumptions'!$D$12 -> 1,073 | G102: =IF(A102<'Global Assumptions'!$D$14,A102*'Global Assumptions'!$D$13,'Global Assumptions'!$D$14*'Global Assumptions'!$D$13) -> 198 | H102: =IF(A102<'Global Assumptions'!$D$7,A102*$D$12,IF(A102<$F$12,(A102-'Global Assumptions'!$D$7)*$E$12+'Global Assumptions'!$D$7*$D$12,($F$12-'Global Assumptions'!$D$7)*$E$12+'Global Assumptions'!$D$7*$D$12))*$G$12 -> 5,968 | I102: =+'Global Assumptions'!$D$19*$H$4+'Global Assumptions'!$D$20*$H$5 -> 2,349 | J102: =+'Global Assumptions'!$D$21*$H$4+'Global Assumptions'!$D$22*$H$5 -> 1,502 | K102: =IF(A102<$H$7,A102*'Global Assumptions'!$D$23/1000*$H$6*1.08*12,$H$7*'Global Assumptions'!$D$23/1000*$H$6*1.08*12) -> 133 | L102: ='Global Assumptions'!$D$24 -> 281 | M102: 0 | N102: 2,200 | O102: 138 | P102: 55 | Q102: 0
A103: 60,000 | B103: 31.28% | C103: 18,766 | D103: =IF(A103<'Global Assumptions'!$D$7,(A103-'Global Assumptions'!$D$8)*'Global Assumptions'!$D$9,('Global Assumptions'!$D$7-'Global Assumptions'!$D$8)*'Global Assumptions'!$D$9) -> 2,579 | E103: =IF(A103<'Global Assumptions'!$D$10,A103*'Global Assumptions'!$D$11*$H$3,'Global Assumptions'!$D$10*'Global Assumptions'!$D$11*$H$3) -> 1,199 | F103: =+A103*'Global Assumptions'!$D$12 -> 1,170 | G103: =IF(A103<'Global Assumptions'!$D$14,A103*'Global Assumptions'!$D$13,'Global Assumptions'!$D$14*'Global Assumptions'!$D$13) -> 216 | H103: =IF(A103<'Global Assumptions'!$D$7,A103*$D$12,IF(A103<$F$12,(A103-'Global Assumptions'!$D$7)*$E$12+'Global Assumptions'!$D$7*$D$12,($F$12-'Global Assumptions'!$D$7)*$E$12+'Global Assumptions'!$D$7*$D$12))*$G$12 -> 6,715 | I103: =+'Global Assumptions'!$D$19*$H$4+'Global Assumptions'!$D$20*$H$5 -> 2,349 | J103: =+'Global Assumptions'!$D$21*$H$4+'Global Assumptions'!$D$22*$H$5 -> 1,502 | K103: =IF(A103<$H$7,A103*'Global Assumptions'!$D$23/1000*$H$6*1.08*12,$H$7*'Global Assumptions'!$D$23/1000*$H$6*1.08*12) -> 146 | L103: ='Global Assumptions'!$D$24 -> 281 | M103: 0 | N103: 2,400 | O103: 150 | P103: 60 | Q103: 0
A104: 65,000 | B104: 30.59% | C104: 19,886 | D104: =IF(A104<'Global Assumptions'!$D$7,(A104-'Global Assumptions'!$D$8)*'Global Assumptions'!$D$9,('Global Assumptions'!$D$7-'Global Assumptions'!$D$8)*'Global Assumptions'!$D$9) -> 2,579 | E104: =IF(A104<'Global Assumptions'!$D$10,A104*'Global Assumptions'!$D$11*$H$3,'Global Assumptions'!$D$10*'Global Assumptions'!$D$11*$H$3) -> 1,199 | F104: =+A104*'Global Assumptions'!$D$12 -> 1,268 | G104: =IF(A104<'Global Assumptions'!$D$14,A104*'Global Assumptions'!$D$13,'Global Assumptions'!$D$14*'Global Assumptions'!$D$13) -> 234 | H104: =IF(A104<'Global Assumptions'!$D$7,A104*$D$12,IF(A104<$F$12,(A104-'Global Assumptions'!$D$7)*$E$12+'Global Assumptions'!$D$7*$D$12,($F$12-'Global Assumptions'!$D$7)*$E$12+'Global Assumptions'!$D$7*$D$12))*$G$12 -> 7,490 | I104: =+'Global Assumptions'!$D$19*$H$4+'Global Assumptions'!$D$20*$H$5 -> 2,349 | J104: =+'Global Assumptions'!$D$21*$H$4+'Global Assumptions'!$D$22*$H$5 -> 1,502 | K104: =IF(A104<$H$7,A104*'Global Assumptions'!$D$23/1000*$H$6*1.08*12,$H$7*'Global Assumptions'!$D$23/1000*$H$6*1.08*12) -> 158 | L104: ='Global Assumptions'!$D$24 -> 281 | M104: 0 | N104: 2,600 | O104: 163 | P104: 65 | Q104: 0
A105: 70,000 | B105: 30.01% | C105: 21,006 | D105: =IF(A105<'Global Assumptions'!$D$7,(A105-'Global Assumptions'!$D$8)*'Global Assumptions'!$D$9,('Global Assumptions'!$D$7-'Global Assumptions'!$D$8)*'Global Assumptions'!$D$9) -> 2,579 | E105: =IF(A105<'Global Assumptions'!$D$10,A105*'Global Assumptions'!$D$11*$H$3,'Global Assumptions'!$D$10*'Global Assumptions'!$D$11*$H$3) -> 1,199 | F105: =+A105*'Global Assumptions'!$D$12 -> 1,365 | G105: =IF(A105<'Global Assumptions'!$D$14,A105*'Global Assumptions'!$D$13,'Global Assumptions'!$D$14*'Global Assumptions'!$D$13) -> 252 | H105: =IF(A105<'Global Assumptions'!$D$7,A105*$D$12,IF(A105<$F$12,(A105-'Global Assumptions'!$D$7)*$E$12+'Global Assumptions'!$D$7*$D$12,($F$12-'Global Assumptions'!$D$7)*$E$12+'Global Assumptions'!$D$7*$D$12))*$G$12 -> 8,265 | I105: =+'Global Assumptions'!$D$19*$H$4+'Global Assumptions'!$D$20*$H$5 -> 2,349 | J105: =+'Global Assumptions'!$D$21*$H$4+'Global Assumptions'!$D$22*$H$5 -> 1,502 | K105: =IF(A105<$H$7,A105*'Global Assumptions'!$D$23/1000*$H$6*1.08*12,$H$7*'Global Assumptions'!$D$23/1000*$H$6*1.08*12) -> 170 | L105: ='Global Assumptions'!$D$24 -> 281 | M105: 0 | N105: 2,800 | O105: 175 | P105: 70 | Q105: 0
A106: 75,000 | B106: 29.50% | C106: 22,127 | D106: =IF(A106<'Global Assumptions'!$D$7,(A106-'Global Assumptions'!$D$8)*'Global Assumptions'!$D$9,('Global Assumptions'!$D$7-'Global Assumptions'!$D$8)*'Global Assumptions'!$D$9) -> 2,579 | E106: =IF(A106<'Global Assumptions'!$D$10,A106*'Global Assumptions'!$D$11*$H$3,'Global Assumptions'!$D$10*'Global Assumptions'!$D$11*$H$3) -> 1,199 | F106: =+A106*'Global Assumptions'!$D$12 -> 1,463 | G106: =IF(A106<'Global Assumptions'!$D$14,A106*'Global Assumptions'!$D$13,'Global Assumptions'!$D$14*'Global Assumptions'!$D$13) -> 270 | H106: =IF(A106<'Global Assumptions'!$D$7,A106*$D$12,IF(A106<$F$12,(A106-'Global Assumptions'!$D$7)*$E$12+'Global Assumptions'!$D$7*$D$12,($F$12-'Global Assumptions'!$D$7)*$E$12+'Global Assumptions'!$D$7*$D$12))*$G$12 -> 9,040 | I106: =+'Global Assumptions'!$D$19*$H$4+'Global Assumptions'!$D$20*$H$5 -> 2,349 | J106: =+'Global Assumptions'!$D$21*$H$4+'Global Assumptions'!$D$22*$H$5 -> 1,502 | K106: =IF(A106<$H$7,A106*'Global Assumptions'!$D$23/1000*$H$6*1.08*12,$H$7*'Global Assumptions'!$D$23/1000*$H$6*1.08*12) -> 182 | L106: ='Global Assumptions'!$D$24 -> 281 | M106: 0 | N106: 3,000 | O106: 188 | P106: 75 | Q106: 0
A107: 80,000 | B107: 29.06% | C107: 23,247 | D107: =IF(A107<'Global Assumptions'!$D$7,(A107-'Global Assumptions'!$D$8)*'Global Assumptions'!$D$9,('Global Assumptions'!$D$7-'Global Assumptions'!$D$8)*'Global Assumptions'!$D$9) -> 2,579 | E107: =IF(A107<'Global Assumptions'!$D$10,A107*'Global Assumptions'!$D$11*$H$3,'Global Assumptions'!$D$10*'Global Assumptions'!$D$11*$H$3) -> 1,199 | F107: =+A107*'Global Assumptions'!$D$12 -> 1,560 | G107: =IF(A107<'Global Assumptions'!$D$14,A107*'Global Assumptions'!$D$13,'Global Assumptions'!$D$14*'Global Assumptions'!$D$13) -> 288 | H107: =IF(A107<'Global Assumptions'!$D$7,A107*$D$12,IF(A107<$F$12,(A107-'Global Assumptions'!$D$7)*$E$12+'Global Assumptions'!$D$7*$D$12,($F$12-'Global Assumptions'!$D$7)*$E$12+'Global Assumptions'!$D$7*$D$12))*$G$12 -> 9,815 | I107: =+'Global Assumptions'!$D$19*$H$4+'Global Assumptions'!$D$20*$H$5 -> 2,349 | J107: =+'Global Assumptions'!$D$21*$H$4+'Global Assumptions'!$D$22*$H$5 -> 1,502 | K107: =IF(A107<$H$7,A107*'Global Assumptions'!$D$23/1000*$H$6*1.08*12,$H$7*'Global Assumptions'!$D$23/1000*$H$6*1.08*12) -> 194 | L107: ='Global Assumptions'!$D$24 -> 281 | M107: 0 | N107: 3,200 | O107: 200 | P107: 80 | Q107: 0
A108: 85,000 | B108: 28.67% | C108: 24,367 | D108: =IF(A108<'Global Assumptions'!$D$7,(A108-'Global Assumptions'!$D$8)*'Global Assumptions'!$D$9,('Global Assumptions'!$D$7-'Global Assumptions'!$D$8)*'Global Assumptions'!$D$9) -> 2,579 | E108: =IF(A108<'Global Assumptions'!$D$10,A108*'Global Assumptions'!$D$11*$H$3,'Global Assumptions'!$D$10*'Global Assumptions'!$D$11*$H$3) -> 1,199 | F108: =+A108*'Global Assumptions'!$D$12 -> 1,658 | G108: =IF(A108<'Global Assumptions'!$D$14,A108*'Global Assumptions'!$D$13,'Global Assumptions'!$D$14*'Global Assumptions'!$D$13) -> 306 | H108: =IF(A108<'Global Assumptions'!$D$7,A108*$D$12,IF(A108<$F$12,(A108-'Global Assumptions'!$D$7)*$E$12+'Global Assumptions'!$D$7*$D$12,($F$12-'Global Assumptions'!$D$7)*$E$12+'Global Assumptions'!$D$7*$D$12))*$G$12 -> 10,590 | I108: =+'Global Assumptions'!$D$19*$H$4+'Global Assumptions'!$D$20*$H$5 -> 2,349 | J108: =+'Global Assumptions'!$D$21*$H$4+'Global Assumptions'!$D$22*$H$5 -> 1,502 | K108: =IF(A108<$H$7,A108*'Global Assumptions'!$D$23/1000*$H$6*1.08*12,$H$7*'Global Assumptions'!$D$23/1000*$H$6*1.08*12) -> 206 | L108: ='Global Assumptions'!$D$24 -> 281 | M108: 0 | N108: 3,400 | O108: 213 | P108: 85 | Q108: 0
A109: 90,000 | B109: 28.32% | C109: 25,487 | D109: =IF(A109<'Global Assumptions'!$D$7,(A109-'Global Assumptions'!$D$8)*'Global Assumptions'!$D$9,('Global Assumptions'!$D$7-'Global Assumptions'!$D$8)*'Global Assumptions'!$D$9) -> 2,579 | E109: =IF(A109<'Global Assumptions'!$D$10,A109*'Global Assumptions'!$D$11*$H$3,'Global Assumptions'!$D$10*'Global Assumptions'!$D$11*$H$3) -> 1,199 | F109: =+A109*'Global Assumptions'!$D$12 -> 1,755 | G109: =IF(A109<'Global Assumptions'!$D$14,A109*'Global Assumptions'!$D$13,'Global Assumptions'!$D$14*'Global Assumptions'!$D$13) -> 324 | H109: =IF(A109<'Global Assumptions'!$D$7,A109*$D$12,IF(A109<$F$12,(A109-'Global Assumptions'!$D$7)*$E$12+'Global Assumptions'!$D$7*$D$12,($F$12-'Global Assumptions'!$D$7)*$E$12+'Global Assumptions'!$D$7*$D$12))*$G$12 -> 11,365 | I109: =+'Global Assumptions'!$D$19*$H$4+'Global Assumptions'!$D$20*$H$5 -> 2,349 | J109: =+'Global Assumptions'!$D$21*$H$4+'Global Assumptions'!$D$22*$H$5 -> 1,502 | K109: =IF(A109<$H$7,A109*'Global Assumptions'!$D$23/1000*$H$6*1.08*12,$H$7*'Global Assumptions'!$D$23/1000*$H$6*1.08*12) -> 218 | L109: ='Global Assumptions'!$D$24 -> 281 | M109: 0 | N109: 3,600 | O109: 225 | P109: 90 | Q109: 0
A110: 95,000 | B110: 27.99% | C110: 26,592 | D110: =IF(A110<'Global Assumptions'!$D$7,(A110-'Global Assumptions'!$D$8)*'Global Assumptions'!$D$9,('Global Assumptions'!$D$7-'Global Assumptions'!$D$8)*'Global Assumptions'!$D$9) -> 2,579 | E110: =IF(A110<'Global Assumptions'!$D$10,A110*'Global Assumptions'!$D$11*$H$3,'Global Assumptions'!$D$10*'Global Assumptions'!$D$11*$H$3) -> 1,199 | F110: =+A110*'Global Assumptions'!$D$12 -> 1,853 | G110: =IF(A110<'Global Assumptions'!$D$14,A110*'Global Assumptions'!$D$13,'Global Assumptions'!$D$14*'Global Assumptions'!$D$13) -> 327 | H110: =IF(A110<'Global Assumptions'!$D$7,A110*$D$12,IF(A110<$F$12,(A110-'Global Assumptions'!$D$7)*$E$12+'Global Assumptions'!$D$7*$D$12,($F$12-'Global Assumptions'!$D$7)*$E$12+'Global Assumptions'!$D$7*$D$12))*$G$12 -> 12,140 | I110: =+'Global Assumptions'!$D$19*$H$4+'Global Assumptions'!$D$20*$H$5 -> 2,349 | J110: =+'Global Assumptions'!$D$21*$H$4+'Global Assumptions'!$D$22*$H$5 -> 1,502 | K110: =IF(A110<$H$7,A110*'Global Assumptions'!$D$23/1000*$H$6*1.08*12,$H$7*'Global Assumptions'!$D$23/1000*$H$6*1.08*12) -> 231 | L110: ='Global Assumptions'!$D$24 -> 281 | M110: 0 | N110: 3,800 | O110: 238 | P110: 95 | Q110: 0
A111: 100,000 | B111: 27.69% | C111: 27,695 | D111: =IF(A111<'Global Assumptions'!$D$7,(A111-'Global Assumptions'!$D$8)*'Global Assumptions'!$D$9,('Global Assumptions'!$D$7-'Global Assumptions'!$D$8)*'Global Assumptions'!$D$9) -> 2,579 | E111: =IF(A111<'Global Assumptions'!$D$10,A111*'Global Assumptions'!$D$11*$H$3,'Global Assumptions'!$D$10*'Global Assumptions'!$D$11*$H$3) -> 1,199 | F111: =+A111*'Global Assumptions'!$D$12 -> 1,950 | G111: =IF(A111<'Global Assumptions'!$D$14,A111*'Global Assumptions'!$D$13,'Global Assumptions'!$D$14*'Global Assumptions'!$D$13) -> 327 | H111: =IF(A111<'Global Assumptions'!$D$7,A111*$D$12,IF(A111<$F$12,(A111-'Global Assumptions'!$D$7)*$E$12+'Global Assumptions'!$D$7*$D$12,($F$12-'Global Assumptions'!$D$7)*$E$12+'Global Assumptions'!$D$7*$D$12))*$G$12 -> 12,915 | I111: =+'Global Assumptions'!$D$19*$H$4+'Global Assumptions'!$D$20*$H$5 -> 2,349 | J111: =+'Global Assumptions'!$D$21*$H$4+'Global Assumptions'!$D$22*$H$5 -> 1,502 | K111: =IF(A111<$H$7,A111*'Global Assumptions'!$D$23/1000*$H$6*1.08*12,$H$7*'Global Assumptions'!$D$23/1000*$H$6*1.08*12) -> 243 | L111: ='Global Assumptions'!$D$24 -> 281 | M111: 0 | N111: 4,000 | O111: 250 | P111: 100 | Q111: 0
A112: 105,000 | B112: 27.41% | C112: 28,785 | D112: =IF(A112<'Global Assumptions'!$D$7,(A112-'Global Assumptions'!$D$8)*'Global Assumptions'!$D$9,('Global Assumptions'!$D$7-'Global Assumptions'!$D$8)*'Global Assumptions'!$D$9) -> 2,579 | E112: =IF(A112<'Global Assumptions'!$D$10,A112*'Global Assumptions'!$D$11*$H$3,'Global Assumptions'!$D$10*'Global Assumptions'!$D$11*$H$3) -> 1,199 | F112: =+A112*'Global Assumptions'!$D$12 -> 2,048 | G112: =IF(A112<'Global Assumptions'!$D$14,A112*'Global Assumptions'!$D$13,'Global Assumptions'!$D$14*'Global Assumptions'!$D$13) -> 327 | H112: =IF(A112<'Global Assumptions'!$D$7,A112*$D$12,IF(A112<$F$12,(A112-'Global Assumptions'!$D$7)*$E$12+'Global Assumptions'!$D$7*$D$12,($F$12-'Global Assumptions'!$D$7)*$E$12+'Global Assumptions'!$D$7*$D$12))*$G$12 -> 13,690 | I112: =+'Global Assumptions'!$D$19*$H$4+'Global Assumptions'!$D$20*$H$5 -> 2,349 | J112: =+'Global Assumptions'!$D$21*$H$4+'Global Assumptions'!$D$22*$H$5 -> 1,502 | K112: =IF(A112<$H$7,A112*'Global Assumptions'!$D$23/1000*$H$6*1.08*12,$H$7*'Global Assumptions'!$D$23/1000*$H$6*1.08*12) -> 243 | L112: ='Global Assumptions'!$D$24 -> 281 | M112: 0 | N112: 4,200 | O112: 263 | P112: 105 | Q112: 0
A113: 110,000 | B113: 27.16% | C113: 29,875 | D113: =IF(A113<'Global Assumptions'!$D$7,(A113-'Global Assumptions'!$D$8)*'Global Assumptions'!$D$9,('Global Assumptions'!$D$7-'Global Assumptions'!$D$8)*'Global Assumptions'!$D$9) -> 2,579 | E113: =IF(A113<'Global Assumptions'!$D$10,A113*'Global Assumptions'!$D$11*$H$3,'Global Assumptions'!$D$10*'Global Assumptions'!$D$11*$H$3) -> 1,199 | F113: =+A113*'Global Assumptions'!$D$12 -> 2,145 | G113: =IF(A113<'Global Assumptions'!$D$14,A113*'Global Assumptions'!$D$13,'Global Assumptions'!$D$14*'Global Assumptions'!$D$13) -> 327 | H113: =IF(A113<'Global Assumptions'!$D$7,A113*$D$12,IF(A113<$F$12,(A113-'Global Assumptions'!$D$7)*$E$12+'Global Assumptions'!$D$7*$D$12,($F$12-'Global Assumptions'!$D$7)*$E$12+'Global Assumptions'!$D$7*$D$12))*$G$12 -> 14,465 | I113: =+'Global Assumptions'!$D$19*$H$4+'Global Assumptions'!$D$20*$H$5 -> 2,349 | J113: =+'Global Assumptions'!$D$21*$H$4+'Global Assumptions'!$D$22*$H$5 -> 1,502 | K113: =IF(A113<$H$7,A113*'Global Assumptions'!$D$23/1000*$H$6*1.08*12,$H$7*'Global Assumptions'!$D$23/1000*$H$6*1.08*12) -> 243 | L113: ='Global Assumptions'!$D$24 -> 281 | M113: 0 | N113: 4,400 | O113: 275 | P113: 110 | Q113: 0
A114: 115,000 | B114: 26.93% | C114: 30,965 | D114: =IF(A114<'Global Assumptions'!$D$7,(A114-'Global Assumptions'!$D$8)*'Global Assumptions'!$D$9,('Global Assumptions'!$D$7-'Global Assumptions'!$D$8)*'Global Assumptions'!$D$9) -> 2,579 | E114: =IF(A114<'Global Assumptions'!$D$10,A114*'Global Assumptions'!$D$11*$H$3,'Global Assumptions'!$D$10*'Global Assumptions'!$D$11*$H$3) -> 1,199 | F114: =+A114*'Global Assumptions'!$D$12 -> 2,243 | G114: =IF(A114<'Global Assumptions'!$D$14,A114*'Global Assumptions'!$D$13,'Global Assumptions'!$D$14*'Global Assumptions'!$D$13) -> 327 | H114: =IF(A114<'Global Assumptions'!$D$7,A114*$D$12,IF(A114<$F$12,(A114-'Global Assumptions'!$D$7)*$E$12+'Global Assumptions'!$D$7*$D$12,($F$12-'Global Assumptions'!$D$7)*$E$12+'Global Assumptions'!$D$7*$D$12))*$G$12 -> 15,240 | I114: =+'Global Assumptions'!$D$19*$H$4+'Global Assumptions'!$D$20*$H$5 -> 2,349 | J114: =+'Global Assumptions'!$D$21*$H$4+'Global Assumptions'!$D$22*$H$5 -> 1,502 | K114: =IF(A114<$H$7,A114*'Global Assumptions'!$D$23/1000*$H$6*1.08*12,$H$7*'Global Assumptions'!$D$23/1000*$H$6*1.08*12) -> 243 | L114: ='Global Assumptions'!$D$24 -> 281 | M114: 0 | N114: 4,600 | O114: 288 | P114: 115 | Q114: 0
A115: 120,000 | B115: 26.71% | C115: 32,055 | D115: =IF(A115<'Global Assumptions'!$D$7,(A115-'Global Assumptions'!$D$8)*'Global Assumptions'!$D$9,('Global Assumptions'!$D$7-'Global Assumptions'!$D$8)*'Global Assumptions'!$D$9) -> 2,579 | E115: =IF(A115<'Global Assumptions'!$D$10,A115*'Global Assumptions'!$D$11*$H$3,'Global Assumptions'!$D$10*'Global Assumptions'!$D$11*$H$3) -> 1,199 | F115: =+A115*'Global Assumptions'!$D$12 -> 2,340 | G115: =IF(A115<'Global Assumptions'!$D$14,A115*'Global Assumptions'!$D$13,'Global Assumptions'!$D$14*'Global Assumptions'!$D$13) -> 327 | H115: =IF(A115<'Global Assumptions'!$D$7,A115*$D$12,IF(A115<$F$12,(A115-'Global Assumptions'!$D$7)*$E$12+'Global Assumptions'!$D$7*$D$12,($F$12-'Global Assumptions'!$D$7)*$E$12+'Global Assumptions'!$D$7*$D$12))*$G$12 -> 16,015 | I115: =+'Global Assumptions'!$D$19*$H$4+'Global Assumptions'!$D$20*$H$5 -> 2,349 | J115: =+'Global Assumptions'!$D$21*$H$4+'Global Assumptions'!$D$22*$H$5 -> 1,502 | K115: =IF(A115<$H$7,A115*'Global Assumptions'!$D$23/1000*$H$6*1.08*12,$H$7*'Global Assumptions'!$D$23/1000*$H$6*1.08*12) -> 243 | L115: ='Global Assumptions'!$D$24 -> 281 | M115: 0 | N115: =+$A115*N$12 -> 4,800 | O115: 300 | P115: 120 | Q115: 0
A116: 125,000 | B116: 26.52% | C116: 33,145 | D116: =IF(A116<'Global Assumptions'!$D$7,(A116-'Global Assumptions'!$D$8)*'Global Assumptions'!$D$9,('Global Assumptions'!$D$7-'Global Assumptions'!$D$8)*'Global Assumptions'!$D$9) -> 2,579 | E116: =IF(A116<'Global Assumptions'!$D$10,A116*'Global Assumptions'!$D$11*$H$3,'Global Assumptions'!$D$10*'Global Assumptions'!$D$11*$H$3) -> 1,199 | F116: =+A116*'Global Assumptions'!$D$12 -> 2,438 | G116: =IF(A116<'Global Assumptions'!$D$14,A116*'Global Assumptions'!$D$13,'Global Assumptions'!$D$14*'Global Assumptions'!$D$13) -> 327 | H116: =IF(A116<'Global Assumptions'!$D$7,A116*$D$12,IF(A116<$F$12,(A116-'Global Assumptions'!$D$7)*$E$12+'Global Assumptions'!$D$7*$D$12,($F$12-'Global Assumptions'!$D$7)*$E$12+'Global Assumptions'!$D$7*$D$12))*$G$12 -> 16,790 | I116: =+'Global Assumptions'!$D$19*$H$4+'Global Assumptions'!$D$20*$H$5 -> 2,349 | J116: =+'Global Assumptions'!$D$21*$H$4+'Global Assumptions'!$D$22*$H$5 -> 1,502 | K116: =IF(A116<$H$7,A116*'Global Assumptions'!$D$23/1000*$H$6*1.08*12,$H$7*'Global Assumptions'!$D$23/1000*$H$6*1.08*12) -> 243 | L116: ='Global Assumptions'!$D$24 -> 281 | M116: 0 | N116: 5,000 | O116: 313 | P116: 125 | Q116: 0
A117: 130,000 | B117: 26.33% | C117: 34,235 | D117: =IF(A117<'Global Assumptions'!$D$7,(A117-'Global Assumptions'!$D$8)*'Global Assumptions'!$D$9,('Global Assumptions'!$D$7-'Global Assumptions'!$D$8)*'Global Assumptions'!$D$9) -> 2,579 | E117: =IF(A117<'Global Assumptions'!$D$10,A117*'Global Assumptions'!$D$11*$H$3,'Global Assumptions'!$D$10*'Global Assumptions'!$D$11*$H$3) -> 1,199 | F117: =+A117*'Global Assumptions'!$D$12 -> 2,535 | G117: =IF(A117<'Global Assumptions'!$D$14,A117*'Global Assumptions'!$D$13,'Global Assumptions'!$D$14*'Global Assumptions'!$D$13) -> 327 | H117: =IF(A117<'Global Assumptions'!$D$7,A117*$D$12,IF(A117<$F$12,(A117-'Global Assumptions'!$D$7)*$E$12+'Global Assumptions'!$D$7*$D$12,($F$12-'Global Assumptions'!$D$7)*$E$12+'Global Assumptions'!$D$7*$D$12))*$G$12 -> 17,565 | I117: =+'Global Assumptions'!$D$19*$H$4+'Global Assumptions'!$D$20*$H$5 -> 2,349 | J117: =+'Global Assumptions'!$D$21*$H$4+'Global Assumptions'!$D$22*$H$5 -> 1,502 | K117: =IF(A117<$H$7,A117*'Global Assumptions'!$D$23/1000*$H$6*1.08*12,$H$7*'Global Assumptions'!$D$23/1000*$H$6*1.08*12) -> 243 | L117: ='Global Assumptions'!$D$24 -> 281 | M117: 0 | N117: 5,200 | O117: 325 | P117: 130 | Q117: 0
A118: 135,000 | B118: 26.17% | C118: 35,325 | D118: =IF(A118<'Global Assumptions'!$D$7,(A118-'Global Assumptions'!$D$8)*'Global Assumptions'!$D$9,('Global Assumptions'!$D$7-'Global Assumptions'!$D$8)*'Global Assumptions'!$D$9) -> 2,579 | E118: =IF(A118<'Global Assumptions'!$D$10,A118*'Global Assumptions'!$D$11*$H$3,'Global Assumptions'!$D$10*'Global Assumptions'!$D$11*$H$3) -> 1,199 | F118: =+A118*'Global Assumptions'!$D$12 -> 2,633 | G118: =IF(A118<'Global Assumptions'!$D$14,A118*'Global Assumptions'!$D$13,'Global Assumptions'!$D$14*'Global Assumptions'!$D$13) -> 327 | H118: =IF(A118<'Global Assumptions'!$D$7,A118*$D$12,IF(A118<$F$12,(A118-'Global Assumptions'!$D$7)*$E$12+'Global Assumptions'!$D$7*$D$12,($F$12-'Global Assumptions'!$D$7)*$E$12+'Global Assumptions'!$D$7*$D$12))*$G$12 -> 18,340 | I118: =+'Global Assumptions'!$D$19*$H$4+'Global Assumptions'!$D$20*$H$5 -> 2,349 | J118: =+'Global Assumptions'!$D$21*$H$4+'Global Assumptions'!$D$22*$H$5 -> 1,502 | K118: =IF(A118<$H$7,A118*'Global Assumptions'!$D$23/1000*$H$6*1.08*12,$H$7*'Global Assumptions'!$D$23/1000*$H$6*1.08*12) -> 243 | L118: ='Global Assumptions'!$D$24 -> 281 | M118: 0 | N118: 5,400 | O118: 338 | P118: 135 | Q118: 0
A119: 140,000 | B119: 26.01% | C119: 36,415 | D119: =IF(A119<'Global Assumptions'!$D$7,(A119-'Global Assumptions'!$D$8)*'Global Assumptions'!$D$9,('Global Assumptions'!$D$7-'Global Assumptions'!$D$8)*'Global Assumptions'!$D$9) -> 2,579 | E119: =IF(A119<'Global Assumptions'!$D$10,A119*'Global Assumptions'!$D$11*$H$3,'Global Assumptions'!$D$10*'Global Assumptions'!$D$11*$H$3) -> 1,199 | F119: =+A119*'Global Assumptions'!$D$12 -> 2,730 | G119: =IF(A119<'Global Assumptions'!$D$14,A119*'Global Assumptions'!$D$13,'Global Assumptions'!$D$14*'Global Assumptions'!$D$13) -> 327 | H119: =IF(A119<'Global Assumptions'!$D$7,A119*$D$12,IF(A119<$F$12,(A119-'Global Assumptions'!$D$7)*$E$12+'Global Assumptions'!$D$7*$D$12,($F$12-'Global Assumptions'!$D$7)*$E$12+'Global Assumptions'!$D$7*$D$12))*$G$12 -> 19,115 | I119: =+'Global Assumptions'!$D$19*$H$4+'Global Assumptions'!$D$20*$H$5 -> 2,349 | J119: =+'Global Assumptions'!$D$21*$H$4+'Global Assumptions'!$D$22*$H$5 -> 1,502 | K119: =IF(A119<$H$7,A119*'Global Assumptions'!$D$23/1000*$H$6*1.08*12,$H$7*'Global Assumptions'!$D$23/1000*$H$6*1.08*12) -> 243 | L119: ='Global Assumptions'!$D$24 -> 281 | M119: 0 | N119: 5,600 | O119: 350 | P119: 140 | Q119: 0
A120: 145,000 | B120: 25.87% | C120: 37,505 | D120: =IF(A120<'Global Assumptions'!$D$7,(A120-'Global Assumptions'!$D$8)*'Global Assumptions'!$D$9,('Global Assumptions'!$D$7-'Global Assumptions'!$D$8)*'Global Assumptions'!$D$9) -> 2,579 | E120: =IF(A120<'Global Assumptions'!$D$10,A120*'Global Assumptions'!$D$11*$H$3,'Global Assumptions'!$D$10*'Global Assumptions'!$D$11*$H$3) -> 1,199 | F120: =+A120*'Global Assumptions'!$D$12 -> 2,828 | G120: =IF(A120<'Global Assumptions'!$D$14,A120*'Global Assumptions'!$D$13,'Global Assumptions'!$D$14*'Global Assumptions'!$D$13) -> 327 | H120: =IF(A120<'Global Assumptions'!$D$7,A120*$D$12,IF(A120<$F$12,(A120-'Global Assumptions'!$D$7)*$E$12+'Global Assumptions'!$D$7*$D$12,($F$12-'Global Assumptions'!$D$7)*$E$12+'Global Assumptions'!$D$7*$D$12))*$G$12 -> 19,890 | I120: =+'Global Assumptions'!$D$19*$H$4+'Global Assumptions'!$D$20*$H$5 -> 2,349 | J120: =+'Global Assumptions'!$D$21*$H$4+'Global Assumptions'!$D$22*$H$5 -> 1,502 | K120: =IF(A120<$H$7,A120*'Global Assumptions'!$D$23/1000*$H$6*1.08*12,$H$7*'Global Assumptions'!$D$23/1000*$H$6*1.08*12) -> 243 | L120: ='Global Assumptions'!$D$24 -> 281 | M120: 0 | N120: 5,800 | O120: 363 | P120: 145 | Q120: 0
A121: 150,000 | B121: 25.73% | C121: 38,595 | D121: =IF(A121<'Global Assumptions'!$D$7,(A121-'Global Assumptions'!$D$8)*'Global Assumptions'!$D$9,('Global Assumptions'!$D$7-'Global Assumptions'!$D$8)*'Global Assumptions'!$D$9) -> 2,579 | E121: =IF(A121<'Global Assumptions'!$D$10,A121*'Global Assumptions'!$D$11*$H$3,'Global Assumptions'!$D$10*'Global Assumptions'!$D$11*$H$3) -> 1,199 | F121: =+A121*'Global Assumptions'!$D$12 -> 2,925 | G121: =IF(A121<'Global Assumptions'!$D$14,A121*'Global Assumptions'!$D$13,'Global Assumptions'!$D$14*'Global Assumptions'!$D$13) -> 327 | H121: =IF(A121<'Global Assumptions'!$D$7,A121*$D$12,IF(A121<$F$12,(A121-'Global Assumptions'!$D$7)*$E$12+'Global Assumptions'!$D$7*$D$12,($F$12-'Global Assumptions'!$D$7)*$E$12+'Global Assumptions'!$D$7*$D$12))*$G$12 -> 20,665 | I121: =+'Global Assumptions'!$D$19*$H$4+'Global Assumptions'!$D$20*$H$5 -> 2,349 | J121: =+'Global Assumptions'!$D$21*$H$4+'Global Assumptions'!$D$22*$H$5 -> 1,502 | K121: =IF(A121<$H$7,A121*'Global Assumptions'!$D$23/1000*$H$6*1.08*12,$H$7*'Global Assumptions'!$D$23/1000*$H$6*1.08*12) -> 243 | L121: ='Global Assumptions'!$D$24 -> 281 | M121: 0 | N121: 6,000 | O121: 375 | P121: 150 | Q121: 0
A122: 155,000 | B122: 25.60% | C122: 39,685 | D122: =IF(A122<'Global Assumptions'!$D$7,(A122-'Global Assumptions'!$D$8)*'Global Assumptions'!$D$9,('Global Assumptions'!$D$7-'Global Assumptions'!$D$8)*'Global Assumptions'!$D$9) -> 2,579 | E122: =IF(A122<'Global Assumptions'!$D$10,A122*'Global Assumptions'!$D$11*$H$3,'Global Assumptions'!$D$10*'Global Assumptions'!$D$11*$H$3) -> 1,199 | F122: =+A122*'Global Assumptions'!$D$12 -> 3,023 | G122: =IF(A122<'Global Assumptions'!$D$14,A122*'Global Assumptions'!$D$13,'Global Assumptions'!$D$14*'Global Assumptions'!$D$13) -> 327 | H122: =IF(A122<'Global Assumptions'!$D$7,A122*$D$12,IF(A122<$F$12,(A122-'Global Assumptions'!$D$7)*$E$12+'Global Assumptions'!$D$7*$D$12,($F$12-'Global Assumptions'!$D$7)*$E$12+'Global Assumptions'!$D$7*$D$12))*$G$12 -> 21,440 | I122: =+'Global Assumptions'!$D$19*$H$4+'Global Assumptions'!$D$20*$H$5 -> 2,349 | J122: =+'Global Assumptions'!$D$21*$H$4+'Global Assumptions'!$D$22*$H$5 -> 1,502 | K122: =IF(A122<$H$7,A122*'Global Assumptions'!$D$23/1000*$H$6*1.08*12,$H$7*'Global Assumptions'!$D$23/1000*$H$6*1.08*12) -> 243 | L122: ='Global Assumptions'!$D$24 -> 281 | M122: 0 | N122: 6,200 | O122: 388 | P122: 155 | Q122: 0
A123: 160,000 | B123: 25.48% | C123: 40,775 | D123: =IF(A123<'Global Assumptions'!$D$7,(A123-'Global Assumptions'!$D$8)*'Global Assumptions'!$D$9,('Global Assumptions'!$D$7-'Global Assumptions'!$D$8)*'Global Assumptions'!$D$9) -> 2,579 | E123: =IF(A123<'Global Assumptions'!$D$10,A123*'Global Assumptions'!$D$11*$H$3,'Global Assumptions'!$D$10*'Global Assumptions'!$D$11*$H$3) -> 1,199 | F123: =+A123*'Global Assumptions'!$D$12 -> 3,120 | G123: =IF(A123<'Global Assumptions'!$D$14,A123*'Global Assumptions'!$D$13,'Global Assumptions'!$D$14*'Global Assumptions'!$D$13) -> 327 | H123: =IF(A123<'Global Assumptions'!$D$7,A123*$D$12,IF(A123<$F$12,(A123-'Global Assumptions'!$D$7)*$E$12+'Global Assumptions'!$D$7*$D$12,($F$12-'Global Assumptions'!$D$7)*$E$12+'Global Assumptions'!$D$7*$D$12))*$G$12 -> 22,215 | I123: =+'Global Assumptions'!$D$19*$H$4+'Global Assumptions'!$D$20*$H$5 -> 2,349 | J123: =+'Global Assumptions'!$D$21*$H$4+'Global Assumptions'!$D$22*$H$5 -> 1,502 | K123: =IF(A123<$H$7,A123*'Global Assumptions'!$D$23/1000*$H$6*1.08*12,$H$7*'Global Assumptions'!$D$23/1000*$H$6*1.08*12) -> 243 | L123: ='Global Assumptions'!$D$24 -> 281 | M123: 0 | N123: 6,400 | O123: 400 | P123: 160 | Q123: 0
A124: 165,000 | B124: 25.18% | C124: 41,539 | D124: =IF(A124<'Global Assumptions'!$D$7,(A124-'Global Assumptions'!$D$8)*'Global Assumptions'!$D$9,('Global Assumptions'!$D$7-'Global Assumptions'!$D$8)*'Global Assumptions'!$D$9) -> 2,579 | E124: =IF(A124<'Global Assumptions'!$D$10,A124*'Global Assumptions'!$D$11*$H$3,'Global Assumptions'!$D$10*'Global Assumptions'!$D$11*$H$3) -> 1,199 | F124: =+A124*'Global Assumptions'!$D$12 -> 3,218 | G124: =IF(A124<'Global Assumptions'!$D$14,A124*'Global Assumptions'!$D$13,'Global Assumptions'!$D$14*'Global Assumptions'!$D$13) -> 327 | H124: =IF(A124<'Global Assumptions'!$D$7,A124*$D$12,IF(A124<$F$12,(A124-'Global Assumptions'!$D$7)*$E$12+'Global Assumptions'!$D$7*$D$12,($F$12-'Global Assumptions'!$D$7)*$E$12+'Global Assumptions'!$D$7*$D$12))*$G$12 -> 22,664 | I124: =+'Global Assumptions'!$D$19*$H$4+'Global Assumptions'!$D$20*$H$5 -> 2,349 | J124: =+'Global Assumptions'!$D$21*$H$4+'Global Assumptions'!$D$22*$H$5 -> 1,502 | K124: =IF(A124<$H$7,A124*'Global Assumptions'!$D$23/1000*$H$6*1.08*12,$H$7*'Global Assumptions'!$D$23/1000*$H$6*1.08*12) -> 243 | L124: ='Global Assumptions'!$D$24 -> 281 | M124: 0 | N124: 6,600 | O124: 413 | P124: 165 | Q124: 0
A125: 170,000 | B125: 24.62% | C125: 41,854 | D125: =IF(A125<'Global Assumptions'!$D$7,(A125-'Global Assumptions'!$D$8)*'Global Assumptions'!$D$9,('Global Assumptions'!$D$7-'Global Assumptions'!$D$8)*'Global Assumptions'!$D$9) -> 2,579 | E125: =IF(A125<'Global Assumptions'!$D$10,A125*'Global Assumptions'!$D$11*$H$3,'Global Assumptions'!$D$10*'Global Assumptions'!$D$11*$H$3) -> 1,199 | F125: =+A125*'Global Assumptions'!$D$12 -> 3,315 | G125: =IF(A125<'Global Assumptions'!$D$14,A125*'Global Assumptions'!$D$13,'Global Assumptions'!$D$14*'Global Assumptions'!$D$13) -> 327 | H125: =IF(A125<'Global Assumptions'!$D$7,A125*$D$12,IF(A125<$F$12,(A125-'Global Assumptions'!$D$7)*$E$12+'Global Assumptions'!$D$7*$D$12,($F$12-'Global Assumptions'!$D$7)*$E$12+'Global Assumptions'!$D$7*$D$12))*$G$12 -> 22,664 | I125: =+'Global Assumptions'!$D$19*$H$4+'Global Assumptions'!$D$20*$H$5 -> 2,349 | J125: =+'Global Assumptions'!$D$21*$H$4+'Global Assumptions'!$D$22*$H$5 -> 1,502 | K125: =IF(A125<$H$7,A125*'Global Assumptions'!$D$23/1000*$H$6*1.08*12,$H$7*'Global Assumptions'!$D$23/1000*$H$6*1.08*12) -> 243 | L125: ='Global Assumptions'!$D$24 -> 281 | M125: 0 | N125: 6,800 | O125: 425 | P125: 170 | Q125: 0
A126: 175,000 | B126: 24.10% | C126: 42,169 | D126: =IF(A126<'Global Assumptions'!$D$7,(A126-'Global Assumptions'!$D$8)*'Global Assumptions'!$D$9,('Global Assumptions'!$D$7-'Global Assumptions'!$D$8)*'Global Assumptions'!$D$9) -> 2,579 | E126: =IF(A126<'Global Assumptions'!$D$10,A126*'Global Assumptions'!$D$11*$H$3,'Global Assumptions'!$D$10*'Global Assumptions'!$D$11*$H$3) -> 1,199 | F126: =+A126*'Global Assumptions'!$D$12 -> 3,413 | G126: =IF(A126<'Global Assumptions'!$D$14,A126*'Global Assumptions'!$D$13,'Global Assumptions'!$D$14*'Global Assumptions'!$D$13) -> 327 | H126: =IF(A126<'Global Assumptions'!$D$7,A126*$D$12,IF(A126<$F$12,(A126-'Global Assumptions'!$D$7)*$E$12+'Global Assumptions'!$D$7*$D$12,($F$12-'Global Assumptions'!$D$7)*$E$12+'Global Assumptions'!$D$7*$D$12))*$G$12 -> 22,664 | I126: =+'Global Assumptions'!$D$19*$H$4+'Global Assumptions'!$D$20*$H$5 -> 2,349 | J126: =+'Global Assumptions'!$D$21*$H$4+'Global Assumptions'!$D$22*$H$5 -> 1,502 | K126: =IF(A126<$H$7,A126*'Global Assumptions'!$D$23/1000*$H$6*1.08*12,$H$7*'Global Assumptions'!$D$23/1000*$H$6*1.08*12) -> 243 | L126: ='Global Assumptions'!$D$24 -> 281 | M126: 0 | N126: 7,000 | O126: 438 | P126: 175 | Q126: 0
A127: 180,000 | B127: 23.60% | C127: 42,484 | D127: =IF(A127<'Global Assumptions'!$D$7,(A127-'Global Assumptions'!$D$8)*'Global Assumptions'!$D$9,('Global Assumptions'!$D$7-'Global Assumptions'!$D$8)*'Global Assumptions'!$D$9) -> 2,579 | E127: =IF(A127<'Global Assumptions'!$D$10,A127*'Global Assumptions'!$D$11*$H$3,'Global Assumptions'!$D$10*'Global Assumptions'!$D$11*$H$3) -> 1,199 | F127: =+A127*'Global Assumptions'!$D$12 -> 3,510 | G127: =IF(A127<'Global Assumptions'!$D$14,A127*'Global Assumptions'!$D$13,'Global Assumptions'!$D$14*'Global Assumptions'!$D$13) -> 327 | H127: =IF(A127<'Global Assumptions'!$D$7,A127*$D$12,IF(A127<$F$12,(A127-'Global Assumptions'!$D$7)*$E$12+'Global Assumptions'!$D$7*$D$12,($F$12-'Global Assumptions'!$D$7)*$E$12+'Global Assumptions'!$D$7*$D$12))*$G$12 -> 22,664 | I127: =+'Global Assumptions'!$D$19*$H$4+'Global Assumptions'!$D$20*$H$5 -> 2,349 | J127: =+'Global Assumptions'!$D$21*$H$4+'Global Assumptions'!$D$22*$H$5 -> 1,502 | K127: =IF(A127<$H$7,A127*'Global Assumptions'!$D$23/1000*$H$6*1.08*12,$H$7*'Global Assumptions'!$D$23/1000*$H$6*1.08*12) -> 243 | L127: ='Global Assumptions'!$D$24 -> 281 | M127: 0 | N127: 7,200 | O127: 450 | P127: 180 | Q127: 0
A128: 185,000 | B128: 23.13% | C128: 42,799 | D128: =IF(A128<'Global Assumptions'!$D$7,(A128-'Global Assumptions'!$D$8)*'Global Assumptions'!$D$9,('Global Assumptions'!$D$7-'Global Assumptions'!$D$8)*'Global Assumptions'!$D$9) -> 2,579 | E128: =IF(A128<'Global Assumptions'!$D$10,A128*'Global Assumptions'!$D$11*$H$3,'Global Assumptions'!$D$10*'Global Assumptions'!$D$11*$H$3) -> 1,199 | F128: =+A128*'Global Assumptions'!$D$12 -> 3,608 | G128: =IF(A128<'Global Assumptions'!$D$14,A128*'Global Assumptions'!$D$13,'Global Assumptions'!$D$14*'Global Assumptions'!$D$13) -> 327 | H128: =IF(A128<'Global Assumptions'!$D$7,A128*$D$12,IF(A128<$F$12,(A128-'Global Assumptions'!$D$7)*$E$12+'Global Assumptions'!$D$7*$D$12,($F$12-'Global Assumptions'!$D$7)*$E$12+'Global Assumptions'!$D$7*$D$12))*$G$12 -> 22,664 | I128: =+'Global Assumptions'!$D$19*$H$4+'Global Assumptions'!$D$20*$H$5 -> 2,349 | J128: =+'Global Assumptions'!$D$21*$H$4+'Global Assumptions'!$D$22*$H$5 -> 1,502 | K128: =IF(A128<$H$7,A128*'Global Assumptions'!$D$23/1000*$H$6*1.08*12,$H$7*'Global Assumptions'!$D$23/1000*$H$6*1.08*12) -> 243 | L128: ='Global Assumptions'!$D$24 -> 281 | M128: 0 | N128: 7,400 | O128: 463 | P128: 185 | Q128: 0
A129: 190,000 | B129: 22.69% | C129: 43,114 | D129: =IF(A129<'Global Assumptions'!$D$7,(A129-'Global Assumptions'!$D$8)*'Global Assumptions'!$D$9,('Global Assumptions'!$D$7-'Global Assumptions'!$D$8)*'Global Assumptions'!$D$9) -> 2,579 | E129: =IF(A129<'Global Assumptions'!$D$10,A129*'Global Assumptions'!$D$11*$H$3,'Global Assumptions'!$D$10*'Global Assumptions'!$D$11*$H$3) -> 1,199 | F129: =+A129*'Global Assumptions'!$D$12 -> 3,705 | G129: =IF(A129<'Global Assumptions'!$D$14,A129*'Global Assumptions'!$D$13,'Global Assumptions'!$D$14*'Global Assumptions'!$D$13) -> 327 | H129: =IF(A129<'Global Assumptions'!$D$7,A129*$D$12,IF(A129<$F$12,(A129-'Global Assumptions'!$D$7)*$E$12+'Global Assumptions'!$D$7*$D$12,($F$12-'Global Assumptions'!$D$7)*$E$12+'Global Assumptions'!$D$7*$D$12))*$G$12 -> 22,664 | I129: =+'Global Assumptions'!$D$19*$H$4+'Global Assumptions'!$D$20*$H$5 -> 2,349 | J129: =+'Global Assumptions'!$D$21*$H$4+'Global Assumptions'!$D$22*$H$5 -> 1,502 | K129: =IF(A129<$H$7,A129*'Global Assumptions'!$D$23/1000*$H$6*1.08*12,$H$7*'Global Assumptions'!$D$23/1000*$H$6*1.08*12) -> 243 | L129: ='Global Assumptions'!$D$24 -> 281 | M129: 0 | N129: 7,600 | O129: 475 | P129: 190 | Q129: 0
A130: 195,000 | B130: 22.27% | C130: 43,429 | D130: =IF(A130<'Global Assumptions'!$D$7,(A130-'Global Assumptions'!$D$8)*'Global Assumptions'!$D$9,('Global Assumptions'!$D$7-'Global Assumptions'!$D$8)*'Global Assumptions'!$D$9) -> 2,579 | E130: =IF(A130<'Global Assumptions'!$D$10,A130*'Global Assumptions'!$D$11*$H$3,'Global Assumptions'!$D$10*'Global Assumptions'!$D$11*$H$3) -> 1,199 | F130: =+A130*'Global Assumptions'!$D$12 -> 3,803 | G130: =IF(A130<'Global Assumptions'!$D$14,A130*'Global Assumptions'!$D$13,'Global Assumptions'!$D$14*'Global Assumptions'!$D$13) -> 327 | H130: =IF(A130<'Global Assumptions'!$D$7,A130*$D$12,IF(A130<$F$12,(A130-'Global Assumptions'!$D$7)*$E$12+'Global Assumptions'!$D$7*$D$12,($F$12-'Global Assumptions'!$D$7)*$E$12+'Global Assumptions'!$D$7*$D$12))*$G$12 -> 22,664 | I130: =+'Global Assumptions'!$D$19*$H$4+'Global Assumptions'!$D$20*$H$5 -> 2,349 | J130: =+'Global Assumptions'!$D$21*$H$4+'Global Assumptions'!$D$22*$H$5 -> 1,502 | K130: =IF(A130<$H$7,A130*'Global Assumptions'!$D$23/1000*$H$6*1.08*12,$H$7*'Global Assumptions'!$D$23/1000*$H$6*1.08*12) -> 243 | L130: ='Global Assumptions'!$D$24 -> 281 | M130: 0 | N130: 7,800 | O130: 488 | P130: 195 | Q130: 0
A131: 200,000 | B131: 21.87% | C131: 43,744 | D131: =IF(A131<'Global Assumptions'!$D$7,(A131-'Global Assumptions'!$D$8)*'Global Assumptions'!$D$9,('Global Assumptions'!$D$7-'Global Assumptions'!$D$8)*'Global Assumptions'!$D$9) -> 2,579 | E131: =IF(A131<'Global Assumptions'!$D$10,A131*'Global Assumptions'!$D$11*$H$3,'Global Assumptions'!$D$10*'Global Assumptions'!$D$11*$H$3) -> 1,199 | F131: =+A131*'Global Assumptions'!$D$12 -> 3,900 | G131: =IF(A131<'Global Assumptions'!$D$14,A131*'Global Assumptions'!$D$13,'Global Assumptions'!$D$14*'Global Assumptions'!$D$13) -> 327 | H131: =IF(A131<'Global Assumptions'!$D$7,A131*$D$12,IF(A131<$F$12,(A131-'Global Assumptions'!$D$7)*$E$12+'Global Assumptions'!$D$7*$D$12,($F$12-'Global Assumptions'!$D$7)*$E$12+'Global Assumptions'!$D$7*$D$12))*$G$12 -> 22,664 | I131: =+'Global Assumptions'!$D$19*$H$4+'Global Assumptions'!$D$20*$H$5 -> 2,349 | J131: =+'Global Assumptions'!$D$21*$H$4+'Global Assumptions'!$D$22*$H$5 -> 1,502 | K131: =IF(A131<$H$7,A131*'Global Assumptions'!$D$23/1000*$H$6*1.08*12,$H$7*'Global Assumptions'!$D$23/1000*$H$6*1.08*12) -> 243 | L131: ='Global Assumptions'!$D$24 -> 281 | M131: 0 | N131: 8,000 | O131: 500 | P131: 200 | Q131: 0
A133: =+'Global Assumptions'!E4 -> FY19 Plan
A134: 20,000 | B134: =+C134/A134 -> 45.38% | C134: =SUM(D134:Q134) -> 9,076 | D134: =IF(A134<'Global Assumptions'!$E$7,(A134-'Global Assumptions'!$E$8)*'Global Assumptions'!$E$9,('Global Assumptions'!$E$7-'Global Assumptions'!$E$8)*'Global Assumptions'!$E$9) -> 817 | E134: =IF(A134<'Global Assumptions'!$E$10,A134*'Global Assumptions'!$E$11*$H$3,'Global Assumptions'!$E$10*'Global Assumptions'!$E$11*$H$3) -> 460 | F134: =+A134*'Global Assumptions'!$E$12 -> 390 | G134: =IF(A134<'Global Assumptions'!$E$14,A134*'Global Assumptions'!$E$13,'Global Assumptions'!$E$14*'Global Assumptions'!$E$13) -> 72 | H134: =IF(A134<'Global Assumptions'!$E$7,A134*$D$13,IF(A134<$F$13,(A134-'Global Assumptions'!$E$7)*$E$13+'Global Assumptions'!$E$7*$D$13,($F$13-'Global Assumptions'!$E$7)*$E$13+'Global Assumptions'!$E$7*$D$13))*$G$13 -> 2,170 | I134: =+'Global Assumptions'!$E$19*$H$4+'Global Assumptions'!$E$20*$H$5 -> 2,420 | J134: =+'Global Assumptions'!$E$21*$H$4+'Global Assumptions'!$E$22*$H$5 -> 1,547 | K134: =IF(A134<$H$7,A134*'Global Assumptions'!$E$23/1000*$H$6*1.08*12,$H$7*'Global Assumptions'!$E$23/1000*$H$6*1.08*12) -> 49 | L134: ='Global Assumptions'!$E$24 -> 281 | M134: =1825*$M$13 -> 0 | N134: =+$A134*N$13 -> 800 | O134: 50 | P134: 20 | Q134: 0
A135: 25,000 | B135: 41.30% | C135: 10,326 | D135: =IF(A135<'Global Assumptions'!$E$7,(A135-'Global Assumptions'!$E$8)*'Global Assumptions'!$E$9,('Global Assumptions'!$E$7-'Global Assumptions'!$E$8)*'Global Assumptions'!$E$9) -> 1,064 | E135: =IF(A135<'Global Assumptions'!$E$10,A135*'Global Assumptions'!$E$11*$H$3,'Global Assumptions'!$E$10*'Global Assumptions'!$E$11*$H$3) -> 575 | F135: =+A135*'Global Assumptions'!$E$12 -> 488 | G135: =IF(A135<'Global Assumptions'!$E$14,A135*'Global Assumptions'!$E$13,'Global Assumptions'!$E$14*'Global Assumptions'!$E$13) -> 90 | H135: =IF(A135<'Global Assumptions'!$E$7,A135*$D$13,IF(A135<$F$13,(A135-'Global Assumptions'!$E$7)*$E$13+'Global Assumptions'!$E$7*$D$13,($F$13-'Global Assumptions'!$E$7)*$E$13+'Global Assumptions'!$E$7*$D$13))*$G$13 -> 2,713 | I135: =+'Global Assumptions'!$E$19*$H$4+'Global Assumptions'!$E$20*$H$5 -> 2,420 | J135: =+'Global Assumptions'!$E$21*$H$4+'Global Assumptions'!$E$22*$H$5 -> 1,547 | K135: =IF(A135<$H$7,A135*'Global Assumptions'!$E$23/1000*$H$6*1.08*12,$H$7*'Global Assumptions'!$E$23/1000*$H$6*1.08*12) -> 61 | L135: ='Global Assumptions'!$E$24 -> 281 | M135: 0 | N135: 1,000 | O135: 63 | P135: 25 | Q135: 0
A136: 30,000 | B136: 38.59% | C136: 11,576 | D136: =IF(A136<'Global Assumptions'!$E$7,(A136-'Global Assumptions'!$E$8)*'Global Assumptions'!$E$9,('Global Assumptions'!$E$7-'Global Assumptions'!$E$8)*'Global Assumptions'!$E$9) -> 1,312 | E136: =IF(A136<'Global Assumptions'!$E$10,A136*'Global Assumptions'!$E$11*$H$3,'Global Assumptions'!$E$10*'Global Assumptions'!$E$11*$H$3) -> 690 | F136: =+A136*'Global Assumptions'!$E$12 -> 585 | G136: =IF(A136<'Global Assumptions'!$E$14,A136*'Global Assumptions'!$E$13,'Global Assumptions'!$E$14*'Global Assumptions'!$E$13) -> 108 | H136: =IF(A136<'Global Assumptions'!$E$7,A136*$D$13,IF(A136<$F$13,(A136-'Global Assumptions'!$E$7)*$E$13+'Global Assumptions'!$E$7*$D$13,($F$13-'Global Assumptions'!$E$7)*$E$13+'Global Assumptions'!$E$7*$D$13))*$G$13 -> 3,255 | I136: =+'Global Assumptions'!$E$19*$H$4+'Global Assumptions'!$E$20*$H$5 -> 2,420 | J136: =+'Global Assumptions'!$E$21*$H$4+'Global Assumptions'!$E$22*$H$5 -> 1,547 | K136: =IF(A136<$H$7,A136*'Global Assumptions'!$E$23/1000*$H$6*1.08*12,$H$7*'Global Assumptions'!$E$23/1000*$H$6*1.08*12) -> 73 | L136: ='Global Assumptions'!$E$24 -> 281 | M136: 0 | N136: 1,200 | O136: 75 | P136: 30 | Q136: 0
A137: 35,000 | B137: 36.65% | C137: 12,826 | D137: =IF(A137<'Global Assumptions'!$E$7,(A137-'Global Assumptions'!$E$8)*'Global Assumptions'!$E$9,('Global Assumptions'!$E$7-'Global Assumptions'!$E$8)*'Global Assumptions'!$E$9) -> 1,559 | E137: =IF(A137<'Global Assumptions'!$E$10,A137*'Global Assumptions'!$E$11*$H$3,'Global Assumptions'!$E$10*'Global Assumptions'!$E$11*$H$3) -> 805 | F137: =+A137*'Global Assumptions'!$E$12 -> 683 | G137: =IF(A137<'Global Assumptions'!$E$14,A137*'Global Assumptions'!$E$13,'Global Assumptions'!$E$14*'Global Assumptions'!$E$13) -> 126 | H137: =IF(A137<'Global Assumptions'!$E$7,A137*$D$13,IF(A137<$F$13,(A137-'Global Assumptions'!$E$7)*$E$13+'Global Assumptions'!$E$7*$D$13,($F$13-'Global Assumptions'!$E$7)*$E$13+'Global Assumptions'!$E$7*$D$13))*$G$13 -> 3,798 | I137: =+'Global Assumptions'!$E$19*$H$4+'Global Assumptions'!$E$20*$H$5 -> 2,420 | J137: =+'Global Assumptions'!$E$21*$H$4+'Global Assumptions'!$E$22*$H$5 -> 1,547 | K137: =IF(A137<$H$7,A137*'Global Assumptions'!$E$23/1000*$H$6*1.08*12,$H$7*'Global Assumptions'!$E$23/1000*$H$6*1.08*12) -> 85 | L137: ='Global Assumptions'!$E$24 -> 281 | M137: 0 | N137: 1,400 | O137: 88 | P137: 35 | Q137: 0
A138: 40,000 | B138: 35.19% | C138: 14,076 | D138: =IF(A138<'Global Assumptions'!$E$7,(A138-'Global Assumptions'!$E$8)*'Global Assumptions'!$E$9,('Global Assumptions'!$E$7-'Global Assumptions'!$E$8)*'Global Assumptions'!$E$9) -> 1,807 | E138: =IF(A138<'Global Assumptions'!$E$10,A138*'Global Assumptions'!$E$11*$H$3,'Global Assumptions'!$E$10*'Global Assumptions'!$E$11*$H$3) -> 920 | F138: =+A138*'Global Assumptions'!$E$12 -> 780 | G138: =IF(A138<'Global Assumptions'!$E$14,A138*'Global Assumptions'!$E$13,'Global Assumptions'!$E$14*'Global Assumptions'!$E$13) -> 144 | H138: =IF(A138<'Global Assumptions'!$E$7,A138*$D$13,IF(A138<$F$13,(A138-'Global Assumptions'!$E$7)*$E$13+'Global Assumptions'!$E$7*$D$13,($F$13-'Global Assumptions'!$E$7)*$E$13+'Global Assumptions'!$E$7*$D$13))*$G$13 -> 4,340 | I138: =+'Global Assumptions'!$E$19*$H$4+'Global Assumptions'!$E$20*$H$5 -> 2,420 | J138: =+'Global Assumptions'!$E$21*$H$4+'Global Assumptions'!$E$22*$H$5 -> 1,547 | K138: =IF(A138<$H$7,A138*'Global Assumptions'!$E$23/1000*$H$6*1.08*12,$H$7*'Global Assumptions'!$E$23/1000*$H$6*1.08*12) -> 97 | L138: ='Global Assumptions'!$E$24 -> 281 | M138: 0 | N138: 1,600 | O138: 100 | P138: 40 | Q138: 0
A139: 45,000 | B139: 34.06% | C139: 15,327 | D139: =IF(A139<'Global Assumptions'!$E$7,(A139-'Global Assumptions'!$E$8)*'Global Assumptions'!$E$9,('Global Assumptions'!$E$7-'Global Assumptions'!$E$8)*'Global Assumptions'!$E$9) -> 2,054 | E139: =IF(A139<'Global Assumptions'!$E$10,A139*'Global Assumptions'!$E$11*$H$3,'Global Assumptions'!$E$10*'Global Assumptions'!$E$11*$H$3) -> 1,036 | F139: =+A139*'Global Assumptions'!$E$12 -> 878 | G139: =IF(A139<'Global Assumptions'!$E$14,A139*'Global Assumptions'!$E$13,'Global Assumptions'!$E$14*'Global Assumptions'!$E$13) -> 162 | H139: =IF(A139<'Global Assumptions'!$E$7,A139*$D$13,IF(A139<$F$13,(A139-'Global Assumptions'!$E$7)*$E$13+'Global Assumptions'!$E$7*$D$13,($F$13-'Global Assumptions'!$E$7)*$E$13+'Global Assumptions'!$E$7*$D$13))*$G$13 -> 4,883 | I139: =+'Global Assumptions'!$E$19*$H$4+'Global Assumptions'!$E$20*$H$5 -> 2,420 | J139: =+'Global Assumptions'!$E$21*$H$4+'Global Assumptions'!$E$22*$H$5 -> 1,547 | K139: =IF(A139<$H$7,A139*'Global Assumptions'!$E$23/1000*$H$6*1.08*12,$H$7*'Global Assumptions'!$E$23/1000*$H$6*1.08*12) -> 109 | L139: ='Global Assumptions'!$E$24 -> 281 | M139: 0 | N139: 1,800 | O139: 113 | P139: 45 | Q139: 0
A140: 50,000 | B140: 33.15% | C140: 16,577 | D140: =IF(A140<'Global Assumptions'!$E$7,(A140-'Global Assumptions'!$E$8)*'Global Assumptions'!$E$9,('Global Assumptions'!$E$7-'Global Assumptions'!$E$8)*'Global Assumptions'!$E$9) -> 2,302 | E140: =IF(A140<'Global Assumptions'!$E$10,A140*'Global Assumptions'!$E$11*$H$3,'Global Assumptions'!$E$10*'Global Assumptions'!$E$11*$H$3) -> 1,151 | F140: =+A140*'Global Assumptions'!$E$12 -> 975 | G140: =IF(A140<'Global Assumptions'!$E$14,A140*'Global Assumptions'!$E$13,'Global Assumptions'!$E$14*'Global Assumptions'!$E$13) -> 180 | H140: =IF(A140<'Global Assumptions'!$E$7,A140*$D$13,IF(A140<$F$13,(A140-'Global Assumptions'!$E$7)*$E$13+'Global Assumptions'!$E$7*$D$13,($F$13-'Global Assumptions'!$E$7)*$E$13+'Global Assumptions'!$E$7*$D$13))*$G$13 -> 5,425 | I140: =+'Global Assumptions'!$E$19*$H$4+'Global Assumptions'!$E$20*$H$5 -> 2,420 | J140: =+'Global Assumptions'!$E$21*$H$4+'Global Assumptions'!$E$22*$H$5 -> 1,547 | K140: =IF(A140<$H$7,A140*'Global Assumptions'!$E$23/1000*$H$6*1.08*12,$H$7*'Global Assumptions'!$E$23/1000*$H$6*1.08*12) -> 121 | L140: ='Global Assumptions'!$E$24 -> 281 | M140: 0 | N140: 2,000 | O140: 125 | P140: 50 | Q140: 0
A141: 55,000 | B141: 32.35% | C141: 17,790 | D141: =IF(A141<'Global Assumptions'!$E$7,(A141-'Global Assumptions'!$E$8)*'Global Assumptions'!$E$9,('Global Assumptions'!$E$7-'Global Assumptions'!$E$8)*'Global Assumptions'!$E$9) -> 2,549 | E141: =IF(A141<'Global Assumptions'!$E$10,A141*'Global Assumptions'!$E$11*$H$3,'Global Assumptions'!$E$10*'Global Assumptions'!$E$11*$H$3) -> 1,229 | F141: =+A141*'Global Assumptions'!$E$12 -> 1,073 | G141: =IF(A141<'Global Assumptions'!$E$14,A141*'Global Assumptions'!$E$13,'Global Assumptions'!$E$14*'Global Assumptions'!$E$13) -> 198 | H141: =IF(A141<'Global Assumptions'!$E$7,A141*$D$13,IF(A141<$F$13,(A141-'Global Assumptions'!$E$7)*$E$13+'Global Assumptions'!$E$7*$D$13,($F$13-'Global Assumptions'!$E$7)*$E$13+'Global Assumptions'!$E$7*$D$13))*$G$13 -> 5,968 | I141: =+'Global Assumptions'!$E$19*$H$4+'Global Assumptions'!$E$20*$H$5 -> 2,420 | J141: =+'Global Assumptions'!$E$21*$H$4+'Global Assumptions'!$E$22*$H$5 -> 1,547 | K141: =IF(A141<$H$7,A141*'Global Assumptions'!$E$23/1000*$H$6*1.08*12,$H$7*'Global Assumptions'!$E$23/1000*$H$6*1.08*12) -> 133 | L141: ='Global Assumptions'!$E$24 -> 281 | M141: 0 | N141: 2,200 | O141: 138 | P141: 55 | Q141: 0
A142: 60,000 | B142: 31.53% | C142: 18,915 | D142: =IF(A142<'Global Assumptions'!$E$7,(A142-'Global Assumptions'!$E$8)*'Global Assumptions'!$E$9,('Global Assumptions'!$E$7-'Global Assumptions'!$E$8)*'Global Assumptions'!$E$9) -> 2,628 | E142: =IF(A142<'Global Assumptions'!$E$10,A142*'Global Assumptions'!$E$11*$H$3,'Global Assumptions'!$E$10*'Global Assumptions'!$E$11*$H$3) -> 1,229 | F142: =+A142*'Global Assumptions'!$E$12 -> 1,170 | G142: =IF(A142<'Global Assumptions'!$E$14,A142*'Global Assumptions'!$E$13,'Global Assumptions'!$E$14*'Global Assumptions'!$E$13) -> 216 | H142: =IF(A142<'Global Assumptions'!$E$7,A142*$D$13,IF(A142<$F$13,(A142-'Global Assumptions'!$E$7)*$E$13+'Global Assumptions'!$E$7*$D$13,($F$13-'Global Assumptions'!$E$7)*$E$13+'Global Assumptions'!$E$7*$D$13))*$G$13 -> 6,668 | I142: =+'Global Assumptions'!$E$19*$H$4+'Global Assumptions'!$E$20*$H$5 -> 2,420 | J142: =+'Global Assumptions'!$E$21*$H$4+'Global Assumptions'!$E$22*$H$5 -> 1,547 | K142: =IF(A142<$H$7,A142*'Global Assumptions'!$E$23/1000*$H$6*1.08*12,$H$7*'Global Assumptions'!$E$23/1000*$H$6*1.08*12) -> 146 | L142: ='Global Assumptions'!$E$24 -> 281 | M142: 0 | N142: 2,400 | O142: 150 | P142: 60 | Q142: 0
A143: 65,000 | B143: 30.82% | C143: 20,035 | D143: =IF(A143<'Global Assumptions'!$E$7,(A143-'Global Assumptions'!$E$8)*'Global Assumptions'!$E$9,('Global Assumptions'!$E$7-'Global Assumptions'!$E$8)*'Global Assumptions'!$E$9) -> 2,628 | E143: =IF(A143<'Global Assumptions'!$E$10,A143*'Global Assumptions'!$E$11*$H$3,'Global Assumptions'!$E$10*'Global Assumptions'!$E$11*$H$3) -> 1,229 | F143: =+A143*'Global Assumptions'!$E$12 -> 1,268 | G143: =IF(A143<'Global Assumptions'!$E$14,A143*'Global Assumptions'!$E$13,'Global Assumptions'!$E$14*'Global Assumptions'!$E$13) -> 234 | H143: =IF(A143<'Global Assumptions'!$E$7,A143*$D$13,IF(A143<$F$13,(A143-'Global Assumptions'!$E$7)*$E$13+'Global Assumptions'!$E$7*$D$13,($F$13-'Global Assumptions'!$E$7)*$E$13+'Global Assumptions'!$E$7*$D$13))*$G$13 -> 7,443 | I143: =+'Global Assumptions'!$E$19*$H$4+'Global Assumptions'!$E$20*$H$5 -> 2,420 | J143: =+'Global Assumptions'!$E$21*$H$4+'Global Assumptions'!$E$22*$H$5 -> 1,547 | K143: =IF(A143<$H$7,A143*'Global Assumptions'!$E$23/1000*$H$6*1.08*12,$H$7*'Global Assumptions'!$E$23/1000*$H$6*1.08*12) -> 158 | L143: ='Global Assumptions'!$E$24 -> 281 | M143: 0 | N143: 2,600 | O143: 163 | P143: 65 | Q143: 0
A144: 70,000 | B144: 30.22% | C144: 21,155 | D144: =IF(A144<'Global Assumptions'!$E$7,(A144-'Global Assumptions'!$E$8)*'Global Assumptions'!$E$9,('Global Assumptions'!$E$7-'Global Assumptions'!$E$8)*'Global Assumptions'!$E$9) -> 2,628 | E144: =IF(A144<'Global Assumptions'!$E$10,A144*'Global Assumptions'!$E$11*$H$3,'Global Assumptions'!$E$10*'Global Assumptions'!$E$11*$H$3) -> 1,229 | F144: =+A144*'Global Assumptions'!$E$12 -> 1,365 | G144: =IF(A144<'Global Assumptions'!$E$14,A144*'Global Assumptions'!$E$13,'Global Assumptions'!$E$14*'Global Assumptions'!$E$13) -> 252 | H144: =IF(A144<'Global Assumptions'!$E$7,A144*$D$13,IF(A144<$F$13,(A144-'Global Assumptions'!$E$7)*$E$13+'Global Assumptions'!$E$7*$D$13,($F$13-'Global Assumptions'!$E$7)*$E$13+'Global Assumptions'!$E$7*$D$13))*$G$13 -> 8,218 | I144: =+'Global Assumptions'!$E$19*$H$4+'Global Assumptions'!$E$20*$H$5 -> 2,420 | J144: =+'Global Assumptions'!$E$21*$H$4+'Global Assumptions'!$E$22*$H$5 -> 1,547 | K144: =IF(A144<$H$7,A144*'Global Assumptions'!$E$23/1000*$H$6*1.08*12,$H$7*'Global Assumptions'!$E$23/1000*$H$6*1.08*12) -> 170 | L144: ='Global Assumptions'!$E$24 -> 281 | M144: 0 | N144: 2,800 | O144: 175 | P144: 70 | Q144: 0
A145: 75,000 | B145: 29.70% | C145: 22,275 | D145: =IF(A145<'Global Assumptions'!$E$7,(A145-'Global Assumptions'!$E$8)*'Global Assumptions'!$E$9,('Global Assumptions'!$E$7-'Global Assumptions'!$E$8)*'Global Assumptions'!$E$9) -> 2,628 | E145: =IF(A145<'Global Assumptions'!$E$10,A145*'Global Assumptions'!$E$11*$H$3,'Global Assumptions'!$E$10*'Global Assumptions'!$E$11*$H$3) -> 1,229 | F145: =+A145*'Global Assumptions'!$E$12 -> 1,463 | G145: =IF(A145<'Global Assumptions'!$E$14,A145*'Global Assumptions'!$E$13,'Global Assumptions'!$E$14*'Global Assumptions'!$E$13) -> 270 | H145: =IF(A145<'Global Assumptions'!$E$7,A145*$D$13,IF(A145<$F$13,(A145-'Global Assumptions'!$E$7)*$E$13+'Global Assumptions'!$E$7*$D$13,($F$13-'Global Assumptions'!$E$7)*$E$13+'Global Assumptions'!$E$7*$D$13))*$G$13 -> 8,993 | I145: =+'Global Assumptions'!$E$19*$H$4+'Global Assumptions'!$E$20*$H$5 -> 2,420 | J145: =+'Global Assumptions'!$E$21*$H$4+'Global Assumptions'!$E$22*$H$5 -> 1,547 | K145: =IF(A145<$H$7,A145*'Global Assumptions'!$E$23/1000*$H$6*1.08*12,$H$7*'Global Assumptions'!$E$23/1000*$H$6*1.08*12) -> 182 | L145: ='Global Assumptions'!$E$24 -> 281 | M145: 0 | N145: 3,000 | O145: 188 | P145: 75 | Q145: 0
A146: 80,000 | B146: 29.24% | C146: 23,396 | D146: =IF(A146<'Global Assumptions'!$E$7,(A146-'Global Assumptions'!$E$8)*'Global Assumptions'!$E$9,('Global Assumptions'!$E$7-'Global Assumptions'!$E$8)*'Global Assumptions'!$E$9) -> 2,628 | E146: =IF(A146<'Global Assumptions'!$E$10,A146*'Global Assumptions'!$E$11*$H$3,'Global Assumptions'!$E$10*'Global Assumptions'!$E$11*$H$3) -> 1,229 | F146: =+A146*'Global Assumptions'!$E$12 -> 1,560 | G146: =IF(A146<'Global Assumptions'!$E$14,A146*'Global Assumptions'!$E$13,'Global Assumptions'!$E$14*'Global Assumptions'!$E$13) -> 288 | H146: =IF(A146<'Global Assumptions'!$E$7,A146*$D$13,IF(A146<$F$13,(A146-'Global Assumptions'!$E$7)*$E$13+'Global Assumptions'!$E$7*$D$13,($F$13-'Global Assumptions'!$E$7)*$E$13+'Global Assumptions'!$E$7*$D$13))*$G$13 -> 9,768 | I146: =+'Global Assumptions'!$E$19*$H$4+'Global Assumptions'!$E$20*$H$5 -> 2,420 | J146: =+'Global Assumptions'!$E$21*$H$4+'Global Assumptions'!$E$22*$H$5 -> 1,547 | K146: =IF(A146<$H$7,A146*'Global Assumptions'!$E$23/1000*$H$6*1.08*12,$H$7*'Global Assumptions'!$E$23/1000*$H$6*1.08*12) -> 194 | L146: ='Global Assumptions'!$E$24 -> 281 | M146: 0 | N146: 3,200 | O146: 200 | P146: 80 | Q146: 0
A147: 85,000 | B147: 28.84% | C147: 24,516 | D147: =IF(A147<'Global Assumptions'!$E$7,(A147-'Global Assumptions'!$E$8)*'Global Assumptions'!$E$9,('Global Assumptions'!$E$7-'Global Assumptions'!$E$8)*'Global Assumptions'!$E$9) -> 2,628 | E147: =IF(A147<'Global Assumptions'!$E$10,A147*'Global Assumptions'!$E$11*$H$3,'Global Assumptions'!$E$10*'Global Assumptions'!$E$11*$H$3) -> 1,229 | F147: =+A147*'Global Assumptions'!$E$12 -> 1,658 | G147: =IF(A147<'Global Assumptions'!$E$14,A147*'Global Assumptions'!$E$13,'Global Assumptions'!$E$14*'Global Assumptions'!$E$13) -> 306 | H147: =IF(A147<'Global Assumptions'!$E$7,A147*$D$13,IF(A147<$F$13,(A147-'Global Assumptions'!$E$7)*$E$13+'Global Assumptions'!$E$7*$D$13,($F$13-'Global Assumptions'!$E$7)*$E$13+'Global Assumptions'!$E$7*$D$13))*$G$13 -> 10,543 | I147: =+'Global Assumptions'!$E$19*$H$4+'Global Assumptions'!$E$20*$H$5 -> 2,420 | J147: =+'Global Assumptions'!$E$21*$H$4+'Global Assumptions'!$E$22*$H$5 -> 1,547 | K147: =IF(A147<$H$7,A147*'Global Assumptions'!$E$23/1000*$H$6*1.08*12,$H$7*'Global Assumptions'!$E$23/1000*$H$6*1.08*12) -> 206 | L147: ='Global Assumptions'!$E$24 -> 281 | M147: 0 | N147: 3,400 | O147: 213 | P147: 85 | Q147: 0
A148: 90,000 | B148: 28.48% | C148: 25,636 | D148: =IF(A148<'Global Assumptions'!$E$7,(A148-'Global Assumptions'!$E$8)*'Global Assumptions'!$E$9,('Global Assumptions'!$E$7-'Global Assumptions'!$E$8)*'Global Assumptions'!$E$9) -> 2,628 | E148: =IF(A148<'Global Assumptions'!$E$10,A148*'Global Assumptions'!$E$11*$H$3,'Global Assumptions'!$E$10*'Global Assumptions'!$E$11*$H$3) -> 1,229 | F148: =+A148*'Global Assumptions'!$E$12 -> 1,755 | G148: =IF(A148<'Global Assumptions'!$E$14,A148*'Global Assumptions'!$E$13,'Global Assumptions'!$E$14*'Global Assumptions'!$E$13) -> 324 | H148: =IF(A148<'Global Assumptions'!$E$7,A148*$D$13,IF(A148<$F$13,(A148-'Global Assumptions'!$E$7)*$E$13+'Global Assumptions'!$E$7*$D$13,($F$13-'Global Assumptions'!$E$7)*$E$13+'Global Assumptions'!$E$7*$D$13))*$G$13 -> 11,318 | I148: =+'Global Assumptions'!$E$19*$H$4+'Global Assumptions'!$E$20*$H$5 -> 2,420 | J148: =+'Global Assumptions'!$E$21*$H$4+'Global Assumptions'!$E$22*$H$5 -> 1,547 | K148: =IF(A148<$H$7,A148*'Global Assumptions'!$E$23/1000*$H$6*1.08*12,$H$7*'Global Assumptions'!$E$23/1000*$H$6*1.08*12) -> 218 | L148: ='Global Assumptions'!$E$24 -> 281 | M148: 0 | N148: 3,600 | O148: 225 | P148: 90 | Q148: 0
A149: 95,000 | B149: 28.16% | C149: 26,752 | D149: =IF(A149<'Global Assumptions'!$E$7,(A149-'Global Assumptions'!$E$8)*'Global Assumptions'!$E$9,('Global Assumptions'!$E$7-'Global Assumptions'!$E$8)*'Global Assumptions'!$E$9) -> 2,628 | E149: =IF(A149<'Global Assumptions'!$E$10,A149*'Global Assumptions'!$E$11*$H$3,'Global Assumptions'!$E$10*'Global Assumptions'!$E$11*$H$3) -> 1,229 | F149: =+A149*'Global Assumptions'!$E$12 -> 1,853 | G149: =IF(A149<'Global Assumptions'!$E$14,A149*'Global Assumptions'!$E$13,'Global Assumptions'!$E$14*'Global Assumptions'!$E$13) -> 338 | H149: =IF(A149<'Global Assumptions'!$E$7,A149*$D$13,IF(A149<$F$13,(A149-'Global Assumptions'!$E$7)*$E$13+'Global Assumptions'!$E$7*$D$13,($F$13-'Global Assumptions'!$E$7)*$E$13+'Global Assumptions'!$E$7*$D$13))*$G$13 -> 12,093 | I149: =+'Global Assumptions'!$E$19*$H$4+'Global Assumptions'!$E$20*$H$5 -> 2,420 | J149: =+'Global Assumptions'!$E$21*$H$4+'Global Assumptions'!$E$22*$H$5 -> 1,547 | K149: =IF(A149<$H$7,A149*'Global Assumptions'!$E$23/1000*$H$6*1.08*12,$H$7*'Global Assumptions'!$E$23/1000*$H$6*1.08*12) -> 231 | L149: ='Global Assumptions'!$E$24 -> 281 | M149: 0 | N149: 3,800 | O149: 238 | P149: 95 | Q149: 0
A150: 100,000 | B150: 27.85% | C150: 27,854 | D150: =IF(A150<'Global Assumptions'!$E$7,(A150-'Global Assumptions'!$E$8)*'Global Assumptions'!$E$9,('Global Assumptions'!$E$7-'Global Assumptions'!$E$8)*'Global Assumptions'!$E$9) -> 2,628 | E150: =IF(A150<'Global Assumptions'!$E$10,A150*'Global Assumptions'!$E$11*$H$3,'Global Assumptions'!$E$10*'Global Assumptions'!$E$11*$H$3) -> 1,229 | F150: =+A150*'Global Assumptions'!$E$12 -> 1,950 | G150: =IF(A150<'Global Assumptions'!$E$14,A150*'Global Assumptions'!$E$13,'Global Assumptions'!$E$14*'Global Assumptions'!$E$13) -> 338 | H150: =IF(A150<'Global Assumptions'!$E$7,A150*$D$13,IF(A150<$F$13,(A150-'Global Assumptions'!$E$7)*$E$13+'Global Assumptions'!$E$7*$D$13,($F$13-'Global Assumptions'!$E$7)*$E$13+'Global Assumptions'!$E$7*$D$13))*$G$13 -> 12,868 | I150: =+'Global Assumptions'!$E$19*$H$4+'Global Assumptions'!$E$20*$H$5 -> 2,420 | J150: =+'Global Assumptions'!$E$21*$H$4+'Global Assumptions'!$E$22*$H$5 -> 1,547 | K150: =IF(A150<$H$7,A150*'Global Assumptions'!$E$23/1000*$H$6*1.08*12,$H$7*'Global Assumptions'!$E$23/1000*$H$6*1.08*12) -> 243 | L150: ='Global Assumptions'!$E$24 -> 281 | M150: 0 | N150: 4,000 | O150: 250 | P150: 100 | Q150: 0
A151: 105,000 | B151: 27.57% | C151: 28,944 | D151: =IF(A151<'Global Assumptions'!$E$7,(A151-'Global Assumptions'!$E$8)*'Global Assumptions'!$E$9,('Global Assumptions'!$E$7-'Global Assumptions'!$E$8)*'Global Assumptions'!$E$9) -> 2,628 | E151: =IF(A151<'Global Assumptions'!$E$10,A151*'Global Assumptions'!$E$11*$H$3,'Global Assumptions'!$E$10*'Global Assumptions'!$E$11*$H$3) -> 1,229 | F151: =+A151*'Global Assumptions'!$E$12 -> 2,048 | G151: =IF(A151<'Global Assumptions'!$E$14,A151*'Global Assumptions'!$E$13,'Global Assumptions'!$E$14*'Global Assumptions'!$E$13) -> 338 | H151: =IF(A151<'Global Assumptions'!$E$7,A151*$D$13,IF(A151<$F$13,(A151-'Global Assumptions'!$E$7)*$E$13+'Global Assumptions'!$E$7*$D$13,($F$13-'Global Assumptions'!$E$7)*$E$13+'Global Assumptions'!$E$7*$D$13))*$G$13 -> 13,643 | I151: =+'Global Assumptions'!$E$19*$H$4+'Global Assumptions'!$E$20*$H$5 -> 2,420 | J151: =+'Global Assumptions'!$E$21*$H$4+'Global Assumptions'!$E$22*$H$5 -> 1,547 | K151: =IF(A151<$H$7,A151*'Global Assumptions'!$E$23/1000*$H$6*1.08*12,$H$7*'Global Assumptions'!$E$23/1000*$H$6*1.08*12) -> 243 | L151: ='Global Assumptions'!$E$24 -> 281 | M151: 0 | N151: 4,200 | O151: 263 | P151: 105 | Q151: 0
A152: 110,000 | B152: 27.30% | C152: 30,034 | D152: =IF(A152<'Global Assumptions'!$E$7,(A152-'Global Assumptions'!$E$8)*'Global Assumptions'!$E$9,('Global Assumptions'!$E$7-'Global Assumptions'!$E$8)*'Global Assumptions'!$E$9) -> 2,628 | E152: =IF(A152<'Global Assumptions'!$E$10,A152*'Global Assumptions'!$E$11*$H$3,'Global Assumptions'!$E$10*'Global Assumptions'!$E$11*$H$3) -> 1,229 | F152: =+A152*'Global Assumptions'!$E$12 -> 2,145 | G152: =IF(A152<'Global Assumptions'!$E$14,A152*'Global Assumptions'!$E$13,'Global Assumptions'!$E$14*'Global Assumptions'!$E$13) -> 338 | H152: =IF(A152<'Global Assumptions'!$E$7,A152*$D$13,IF(A152<$F$13,(A152-'Global Assumptions'!$E$7)*$E$13+'Global Assumptions'!$E$7*$D$13,($F$13-'Global Assumptions'!$E$7)*$E$13+'Global Assumptions'!$E$7*$D$13))*$G$13 -> 14,418 | I152: =+'Global Assumptions'!$E$19*$H$4+'Global Assumptions'!$E$20*$H$5 -> 2,420 | J152: =+'Global Assumptions'!$E$21*$H$4+'Global Assumptions'!$E$22*$H$5 -> 1,547 | K152: =IF(A152<$H$7,A152*'Global Assumptions'!$E$23/1000*$H$6*1.08*12,$H$7*'Global Assumptions'!$E$23/1000*$H$6*1.08*12) -> 243 | L152: ='Global Assumptions'!$E$24 -> 281 | M152: 0 | N152: 4,400 | O152: 275 | P152: 110 | Q152: 0
A153: 115,000 | B153: 27.06% | C153: 31,124 | D153: =IF(A153<'Global Assumptions'!$E$7,(A153-'Global Assumptions'!$E$8)*'Global Assumptions'!$E$9,('Global Assumptions'!$E$7-'Global Assumptions'!$E$8)*'Global Assumptions'!$E$9) -> 2,628 | E153: =IF(A153<'Global Assumptions'!$E$10,A153*'Global Assumptions'!$E$11*$H$3,'Global Assumptions'!$E$10*'Global Assumptions'!$E$11*$H$3) -> 1,229 | F153: =+A153*'Global Assumptions'!$E$12 -> 2,243 | G153: =IF(A153<'Global Assumptions'!$E$14,A153*'Global Assumptions'!$E$13,'Global Assumptions'!$E$14*'Global Assumptions'!$E$13) -> 338 | H153: =IF(A153<'Global Assumptions'!$E$7,A153*$D$13,IF(A153<$F$13,(A153-'Global Assumptions'!$E$7)*$E$13+'Global Assumptions'!$E$7*$D$13,($F$13-'Global Assumptions'!$E$7)*$E$13+'Global Assumptions'!$E$7*$D$13))*$G$13 -> 15,193 | I153: =+'Global Assumptions'!$E$19*$H$4+'Global Assumptions'!$E$20*$H$5 -> 2,420 | J153: =+'Global Assumptions'!$E$21*$H$4+'Global Assumptions'!$E$22*$H$5 -> 1,547 | K153: =IF(A153<$H$7,A153*'Global Assumptions'!$E$23/1000*$H$6*1.08*12,$H$7*'Global Assumptions'!$E$23/1000*$H$6*1.08*12) -> 243 | L153: ='Global Assumptions'!$E$24 -> 281 | M153: 0 | N153: 4,600 | O153: 288 | P153: 115 | Q153: 0
A154: 120,000 | B154: 26.85% | C154: 32,214 | D154: =IF(A154<'Global Assumptions'!$E$7,(A154-'Global Assumptions'!$E$8)*'Global Assumptions'!$E$9,('Global Assumptions'!$E$7-'Global Assumptions'!$E$8)*'Global Assumptions'!$E$9) -> 2,628 | E154: =IF(A154<'Global Assumptions'!$E$10,A154*'Global Assumptions'!$E$11*$H$3,'Global Assumptions'!$E$10*'Global Assumptions'!$E$11*$H$3) -> 1,229 | F154: =+A154*'Global Assumptions'!$E$12 -> 2,340 | G154: =IF(A154<'Global Assumptions'!$E$14,A154*'Global Assumptions'!$E$13,'Global Assumptions'!$E$14*'Global Assumptions'!$E$13) -> 338 | H154: =IF(A154<'Global Assumptions'!$E$7,A154*$D$13,IF(A154<$F$13,(A154-'Global Assumptions'!$E$7)*$E$13+'Global Assumptions'!$E$7*$D$13,($F$13-'Global Assumptions'!$E$7)*$E$13+'Global Assumptions'!$E$7*$D$13))*$G$13 -> 15,968 | I154: =+'Global Assumptions'!$E$19*$H$4+'Global Assumptions'!$E$20*$H$5 -> 2,420 | J154: =+'Global Assumptions'!$E$21*$H$4+'Global Assumptions'!$E$22*$H$5 -> 1,547 | K154: =IF(A154<$H$7,A154*'Global Assumptions'!$E$23/1000*$H$6*1.08*12,$H$7*'Global Assumptions'!$E$23/1000*$H$6*1.08*12) -> 243 | L154: ='Global Assumptions'!$E$24 -> 281 | M154: 0 | N154: =+$A154*N$13 -> 4,800 | O154: 300 | P154: 120 | Q154: 0
A155: 125,000 | B155: 26.64% | C155: 33,304 | D155: =IF(A155<'Global Assumptions'!$E$7,(A155-'Global Assumptions'!$E$8)*'Global Assumptions'!$E$9,('Global Assumptions'!$E$7-'Global Assumptions'!$E$8)*'Global Assumptions'!$E$9) -> 2,628 | E155: =IF(A155<'Global Assumptions'!$E$10,A155*'Global Assumptions'!$E$11*$H$3,'Global Assumptions'!$E$10*'Global Assumptions'!$E$11*$H$3) -> 1,229 | F155: =+A155*'Global Assumptions'!$E$12 -> 2,438 | G155: =IF(A155<'Global Assumptions'!$E$14,A155*'Global Assumptions'!$E$13,'Global Assumptions'!$E$14*'Global Assumptions'!$E$13) -> 338 | H155: =IF(A155<'Global Assumptions'!$E$7,A155*$D$13,IF(A155<$F$13,(A155-'Global Assumptions'!$E$7)*$E$13+'Global Assumptions'!$E$7*$D$13,($F$13-'Global Assumptions'!$E$7)*$E$13+'Global Assumptions'!$E$7*$D$13))*$G$13 -> 16,743 | I155: =+'Global Assumptions'!$E$19*$H$4+'Global Assumptions'!$E$20*$H$5 -> 2,420 | J155: =+'Global Assumptions'!$E$21*$H$4+'Global Assumptions'!$E$22*$H$5 -> 1,547 | K155: =IF(A155<$H$7,A155*'Global Assumptions'!$E$23/1000*$H$6*1.08*12,$H$7*'Global Assumptions'!$E$23/1000*$H$6*1.08*12) -> 243 | L155: ='Global Assumptions'!$E$24 -> 281 | M155: 0 | N155: 5,000 | O155: 313 | P155: 125 | Q155: 0
A156: 130,000 | B156: 26.46% | C156: 34,394 | D156: =IF(A156<'Global Assumptions'!$E$7,(A156-'Global Assumptions'!$E$8)*'Global Assumptions'!$E$9,('Global Assumptions'!$E$7-'Global Assumptions'!$E$8)*'Global Assumptions'!$E$9) -> 2,628 | E156: =IF(A156<'Global Assumptions'!$E$10,A156*'Global Assumptions'!$E$11*$H$3,'Global Assumptions'!$E$10*'Global Assumptions'!$E$11*$H$3) -> 1,229 | F156: =+A156*'Global Assumptions'!$E$12 -> 2,535 | G156: =IF(A156<'Global Assumptions'!$E$14,A156*'Global Assumptions'!$E$13,'Global Assumptions'!$E$14*'Global Assumptions'!$E$13) -> 338 | H156: =IF(A156<'Global Assumptions'!$E$7,A156*$D$13,IF(A156<$F$13,(A156-'Global Assumptions'!$E$7)*$E$13+'Global Assumptions'!$E$7*$D$13,($F$13-'Global Assumptions'!$E$7)*$E$13+'Global Assumptions'!$E$7*$D$13))*$G$13 -> 17,518 | I156: =+'Global Assumptions'!$E$19*$H$4+'Global Assumptions'!$E$20*$H$5 -> 2,420 | J156: =+'Global Assumptions'!$E$21*$H$4+'Global Assumptions'!$E$22*$H$5 -> 1,547 | K156: =IF(A156<$H$7,A156*'Global Assumptions'!$E$23/1000*$H$6*1.08*12,$H$7*'Global Assumptions'!$E$23/1000*$H$6*1.08*12) -> 243 | L156: ='Global Assumptions'!$E$24 -> 281 | M156: 0 | N156: 5,200 | O156: 325 | P156: 130 | Q156: 0
A157: 135,000 | B157: 26.28% | C157: 35,484 | D157: =IF(A157<'Global Assumptions'!$E$7,(A157-'Global Assumptions'!$E$8)*'Global Assumptions'!$E$9,('Global Assumptions'!$E$7-'Global Assumptions'!$E$8)*'Global Assumptions'!$E$9) -> 2,628 | E157: =IF(A157<'Global Assumptions'!$E$10,A157*'Global Assumptions'!$E$11*$H$3,'Global Assumptions'!$E$10*'Global Assumptions'!$E$11*$H$3) -> 1,229 | F157: =+A157*'Global Assumptions'!$E$12 -> 2,633 | G157: =IF(A157<'Global Assumptions'!$E$14,A157*'Global Assumptions'!$E$13,'Global Assumptions'!$E$14*'Global Assumptions'!$E$13) -> 338 | H157: =IF(A157<'Global Assumptions'!$E$7,A157*$D$13,IF(A157<$F$13,(A157-'Global Assumptions'!$E$7)*$E$13+'Global Assumptions'!$E$7*$D$13,($F$13-'Global Assumptions'!$E$7)*$E$13+'Global Assumptions'!$E$7*$D$13))*$G$13 -> 18,293 | I157: =+'Global Assumptions'!$E$19*$H$4+'Global Assumptions'!$E$20*$H$5 -> 2,420 | J157: =+'Global Assumptions'!$E$21*$H$4+'Global Assumptions'!$E$22*$H$5 -> 1,547 | K157: =IF(A157<$H$7,A157*'Global Assumptions'!$E$23/1000*$H$6*1.08*12,$H$7*'Global Assumptions'!$E$23/1000*$H$6*1.08*12) -> 243 | L157: ='Global Assumptions'!$E$24 -> 281 | M157: 0 | N157: 5,400 | O157: 338 | P157: 135 | Q157: 0
A158: 140,000 | B158: 26.12% | C158: 36,574 | D158: =IF(A158<'Global Assumptions'!$E$7,(A158-'Global Assumptions'!$E$8)*'Global Assumptions'!$E$9,('Global Assumptions'!$E$7-'Global Assumptions'!$E$8)*'Global Assumptions'!$E$9) -> 2,628 | E158: =IF(A158<'Global Assumptions'!$E$10,A158*'Global Assumptions'!$E$11*$H$3,'Global Assumptions'!$E$10*'Global Assumptions'!$E$11*$H$3) -> 1,229 | F158: =+A158*'Global Assumptions'!$E$12 -> 2,730 | G158: =IF(A158<'Global Assumptions'!$E$14,A158*'Global Assumptions'!$E$13,'Global Assumptions'!$E$14*'Global Assumptions'!$E$13) -> 338 | H158: =IF(A158<'Global Assumptions'!$E$7,A158*$D$13,IF(A158<$F$13,(A158-'Global Assumptions'!$E$7)*$E$13+'Global Assumptions'!$E$7*$D$13,($F$13-'Global Assumptions'!$E$7)*$E$13+'Global Assumptions'!$E$7*$D$13))*$G$13 -> 19,068 | I158: =+'Global Assumptions'!$E$19*$H$4+'Global Assumptions'!$E$20*$H$5 -> 2,420 | J158: =+'Global Assumptions'!$E$21*$H$4+'Global Assumptions'!$E$22*$H$5 -> 1,547 | K158: =IF(A158<$H$7,A158*'Global Assumptions'!$E$23/1000*$H$6*1.08*12,$H$7*'Global Assumptions'!$E$23/1000*$H$6*1.08*12) -> 243 | L158: ='Global Assumptions'!$E$24 -> 281 | M158: 0 | N158: 5,600 | O158: 350 | P158: 140 | Q158: 0
A159: 145,000 | B159: 25.98% | C159: 37,664 | D159: =IF(A159<'Global Assumptions'!$E$7,(A159-'Global Assumptions'!$E$8)*'Global Assumptions'!$E$9,('Global Assumptions'!$E$7-'Global Assumptions'!$E$8)*'Global Assumptions'!$E$9) -> 2,628 | E159: =IF(A159<'Global Assumptions'!$E$10,A159*'Global Assumptions'!$E$11*$H$3,'Global Assumptions'!$E$10*'Global Assumptions'!$E$11*$H$3) -> 1,229 | F159: =+A159*'Global Assumptions'!$E$12 -> 2,828 | G159: =IF(A159<'Global Assumptions'!$E$14,A159*'Global Assumptions'!$E$13,'Global Assumptions'!$E$14*'Global Assumptions'!$E$13) -> 338 | H159: =IF(A159<'Global Assumptions'!$E$7,A159*$D$13,IF(A159<$F$13,(A159-'Global Assumptions'!$E$7)*$E$13+'Global Assumptions'!$E$7*$D$13,($F$13-'Global Assumptions'!$E$7)*$E$13+'Global Assumptions'!$E$7*$D$13))*$G$13 -> 19,843 | I159: =+'Global Assumptions'!$E$19*$H$4+'Global Assumptions'!$E$20*$H$5 -> 2,420 | J159: =+'Global Assumptions'!$E$21*$H$4+'Global Assumptions'!$E$22*$H$5 -> 1,547 | K159: =IF(A159<$H$7,A159*'Global Assumptions'!$E$23/1000*$H$6*1.08*12,$H$7*'Global Assumptions'!$E$23/1000*$H$6*1.08*12) -> 243 | L159: ='Global Assumptions'!$E$24 -> 281 | M159: 0 | N159: 5,800 | O159: 363 | P159: 145 | Q159: 0
A160: 150,000 | B160: 25.84% | C160: 38,754 | D160: =IF(A160<'Global Assumptions'!$E$7,(A160-'Global Assumptions'!$E$8)*'Global Assumptions'!$E$9,('Global Assumptions'!$E$7-'Global Assumptions'!$E$8)*'Global Assumptions'!$E$9) -> 2,628 | E160: =IF(A160<'Global Assumptions'!$E$10,A160*'Global Assumptions'!$E$11*$H$3,'Global Assumptions'!$E$10*'Global Assumptions'!$E$11*$H$3) -> 1,229 | F160: =+A160*'Global Assumptions'!$E$12 -> 2,925 | G160: =IF(A160<'Global Assumptions'!$E$14,A160*'Global Assumptions'!$E$13,'Global Assumptions'!$E$14*'Global Assumptions'!$E$13) -> 338 | H160: =IF(A160<'Global Assumptions'!$E$7,A160*$D$13,IF(A160<$F$13,(A160-'Global Assumptions'!$E$7)*$E$13+'Global Assumptions'!$E$7*$D$13,($F$13-'Global Assumptions'!$E$7)*$E$13+'Global Assumptions'!$E$7*$D$13))*$G$13 -> 20,618 | I160: =+'Global Assumptions'!$E$19*$H$4+'Global Assumptions'!$E$20*$H$5 -> 2,420 | J160: =+'Global Assumptions'!$E$21*$H$4+'Global Assumptions'!$E$22*$H$5 -> 1,547 | K160: =IF(A160<$H$7,A160*'Global Assumptions'!$E$23/1000*$H$6*1.08*12,$H$7*'Global Assumptions'!$E$23/1000*$H$6*1.08*12) -> 243 | L160: ='Global Assumptions'!$E$24 -> 281 | M160: 0 | N160: 6,000 | O160: 375 | P160: 150 | Q160: 0
A161: 155,000 | B161: 25.71% | C161: 39,844 | D161: =IF(A161<'Global Assumptions'!$E$7,(A161-'Global Assumptions'!$E$8)*'Global Assumptions'!$E$9,('Global Assumptions'!$E$7-'Global Assumptions'!$E$8)*'Global Assumptions'!$E$9) -> 2,628 | E161: =IF(A161<'Global Assumptions'!$E$10,A161*'Global Assumptions'!$E$11*$H$3,'Global Assumptions'!$E$10*'Global Assumptions'!$E$11*$H$3) -> 1,229 | F161: =+A161*'Global Assumptions'!$E$12 -> 3,023 | G161: =IF(A161<'Global Assumptions'!$E$14,A161*'Global Assumptions'!$E$13,'Global Assumptions'!$E$14*'Global Assumptions'!$E$13) -> 338 | H161: =IF(A161<'Global Assumptions'!$E$7,A161*$D$13,IF(A161<$F$13,(A161-'Global Assumptions'!$E$7)*$E$13+'Global Assumptions'!$E$7*$D$13,($F$13-'Global Assumptions'!$E$7)*$E$13+'Global Assumptions'!$E$7*$D$13))*$G$13 -> 21,393 | I161: =+'Global Assumptions'!$E$19*$H$4+'Global Assumptions'!$E$20*$H$5 -> 2,420 | J161: =+'Global Assumptions'!$E$21*$H$4+'Global Assumptions'!$E$22*$H$5 -> 1,547 | K161: =IF(A161<$H$7,A161*'Global Assumptions'!$E$23/1000*$H$6*1.08*12,$H$7*'Global Assumptions'!$E$23/1000*$H$6*1.08*12) -> 243 | L161: ='Global Assumptions'!$E$24 -> 281 | M161: 0 | N161: 6,200 | O161: 388 | P161: 155 | Q161: 0
A162: 160,000 | B162: 25.58% | C162: 40,934 | D162: =IF(A162<'Global Assumptions'!$E$7,(A162-'Global Assumptions'!$E$8)*'Global Assumptions'!$E$9,('Global Assumptions'!$E$7-'Global Assumptions'!$E$8)*'Global Assumptions'!$E$9) -> 2,628 | E162: =IF(A162<'Global Assumptions'!$E$10,A162*'Global Assumptions'!$E$11*$H$3,'Global Assumptions'!$E$10*'Global Assumptions'!$E$11*$H$3) -> 1,229 | F162: =+A162*'Global Assumptions'!$E$12 -> 3,120 | G162: =IF(A162<'Global Assumptions'!$E$14,A162*'Global Assumptions'!$E$13,'Global Assumptions'!$E$14*'Global Assumptions'!$E$13) -> 338 | H162: =IF(A162<'Global Assumptions'!$E$7,A162*$D$13,IF(A162<$F$13,(A162-'Global Assumptions'!$E$7)*$E$13+'Global Assumptions'!$E$7*$D$13,($F$13-'Global Assumptions'!$E$7)*$E$13+'Global Assumptions'!$E$7*$D$13))*$G$13 -> 22,168 | I162: =+'Global Assumptions'!$E$19*$H$4+'Global Assumptions'!$E$20*$H$5 -> 2,420 | J162: =+'Global Assumptions'!$E$21*$H$4+'Global Assumptions'!$E$22*$H$5 -> 1,547 | K162: =IF(A162<$H$7,A162*'Global Assumptions'!$E$23/1000*$H$6*1.08*12,$H$7*'Global Assumptions'!$E$23/1000*$H$6*1.08*12) -> 243 | L162: ='Global Assumptions'!$E$24 -> 281 | M162: 0 | N162: 6,400 | O162: 400 | P162: 160 | Q162: 0
A163: 165,000 | B163: 25.47% | C163: 42,024 | D163: =IF(A163<'Global Assumptions'!$E$7,(A163-'Global Assumptions'!$E$8)*'Global Assumptions'!$E$9,('Global Assumptions'!$E$7-'Global Assumptions'!$E$8)*'Global Assumptions'!$E$9) -> 2,628 | E163: =IF(A163<'Global Assumptions'!$E$10,A163*'Global Assumptions'!$E$11*$H$3,'Global Assumptions'!$E$10*'Global Assumptions'!$E$11*$H$3) -> 1,229 | F163: =+A163*'Global Assumptions'!$E$12 -> 3,218 | G163: =IF(A163<'Global Assumptions'!$E$14,A163*'Global Assumptions'!$E$13,'Global Assumptions'!$E$14*'Global Assumptions'!$E$13) -> 338 | H163: =IF(A163<'Global Assumptions'!$E$7,A163*$D$13,IF(A163<$F$13,(A163-'Global Assumptions'!$E$7)*$E$13+'Global Assumptions'!$E$7*$D$13,($F$13-'Global Assumptions'!$E$7)*$E$13+'Global Assumptions'!$E$7*$D$13))*$G$13 -> 22,943 | I163: =+'Global Assumptions'!$E$19*$H$4+'Global Assumptions'!$E$20*$H$5 -> 2,420 | J163: =+'Global Assumptions'!$E$21*$H$4+'Global Assumptions'!$E$22*$H$5 -> 1,547 | K163: =IF(A163<$H$7,A163*'Global Assumptions'!$E$23/1000*$H$6*1.08*12,$H$7*'Global Assumptions'!$E$23/1000*$H$6*1.08*12) -> 243 | L163: ='Global Assumptions'!$E$24 -> 281 | M163: 0 | N163: 6,600 | O163: 413 | P163: 165 | Q163: 0
A164: 170,000 | B164: 24.98% | C164: 42,463 | D164: =IF(A164<'Global Assumptions'!$E$7,(A164-'Global Assumptions'!$E$8)*'Global Assumptions'!$E$9,('Global Assumptions'!$E$7-'Global Assumptions'!$E$8)*'Global Assumptions'!$E$9) -> 2,628 | E164: =IF(A164<'Global Assumptions'!$E$10,A164*'Global Assumptions'!$E$11*$H$3,'Global Assumptions'!$E$10*'Global Assumptions'!$E$11*$H$3) -> 1,229 | F164: =+A164*'Global Assumptions'!$E$12 -> 3,315 | G164: =IF(A164<'Global Assumptions'!$E$14,A164*'Global Assumptions'!$E$13,'Global Assumptions'!$E$14*'Global Assumptions'!$E$13) -> 338 | H164: =IF(A164<'Global Assumptions'!$E$7,A164*$D$13,IF(A164<$F$13,(A164-'Global Assumptions'!$E$7)*$E$13+'Global Assumptions'!$E$7*$D$13,($F$13-'Global Assumptions'!$E$7)*$E$13+'Global Assumptions'!$E$7*$D$13))*$G$13 -> 23,067 | I164: =+'Global Assumptions'!$E$19*$H$4+'Global Assumptions'!$E$20*$H$5 -> 2,420 | J164: =+'Global Assumptions'!$E$21*$H$4+'Global Assumptions'!$E$22*$H$5 -> 1,547 | K164: =IF(A164<$H$7,A164*'Global Assumptions'!$E$23/1000*$H$6*1.08*12,$H$7*'Global Assumptions'!$E$23/1000*$H$6*1.08*12) -> 243 | L164: ='Global Assumptions'!$E$24 -> 281 | M164: 0 | N164: 6,800 | O164: 425 | P164: 170 | Q164: 0
A165: 175,000 | B165: 24.44% | C165: 42,778 | D165: =IF(A165<'Global Assumptions'!$E$7,(A165-'Global Assumptions'!$E$8)*'Global Assumptions'!$E$9,('Global Assumptions'!$E$7-'Global Assumptions'!$E$8)*'Global Assumptions'!$E$9) -> 2,628 | E165: =IF(A165<'Global Assumptions'!$E$10,A165*'Global Assumptions'!$E$11*$H$3,'Global Assumptions'!$E$10*'Global Assumptions'!$E$11*$H$3) -> 1,229 | F165: =+A165*'Global Assumptions'!$E$12 -> 3,413 | G165: =IF(A165<'Global Assumptions'!$E$14,A165*'Global Assumptions'!$E$13,'Global Assumptions'!$E$14*'Global Assumptions'!$E$13) -> 338 | H165: =IF(A165<'Global Assumptions'!$E$7,A165*$D$13,IF(A165<$F$13,(A165-'Global Assumptions'!$E$7)*$E$13+'Global Assumptions'!$E$7*$D$13,($F$13-'Global Assumptions'!$E$7)*$E$13+'Global Assumptions'!$E$7*$D$13))*$G$13 -> 23,067 | I165: =+'Global Assumptions'!$E$19*$H$4+'Global Assumptions'!$E$20*$H$5 -> 2,420 | J165: =+'Global Assumptions'!$E$21*$H$4+'Global Assumptions'!$E$22*$H$5 -> 1,547 | K165: =IF(A165<$H$7,A165*'Global Assumptions'!$E$23/1000*$H$6*1.08*12,$H$7*'Global Assumptions'!$E$23/1000*$H$6*1.08*12) -> 243 | L165: ='Global Assumptions'!$E$24 -> 281 | M165: 0 | N165: 7,000 | O165: 438 | P165: 175 | Q165: 0
A166: 180,000 | B166: 23.94% | C166: 43,093 | D166: =IF(A166<'Global Assumptions'!$E$7,(A166-'Global Assumptions'!$E$8)*'Global Assumptions'!$E$9,('Global Assumptions'!$E$7-'Global Assumptions'!$E$8)*'Global Assumptions'!$E$9) -> 2,628 | E166: =IF(A166<'Global Assumptions'!$E$10,A166*'Global Assumptions'!$E$11*$H$3,'Global Assumptions'!$E$10*'Global Assumptions'!$E$11*$H$3) -> 1,229 | F166: =+A166*'Global Assumptions'!$E$12 -> 3,510 | G166: =IF(A166<'Global Assumptions'!$E$14,A166*'Global Assumptions'!$E$13,'Global Assumptions'!$E$14*'Global Assumptions'!$E$13) -> 338 | H166: =IF(A166<'Global Assumptions'!$E$7,A166*$D$13,IF(A166<$F$13,(A166-'Global Assumptions'!$E$7)*$E$13+'Global Assumptions'!$E$7*$D$13,($F$13-'Global Assumptions'!$E$7)*$E$13+'Global Assumptions'!$E$7*$D$13))*$G$13 -> 23,067 | I166: =+'Global Assumptions'!$E$19*$H$4+'Global Assumptions'!$E$20*$H$5 -> 2,420 | J166: =+'Global Assumptions'!$E$21*$H$4+'Global Assumptions'!$E$22*$H$5 -> 1,547 | K166: =IF(A166<$H$7,A166*'Global Assumptions'!$E$23/1000*$H$6*1.08*12,$H$7*'Global Assumptions'!$E$23/1000*$H$6*1.08*12) -> 243 | L166: ='Global Assumptions'!$E$24 -> 281 | M166: 0 | N166: 7,200 | O166: 450 | P166: 180 | Q166: 0
A167: 185,000 | B167: 23.46% | C167: 43,408 | D167: =IF(A167<'Global Assumptions'!$E$7,(A167-'Global Assumptions'!$E$8)*'Global Assumptions'!$E$9,('Global Assumptions'!$E$7-'Global Assumptions'!$E$8)*'Global Assumptions'!$E$9) -> 2,628 | E167: =IF(A167<'Global Assumptions'!$E$10,A167*'Global Assumptions'!$E$11*$H$3,'Global Assumptions'!$E$10*'Global Assumptions'!$E$11*$H$3) -> 1,229 | F167: =+A167*'Global Assumptions'!$E$12 -> 3,608 | G167: =IF(A167<'Global Assumptions'!$E$14,A167*'Global Assumptions'!$E$13,'Global Assumptions'!$E$14*'Global Assumptions'!$E$13) -> 338 | H167: =IF(A167<'Global Assumptions'!$E$7,A167*$D$13,IF(A167<$F$13,(A167-'Global Assumptions'!$E$7)*$E$13+'Global Assumptions'!$E$7*$D$13,($F$13-'Global Assumptions'!$E$7)*$E$13+'Global Assumptions'!$E$7*$D$13))*$G$13 -> 23,067 | I167: =+'Global Assumptions'!$E$19*$H$4+'Global Assumptions'!$E$20*$H$5 -> 2,420 | J167: =+'Global Assumptions'!$E$21*$H$4+'Global Assumptions'!$E$22*$H$5 -> 1,547 | K167: =IF(A167<$H$7,A167*'Global Assumptions'!$E$23/1000*$H$6*1.08*12,$H$7*'Global Assumptions'!$E$23/1000*$H$6*1.08*12) -> 243 | L167: ='Global Assumptions'!$E$24 -> 281 | M167: 0 | N167: 7,400 | O167: 463 | P167: 185 | Q167: 0
A168: 190,000 | B168: 23.01% | C168: 43,723 | D168: =IF(A168<'Global Assumptions'!$E$7,(A168-'Global Assumptions'!$E$8)*'Global Assumptions'!$E$9,('Global Assumptions'!$E$7-'Global Assumptions'!$E$8)*'Global Assumptions'!$E$9) -> 2,628 | E168: =IF(A168<'Global Assumptions'!$E$10,A168*'Global Assumptions'!$E$11*$H$3,'Global Assumptions'!$E$10*'Global Assumptions'!$E$11*$H$3) -> 1,229 | F168: =+A168*'Global Assumptions'!$E$12 -> 3,705 | G168: =IF(A168<'Global Assumptions'!$E$14,A168*'Global Assumptions'!$E$13,'Global Assumptions'!$E$14*'Global Assumptions'!$E$13) -> 338 | H168: =IF(A168<'Global Assumptions'!$E$7,A168*$D$13,IF(A168<$F$13,(A168-'Global Assumptions'!$E$7)*$E$13+'Global Assumptions'!$E$7*$D$13,($F$13-'Global Assumptions'!$E$7)*$E$13+'Global Assumptions'!$E$7*$D$13))*$G$13 -> 23,067 | I168: =+'Global Assumptions'!$E$19*$H$4+'Global Assumptions'!$E$20*$H$5 -> 2,420 | J168: =+'Global Assumptions'!$E$21*$H$4+'Global Assumptions'!$E$22*$H$5 -> 1,547 | K168: =IF(A168<$H$7,A168*'Global Assumptions'!$E$23/1000*$H$6*1.08*12,$H$7*'Global Assumptions'!$E$23/1000*$H$6*1.08*12) -> 243 | L168: ='Global Assumptions'!$E$24 -> 281 | M168: 0 | N168: 7,600 | O168: 475 | P168: 190 | Q168: 0
A169: 195,000 | B169: 22.58% | C169: 44,038 | D169: =IF(A169<'Global Assumptions'!$E$7,(A169-'Global Assumptions'!$E$8)*'Global Assumptions'!$E$9,('Global Assumptions'!$E$7-'Global Assumptions'!$E$8)*'Global Assumptions'!$E$9) -> 2,628 | E169: =IF(A169<'Global Assumptions'!$E$10,A169*'Global Assumptions'!$E$11*$H$3,'Global Assumptions'!$E$10*'Global Assumptions'!$E$11*$H$3) -> 1,229 | F169: =+A169*'Global Assumptions'!$E$12 -> 3,803 | G169: =IF(A169<'Global Assumptions'!$E$14,A169*'Global Assumptions'!$E$13,'Global Assumptions'!$E$14*'Global Assumptions'!$E$13) -> 338 | H169: =IF(A169<'Global Assumptions'!$E$7,A169*$D$13,IF(A169<$F$13,(A169-'Global Assumptions'!$E$7)*$E$13+'Global Assumptions'!$E$7*$D$13,($F$13-'Global Assumptions'!$E$7)*$E$13+'Global Assumptions'!$E$7*$D$13))*$G$13 -> 23,067 | I169: =+'Global Assumptions'!$E$19*$H$4+'Global Assumptions'!$E$20*$H$5 -> 2,420 | J169: =+'Global Assumptions'!$E$21*$H$4+'Global Assumptions'!$E$22*$H$5 -> 1,547 | K169: =IF(A169<$H$7,A169*'Global Assumptions'!$E$23/1000*$H$6*1.08*12,$H$7*'Global Assumptions'!$E$23/1000*$H$6*1.08*12) -> 243 | L169: ='Global Assumptions'!$E$24 -> 281 | M169: 0 | N169: 7,800 | O169: 488 | P169: 195 | Q169: 0
A170: 200,000 | B170: 22.18% | C170: 44,353 | D170: =IF(A170<'Global Assumptions'!$E$7,(A170-'Global Assumptions'!$E$8)*'Global Assumptions'!$E$9,('Global Assumptions'!$E$7-'Global Assumptions'!$E$8)*'Global Assumptions'!$E$9) -> 2,628 | E170: =IF(A170<'Global Assumptions'!$E$10,A170*'Global Assumptions'!$E$11*$H$3,'Global Assumptions'!$E$10*'Global Assumptions'!$E$11*$H$3) -> 1,229 | F170: =+A170*'Global Assumptions'!$E$12 -> 3,900 | G170: =IF(A170<'Global Assumptions'!$E$14,A170*'Global Assumptions'!$E$13,'Global Assumptions'!$E$14*'Global Assumptions'!$E$13) -> 338 | H170: =IF(A170<'Global Assumptions'!$E$7,A170*$D$13,IF(A170<$F$13,(A170-'Global Assumptions'!$E$7)*$E$13+'Global Assumptions'!$E$7*$D$13,($F$13-'Global Assumptions'!$E$7)*$E$13+'Global Assumptions'!$E$7*$D$13))*$G$13 -> 23,067 | I170: =+'Global Assumptions'!$E$19*$H$4+'Global Assumptions'!$E$20*$H$5 -> 2,420 | J170: =+'Global Assumptions'!$E$21*$H$4+'Global Assumptions'!$E$22*$H$5 -> 1,547 | K170: =IF(A170<$H$7,A170*'Global Assumptions'!$E$23/1000*$H$6*1.08*12,$H$7*'Global Assumptions'!$E$23/1000*$H$6*1.08*12) -> 243 | L170: ='Global Assumptions'!$E$24 -> 281 | M170: 0 | N170: 8,000 | O170: 500 | P170: 200 | Q170: 0

Sheet MFF 30
A1: MUFA Faculty (MFF)
A2: Fund 30
C3: Employee group assumptions | D3: Employer EI rate: | H3: 1.224
D4: Health & Dental participation: | G4: Family | H4: 88%
G5: Single | H5: =1-H4 -> 12%
D6: Life insurance coverage (x earnings): | H6: 1.75
D7: Life insurance maximum insured earnings: | H7: 100,000
D8: Employer pension contributions:
D9: Pension contribution to YMPE | E9: Pension contribution to ITA max | F9: ITA max | G9: Employer contribution rate | M9: Social Justice/PEL Fund ($/hr) | N9: Benefits Surcharge | O9: PRB Surcharge | P9: WSIB NEER Surcharge | Q9: Salary Continuance
C10: =+'Global Assumptions'!B4 -> FY16 8 Month Review | D10: 7.00% | E10: 10.00% | F10: =+'Global Assumptions'!$B$15 -> 157,025 | G10: 175% | M10: 0 | N10: 4.20% | O10: 0.25% | P10: 0.15% | Q10: 0.00%
C11: =+'Global Assumptions'!C4 -> FY17 Budget | D11: 7.00% | E11: 10.00% | F11: =+'Global Assumptions'!$C$15 -> 160,000 | G11: 175% | M11: 0 | N11: 4.00% | O11: 0.25% | P11: 0.15% | Q11: 0.00%
C12: =+'Global Assumptions'!D4 -> FY18 Plan | D12: 7.00% | E12: 10.00% | F12: =+'Global Assumptions'!$D$15 -> 162,900 | G12: 175% | M12: 0 | N12: 4.00% | O12: 0.25% | P12: 0.10% | Q12: 0.00%
C13: =+'Global Assumptions'!E4 -> FY19 Plan | D13: 7.00% | E13: 10.00% | F13: =+'Global Assumptions'!$E$15 -> 165,800 | G13: 175% | M13: 0 | N13: 4.00% | O13: 0.25% | P13: 0.10% | Q13: 0.00%
A14: Back to Index
A15: Annual Salary | B15: Rate | C15: Total Cost | D15: CPP | E15: EI | F15: EHT | G15: WSIB | H15: Pension | I15: Major Medical | J15: Dental | K15: Life Insurance | L15: Travel Insurance | M15: Social Justice/PEL | N15: Benefits Surcharge | O15: PRB Surcharge | P15: WSIB NEER Surcharge | Q15: Salary Continuance
A16: =+'Global Assumptions'!B4 -> FY16 8 Month Review
A17: 20,000 | B17: =+C17/A17 -> 46.22% | C17: =SUM(D17:Q17) -> 9,245 | D17: =IF(A17<'Global Assumptions'!$B$7,(A17-'Global Assumptions'!$B$8)*'Global Assumptions'!$B$9,('Global Assumptions'!$B$7-'Global Assumptions'!$B$8)*'Global Assumptions'!$B$9) -> 817 | E17: =IF(A17<'Global Assumptions'!$B$10,A17*'Global Assumptions'!$B$11*$H$3,'Global Assumptions'!$B$10*'Global Assumptions'!$B$11*$H$3) -> 460 | F17: =+A17*'Global Assumptions'!$B$12 -> 390 | G17: =IF(A17<'Global Assumptions'!$B$14,A17*'Global Assumptions'!$B$13,'Global Assumptions'!$B$14*'Global Assumptions'!$B$13) -> 72 | H17: =IF(A17<'Global Assumptions'!$B$7,A17*$D$10,IF(A17<$F$10,(A17-'Global Assumptions'!$B$7)*$E$10+'Global Assumptions'!$B$7*$D$10,($F$10-'Global Assumptions'!$B$7)*$E$10+'Global Assumptions'!$B$7*$D$10))*$G$10 -> 2,450 | I17: =+'Global Assumptions'!$B$19*$H$4+'Global Assumptions'!$B$20*$H$5 -> 2,326 | J17: =+'Global Assumptions'!$B$21*$H$4+'Global Assumptions'!$B$22*$H$5 -> 1,487 | K17: =IF(A17<$H$7,A17*'Global Assumptions'!$B$23/1000*$H$6*1.08*12,$H$7*'Global Assumptions'!$B$23/1000*$H$6*1.08*12) -> 42 | L17: ='Global Assumptions'!$B$24 -> 281 | M17: =1825*$M$10 -> 0 | N17: =+$A17*N$10 -> 840 | O17: 50 | P17: 30 | Q17: 0
A18: 25,000 | B18: 42.30% | C18: 10,576 | D18: =IF(A18<'Global Assumptions'!$B$7,(A18-'Global Assumptions'!$B$8)*'Global Assumptions'!$B$9,('Global Assumptions'!$B$7-'Global Assumptions'!$B$8)*'Global Assumptions'!$B$9) -> 1,064 | E18: =IF(A18<'Global Assumptions'!$B$10,A18*'Global Assumptions'!$B$11*$H$3,'Global Assumptions'!$B$10*'Global Assumptions'!$B$11*$H$3) -> 575 | F18: =+A18*'Global Assumptions'!$B$12 -> 488 | G18: =IF(A18<'Global Assumptions'!$B$14,A18*'Global Assumptions'!$B$13,'Global Assumptions'!$B$14*'Global Assumptions'!$B$13) -> 90 | H18: =IF(A18<'Global Assumptions'!$B$7,A18*$D$10,IF(A18<$F$10,(A18-'Global Assumptions'!$B$7)*$E$10+'Global Assumptions'!$B$7*$D$10,($F$10-'Global Assumptions'!$B$7)*$E$10+'Global Assumptions'!$B$7*$D$10))*$G$10 -> 3,063 | I18: =+'Global Assumptions'!$B$19*$H$4+'Global Assumptions'!$B$20*$H$5 -> 2,326 | J18: =+'Global Assumptions'!$B$21*$H$4+'Global Assumptions'!$B$22*$H$5 -> 1,487 | K18: =IF(A18<$H$7,A18*'Global Assumptions'!$B$23/1000*$H$6*1.08*12,$H$7*'Global Assumptions'!$B$23/1000*$H$6*1.08*12) -> 52 | L18: ='Global Assumptions'!$B$24 -> 281 | M18: 0 | N18: 1,050 | O18: 63 | P18: 38 | Q18: 0
A19: 30,000 | B19: 39.69% | C19: 11,907 | D19: =IF(A19<'Global Assumptions'!$B$7,(A19-'Global Assumptions'!$B$8)*'Global Assumptions'!$B$9,('Global Assumptions'!$B$7-'Global Assumptions'!$B$8)*'Global Assumptions'!$B$9) -> 1,312 | E19: =IF(A19<'Global Assumptions'!$B$10,A19*'Global Assumptions'!$B$11*$H$3,'Global Assumptions'!$B$10*'Global Assumptions'!$B$11*$H$3) -> 690 | F19: =+A19*'Global Assumptions'!$B$12 -> 585 | G19: =IF(A19<'Global Assumptions'!$B$14,A19*'Global Assumptions'!$B$13,'Global Assumptions'!$B$14*'Global Assumptions'!$B$13) -> 108 | H19: =IF(A19<'Global Assumptions'!$B$7,A19*$D$10,IF(A19<$F$10,(A19-'Global Assumptions'!$B$7)*$E$10+'Global Assumptions'!$B$7*$D$10,($F$10-'Global Assumptions'!$B$7)*$E$10+'Global Assumptions'!$B$7*$D$10))*$G$10 -> 3,675 | I19: =+'Global Assumptions'!$B$19*$H$4+'Global Assumptions'!$B$20*$H$5 -> 2,326 | J19: =+'Global Assumptions'!$B$21*$H$4+'Global Assumptions'!$B$22*$H$5 -> 1,487 | K19: =IF(A19<$H$7,A19*'Global Assumptions'!$B$23/1000*$H$6*1.08*12,$H$7*'Global Assumptions'!$B$23/1000*$H$6*1.08*12) -> 63 | L19: ='Global Assumptions'!$B$24 -> 281 | M19: 0 | N19: 1,260 | O19: 75 | P19: 45 | Q19: 0
A20: 35,000 | B20: 37.82% | C20: 13,238 | D20: =IF(A20<'Global Assumptions'!$B$7,(A20-'Global Assumptions'!$B$8)*'Global Assumptions'!$B$9,('Global Assumptions'!$B$7-'Global Assumptions'!$B$8)*'Global Assumptions'!$B$9) -> 1,559 | E20: =IF(A20<'Global Assumptions'!$B$10,A20*'Global Assumptions'!$B$11*$H$3,'Global Assumptions'!$B$10*'Global Assumptions'!$B$11*$H$3) -> 805 | F20: =+A20*'Global Assumptions'!$B$12 -> 683 | G20: =IF(A20<'Global Assumptions'!$B$14,A20*'Global Assumptions'!$B$13,'Global Assumptions'!$B$14*'Global Assumptions'!$B$13) -> 126 | H20: =IF(A20<'Global Assumptions'!$B$7,A20*$D$10,IF(A20<$F$10,(A20-'Global Assumptions'!$B$7)*$E$10+'Global Assumptions'!$B$7*$D$10,($F$10-'Global Assumptions'!$B$7)*$E$10+'Global Assumptions'!$B$7*$D$10))*$G$10 -> 4,288 | I20: =+'Global Assumptions'!$B$19*$H$4+'Global Assumptions'!$B$20*$H$5 -> 2,326 | J20: =+'Global Assumptions'!$B$21*$H$4+'Global Assumptions'!$B$22*$H$5 -> 1,487 | K20: =IF(A20<$H$7,A20*'Global Assumptions'!$B$23/1000*$H$6*1.08*12,$H$7*'Global Assumptions'!$B$23/1000*$H$6*1.08*12) -> 73 | L20: ='Global Assumptions'!$B$24 -> 281 | M20: 0 | N20: 1,470 | O20: 88 | P20: 53 | Q20: 0
A21: 40,000 | B21: 36.42% | C21: 14,569 | D21: =IF(A21<'Global Assumptions'!$B$7,(A21-'Global Assumptions'!$B$8)*'Global Assumptions'!$B$9,('Global Assumptions'!$B$7-'Global Assumptions'!$B$8)*'Global Assumptions'!$B$9) -> 1,807 | E21: =IF(A21<'Global Assumptions'!$B$10,A21*'Global Assumptions'!$B$11*$H$3,'Global Assumptions'!$B$10*'Global Assumptions'!$B$11*$H$3) -> 920 | F21: =+A21*'Global Assumptions'!$B$12 -> 780 | G21: =IF(A21<'Global Assumptions'!$B$14,A21*'Global Assumptions'!$B$13,'Global Assumptions'!$B$14*'Global Assumptions'!$B$13) -> 144 | H21: =IF(A21<'Global Assumptions'!$B$7,A21*$D$10,IF(A21<$F$10,(A21-'Global Assumptions'!$B$7)*$E$10+'Global Assumptions'!$B$7*$D$10,($F$10-'Global Assumptions'!$B$7)*$E$10+'Global Assumptions'!$B$7*$D$10))*$G$10 -> 4,900 | I21: =+'Global Assumptions'!$B$19*$H$4+'Global Assumptions'!$B$20*$H$5 -> 2,326 | J21: =+'Global Assumptions'!$B$21*$H$4+'Global Assumptions'!$B$22*$H$5 -> 1,487 | K21: =IF(A21<$H$7,A21*'Global Assumptions'!$B$23/1000*$H$6*1.08*12,$H$7*'Global Assumptions'!$B$23/1000*$H$6*1.08*12) -> 83 | L21: ='Global Assumptions'!$B$24 -> 281 | M21: 0 | N21: 1,680 | O21: 100 | P21: 60 | Q21: 0
A22: 45,000 | B22: 35.33% | C22: 15,900 | D22: =IF(A22<'Global Assumptions'!$B$7,(A22-'Global Assumptions'!$B$8)*'Global Assumptions'!$B$9,('Global Assumptions'!$B$7-'Global Assumptions'!$B$8)*'Global Assumptions'!$B$9) -> 2,054 | E22: =IF(A22<'Global Assumptions'!$B$10,A22*'Global Assumptions'!$B$11*$H$3,'Global Assumptions'!$B$10*'Global Assumptions'!$B$11*$H$3) -> 1,036 | F22: =+A22*'Global Assumptions'!$B$12 -> 878 | G22: =IF(A22<'Global Assumptions'!$B$14,A22*'Global Assumptions'!$B$13,'Global Assumptions'!$B$14*'Global Assumptions'!$B$13) -> 162 | H22: =IF(A22<'Global Assumptions'!$B$7,A22*$D$10,IF(A22<$F$10,(A22-'Global Assumptions'!$B$7)*$E$10+'Global Assumptions'!$B$7*$D$10,($F$10-'Global Assumptions'!$B$7)*$E$10+'Global Assumptions'!$B$7*$D$10))*$G$10 -> 5,513 | I22: =+'Global Assumptions'!$B$19*$H$4+'Global Assumptions'!$B$20*$H$5 -> 2,326 | J22: =+'Global Assumptions'!$B$21*$H$4+'Global Assumptions'!$B$22*$H$5 -> 1,487 | K22: =IF(A22<$H$7,A22*'Global Assumptions'!$B$23/1000*$H$6*1.08*12,$H$7*'Global Assumptions'!$B$23/1000*$H$6*1.08*12) -> 94 | L22: ='Global Assumptions'!$B$24 -> 281 | M22: 0 | N22: 1,890 | O22: 113 | P22: 68 | Q22: 0
A23: 50,000 | B23: 34.44% | C23: 17,219 | D23: =IF(A23<'Global Assumptions'!$B$7,(A23-'Global Assumptions'!$B$8)*'Global Assumptions'!$B$9,('Global Assumptions'!$B$7-'Global Assumptions'!$B$8)*'Global Assumptions'!$B$9) -> 2,302 | E23: =IF(A23<'Global Assumptions'!$B$10,A23*'Global Assumptions'!$B$11*$H$3,'Global Assumptions'!$B$10*'Global Assumptions'!$B$11*$H$3) -> 1,139 | F23: =+A23*'Global Assumptions'!$B$12 -> 975 | G23: =IF(A23<'Global Assumptions'!$B$14,A23*'Global Assumptions'!$B$13,'Global Assumptions'!$B$14*'Global Assumptions'!$B$13) -> 180 | H23: =IF(A23<'Global Assumptions'!$B$7,A23*$D$10,IF(A23<$F$10,(A23-'Global Assumptions'!$B$7)*$E$10+'Global Assumptions'!$B$7*$D$10,($F$10-'Global Assumptions'!$B$7)*$E$10+'Global Assumptions'!$B$7*$D$10))*$G$10 -> 6,125 | I23: =+'Global Assumptions'!$B$19*$H$4+'Global Assumptions'!$B$20*$H$5 -> 2,326 | J23: =+'Global Assumptions'!$B$21*$H$4+'Global Assumptions'!$B$22*$H$5 -> 1,487 | K23: =IF(A23<$H$7,A23*'Global Assumptions'!$B$23/1000*$H$6*1.08*12,$H$7*'Global Assumptions'!$B$23/1000*$H$6*1.08*12) -> 104 | L23: ='Global Assumptions'!$B$24 -> 281 | M23: 0 | N23: 2,100 | O23: 125 | P23: 75 | Q23: 0
A24: 55,000 | B24: 33.53% | C24: 18,439 | D24: =IF(A24<'Global Assumptions'!$B$7,(A24-'Global Assumptions'!$B$8)*'Global Assumptions'!$B$9,('Global Assumptions'!$B$7-'Global Assumptions'!$B$8)*'Global Assumptions'!$B$9) -> 2,480 | E24: =IF(A24<'Global Assumptions'!$B$10,A24*'Global Assumptions'!$B$11*$H$3,'Global Assumptions'!$B$10*'Global Assumptions'!$B$11*$H$3) -> 1,139 | F24: =+A24*'Global Assumptions'!$B$12 -> 1,073 | G24: =IF(A24<'Global Assumptions'!$B$14,A24*'Global Assumptions'!$B$13,'Global Assumptions'!$B$14*'Global Assumptions'!$B$13) -> 198 | H24: =IF(A24<'Global Assumptions'!$B$7,A24*$D$10,IF(A24<$F$10,(A24-'Global Assumptions'!$B$7)*$E$10+'Global Assumptions'!$B$7*$D$10,($F$10-'Global Assumptions'!$B$7)*$E$10+'Global Assumptions'!$B$7*$D$10))*$G$10 -> 6,811 | I24: =+'Global Assumptions'!$B$19*$H$4+'Global Assumptions'!$B$20*$H$5 -> 2,326 | J24: =+'Global Assumptions'!$B$21*$H$4+'Global Assumptions'!$B$22*$H$5 -> 1,487 | K24: =IF(A24<$H$7,A24*'Global Assumptions'!$B$23/1000*$H$6*1.08*12,$H$7*'Global Assumptions'!$B$23/1000*$H$6*1.08*12) -> 115 | L24: ='Global Assumptions'!$B$24 -> 281 | M24: 0 | N24: 2,310 | O24: 138 | P24: 83 | Q24: 0
A25: 60,000 | B25: 32.78% | C25: 19,670 | D25: =IF(A25<'Global Assumptions'!$B$7,(A25-'Global Assumptions'!$B$8)*'Global Assumptions'!$B$9,('Global Assumptions'!$B$7-'Global Assumptions'!$B$8)*'Global Assumptions'!$B$9) -> 2,480 | E25: =IF(A25<'Global Assumptions'!$B$10,A25*'Global Assumptions'!$B$11*$H$3,'Global Assumptions'!$B$10*'Global Assumptions'!$B$11*$H$3) -> 1,139 | F25: =+A25*'Global Assumptions'!$B$12 -> 1,170 | G25: =IF(A25<'Global Assumptions'!$B$14,A25*'Global Assumptions'!$B$13,'Global Assumptions'!$B$14*'Global Assumptions'!$B$13) -> 216 | H25: =IF(A25<'Global Assumptions'!$B$7,A25*$D$10,IF(A25<$F$10,(A25-'Global Assumptions'!$B$7)*$E$10+'Global Assumptions'!$B$7*$D$10,($F$10-'Global Assumptions'!$B$7)*$E$10+'Global Assumptions'!$B$7*$D$10))*$G$10 -> 7,686 | I25: =+'Global Assumptions'!$B$19*$H$4+'Global Assumptions'!$B$20*$H$5 -> 2,326 | J25: =+'Global Assumptions'!$B$21*$H$4+'Global Assumptions'!$B$22*$H$5 -> 1,487 | K25: =IF(A25<$H$7,A25*'Global Assumptions'!$B$23/1000*$H$6*1.08*12,$H$7*'Global Assumptions'!$B$23/1000*$H$6*1.08*12) -> 125 | L25: ='Global Assumptions'!$B$24 -> 281 | M25: 0 | N25: 2,520 | O25: 150 | P25: 90 | Q25: 0
A26: 65,000 | B26: 32.16% | C26: 20,901 | D26: =IF(A26<'Global Assumptions'!$B$7,(A26-'Global Assumptions'!$B$8)*'Global Assumptions'!$B$9,('Global Assumptions'!$B$7-'Global Assumptions'!$B$8)*'Global Assumptions'!$B$9) -> 2,480 | E26: =IF(A26<'Global Assumptions'!$B$10,A26*'Global Assumptions'!$B$11*$H$3,'Global Assumptions'!$B$10*'Global Assumptions'!$B$11*$H$3) -> 1,139 | F26: =+A26*'Global Assumptions'!$B$12 -> 1,268 | G26: =IF(A26<'Global Assumptions'!$B$14,A26*'Global Assumptions'!$B$13,'Global Assumptions'!$B$14*'Global Assumptions'!$B$13) -> 234 | H26: =IF(A26<'Global Assumptions'!$B$7,A26*$D$10,IF(A26<$F$10,(A26-'Global Assumptions'!$B$7)*$E$10+'Global Assumptions'!$B$7*$D$10,($F$10-'Global Assumptions'!$B$7)*$E$10+'Global Assumptions'!$B$7*$D$10))*$G$10 -> 8,561 | I26: =+'Global Assumptions'!$B$19*$H$4+'Global Assumptions'!$B$20*$H$5 -> 2,326 | J26: =+'Global Assumptions'!$B$21*$H$4+'Global Assumptions'!$B$22*$H$5 -> 1,487 | K26: =IF(A26<$H$7,A26*'Global Assumptions'!$B$23/1000*$H$6*1.08*12,$H$7*'Global Assumptions'!$B$23/1000*$H$6*1.08*12) -> 136 | L26: ='Global Assumptions'!$B$24 -> 281 | M26: 0 | N26: 2,730 | O26: 163 | P26: 98 | Q26: 0
A27: 70,000 | B27: 31.62% | C27: 22,132 | D27: =IF(A27<'Global Assumptions'!$B$7,(A27-'Global Assumptions'!$B$8)*'Global Assumptions'!$B$9,('Global Assumptions'!$B$7-'Global Assumptions'!$B$8)*'Global Assumptions'!$B$9) -> 2,480 | E27: =IF(A27<'Global Assumptions'!$B$10,A27*'Global Assumptions'!$B$11*$H$3,'Global Assumptions'!$B$10*'Global Assumptions'!$B$11*$H$3) -> 1,139 | F27: =+A27*'Global Assumptions'!$B$12 -> 1,365 | G27: =IF(A27<'Global Assumptions'!$B$14,A27*'Global Assumptions'!$B$13,'Global Assumptions'!$B$14*'Global Assumptions'!$B$13) -> 252 | H27: =IF(A27<'Global Assumptions'!$B$7,A27*$D$10,IF(A27<$F$10,(A27-'Global Assumptions'!$B$7)*$E$10+'Global Assumptions'!$B$7*$D$10,($F$10-'Global Assumptions'!$B$7)*$E$10+'Global Assumptions'!$B$7*$D$10))*$G$10 -> 9,436 | I27: =+'Global Assumptions'!$B$19*$H$4+'Global Assumptions'!$B$20*$H$5 -> 2,326 | J27: =+'Global Assumptions'!$B$21*$H$4+'Global Assumptions'!$B$22*$H$5 -> 1,487 | K27: =IF(A27<$H$7,A27*'Global Assumptions'!$B$23/1000*$H$6*1.08*12,$H$7*'Global Assumptions'!$B$23/1000*$H$6*1.08*12) -> 146 | L27: ='Global Assumptions'!$B$24 -> 281 | M27: 0 | N27: 2,940 | O27: 175 | P27: 105 | Q27: 0
A28: 75,000 | B28: 31.15% | C28: 23,363 | D28: =IF(A28<'Global Assumptions'!$B$7,(A28-'Global Assumptions'!$B$8)*'Global Assumptions'!$B$9,('Global Assumptions'!$B$7-'Global Assumptions'!$B$8)*'Global Assumptions'!$B$9) -> 2,480 | E28: =IF(A28<'Global Assumptions'!$B$10,A28*'Global Assumptions'!$B$11*$H$3,'Global Assumptions'!$B$10*'Global Assumptions'!$B$11*$H$3) -> 1,139 | F28: =+A28*'Global Assumptions'!$B$12 -> 1,463 | G28: =IF(A28<'Global Assumptions'!$B$14,A28*'Global Assumptions'!$B$13,'Global Assumptions'!$B$14*'Global Assumptions'!$B$13) -> 270 | H28: =IF(A28<'Global Assumptions'!$B$7,A28*$D$10,IF(A28<$F$10,(A28-'Global Assumptions'!$B$7)*$E$10+'Global Assumptions'!$B$7*$D$10,($F$10-'Global Assumptions'!$B$7)*$E$10+'Global Assumptions'!$B$7*$D$10))*$G$10 -> 10,311 | I28: =+'Global Assumptions'!$B$19*$H$4+'Global Assumptions'!$B$20*$H$5 -> 2,326 | J28: =+'Global Assumptions'!$B$21*$H$4+'Global Assumptions'!$B$22*$H$5 -> 1,487 | K28: =IF(A28<$H$7,A28*'Global Assumptions'!$B$23/1000*$H$6*1.08*12,$H$7*'Global Assumptions'!$B$23/1000*$H$6*1.08*12) -> 156 | L28: ='Global Assumptions'!$B$24 -> 281 | M28: 0 | N28: 3,150 | O28: 188 | P28: 113 | Q28: 0
A29: 80,000 | B29: 30.74% | C29: 24,594 | D29: =IF(A29<'Global Assumptions'!$B$7,(A29-'Global Assumptions'!$B$8)*'Global Assumptions'!$B$9,('Global Assumptions'!$B$7-'Global Assumptions'!$B$8)*'Global Assumptions'!$B$9) -> 2,480 | E29: =IF(A29<'Global Assumptions'!$B$10,A29*'Global Assumptions'!$B$11*$H$3,'Global Assumptions'!$B$10*'Global Assumptions'!$B$11*$H$3) -> 1,139 | F29: =+A29*'Global Assumptions'!$B$12 -> 1,560 | G29: =IF(A29<'Global Assumptions'!$B$14,A29*'Global Assumptions'!$B$13,'Global Assumptions'!$B$14*'Global Assumptions'!$B$13) -> 288 | H29: =IF(A29<'Global Assumptions'!$B$7,A29*$D$10,IF(A29<$F$10,(A29-'Global Assumptions'!$B$7)*$E$10+'Global Assumptions'!$B$7*$D$10,($F$10-'Global Assumptions'!$B$7)*$E$10+'Global Assumptions'!$B$7*$D$10))*$G$10 -> 11,186 | I29: =+'Global Assumptions'!$B$19*$H$4+'Global Assumptions'!$B$20*$H$5 -> 2,326 | J29: =+'Global Assumptions'!$B$21*$H$4+'Global Assumptions'!$B$22*$H$5 -> 1,487 | K29: =IF(A29<$H$7,A29*'Global Assumptions'!$B$23/1000*$H$6*1.08*12,$H$7*'Global Assumptions'!$B$23/1000*$H$6*1.08*12) -> 167 | L29: ='Global Assumptions'!$B$24 -> 281 | M29: 0 | N29: 3,360 | O29: 200 | P29: 120 | Q29: 0
A30: 85,000 | B30: 30.38% | C30: 25,825 | D30: =IF(A30<'Global Assumptions'!$B$7,(A30-'Global Assumptions'!$B$8)*'Global Assumptions'!$B$9,('Global Assumptions'!$B$7-'Global Assumptions'!$B$8)*'Global Assumptions'!$B$9) -> 2,480 | E30: =IF(A30<'Global Assumptions'!$B$10,A30*'Global Assumptions'!$B$11*$H$3,'Global Assumptions'!$B$10*'Global Assumptions'!$B$11*$H$3) -> 1,139 | F30: =+A30*'Global Assumptions'!$B$12 -> 1,658 | G30: =IF(A30<'Global Assumptions'!$B$14,A30*'Global Assumptions'!$B$13,'Global Assumptions'!$B$14*'Global Assumptions'!$B$13) -> 306 | H30: =IF(A30<'Global Assumptions'!$B$7,A30*$D$10,IF(A30<$F$10,(A30-'Global Assumptions'!$B$7)*$E$10+'Global Assumptions'!$B$7*$D$10,($F$10-'Global Assumptions'!$B$7)*$E$10+'Global Assumptions'!$B$7*$D$10))*$G$10 -> 12,061 | I30: =+'Global Assumptions'!$B$19*$H$4+'Global Assumptions'!$B$20*$H$5 -> 2,326 | J30: =+'Global Assumptions'!$B$21*$H$4+'Global Assumptions'!$B$22*$H$5 -> 1,487 | K30: =IF(A30<$H$7,A30*'Global Assumptions'!$B$23/1000*$H$6*1.08*12,$H$7*'Global Assumptions'!$B$23/1000*$H$6*1.08*12) -> 177 | L30: ='Global Assumptions'!$B$24 -> 281 | M30: 0 | N30: 3,570 | O30: 213 | P30: 128 | Q30: 0
A31: 90,000 | B31: 30.04% | C31: 27,038 | D31: =IF(A31<'Global Assumptions'!$B$7,(A31-'Global Assumptions'!$B$8)*'Global Assumptions'!$B$9,('Global Assumptions'!$B$7-'Global Assumptions'!$B$8)*'Global Assumptions'!$B$9) -> 2,480 | E31: =IF(A31<'Global Assumptions'!$B$10,A31*'Global Assumptions'!$B$11*$H$3,'Global Assumptions'!$B$10*'Global Assumptions'!$B$11*$H$3) -> 1,139 | F31: =+A31*'Global Assumptions'!$B$12 -> 1,755 | G31: =IF(A31<'Global Assumptions'!$B$14,A31*'Global Assumptions'!$B$13,'Global Assumptions'!$B$14*'Global Assumptions'!$B$13) -> 307 | H31: =IF(A31<'Global Assumptions'!$B$7,A31*$D$10,IF(A31<$F$10,(A31-'Global Assumptions'!$B$7)*$E$10+'Global Assumptions'!$B$7*$D$10,($F$10-'Global Assumptions'!$B$7)*$E$10+'Global Assumptions'!$B$7*$D$10))*$G$10 -> 12,936 | I31: =+'Global Assumptions'!$B$19*$H$4+'Global Assumptions'!$B$20*$H$5 -> 2,326 | J31: =+'Global Assumptions'!$B$21*$H$4+'Global Assumptions'!$B$22*$H$5 -> 1,487 | K31: =IF(A31<$H$7,A31*'Global Assumptions'!$B$23/1000*$H$6*1.08*12,$H$7*'Global Assumptions'!$B$23/1000*$H$6*1.08*12) -> 188 | L31: ='Global Assumptions'!$B$24 -> 281 | M31: 0 | N31: 3,780 | O31: 225 | P31: 135 | Q31: 0
A32: 95,000 | B32: 29.74% | C32: 28,251 | D32: =IF(A32<'Global Assumptions'!$B$7,(A32-'Global Assumptions'!$B$8)*'Global Assumptions'!$B$9,('Global Assumptions'!$B$7-'Global Assumptions'!$B$8)*'Global Assumptions'!$B$9) -> 2,480 | E32: =IF(A32<'Global Assumptions'!$B$10,A32*'Global Assumptions'!$B$11*$H$3,'Global Assumptions'!$B$10*'Global Assumptions'!$B$11*$H$3) -> 1,139 | F32: =+A32*'Global Assumptions'!$B$12 -> 1,853 | G32: =IF(A32<'Global Assumptions'!$B$14,A32*'Global Assumptions'!$B$13,'Global Assumptions'!$B$14*'Global Assumptions'!$B$13) -> 307 | H32: =IF(A32<'Global Assumptions'!$B$7,A32*$D$10,IF(A32<$F$10,(A32-'Global Assumptions'!$B$7)*$E$10+'Global Assumptions'!$B$7*$D$10,($F$10-'Global Assumptions'!$B$7)*$E$10+'Global Assumptions'!$B$7*$D$10))*$G$10 -> 13,811 | I32: =+'Global Assumptions'!$B$19*$H$4+'Global Assumptions'!$B$20*$H$5 -> 2,326 | J32: =+'Global Assumptions'!$B$21*$H$4+'Global Assumptions'!$B$22*$H$5 -> 1,487 | K32: =IF(A32<$H$7,A32*'Global Assumptions'!$B$23/1000*$H$6*1.08*12,$H$7*'Global Assumptions'!$B$23/1000*$H$6*1.08*12) -> 198 | L32: ='Global Assumptions'!$B$24 -> 281 | M32: 0 | N32: 3,990 | O32: 238 | P32: 143 | Q32: 0
A33: 100,000 | B33: 29.46% | C33: 29,464 | D33: =IF(A33<'Global Assumptions'!$B$7,(A33-'Global Assumptions'!$B$8)*'Global Assumptions'!$B$9,('Global Assumptions'!$B$7-'Global Assumptions'!$B$8)*'Global Assumptions'!$B$9) -> 2,480 | E33: =IF(A33<'Global Assumptions'!$B$10,A33*'Global Assumptions'!$B$11*$H$3,'Global Assumptions'!$B$10*'Global Assumptions'!$B$11*$H$3) -> 1,139 | F33: =+A33*'Global Assumptions'!$B$12 -> 1,950 | G33: =IF(A33<'Global Assumptions'!$B$14,A33*'Global Assumptions'!$B$13,'Global Assumptions'!$B$14*'Global Assumptions'!$B$13) -> 307 | H33: =IF(A33<'Global Assumptions'!$B$7,A33*$D$10,IF(A33<$F$10,(A33-'Global Assumptions'!$B$7)*$E$10+'Global Assumptions'!$B$7*$D$10,($F$10-'Global Assumptions'!$B$7)*$E$10+'Global Assumptions'!$B$7*$D$10))*$G$10 -> 14,686 | I33: =+'Global Assumptions'!$B$19*$H$4+'Global Assumptions'!$B$20*$H$5 -> 2,326 | J33: =+'Global Assumptions'!$B$21*$H$4+'Global Assumptions'!$B$22*$H$5 -> 1,487 | K33: =IF(A33<$H$7,A33*'Global Assumptions'!$B$23/1000*$H$6*1.08*12,$H$7*'Global Assumptions'!$B$23/1000*$H$6*1.08*12) -> 209 | L33: ='Global Assumptions'!$B$24 -> 281 | M33: 0 | N33: 4,200 | O33: 250 | P33: 150 | Q33: 0
A34: 105,000 | B34: 29.21% | C34: 30,667 | D34: =IF(A34<'Global Assumptions'!$B$7,(A34-'Global Assumptions'!$B$8)*'Global Assumptions'!$B$9,('Global Assumptions'!$B$7-'Global Assumptions'!$B$8)*'Global Assumptions'!$B$9) -> 2,480 | E34: =IF(A34<'Global Assumptions'!$B$10,A34*'Global Assumptions'!$B$11*$H$3,'Global Assumptions'!$B$10*'Global Assumptions'!$B$11*$H$3) -> 1,139 | F34: =+A34*'Global Assumptions'!$B$12 -> 2,048 | G34: =IF(A34<'Global Assumptions'!$B$14,A34*'Global Assumptions'!$B$13,'Global Assumptions'!$B$14*'Global Assumptions'!$B$13) -> 307 | H34: =IF(A34<'Global Assumptions'!$B$7,A34*$D$10,IF(A34<$F$10,(A34-'Global Assumptions'!$B$7)*$E$10+'Global Assumptions'!$B$7*$D$10,($F$10-'Global Assumptions'!$B$7)*$E$10+'Global Assumptions'!$B$7*$D$10))*$G$10 -> 15,561 | I34: =+'Global Assumptions'!$B$19*$H$4+'Global Assumptions'!$B$20*$H$5 -> 2,326 | J34: =+'Global Assumptions'!$B$21*$H$4+'Global Assumptions'!$B$22*$H$5 -> 1,487 | K34: =IF(A34<$H$7,A34*'Global Assumptions'!$B$23/1000*$H$6*1.08*12,$H$7*'Global Assumptions'!$B$23/1000*$H$6*1.08*12) -> 209 | L34: ='Global Assumptions'!$B$24 -> 281 | M34: 0 | N34: 4,410 | O34: 263 | P34: 158 | Q34: 0
A35: 110,000 | B35: 28.97% | C35: 31,869 | D35: =IF(A35<'Global Assumptions'!$B$7,(A35-'Global Assumptions'!$B$8)*'Global Assumptions'!$B$9,('Global Assumptions'!$B$7-'Global Assumptions'!$B$8)*'Global Assumptions'!$B$9) -> 2,480 | E35: =IF(A35<'Global Assumptions'!$B$10,A35*'Global Assumptions'!$B$11*$H$3,'Global Assumptions'!$B$10*'Global Assumptions'!$B$11*$H$3) -> 1,139 | F35: =+A35*'Global Assumptions'!$B$12 -> 2,145 | G35: =IF(A35<'Global Assumptions'!$B$14,A35*'Global Assumptions'!$B$13,'Global Assumptions'!$B$14*'Global Assumptions'!$B$13) -> 307 | H35: =IF(A35<'Global Assumptions'!$B$7,A35*$D$10,IF(A35<$F$10,(A35-'Global Assumptions'!$B$7)*$E$10+'Global Assumptions'!$B$7*$D$10,($F$10-'Global Assumptions'!$B$7)*$E$10+'Global Assumptions'!$B$7*$D$10))*$G$10 -> 16,436 | I35: =+'Global Assumptions'!$B$19*$H$4+'Global Assumptions'!$B$20*$H$5 -> 2,326 | J35: =+'Global Assumptions'!$B$21*$H$4+'Global Assumptions'!$B$22*$H$5 -> 1,487 | K35: =IF(A35<$H$7,A35*'Global Assumptions'!$B$23/1000*$H$6*1.08*12,$H$7*'Global Assumptions'!$B$23/1000*$H$6*1.08*12) -> 209 | L35: ='Global Assumptions'!$B$24 -> 281 | M35: 0 | N35: 4,620 | O35: 275 | P35: 165 | Q35: 0
A36: 115,000 | B36: 28.76% | C36: 33,072 | D36: =IF(A36<'Global Assumptions'!$B$7,(A36-'Global Assumptions'!$B$8)*'Global Assumptions'!$B$9,('Global Assumptions'!$B$7-'Global Assumptions'!$B$8)*'Global Assumptions'!$B$9) -> 2,480 | E36: =IF(A36<'Global Assumptions'!$B$10,A36*'Global Assumptions'!$B$11*$H$3,'Global Assumptions'!$B$10*'Global Assumptions'!$B$11*$H$3) -> 1,139 | F36: =+A36*'Global Assumptions'!$B$12 -> 2,243 | G36: =IF(A36<'Global Assumptions'!$B$14,A36*'Global Assumptions'!$B$13,'Global Assumptions'!$B$14*'Global Assumptions'!$B$13) -> 307 | H36: =IF(A36<'Global Assumptions'!$B$7,A36*$D$10,IF(A36<$F$10,(A36-'Global Assumptions'!$B$7)*$E$10+'Global Assumptions'!$B$7*$D$10,($F$10-'Global Assumptions'!$B$7)*$E$10+'Global Assumptions'!$B$7*$D$10))*$G$10 -> 17,311 | I36: =+'Global Assumptions'!$B$19*$H$4+'Global Assumptions'!$B$20*$H$5 -> 2,326 | J36: =+'Global Assumptions'!$B$21*$H$4+'Global Assumptions'!$B$22*$H$5 -> 1,487 | K36: =IF(A36<$H$7,A36*'Global Assumptions'!$B$23/1000*$H$6*1.08*12,$H$7*'Global Assumptions'!$B$23/1000*$H$6*1.08*12) -> 209 | L36: ='Global Assumptions'!$B$24 -> 281 | M36: 0 | N36: 4,830 | O36: 288 | P36: 173 | Q36: 0
A37: 120,000 | B37: 28.56% | C37: 34,274 | D37: =IF(A37<'Global Assumptions'!$B$7,(A37-'Global Assumptions'!$B$8)*'Global Assumptions'!$B$9,('Global Assumptions'!$B$7-'Global Assumptions'!$B$8)*'Global Assumptions'!$B$9) -> 2,480 | E37: =IF(A37<'Global Assumptions'!$B$10,A37*'Global Assumptions'!$B$11*$H$3,'Global Assumptions'!$B$10*'Global Assumptions'!$B$11*$H$3) -> 1,139 | F37: =+A37*'Global Assumptions'!$B$12 -> 2,340 | G37: =IF(A37<'Global Assumptions'!$B$14,A37*'Global Assumptions'!$B$13,'Global Assumptions'!$B$14*'Global Assumptions'!$B$13) -> 307 | H37: =IF(A37<'Global Assumptions'!$B$7,A37*$D$10,IF(A37<$F$10,(A37-'Global Assumptions'!$B$7)*$E$10+'Global Assumptions'!$B$7*$D$10,($F$10-'Global Assumptions'!$B$7)*$E$10+'Global Assumptions'!$B$7*$D$10))*$G$10 -> 18,186 | I37: =+'Global Assumptions'!$B$19*$H$4+'Global Assumptions'!$B$20*$H$5 -> 2,326 | J37: =+'Global Assumptions'!$B$21*$H$4+'Global Assumptions'!$B$22*$H$5 -> 1,487 | K37: =IF(A37<$H$7,A37*'Global Assumptions'!$B$23/1000*$H$6*1.08*12,$H$7*'Global Assumptions'!$B$23/1000*$H$6*1.08*12) -> 209 | L37: ='Global Assumptions'!$B$24 -> 281 | M37: 0 | N37: =+$A37*N$10 -> 5,040 | O37: 300 | P37: 180 | Q37: 0
A38: 125,000 | B38: 28.38% | C38: 35,477 | D38: =IF(A38<'Global Assumptions'!$B$7,(A38-'Global Assumptions'!$B$8)*'Global Assumptions'!$B$9,('Global Assumptions'!$B$7-'Global Assumptions'!$B$8)*'Global Assumptions'!$B$9) -> 2,480 | E38: =IF(A38<'Global Assumptions'!$B$10,A38*'Global Assumptions'!$B$11*$H$3,'Global Assumptions'!$B$10*'Global Assumptions'!$B$11*$H$3) -> 1,139 | F38: =+A38*'Global Assumptions'!$B$12 -> 2,438 | G38: =IF(A38<'Global Assumptions'!$B$14,A38*'Global Assumptions'!$B$13,'Global Assumptions'!$B$14*'Global Assumptions'!$B$13) -> 307 | H38: =IF(A38<'Global Assumptions'!$B$7,A38*$D$10,IF(A38<$F$10,(A38-'Global Assumptions'!$B$7)*$E$10+'Global Assumptions'!$B$7*$D$10,($F$10-'Global Assumptions'!$B$7)*$E$10+'Global Assumptions'!$B$7*$D$10))*$G$10 -> 19,061 | I38: =+'Global Assumptions'!$B$19*$H$4+'Global Assumptions'!$B$20*$H$5 -> 2,326 | J38: =+'Global Assumptions'!$B$21*$H$4+'Global Assumptions'!$B$22*$H$5 -> 1,487 | K38: =IF(A38<$H$7,A38*'Global Assumptions'!$B$23/1000*$H$6*1.08*12,$H$7*'Global Assumptions'!$B$23/1000*$H$6*1.08*12) -> 209 | L38: ='Global Assumptions'!$B$24 -> 281 | M38: 0 | N38: 5,250 | O38: 313 | P38: 188 | Q38: 0
A39: 130,000 | B39: 28.21% | C39: 36,679 | D39: =IF(A39<'Global Assumptions'!$B$7,(A39-'Global Assumptions'!$B$8)*'Global Assumptions'!$B$9,('Global Assumptions'!$B$7-'Global Assumptions'!$B$8)*'Global Assumptions'!$B$9) -> 2,480 | E39: =IF(A39<'Global Assumptions'!$B$10,A39*'Global Assumptions'!$B$11*$H$3,'Global Assumptions'!$B$10*'Global Assumptions'!$B$11*$H$3) -> 1,139 | F39: =+A39*'Global Assumptions'!$B$12 -> 2,535 | G39: =IF(A39<'Global Assumptions'!$B$14,A39*'Global Assumptions'!$B$13,'Global Assumptions'!$B$14*'Global Assumptions'!$B$13) -> 307 | H39: =IF(A39<'Global Assumptions'!$B$7,A39*$D$10,IF(A39<$F$10,(A39-'Global Assumptions'!$B$7)*$E$10+'Global Assumptions'!$B$7*$D$10,($F$10-'Global Assumptions'!$B$7)*$E$10+'Global Assumptions'!$B$7*$D$10))*$G$10 -> 19,936 | I39: =+'Global Assumptions'!$B$19*$H$4+'Global Assumptions'!$B$20*$H$5 -> 2,326 | J39: =+'Global Assumptions'!$B$21*$H$4+'Global Assumptions'!$B$22*$H$5 -> 1,487 | K39: =IF(A39<$H$7,A39*'Global Assumptions'!$B$23/1000*$H$6*1.08*12,$H$7*'Global Assumptions'!$B$23/1000*$H$6*1.08*12) -> 209 | L39: ='Global Assumptions'!$B$24 -> 281 | M39: 0 | N39: 5,460 | O39: 325 | P39: 195 | Q39: 0
A40: 135,000 | B40: 28.06% | C40: 37,882 | D40: =IF(A40<'Global Assumptions'!$B$7,(A40-'Global Assumptions'!$B$8)*'Global Assumptions'!$B$9,('Global Assumptions'!$B$7-'Global Assumptions'!$B$8)*'Global Assumptions'!$B$9) -> 2,480 | E40: =IF(A40<'Global Assumptions'!$B$10,A40*'Global Assumptions'!$B$11*$H$3,'Global Assumptions'!$B$10*'Global Assumptions'!$B$11*$H$3) -> 1,139 | F40: =+A40*'Global Assumptions'!$B$12 -> 2,633 | G40: =IF(A40<'Global Assumptions'!$B$14,A40*'Global Assumptions'!$B$13,'Global Assumptions'!$B$14*'Global Assumptions'!$B$13) -> 307 | H40: =IF(A40<'Global Assumptions'!$B$7,A40*$D$10,IF(A40<$F$10,(A40-'Global Assumptions'!$B$7)*$E$10+'Global Assumptions'!$B$7*$D$10,($F$10-'Global Assumptions'!$B$7)*$E$10+'Global Assumptions'!$B$7*$D$10))*$G$10 -> 20,811 | I40: =+'Global Assumptions'!$B$19*$H$4+'Global Assumptions'!$B$20*$H$5 -> 2,326 | J40: =+'Global Assumptions'!$B$21*$H$4+'Global Assumptions'!$B$22*$H$5 -> 1,487 | K40: =IF(A40<$H$7,A40*'Global Assumptions'!$B$23/1000*$H$6*1.08*12,$H$7*'Global Assumptions'!$B$23/1000*$H$6*1.08*12) -> 209 | L40: ='Global Assumptions'!$B$24 -> 281 | M40: 0 | N40: 5,670 | O40: 338 | P40: 203 | Q40: 0
A41: 140,000 | B41: 27.92% | C41: 39,084 | D41: =IF(A41<'Global Assumptions'!$B$7,(A41-'Global Assumptions'!$B$8)*'Global Assumptions'!$B$9,('Global Assumptions'!$B$7-'Global Assumptions'!$B$8)*'Global Assumptions'!$B$9) -> 2,480 | E41: =IF(A41<'Global Assumptions'!$B$10,A41*'Global Assumptions'!$B$11*$H$3,'Global Assumptions'!$B$10*'Global Assumptions'!$B$11*$H$3) -> 1,139 | F41: =+A41*'Global Assumptions'!$B$12 -> 2,730 | G41: =IF(A41<'Global Assumptions'!$B$14,A41*'Global Assumptions'!$B$13,'Global Assumptions'!$B$14*'Global Assumptions'!$B$13) -> 307 | H41: =IF(A41<'Global Assumptions'!$B$7,A41*$D$10,IF(A41<$F$10,(A41-'Global Assumptions'!$B$7)*$E$10+'Global Assumptions'!$B$7*$D$10,($F$10-'Global Assumptions'!$B$7)*$E$10+'Global Assumptions'!$B$7*$D$10))*$G$10 -> 21,686 | I41: =+'Global Assumptions'!$B$19*$H$4+'Global Assumptions'!$B$20*$H$5 -> 2,326 | J41: =+'Global Assumptions'!$B$21*$H$4+'Global Assumptions'!$B$22*$H$5 -> 1,487 | K41: =IF(A41<$H$7,A41*'Global Assumptions'!$B$23/1000*$H$6*1.08*12,$H$7*'Global Assumptions'!$B$23/1000*$H$6*1.08*12) -> 209 | L41: ='Global Assumptions'!$B$24 -> 281 | M41: 0 | N41: 5,880 | O41: 350 | P41: 210 | Q41: 0
A42: 145,000 | B42: 27.78% | C42: 40,287 | D42: =IF(A42<'Global Assumptions'!$B$7,(A42-'Global Assumptions'!$B$8)*'Global Assumptions'!$B$9,('Global Assumptions'!$B$7-'Global Assumptions'!$B$8)*'Global Assumptions'!$B$9) -> 2,480 | E42: =IF(A42<'Global Assumptions'!$B$10,A42*'Global Assumptions'!$B$11*$H$3,'Global Assumptions'!$B$10*'Global Assumptions'!$B$11*$H$3) -> 1,139 | F42: =+A42*'Global Assumptions'!$B$12 -> 2,828 | G42: =IF(A42<'Global Assumptions'!$B$14,A42*'Global Assumptions'!$B$13,'Global Assumptions'!$B$14*'Global Assumptions'!$B$13) -> 307 | H42: =IF(A42<'Global Assumptions'!$B$7,A42*$D$10,IF(A42<$F$10,(A42-'Global Assumptions'!$B$7)*$E$10+'Global Assumptions'!$B$7*$D$10,($F$10-'Global Assumptions'!$B$7)*$E$10+'Global Assumptions'!$B$7*$D$10))*$G$10 -> 22,561 | I42: =+'Global Assumptions'!$B$19*$H$4+'Global Assumptions'!$B$20*$H$5 -> 2,326 | J42: =+'Global Assumptions'!$B$21*$H$4+'Global Assumptions'!$B$22*$H$5 -> 1,487 | K42: =IF(A42<$H$7,A42*'Global Assumptions'!$B$23/1000*$H$6*1.08*12,$H$7*'Global Assumptions'!$B$23/1000*$H$6*1.08*12) -> 209 | L42: ='Global Assumptions'!$B$24 -> 281 | M42: 0 | N42: 6,090 | O42: 363 | P42: 218 | Q42: 0
A43: 150,000 | B43: 27.66% | C43: 41,489 | D43: =IF(A43<'Global Assumptions'!$B$7,(A43-'Global Assumptions'!$B$8)*'Global Assumptions'!$B$9,('Global Assumptions'!$B$7-'Global Assumptions'!$B$8)*'Global Assumptions'!$B$9) -> 2,480 | E43: =IF(A43<'Global Assumptions'!$B$10,A43*'Global Assumptions'!$B$11*$H$3,'Global Assumptions'!$B$10*'Global Assumptions'!$B$11*$H$3) -> 1,139 | F43: =+A43*'Global Assumptions'!$B$12 -> 2,925 | G43: =IF(A43<'Global Assumptions'!$B$14,A43*'Global Assumptions'!$B$13,'Global Assumptions'!$B$14*'Global Assumptions'!$B$13) -> 307 | H43: =IF(A43<'Global Assumptions'!$B$7,A43*$D$10,IF(A43<$F$10,(A43-'Global Assumptions'!$B$7)*$E$10+'Global Assumptions'!$B$7*$D$10,($F$10-'Global Assumptions'!$B$7)*$E$10+'Global Assumptions'!$B$7*$D$10))*$G$10 -> 23,436 | I43: =+'Global Assumptions'!$B$19*$H$4+'Global Assumptions'!$B$20*$H$5 -> 2,326 | J43: =+'Global Assumptions'!$B$21*$H$4+'Global Assumptions'!$B$22*$H$5 -> 1,487 | K43: =IF(A43<$H$7,A43*'Global Assumptions'!$B$23/1000*$H$6*1.08*12,$H$7*'Global Assumptions'!$B$23/1000*$H$6*1.08*12) -> 209 | L43: ='Global Assumptions'!$B$24 -> 281 | M43: 0 | N43: 6,300 | O43: 375 | P43: 225 | Q43: 0
A44: 155,000 | B44: 27.54% | C44: 42,692 | D44: =IF(A44<'Global Assumptions'!$B$7,(A44-'Global Assumptions'!$B$8)*'Global Assumptions'!$B$9,('Global Assumptions'!$B$7-'Global Assumptions'!$B$8)*'Global Assumptions'!$B$9) -> 2,480 | E44: =IF(A44<'Global Assumptions'!$B$10,A44*'Global Assumptions'!$B$11*$H$3,'Global Assumptions'!$B$10*'Global Assumptions'!$B$11*$H$3) -> 1,139 | F44: =+A44*'Global Assumptions'!$B$12 -> 3,023 | G44: =IF(A44<'Global Assumptions'!$B$14,A44*'Global Assumptions'!$B$13,'Global Assumptions'!$B$14*'Global Assumptions'!$B$13) -> 307 | H44: =IF(A44<'Global Assumptions'!$B$7,A44*$D$10,IF(A44<$F$10,(A44-'Global Assumptions'!$B$7)*$E$10+'Global Assumptions'!$B$7*$D$10,($F$10-'Global Assumptions'!$B$7)*$E$10+'Global Assumptions'!$B$7*$D$10))*$G$10 -> 24,311 | I44: =+'Global Assumptions'!$B$19*$H$4+'Global Assumptions'!$B$20*$H$5 -> 2,326 | J44: =+'Global Assumptions'!$B$21*$H$4+'Global Assumptions'!$B$22*$H$5 -> 1,487 | K44: =IF(A44<$H$7,A44*'Global Assumptions'!$B$23/1000*$H$6*1.08*12,$H$7*'Global Assumptions'!$B$23/1000*$H$6*1.08*12) -> 209 | L44: ='Global Assumptions'!$B$24 -> 281 | M44: 0 | N44: 6,510 | O44: 388 | P44: 233 | Q44: 0
A45: 160,000 | B45: 27.11% | C45: 43,374 | D45: =IF(A45<'Global Assumptions'!$B$7,(A45-'Global Assumptions'!$B$8)*'Global Assumptions'!$B$9,('Global Assumptions'!$B$7-'Global Assumptions'!$B$8)*'Global Assumptions'!$B$9) -> 2,480 | E45: =IF(A45<'Global Assumptions'!$B$10,A45*'Global Assumptions'!$B$11*$H$3,'Global Assumptions'!$B$10*'Global Assumptions'!$B$11*$H$3) -> 1,139 | F45: =+A45*'Global Assumptions'!$B$12 -> 3,120 | G45: =IF(A45<'Global Assumptions'!$B$14,A45*'Global Assumptions'!$B$13,'Global Assumptions'!$B$14*'Global Assumptions'!$B$13) -> 307 | H45: =IF(A45<'Global Assumptions'!$B$7,A45*$D$10,IF(A45<$F$10,(A45-'Global Assumptions'!$B$7)*$E$10+'Global Assumptions'!$B$7*$D$10,($F$10-'Global Assumptions'!$B$7)*$E$10+'Global Assumptions'!$B$7*$D$10))*$G$10 -> 24,665 | I45: =+'Global Assumptions'!$B$19*$H$4+'Global Assumptions'!$B$20*$H$5 -> 2,326 | J45: =+'Global Assumptions'!$B$21*$H$4+'Global Assumptions'!$B$22*$H$5 -> 1,487 | K45: =IF(A45<$H$7,A45*'Global Assumptions'!$B$23/1000*$H$6*1.08*12,$H$7*'Global Assumptions'!$B$23/1000*$H$6*1.08*12) -> 209 | L45: ='Global Assumptions'!$B$24 -> 281 | M45: 0 | N45: 6,720 | O45: 400 | P45: 240 | Q45: 0
A46: 165,000 | B46: 26.49% | C46: 43,701 | D46: =IF(A46<'Global Assumptions'!$B$7,(A46-'Global Assumptions'!$B$8)*'Global Assumptions'!$B$9,('Global Assumptions'!$B$7-'Global Assumptions'!$B$8)*'Global Assumptions'!$B$9) -> 2,480 | E46: =IF(A46<'Global Assumptions'!$B$10,A46*'Global Assumptions'!$B$11*$H$3,'Global Assumptions'!$B$10*'Global Assumptions'!$B$11*$H$3) -> 1,139 | F46: =+A46*'Global Assumptions'!$B$12 -> 3,218 | G46: =IF(A46<'Global Assumptions'!$B$14,A46*'Global Assumptions'!$B$13,'Global Assumptions'!$B$14*'Global Assumptions'!$B$13) -> 307 | H46: =IF(A46<'Global Assumptions'!$B$7,A46*$D$10,IF(A46<$F$10,(A46-'Global Assumptions'!$B$7)*$E$10+'Global Assumptions'!$B$7*$D$10,($F$10-'Global Assumptions'!$B$7)*$E$10+'Global Assumptions'!$B$7*$D$10))*$G$10 -> 24,665 | I46: =+'Global Assumptions'!$B$19*$H$4+'Global Assumptions'!$B$20*$H$5 -> 2,326 | J46: =+'Global Assumptions'!$B$21*$H$4+'Global Assumptions'!$B$22*$H$5 -> 1,487 | K46: =IF(A46<$H$7,A46*'Global Assumptions'!$B$23/1000*$H$6*1.08*12,$H$7*'Global Assumptions'!$B$23/1000*$H$6*1.08*12) -> 209 | L46: ='Global Assumptions'!$B$24 -> 281 | M46: 0 | N46: 6,930 | O46: 413 | P46: 248 | Q46: 0
A47: 170,000 | B47: 25.90% | C47: 44,029 | D47: =IF(A47<'Global Assumptions'!$B$7,(A47-'Global Assumptions'!$B$8)*'Global Assumptions'!$B$9,('Global Assumptions'!$B$7-'Global Assumptions'!$B$8)*'Global Assumptions'!$B$9) -> 2,480 | E47: =IF(A47<'Global Assumptions'!$B$10,A47*'Global Assumptions'!$B$11*$H$3,'Global Assumptions'!$B$10*'Global Assumptions'!$B$11*$H$3) -> 1,139 | F47: =+A47*'Global Assumptions'!$B$12 -> 3,315 | G47: =IF(A47<'Global Assumptions'!$B$14,A47*'Global Assumptions'!$B$13,'Global Assumptions'!$B$14*'Global Assumptions'!$B$13) -> 307 | H47: =IF(A47<'Global Assumptions'!$B$7,A47*$D$10,IF(A47<$F$10,(A47-'Global Assumptions'!$B$7)*$E$10+'Global Assumptions'!$B$7*$D$10,($F$10-'Global Assumptions'!$B$7)*$E$10+'Global Assumptions'!$B$7*$D$10))*$G$10 -> 24,665 | I47: =+'Global Assumptions'!$B$19*$H$4+'Global Assumptions'!$B$20*$H$5 -> 2,326 | J47: =+'Global Assumptions'!$B$21*$H$4+'Global Assumptions'!$B$22*$H$5 -> 1,487 | K47: =IF(A47<$H$7,A47*'Global Assumptions'!$B$23/1000*$H$6*1.08*12,$H$7*'Global Assumptions'!$B$23/1000*$H$6*1.08*12) -> 209 | L47: ='Global Assumptions'!$B$24 -> 281 | M47: 0 | N47: 7,140 | O47: 425 | P47: 255 | Q47: 0
A48: 175,000 | B48: 25.35% | C48: 44,356 | D48: =IF(A48<'Global Assumptions'!$B$7,(A48-'Global Assumptions'!$B$8)*'Global Assumptions'!$B$9,('Global Assumptions'!$B$7-'Global Assumptions'!$B$8)*'Global Assumptions'!$B$9) -> 2,480 | E48: =IF(A48<'Global Assumptions'!$B$10,A48*'Global Assumptions'!$B$11*$H$3,'Global Assumptions'!$B$10*'Global Assumptions'!$B$11*$H$3) -> 1,139 | F48: =+A48*'Global Assumptions'!$B$12 -> 3,413 | G48: =IF(A48<'Global Assumptions'!$B$14,A48*'Global Assumptions'!$B$13,'Global Assumptions'!$B$14*'Global Assumptions'!$B$13) -> 307 | H48: =IF(A48<'Global Assumptions'!$B$7,A48*$D$10,IF(A48<$F$10,(A48-'Global Assumptions'!$B$7)*$E$10+'Global Assumptions'!$B$7*$D$10,($F$10-'Global Assumptions'!$B$7)*$E$10+'Global Assumptions'!$B$7*$D$10))*$G$10 -> 24,665 | I48: =+'Global Assumptions'!$B$19*$H$4+'Global Assumptions'!$B$20*$H$5 -> 2,326 | J48: =+'Global Assumptions'!$B$21*$H$4+'Global Assumptions'!$B$22*$H$5 -> 1,487 | K48: =IF(A48<$H$7,A48*'Global Assumptions'!$B$23/1000*$H$6*1.08*12,$H$7*'Global Assumptions'!$B$23/1000*$H$6*1.08*12) -> 209 | L48: ='Global Assumptions'!$B$24 -> 281 | M48: 0 | N48: 7,350 | O48: 438 | P48: 263 | Q48: 0
A49: 180,000 | B49: 24.82% | C49: 44,684 | D49: =IF(A49<'Global Assumptions'!$B$7,(A49-'Global Assumptions'!$B$8)*'Global Assumptions'!$B$9,('Global Assumptions'!$B$7-'Global Assumptions'!$B$8)*'Global Assumptions'!$B$9) -> 2,480 | E49: =IF(A49<'Global Assumptions'!$B$10,A49*'Global Assumptions'!$B$11*$H$3,'Global Assumptions'!$B$10*'Global Assumptions'!$B$11*$H$3) -> 1,139 | F49: =+A49*'Global Assumptions'!$B$12 -> 3,510 | G49: =IF(A49<'Global Assumptions'!$B$14,A49*'Global Assumptions'!$B$13,'Global Assumptions'!$B$14*'Global Assumptions'!$B$13) -> 307 | H49: =IF(A49<'Global Assumptions'!$B$7,A49*$D$10,IF(A49<$F$10,(A49-'Global Assumptions'!$B$7)*$E$10+'Global Assumptions'!$B$7*$D$10,($F$10-'Global Assumptions'!$B$7)*$E$10+'Global Assumptions'!$B$7*$D$10))*$G$10 -> 24,665 | I49: =+'Global Assumptions'!$B$19*$H$4+'Global Assumptions'!$B$20*$H$5 -> 2,326 | J49: =+'Global Assumptions'!$B$21*$H$4+'Global Assumptions'!$B$22*$H$5 -> 1,487 | K49: =IF(A49<$H$7,A49*'Global Assumptions'!$B$23/1000*$H$6*1.08*12,$H$7*'Global Assumptions'!$B$23/1000*$H$6*1.08*12) -> 209 | L49: ='Global Assumptions'!$B$24 -> 281 | M49: 0 | N49: 7,560 | O49: 450 | P49: 270 | Q49: 0
A50: 185,000 | B50: 24.33% | C50: 45,011 | D50: =IF(A50<'Global Assumptions'!$B$7,(A50-'Global Assumptions'!$B$8)*'Global Assumptions'!$B$9,('Global Assumptions'!$B$7-'Global Assumptions'!$B$8)*'Global Assumptions'!$B$9) -> 2,480 | E50: =IF(A50<'Global Assumptions'!$B$10,A50*'Global Assumptions'!$B$11*$H$3,'Global Assumptions'!$B$10*'Global Assumptions'!$B$11*$H$3) -> 1,139 | F50: =+A50*'Global Assumptions'!$B$12 -> 3,608 | G50: =IF(A50<'Global Assumptions'!$B$14,A50*'Global Assumptions'!$B$13,'Global Assumptions'!$B$14*'Global Assumptions'!$B$13) -> 307 | H50: =IF(A50<'Global Assumptions'!$B$7,A50*$D$10,IF(A50<$F$10,(A50-'Global Assumptions'!$B$7)*$E$10+'Global Assumptions'!$B$7*$D$10,($F$10-'Global Assumptions'!$B$7)*$E$10+'Global Assumptions'!$B$7*$D$10))*$G$10 -> 24,665 | I50: =+'Global Assumptions'!$B$19*$H$4+'Global Assumptions'!$B$20*$H$5 -> 2,326 | J50: =+'Global Assumptions'!$B$21*$H$4+'Global Assumptions'!$B$22*$H$5 -> 1,487 | K50: =IF(A50<$H$7,A50*'Global Assumptions'!$B$23/1000*$H$6*1.08*12,$H$7*'Global Assumptions'!$B$23/1000*$H$6*1.08*12) -> 209 | L50: ='Global Assumptions'!$B$24 -> 281 | M50: 0 | N50: 7,770 | O50: 463 | P50: 278 | Q50: 0
A51: 190,000 | B51: 23.86% | C51: 45,339 | D51: =IF(A51<'Global Assumptions'!$B$7,(A51-'Global Assumptions'!$B$8)*'Global Assumptions'!$B$9,('Global Assumptions'!$B$7-'Global Assumptions'!$B$8)*'Global Assumptions'!$B$9) -> 2,480 | E51: =IF(A51<'Global Assumptions'!$B$10,A51*'Global Assumptions'!$B$11*$H$3,'Global Assumptions'!$B$10*'Global Assumptions'!$B$11*$H$3) -> 1,139 | F51: =+A51*'Global Assumptions'!$B$12 -> 3,705 | G51: =IF(A51<'Global Assumptions'!$B$14,A51*'Global Assumptions'!$B$13,'Global Assumptions'!$B$14*'Global Assumptions'!$B$13) -> 307 | H51: =IF(A51<'Global Assumptions'!$B$7,A51*$D$10,IF(A51<$F$10,(A51-'Global Assumptions'!$B$7)*$E$10+'Global Assumptions'!$B$7*$D$10,($F$10-'Global Assumptions'!$B$7)*$E$10+'Global Assumptions'!$B$7*$D$10))*$G$10 -> 24,665 | I51: =+'Global Assumptions'!$B$19*$H$4+'Global Assumptions'!$B$20*$H$5 -> 2,326 | J51: =+'Global Assumptions'!$B$21*$H$4+'Global Assumptions'!$B$22*$H$5 -> 1,487 | K51: =IF(A51<$H$7,A51*'Global Assumptions'!$B$23/1000*$H$6*1.08*12,$H$7*'Global Assumptions'!$B$23/1000*$H$6*1.08*12) -> 209 | L51: ='Global Assumptions'!$B$24 -> 281 | M51: 0 | N51: 7,980 | O51: 475 | P51: 285 | Q51: 0
A52: 195,000 | B52: 23.42% | C52: 45,666 | D52: =IF(A52<'Global Assumptions'!$B$7,(A52-'Global Assumptions'!$B$8)*'Global Assumptions'!$B$9,('Global Assumptions'!$B$7-'Global Assumptions'!$B$8)*'Global Assumptions'!$B$9) -> 2,480 | E52: =IF(A52<'Global Assumptions'!$B$10,A52*'Global Assumptions'!$B$11*$H$3,'Global Assumptions'!$B$10*'Global Assumptions'!$B$11*$H$3) -> 1,139 | F52: =+A52*'Global Assumptions'!$B$12 -> 3,803 | G52: =IF(A52<'Global Assumptions'!$B$14,A52*'Global Assumptions'!$B$13,'Global Assumptions'!$B$14*'Global Assumptions'!$B$13) -> 307 | H52: =IF(A52<'Global Assumptions'!$B$7,A52*$D$10,IF(A52<$F$10,(A52-'Global Assumptions'!$B$7)*$E$10+'Global Assumptions'!$B$7*$D$10,($F$10-'Global Assumptions'!$B$7)*$E$10+'Global Assumptions'!$B$7*$D$10))*$G$10 -> 24,665 | I52: =+'Global Assumptions'!$B$19*$H$4+'Global Assumptions'!$B$20*$H$5 -> 2,326 | J52: =+'Global Assumptions'!$B$21*$H$4+'Global Assumptions'!$B$22*$H$5 -> 1,487 | K52: =IF(A52<$H$7,A52*'Global Assumptions'!$B$23/1000*$H$6*1.08*12,$H$7*'Global Assumptions'!$B$23/1000*$H$6*1.08*12) -> 209 | L52: ='Global Assumptions'!$B$24 -> 281 | M52: 0 | N52: 8,190 | O52: 488 | P52: 293 | Q52: 0
A53: 200,000 | B53: 23.00% | C53: 45,994 | D53: =IF(A53<'Global Assumptions'!$B$7,(A53-'Global Assumptions'!$B$8)*'Global Assumptions'!$B$9,('Global Assumptions'!$B$7-'Global Assumptions'!$B$8)*'Global Assumptions'!$B$9) -> 2,480 | E53: =IF(A53<'Global Assumptions'!$B$10,A53*'Global Assumptions'!$B$11*$H$3,'Global Assumptions'!$B$10*'Global Assumptions'!$B$11*$H$3) -> 1,139 | F53: =+A53*'Global Assumptions'!$B$12 -> 3,900 | G53: =IF(A53<'Global Assumptions'!$B$14,A53*'Global Assumptions'!$B$13,'Global Assumptions'!$B$14*'Global Assumptions'!$B$13) -> 307 | H53: =IF(A53<'Global Assumptions'!$B$7,A53*$D$10,IF(A53<$F$10,(A53-'Global Assumptions'!$B$7)*$E$10+'Global Assumptions'!$B$7*$D$10,($F$10-'Global Assumptions'!$B$7)*$E$10+'Global Assumptions'!$B$7*$D$10))*$G$10 -> 24,665 | I53: =+'Global Assumptions'!$B$19*$H$4+'Global Assumptions'!$B$20*$H$5 -> 2,326 | J53: =+'Global Assumptions'!$B$21*$H$4+'Global Assumptions'!$B$22*$H$5 -> 1,487 | K53: =IF(A53<$H$7,A53*'Global Assumptions'!$B$23/1000*$H$6*1.08*12,$H$7*'Global Assumptions'!$B$23/1000*$H$6*1.08*12) -> 209 | L53: ='Global Assumptions'!$B$24 -> 281 | M53: 0 | N53: 8,400 | O53: 500 | P53: 300 | Q53: 0
A55: =+'Global Assumptions'!C4 -> FY17 Budget
A56: 20,000 | B56: =+C56/A56 -> 46.06% | C56: =SUM(D56:Q56) -> 9,211 | D56: =IF(A56<'Global Assumptions'!$C$7,(A56-'Global Assumptions'!$C$8)*'Global Assumptions'!$C$9,('Global Assumptions'!$C$7-'Global Assumptions'!$C$8)*'Global Assumptions'!$C$9) -> 817 | E56: =IF(A56<'Global Assumptions'!$C$10,A56*'Global Assumptions'!$C$11*$H$3,'Global Assumptions'!$C$10*'Global Assumptions'!$C$11*$H$3) -> 460 | F56: =+A56*'Global Assumptions'!$C$12 -> 390 | G56: =IF(A56<'Global Assumptions'!$C$14,A56*'Global Assumptions'!$C$13,'Global Assumptions'!$C$14*'Global Assumptions'!$C$13) -> 72 | H56: =IF(A56<'Global Assumptions'!$C$7,A56*$D$11,IF(A56<$F$11,(A56-'Global Assumptions'!$C$7)*$E$11+'Global Assumptions'!$C$7*$D$11,($F$11-'Global Assumptions'!$C$7)*$E$11+'Global Assumptions'!$C$7*$D$11))*$G$11 -> 2,450 | I56: =+'Global Assumptions'!$C$19*$H$4+'Global Assumptions'!$C$20*$H$5 -> 2,326 | J56: =+'Global Assumptions'!$C$21*$H$4+'Global Assumptions'!$C$22*$H$5 -> 1,487 | K56: =IF(A56<$H$7,A56*'Global Assumptions'!$C$23/1000*$H$6*1.08*12,$H$7*'Global Assumptions'!$C$23/1000*$H$6*1.08*12) -> 49 | L56: ='Global Assumptions'!$C$24 -> 281 | M56: =1825*$M$11 -> 0 | N56: =+$A56*N$11 -> 800 | O56: 50 | P56: 30 | Q56: 0
A57: 25,000 | B57: 42.14% | C57: 10,534 | D57: =IF(A57<'Global Assumptions'!$C$7,(A57-'Global Assumptions'!$C$8)*'Global Assumptions'!$C$9,('Global Assumptions'!$C$7-'Global Assumptions'!$C$8)*'Global Assumptions'!$C$9) -> 1,064 | E57: =IF(A57<'Global Assumptions'!$C$10,A57*'Global Assumptions'!$C$11*$H$3,'Global Assumptions'!$C$10*'Global Assumptions'!$C$11*$H$3) -> 575 | F57: =+A57*'Global Assumptions'!$C$12 -> 488 | G57: =IF(A57<'Global Assumptions'!$C$14,A57*'Global Assumptions'!$C$13,'Global Assumptions'!$C$14*'Global Assumptions'!$C$13) -> 90 | H57: =IF(A57<'Global Assumptions'!$C$7,A57*$D$11,IF(A57<$F$11,(A57-'Global Assumptions'!$C$7)*$E$11+'Global Assumptions'!$C$7*$D$11,($F$11-'Global Assumptions'!$C$7)*$E$11+'Global Assumptions'!$C$7*$D$11))*$G$11 -> 3,063 | I57: =+'Global Assumptions'!$C$19*$H$4+'Global Assumptions'!$C$20*$H$5 -> 2,326 | J57: =+'Global Assumptions'!$C$21*$H$4+'Global Assumptions'!$C$22*$H$5 -> 1,487 | K57: =IF(A57<$H$7,A57*'Global Assumptions'!$C$23/1000*$H$6*1.08*12,$H$7*'Global Assumptions'!$C$23/1000*$H$6*1.08*12) -> 61 | L57: ='Global Assumptions'!$C$24 -> 281 | M57: 0 | N57: 1,000 | O57: 63 | P57: 38 | Q57: 0
A58: 30,000 | B58: 39.52% | C58: 11,857 | D58: =IF(A58<'Global Assumptions'!$C$7,(A58-'Global Assumptions'!$C$8)*'Global Assumptions'!$C$9,('Global Assumptions'!$C$7-'Global Assumptions'!$C$8)*'Global Assumptions'!$C$9) -> 1,312 | E58: =IF(A58<'Global Assumptions'!$C$10,A58*'Global Assumptions'!$C$11*$H$3,'Global Assumptions'!$C$10*'Global Assumptions'!$C$11*$H$3) -> 690 | F58: =+A58*'Global Assumptions'!$C$12 -> 585 | G58: =IF(A58<'Global Assumptions'!$C$14,A58*'Global Assumptions'!$C$13,'Global Assumptions'!$C$14*'Global Assumptions'!$C$13) -> 108 | H58: =IF(A58<'Global Assumptions'!$C$7,A58*$D$11,IF(A58<$F$11,(A58-'Global Assumptions'!$C$7)*$E$11+'Global Assumptions'!$C$7*$D$11,($F$11-'Global Assumptions'!$C$7)*$E$11+'Global Assumptions'!$C$7*$D$11))*$G$11 -> 3,675 | I58: =+'Global Assumptions'!$C$19*$H$4+'Global Assumptions'!$C$20*$H$5 -> 2,326 | J58: =+'Global Assumptions'!$C$21*$H$4+'Global Assumptions'!$C$22*$H$5 -> 1,487 | K58: =IF(A58<$H$7,A58*'Global Assumptions'!$C$23/1000*$H$6*1.08*12,$H$7*'Global Assumptions'!$C$23/1000*$H$6*1.08*12) -> 73 | L58: ='Global Assumptions'!$C$24 -> 281 | M58: 0 | N58: 1,200 | O58: 75 | P58: 45 | Q58: 0
A59: 35,000 | B59: 37.66% | C59: 13,180 | D59: =IF(A59<'Global Assumptions'!$C$7,(A59-'Global Assumptions'!$C$8)*'Global Assumptions'!$C$9,('Global Assumptions'!$C$7-'Global Assumptions'!$C$8)*'Global Assumptions'!$C$9) -> 1,559 | E59: =IF(A59<'Global Assumptions'!$C$10,A59*'Global Assumptions'!$C$11*$H$3,'Global Assumptions'!$C$10*'Global Assumptions'!$C$11*$H$3) -> 805 | F59: =+A59*'Global Assumptions'!$C$12 -> 683 | G59: =IF(A59<'Global Assumptions'!$C$14,A59*'Global Assumptions'!$C$13,'Global Assumptions'!$C$14*'Global Assumptions'!$C$13) -> 126 | H59: =IF(A59<'Global Assumptions'!$C$7,A59*$D$11,IF(A59<$F$11,(A59-'Global Assumptions'!$C$7)*$E$11+'Global Assumptions'!$C$7*$D$11,($F$11-'Global Assumptions'!$C$7)*$E$11+'Global Assumptions'!$C$7*$D$11))*$G$11 -> 4,288 | I59: =+'Global Assumptions'!$C$19*$H$4+'Global Assumptions'!$C$20*$H$5 -> 2,326 | J59: =+'Global Assumptions'!$C$21*$H$4+'Global Assumptions'!$C$22*$H$5 -> 1,487 | K59: =IF(A59<$H$7,A59*'Global Assumptions'!$C$23/1000*$H$6*1.08*12,$H$7*'Global Assumptions'!$C$23/1000*$H$6*1.08*12) -> 85 | L59: ='Global Assumptions'!$C$24 -> 281 | M59: 0 | N59: 1,400 | O59: 88 | P59: 53 | Q59: 0
A60: 40,000 | B60: 36.26% | C60: 14,502 | D60: =IF(A60<'Global Assumptions'!$C$7,(A60-'Global Assumptions'!$C$8)*'Global Assumptions'!$C$9,('Global Assumptions'!$C$7-'Global Assumptions'!$C$8)*'Global Assumptions'!$C$9) -> 1,807 | E60: =IF(A60<'Global Assumptions'!$C$10,A60*'Global Assumptions'!$C$11*$H$3,'Global Assumptions'!$C$10*'Global Assumptions'!$C$11*$H$3) -> 920 | F60: =+A60*'Global Assumptions'!$C$12 -> 780 | G60: =IF(A60<'Global Assumptions'!$C$14,A60*'Global Assumptions'!$C$13,'Global Assumptions'!$C$14*'Global Assumptions'!$C$13) -> 144 | H60: =IF(A60<'Global Assumptions'!$C$7,A60*$D$11,IF(A60<$F$11,(A60-'Global Assumptions'!$C$7)*$E$11+'Global Assumptions'!$C$7*$D$11,($F$11-'Global Assumptions'!$C$7)*$E$11+'Global Assumptions'!$C$7*$D$11))*$G$11 -> 4,900 | I60: =+'Global Assumptions'!$C$19*$H$4+'Global Assumptions'!$C$20*$H$5 -> 2,326 | J60: =+'Global Assumptions'!$C$21*$H$4+'Global Assumptions'!$C$22*$H$5 -> 1,487 | K60: =IF(A60<$H$7,A60*'Global Assumptions'!$C$23/1000*$H$6*1.08*12,$H$7*'Global Assumptions'!$C$23/1000*$H$6*1.08*12) -> 97 | L60: ='Global Assumptions'!$C$24 -> 281 | M60: 0 | N60: 1,600 | O60: 100 | P60: 60 | Q60: 0
A61: 45,000 | B61: 35.17% | C61: 15,825 | D61: =IF(A61<'Global Assumptions'!$C$7,(A61-'Global Assumptions'!$C$8)*'Global Assumptions'!$C$9,('Global Assumptions'!$C$7-'Global Assumptions'!$C$8)*'Global Assumptions'!$C$9) -> 2,054 | E61: =IF(A61<'Global Assumptions'!$C$10,A61*'Global Assumptions'!$C$11*$H$3,'Global Assumptions'!$C$10*'Global Assumptions'!$C$11*$H$3) -> 1,036 | F61: =+A61*'Global Assumptions'!$C$12 -> 878 | G61: =IF(A61<'Global Assumptions'!$C$14,A61*'Global Assumptions'!$C$13,'Global Assumptions'!$C$14*'Global Assumptions'!$C$13) -> 162 | H61: =IF(A61<'Global Assumptions'!$C$7,A61*$D$11,IF(A61<$F$11,(A61-'Global Assumptions'!$C$7)*$E$11+'Global Assumptions'!$C$7*$D$11,($F$11-'Global Assumptions'!$C$7)*$E$11+'Global Assumptions'!$C$7*$D$11))*$G$11 -> 5,513 | I61: =+'Global Assumptions'!$C$19*$H$4+'Global Assumptions'!$C$20*$H$5 -> 2,326 | J61: =+'Global Assumptions'!$C$21*$H$4+'Global Assumptions'!$C$22*$H$5 -> 1,487 | K61: =IF(A61<$H$7,A61*'Global Assumptions'!$C$23/1000*$H$6*1.08*12,$H$7*'Global Assumptions'!$C$23/1000*$H$6*1.08*12) -> 109 | L61: ='Global Assumptions'!$C$24 -> 281 | M61: 0 | N61: 1,800 | O61: 113 | P61: 68 | Q61: 0
A62: 50,000 | B62: 34.30% | C62: 17,148 | D62: =IF(A62<'Global Assumptions'!$C$7,(A62-'Global Assumptions'!$C$8)*'Global Assumptions'!$C$9,('Global Assumptions'!$C$7-'Global Assumptions'!$C$8)*'Global Assumptions'!$C$9) -> 2,302 | E62: =IF(A62<'Global Assumptions'!$C$10,A62*'Global Assumptions'!$C$11*$H$3,'Global Assumptions'!$C$10*'Global Assumptions'!$C$11*$H$3) -> 1,151 | F62: =+A62*'Global Assumptions'!$C$12 -> 975 | G62: =IF(A62<'Global Assumptions'!$C$14,A62*'Global Assumptions'!$C$13,'Global Assumptions'!$C$14*'Global Assumptions'!$C$13) -> 180 | H62: =IF(A62<'Global Assumptions'!$C$7,A62*$D$11,IF(A62<$F$11,(A62-'Global Assumptions'!$C$7)*$E$11+'Global Assumptions'!$C$7*$D$11,($F$11-'Global Assumptions'!$C$7)*$E$11+'Global Assumptions'!$C$7*$D$11))*$G$11 -> 6,125 | I62: =+'Global Assumptions'!$C$19*$H$4+'Global Assumptions'!$C$20*$H$5 -> 2,326 | J62: =+'Global Assumptions'!$C$21*$H$4+'Global Assumptions'!$C$22*$H$5 -> 1,487 | K62: =IF(A62<$H$7,A62*'Global Assumptions'!$C$23/1000*$H$6*1.08*12,$H$7*'Global Assumptions'!$C$23/1000*$H$6*1.08*12) -> 121 | L62: ='Global Assumptions'!$C$24 -> 281 | M62: 0 | N62: 2,000 | O62: 125 | P62: 75 | Q62: 0
A63: 55,000 | B63: 33.41% | C63: 18,375 | D63: =IF(A63<'Global Assumptions'!$C$7,(A63-'Global Assumptions'!$C$8)*'Global Assumptions'!$C$9,('Global Assumptions'!$C$7-'Global Assumptions'!$C$8)*'Global Assumptions'!$C$9) -> 2,529 | E63: =IF(A63<'Global Assumptions'!$C$10,A63*'Global Assumptions'!$C$11*$H$3,'Global Assumptions'!$C$10*'Global Assumptions'!$C$11*$H$3) -> 1,169 | F63: =+A63*'Global Assumptions'!$C$12 -> 1,073 | G63: =IF(A63<'Global Assumptions'!$C$14,A63*'Global Assumptions'!$C$13,'Global Assumptions'!$C$14*'Global Assumptions'!$C$13) -> 198 | H63: =IF(A63<'Global Assumptions'!$C$7,A63*$D$11,IF(A63<$F$11,(A63-'Global Assumptions'!$C$7)*$E$11+'Global Assumptions'!$C$7*$D$11,($F$11-'Global Assumptions'!$C$7)*$E$11+'Global Assumptions'!$C$7*$D$11))*$G$11 -> 6,759 | I63: =+'Global Assumptions'!$C$19*$H$4+'Global Assumptions'!$C$20*$H$5 -> 2,326 | J63: =+'Global Assumptions'!$C$21*$H$4+'Global Assumptions'!$C$22*$H$5 -> 1,487 | K63: =IF(A63<$H$7,A63*'Global Assumptions'!$C$23/1000*$H$6*1.08*12,$H$7*'Global Assumptions'!$C$23/1000*$H$6*1.08*12) -> 133 | L63: ='Global Assumptions'!$C$24 -> 281 | M63: 0 | N63: 2,200 | O63: 138 | P63: 83 | Q63: 0
A64: 60,000 | B64: 32.66% | C64: 19,598 | D64: =IF(A64<'Global Assumptions'!$C$7,(A64-'Global Assumptions'!$C$8)*'Global Assumptions'!$C$9,('Global Assumptions'!$C$7-'Global Assumptions'!$C$8)*'Global Assumptions'!$C$9) -> 2,529 | E64: =IF(A64<'Global Assumptions'!$C$10,A64*'Global Assumptions'!$C$11*$H$3,'Global Assumptions'!$C$10*'Global Assumptions'!$C$11*$H$3) -> 1,169 | F64: =+A64*'Global Assumptions'!$C$12 -> 1,170 | G64: =IF(A64<'Global Assumptions'!$C$14,A64*'Global Assumptions'!$C$13,'Global Assumptions'!$C$14*'Global Assumptions'!$C$13) -> 216 | H64: =IF(A64<'Global Assumptions'!$C$7,A64*$D$11,IF(A64<$F$11,(A64-'Global Assumptions'!$C$7)*$E$11+'Global Assumptions'!$C$7*$D$11,($F$11-'Global Assumptions'!$C$7)*$E$11+'Global Assumptions'!$C$7*$D$11))*$G$11 -> 7,634 | I64: =+'Global Assumptions'!$C$19*$H$4+'Global Assumptions'!$C$20*$H$5 -> 2,326 | J64: =+'Global Assumptions'!$C$21*$H$4+'Global Assumptions'!$C$22*$H$5 -> 1,487 | K64: =IF(A64<$H$7,A64*'Global Assumptions'!$C$23/1000*$H$6*1.08*12,$H$7*'Global Assumptions'!$C$23/1000*$H$6*1.08*12) -> 146 | L64: ='Global Assumptions'!$C$24 -> 281 | M64: 0 | N64: 2,400 | O64: 150 | P64: 90 | Q64: 0
A65: 65,000 | B65: 32.03% | C65: 20,820 | D65: =IF(A65<'Global Assumptions'!$C$7,(A65-'Global Assumptions'!$C$8)*'Global Assumptions'!$C$9,('Global Assumptions'!$C$7-'Global Assumptions'!$C$8)*'Global Assumptions'!$C$9) -> 2,529 | E65: =IF(A65<'Global Assumptions'!$C$10,A65*'Global Assumptions'!$C$11*$H$3,'Global Assumptions'!$C$10*'Global Assumptions'!$C$11*$H$3) -> 1,169 | F65: =+A65*'Global Assumptions'!$C$12 -> 1,268 | G65: =IF(A65<'Global Assumptions'!$C$14,A65*'Global Assumptions'!$C$13,'Global Assumptions'!$C$14*'Global Assumptions'!$C$13) -> 234 | H65: =IF(A65<'Global Assumptions'!$C$7,A65*$D$11,IF(A65<$F$11,(A65-'Global Assumptions'!$C$7)*$E$11+'Global Assumptions'!$C$7*$D$11,($F$11-'Global Assumptions'!$C$7)*$E$11+'Global Assumptions'!$C$7*$D$11))*$G$11 -> 8,509 | I65: =+'Global Assumptions'!$C$19*$H$4+'Global Assumptions'!$C$20*$H$5 -> 2,326 | J65: =+'Global Assumptions'!$C$21*$H$4+'Global Assumptions'!$C$22*$H$5 -> 1,487 | K65: =IF(A65<$H$7,A65*'Global Assumptions'!$C$23/1000*$H$6*1.08*12,$H$7*'Global Assumptions'!$C$23/1000*$H$6*1.08*12) -> 158 | L65: ='Global Assumptions'!$C$24 -> 281 | M65: 0 | N65: 2,600 | O65: 163 | P65: 98 | Q65: 0
A66: 70,000 | B66: 31.49% | C66: 22,043 | D66: =IF(A66<'Global Assumptions'!$C$7,(A66-'Global Assumptions'!$C$8)*'Global Assumptions'!$C$9,('Global Assumptions'!$C$7-'Global Assumptions'!$C$8)*'Global Assumptions'!$C$9) -> 2,529 | E66: =IF(A66<'Global Assumptions'!$C$10,A66*'Global Assumptions'!$C$11*$H$3,'Global Assumptions'!$C$10*'Global Assumptions'!$C$11*$H$3) -> 1,169 | F66: =+A66*'Global Assumptions'!$C$12 -> 1,365 | G66: =IF(A66<'Global Assumptions'!$C$14,A66*'Global Assumptions'!$C$13,'Global Assumptions'!$C$14*'Global Assumptions'!$C$13) -> 252 | H66: =IF(A66<'Global Assumptions'!$C$7,A66*$D$11,IF(A66<$F$11,(A66-'Global Assumptions'!$C$7)*$E$11+'Global Assumptions'!$C$7*$D$11,($F$11-'Global Assumptions'!$C$7)*$E$11+'Global Assumptions'!$C$7*$D$11))*$G$11 -> 9,384 | I66: =+'Global Assumptions'!$C$19*$H$4+'Global Assumptions'!$C$20*$H$5 -> 2,326 | J66: =+'Global Assumptions'!$C$21*$H$4+'Global Assumptions'!$C$22*$H$5 -> 1,487 | K66: =IF(A66<$H$7,A66*'Global Assumptions'!$C$23/1000*$H$6*1.08*12,$H$7*'Global Assumptions'!$C$23/1000*$H$6*1.08*12) -> 170 | L66: ='Global Assumptions'!$C$24 -> 281 | M66: 0 | N66: 2,800 | O66: 175 | P66: 105 | Q66: 0
A67: 75,000 | B67: 31.02% | C67: 23,265 | D67: =IF(A67<'Global Assumptions'!$C$7,(A67-'Global Assumptions'!$C$8)*'Global Assumptions'!$C$9,('Global Assumptions'!$C$7-'Global Assumptions'!$C$8)*'Global Assumptions'!$C$9) -> 2,529 | E67: =IF(A67<'Global Assumptions'!$C$10,A67*'Global Assumptions'!$C$11*$H$3,'Global Assumptions'!$C$10*'Global Assumptions'!$C$11*$H$3) -> 1,169 | F67: =+A67*'Global Assumptions'!$C$12 -> 1,463 | G67: =IF(A67<'Global Assumptions'!$C$14,A67*'Global Assumptions'!$C$13,'Global Assumptions'!$C$14*'Global Assumptions'!$C$13) -> 270 | H67: =IF(A67<'Global Assumptions'!$C$7,A67*$D$11,IF(A67<$F$11,(A67-'Global Assumptions'!$C$7)*$E$11+'Global Assumptions'!$C$7*$D$11,($F$11-'Global Assumptions'!$C$7)*$E$11+'Global Assumptions'!$C$7*$D$11))*$G$11 -> 10,259 | I67: =+'Global Assumptions'!$C$19*$H$4+'Global Assumptions'!$C$20*$H$5 -> 2,326 | J67: =+'Global Assumptions'!$C$21*$H$4+'Global Assumptions'!$C$22*$H$5 -> 1,487 | K67: =IF(A67<$H$7,A67*'Global Assumptions'!$C$23/1000*$H$6*1.08*12,$H$7*'Global Assumptions'!$C$23/1000*$H$6*1.08*12) -> 182 | L67: ='Global Assumptions'!$C$24 -> 281 | M67: 0 | N67: 3,000 | O67: 188 | P67: 113 | Q67: 0
A68: 80,000 | B68: 30.61% | C68: 24,488 | D68: =IF(A68<'Global Assumptions'!$C$7,(A68-'Global Assumptions'!$C$8)*'Global Assumptions'!$C$9,('Global Assumptions'!$C$7-'Global Assumptions'!$C$8)*'Global Assumptions'!$C$9) -> 2,529 | E68: =IF(A68<'Global Assumptions'!$C$10,A68*'Global Assumptions'!$C$11*$H$3,'Global Assumptions'!$C$10*'Global Assumptions'!$C$11*$H$3) -> 1,169 | F68: =+A68*'Global Assumptions'!$C$12 -> 1,560 | G68: =IF(A68<'Global Assumptions'!$C$14,A68*'Global Assumptions'!$C$13,'Global Assumptions'!$C$14*'Global Assumptions'!$C$13) -> 288 | H68: =IF(A68<'Global Assumptions'!$C$7,A68*$D$11,IF(A68<$F$11,(A68-'Global Assumptions'!$C$7)*$E$11+'Global Assumptions'!$C$7*$D$11,($F$11-'Global Assumptions'!$C$7)*$E$11+'Global Assumptions'!$C$7*$D$11))*$G$11 -> 11,134 | I68: =+'Global Assumptions'!$C$19*$H$4+'Global Assumptions'!$C$20*$H$5 -> 2,326 | J68: =+'Global Assumptions'!$C$21*$H$4+'Global Assumptions'!$C$22*$H$5 -> 1,487 | K68: =IF(A68<$H$7,A68*'Global Assumptions'!$C$23/1000*$H$6*1.08*12,$H$7*'Global Assumptions'!$C$23/1000*$H$6*1.08*12) -> 194 | L68: ='Global Assumptions'!$C$24 -> 281 | M68: 0 | N68: 3,200 | O68: 200 | P68: 120 | Q68: 0
A69: 85,000 | B69: 30.25% | C69: 25,711 | D69: =IF(A69<'Global Assumptions'!$C$7,(A69-'Global Assumptions'!$C$8)*'Global Assumptions'!$C$9,('Global Assumptions'!$C$7-'Global Assumptions'!$C$8)*'Global Assumptions'!$C$9) -> 2,529 | E69: =IF(A69<'Global Assumptions'!$C$10,A69*'Global Assumptions'!$C$11*$H$3,'Global Assumptions'!$C$10*'Global Assumptions'!$C$11*$H$3) -> 1,169 | F69: =+A69*'Global Assumptions'!$C$12 -> 1,658 | G69: =IF(A69<'Global Assumptions'!$C$14,A69*'Global Assumptions'!$C$13,'Global Assumptions'!$C$14*'Global Assumptions'!$C$13) -> 306 | H69: =IF(A69<'Global Assumptions'!$C$7,A69*$D$11,IF(A69<$F$11,(A69-'Global Assumptions'!$C$7)*$E$11+'Global Assumptions'!$C$7*$D$11,($F$11-'Global Assumptions'!$C$7)*$E$11+'Global Assumptions'!$C$7*$D$11))*$G$11 -> 12,009 | I69: =+'Global Assumptions'!$C$19*$H$4+'Global Assumptions'!$C$20*$H$5 -> 2,326 | J69: =+'Global Assumptions'!$C$21*$H$4+'Global Assumptions'!$C$22*$H$5 -> 1,487 | K69: =IF(A69<$H$7,A69*'Global Assumptions'!$C$23/1000*$H$6*1.08*12,$H$7*'Global Assumptions'!$C$23/1000*$H$6*1.08*12) -> 206 | L69: ='Global Assumptions'!$C$24 -> 281 | M69: 0 | N69: 3,400 | O69: 213 | P69: 128 | Q69: 0
A70: 90,000 | B70: 29.92% | C70: 26,926 | D70: =IF(A70<'Global Assumptions'!$C$7,(A70-'Global Assumptions'!$C$8)*'Global Assumptions'!$C$9,('Global Assumptions'!$C$7-'Global Assumptions'!$C$8)*'Global Assumptions'!$C$9) -> 2,529 | E70: =IF(A70<'Global Assumptions'!$C$10,A70*'Global Assumptions'!$C$11*$H$3,'Global Assumptions'!$C$10*'Global Assumptions'!$C$11*$H$3) -> 1,169 | F70: =+A70*'Global Assumptions'!$C$12 -> 1,755 | G70: =IF(A70<'Global Assumptions'!$C$14,A70*'Global Assumptions'!$C$13,'Global Assumptions'!$C$14*'Global Assumptions'!$C$13) -> 317 | H70: =IF(A70<'Global Assumptions'!$C$7,A70*$D$11,IF(A70<$F$11,(A70-'Global Assumptions'!$C$7)*$E$11+'Global Assumptions'!$C$7*$D$11,($F$11-'Global Assumptions'!$C$7)*$E$11+'Global Assumptions'!$C$7*$D$11))*$G$11 -> 12,884 | I70: =+'Global Assumptions'!$C$19*$H$4+'Global Assumptions'!$C$20*$H$5 -> 2,326 | J70: =+'Global Assumptions'!$C$21*$H$4+'Global Assumptions'!$C$22*$H$5 -> 1,487 | K70: =IF(A70<$H$7,A70*'Global Assumptions'!$C$23/1000*$H$6*1.08*12,$H$7*'Global Assumptions'!$C$23/1000*$H$6*1.08*12) -> 218 | L70: ='Global Assumptions'!$C$24 -> 281 | M70: 0 | N70: 3,600 | O70: 225 | P70: 135 | Q70: 0
A71: 95,000 | B71: 29.61% | C71: 28,131 | D71: =IF(A71<'Global Assumptions'!$C$7,(A71-'Global Assumptions'!$C$8)*'Global Assumptions'!$C$9,('Global Assumptions'!$C$7-'Global Assumptions'!$C$8)*'Global Assumptions'!$C$9) -> 2,529 | E71: =IF(A71<'Global Assumptions'!$C$10,A71*'Global Assumptions'!$C$11*$H$3,'Global Assumptions'!$C$10*'Global Assumptions'!$C$11*$H$3) -> 1,169 | F71: =+A71*'Global Assumptions'!$C$12 -> 1,853 | G71: =IF(A71<'Global Assumptions'!$C$14,A71*'Global Assumptions'!$C$13,'Global Assumptions'!$C$14*'Global Assumptions'!$C$13) -> 317 | H71: =IF(A71<'Global Assumptions'!$C$7,A71*$D$11,IF(A71<$F$11,(A71-'Global Assumptions'!$C$7)*$E$11+'Global Assumptions'!$C$7*$D$11,($F$11-'Global Assumptions'!$C$7)*$E$11+'Global Assumptions'!$C$7*$D$11))*$G$11 -> 13,759 | I71: =+'Global Assumptions'!$C$19*$H$4+'Global Assumptions'!$C$20*$H$5 -> 2,326 | J71: =+'Global Assumptions'!$C$21*$H$4+'Global Assumptions'!$C$22*$H$5 -> 1,487 | K71: =IF(A71<$H$7,A71*'Global Assumptions'!$C$23/1000*$H$6*1.08*12,$H$7*'Global Assumptions'!$C$23/1000*$H$6*1.08*12) -> 231 | L71: ='Global Assumptions'!$C$24 -> 281 | M71: 0 | N71: 3,800 | O71: 238 | P71: 143 | Q71: 0
A72: 100,000 | B72: 29.34% | C72: 29,335 | D72: =IF(A72<'Global Assumptions'!$C$7,(A72-'Global Assumptions'!$C$8)*'Global Assumptions'!$C$9,('Global Assumptions'!$C$7-'Global Assumptions'!$C$8)*'Global Assumptions'!$C$9) -> 2,529 | E72: =IF(A72<'Global Assumptions'!$C$10,A72*'Global Assumptions'!$C$11*$H$3,'Global Assumptions'!$C$10*'Global Assumptions'!$C$11*$H$3) -> 1,169 | F72: =+A72*'Global Assumptions'!$C$12 -> 1,950 | G72: =IF(A72<'Global Assumptions'!$C$14,A72*'Global Assumptions'!$C$13,'Global Assumptions'!$C$14*'Global Assumptions'!$C$13) -> 317 | H72: =IF(A72<'Global Assumptions'!$C$7,A72*$D$11,IF(A72<$F$11,(A72-'Global Assumptions'!$C$7)*$E$11+'Global Assumptions'!$C$7*$D$11,($F$11-'Global Assumptions'!$C$7)*$E$11+'Global Assumptions'!$C$7*$D$11))*$G$11 -> 14,634 | I72: =+'Global Assumptions'!$C$19*$H$4+'Global Assumptions'!$C$20*$H$5 -> 2,326 | J72: =+'Global Assumptions'!$C$21*$H$4+'Global Assumptions'!$C$22*$H$5 -> 1,487 | K72: =IF(A72<$H$7,A72*'Global Assumptions'!$C$23/1000*$H$6*1.08*12,$H$7*'Global Assumptions'!$C$23/1000*$H$6*1.08*12) -> 243 | L72: ='Global Assumptions'!$C$24 -> 281 | M72: 0 | N72: 4,000 | O72: 250 | P72: 150 | Q72: 0
A73: 105,000 | B73: 29.07% | C73: 30,528 | D73: =IF(A73<'Global Assumptions'!$C$7,(A73-'Global Assumptions'!$C$8)*'Global Assumptions'!$C$9,('Global Assumptions'!$C$7-'Global Assumptions'!$C$8)*'Global Assumptions'!$C$9) -> 2,529 | E73: =IF(A73<'Global Assumptions'!$C$10,A73*'Global Assumptions'!$C$11*$H$3,'Global Assumptions'!$C$10*'Global Assumptions'!$C$11*$H$3) -> 1,169 | F73: =+A73*'Global Assumptions'!$C$12 -> 2,048 | G73: =IF(A73<'Global Assumptions'!$C$14,A73*'Global Assumptions'!$C$13,'Global Assumptions'!$C$14*'Global Assumptions'!$C$13) -> 317 | H73: =IF(A73<'Global Assumptions'!$C$7,A73*$D$11,IF(A73<$F$11,(A73-'Global Assumptions'!$C$7)*$E$11+'Global Assumptions'!$C$7*$D$11,($F$11-'Global Assumptions'!$C$7)*$E$11+'Global Assumptions'!$C$7*$D$11))*$G$11 -> 15,509 | I73: =+'Global Assumptions'!$C$19*$H$4+'Global Assumptions'!$C$20*$H$5 -> 2,326 | J73: =+'Global Assumptions'!$C$21*$H$4+'Global Assumptions'!$C$22*$H$5 -> 1,487 | K73: =IF(A73<$H$7,A73*'Global Assumptions'!$C$23/1000*$H$6*1.08*12,$H$7*'Global Assumptions'!$C$23/1000*$H$6*1.08*12) -> 243 | L73: ='Global Assumptions'!$C$24 -> 281 | M73: 0 | N73: 4,200 | O73: 263 | P73: 158 | Q73: 0
A74: 110,000 | B74: 28.84% | C74: 31,720 | D74: =IF(A74<'Global Assumptions'!$C$7,(A74-'Global Assumptions'!$C$8)*'Global Assumptions'!$C$9,('Global Assumptions'!$C$7-'Global Assumptions'!$C$8)*'Global Assumptions'!$C$9) -> 2,529 | E74: =IF(A74<'Global Assumptions'!$C$10,A74*'Global Assumptions'!$C$11*$H$3,'Global Assumptions'!$C$10*'Global Assumptions'!$C$11*$H$3) -> 1,169 | F74: =+A74*'Global Assumptions'!$C$12 -> 2,145 | G74: =IF(A74<'Global Assumptions'!$C$14,A74*'Global Assumptions'!$C$13,'Global Assumptions'!$C$14*'Global Assumptions'!$C$13) -> 317 | H74: =IF(A74<'Global Assumptions'!$C$7,A74*$D$11,IF(A74<$F$11,(A74-'Global Assumptions'!$C$7)*$E$11+'Global Assumptions'!$C$7*$D$11,($F$11-'Global Assumptions'!$C$7)*$E$11+'Global Assumptions'!$C$7*$D$11))*$G$11 -> 16,384 | I74: =+'Global Assumptions'!$C$19*$H$4+'Global Assumptions'!$C$20*$H$5 -> 2,326 | J74: =+'Global Assumptions'!$C$21*$H$4+'Global Assumptions'!$C$22*$H$5 -> 1,487 | K74: =IF(A74<$H$7,A74*'Global Assumptions'!$C$23/1000*$H$6*1.08*12,$H$7*'Global Assumptions'!$C$23/1000*$H$6*1.08*12) -> 243 | L74: ='Global Assumptions'!$C$24 -> 281 | M74: 0 | N74: 4,400 | O74: 275 | P74: 165 | Q74: 0
A75: 115,000 | B75: 28.62% | C75: 32,913 | D75: =IF(A75<'Global Assumptions'!$C$7,(A75-'Global Assumptions'!$C$8)*'Global Assumptions'!$C$9,('Global Assumptions'!$C$7-'Global Assumptions'!$C$8)*'Global Assumptions'!$C$9) -> 2,529 | E75: =IF(A75<'Global Assumptions'!$C$10,A75*'Global Assumptions'!$C$11*$H$3,'Global Assumptions'!$C$10*'Global Assumptions'!$C$11*$H$3) -> 1,169 | F75: =+A75*'Global Assumptions'!$C$12 -> 2,243 | G75: =IF(A75<'Global Assumptions'!$C$14,A75*'Global Assumptions'!$C$13,'Global Assumptions'!$C$14*'Global Assumptions'!$C$13) -> 317 | H75: =IF(A75<'Global Assumptions'!$C$7,A75*$D$11,IF(A75<$F$11,(A75-'Global Assumptions'!$C$7)*$E$11+'Global Assumptions'!$C$7*$D$11,($F$11-'Global Assumptions'!$C$7)*$E$11+'Global Assumptions'!$C$7*$D$11))*$G$11 -> 17,259 | I75: =+'Global Assumptions'!$C$19*$H$4+'Global Assumptions'!$C$20*$H$5 -> 2,326 | J75: =+'Global Assumptions'!$C$21*$H$4+'Global Assumptions'!$C$22*$H$5 -> 1,487 | K75: =IF(A75<$H$7,A75*'Global Assumptions'!$C$23/1000*$H$6*1.08*12,$H$7*'Global Assumptions'!$C$23/1000*$H$6*1.08*12) -> 243 | L75: ='Global Assumptions'!$C$24 -> 281 | M75: 0 | N75: 4,600 | O75: 288 | P75: 173 | Q75: 0
A76: 120,000 | B76: 28.42% | C76: 34,105 | D76: =IF(A76<'Global Assumptions'!$C$7,(A76-'Global Assumptions'!$C$8)*'Global Assumptions'!$C$9,('Global Assumptions'!$C$7-'Global Assumptions'!$C$8)*'Global Assumptions'!$C$9) -> 2,529 | E76: =IF(A76<'Global Assumptions'!$C$10,A76*'Global Assumptions'!$C$11*$H$3,'Global Assumptions'!$C$10*'Global Assumptions'!$C$11*$H$3) -> 1,169 | F76: =+A76*'Global Assumptions'!$C$12 -> 2,340 | G76: =IF(A76<'Global Assumptions'!$C$14,A76*'Global Assumptions'!$C$13,'Global Assumptions'!$C$14*'Global Assumptions'!$C$13) -> 317 | H76: =IF(A76<'Global Assumptions'!$C$7,A76*$D$11,IF(A76<$F$11,(A76-'Global Assumptions'!$C$7)*$E$11+'Global Assumptions'!$C$7*$D$11,($F$11-'Global Assumptions'!$C$7)*$E$11+'Global Assumptions'!$C$7*$D$11))*$G$11 -> 18,134 | I76: =+'Global Assumptions'!$C$19*$H$4+'Global Assumptions'!$C$20*$H$5 -> 2,326 | J76: =+'Global Assumptions'!$C$21*$H$4+'Global Assumptions'!$C$22*$H$5 -> 1,487 | K76: =IF(A76<$H$7,A76*'Global Assumptions'!$C$23/1000*$H$6*1.08*12,$H$7*'Global Assumptions'!$C$23/1000*$H$6*1.08*12) -> 243 | L76: ='Global Assumptions'!$C$24 -> 281 | M76: 0 | N76: =+$A76*N$11 -> 4,800 | O76: 300 | P76: 180 | Q76: 0
A77: 125,000 | B77: 28.24% | C77: 35,298 | D77: =IF(A77<'Global Assumptions'!$C$7,(A77-'Global Assumptions'!$C$8)*'Global Assumptions'!$C$9,('Global Assumptions'!$C$7-'Global Assumptions'!$C$8)*'Global Assumptions'!$C$9) -> 2,529 | E77: =IF(A77<'Global Assumptions'!$C$10,A77*'Global Assumptions'!$C$11*$H$3,'Global Assumptions'!$C$10*'Global Assumptions'!$C$11*$H$3) -> 1,169 | F77: =+A77*'Global Assumptions'!$C$12 -> 2,438 | G77: =IF(A77<'Global Assumptions'!$C$14,A77*'Global Assumptions'!$C$13,'Global Assumptions'!$C$14*'Global Assumptions'!$C$13) -> 317 | H77: =IF(A77<'Global Assumptions'!$C$7,A77*$D$11,IF(A77<$F$11,(A77-'Global Assumptions'!$C$7)*$E$11+'Global Assumptions'!$C$7*$D$11,($F$11-'Global Assumptions'!$C$7)*$E$11+'Global Assumptions'!$C$7*$D$11))*$G$11 -> 19,009 | I77: =+'Global Assumptions'!$C$19*$H$4+'Global Assumptions'!$C$20*$H$5 -> 2,326 | J77: =+'Global Assumptions'!$C$21*$H$4+'Global Assumptions'!$C$22*$H$5 -> 1,487 | K77: =IF(A77<$H$7,A77*'Global Assumptions'!$C$23/1000*$H$6*1.08*12,$H$7*'Global Assumptions'!$C$23/1000*$H$6*1.08*12) -> 243 | L77: ='Global Assumptions'!$C$24 -> 281 | M77: 0 | N77: 5,000 | O77: 313 | P77: 188 | Q77: 0
A78: 130,000 | B78: 28.07% | C78: 36,490 | D78: =IF(A78<'Global Assumptions'!$C$7,(A78-'Global Assumptions'!$C$8)*'Global Assumptions'!$C$9,('Global Assumptions'!$C$7-'Global Assumptions'!$C$8)*'Global Assumptions'!$C$9) -> 2,529 | E78: =IF(A78<'Global Assumptions'!$C$10,A78*'Global Assumptions'!$C$11*$H$3,'Global Assumptions'!$C$10*'Global Assumptions'!$C$11*$H$3) -> 1,169 | F78: =+A78*'Global Assumptions'!$C$12 -> 2,535 | G78: =IF(A78<'Global Assumptions'!$C$14,A78*'Global Assumptions'!$C$13,'Global Assumptions'!$C$14*'Global Assumptions'!$C$13) -> 317 | H78: =IF(A78<'Global Assumptions'!$C$7,A78*$D$11,IF(A78<$F$11,(A78-'Global Assumptions'!$C$7)*$E$11+'Global Assumptions'!$C$7*$D$11,($F$11-'Global Assumptions'!$C$7)*$E$11+'Global Assumptions'!$C$7*$D$11))*$G$11 -> 19,884 | I78: =+'Global Assumptions'!$C$19*$H$4+'Global Assumptions'!$C$20*$H$5 -> 2,326 | J78: =+'Global Assumptions'!$C$21*$H$4+'Global Assumptions'!$C$22*$H$5 -> 1,487 | K78: =IF(A78<$H$7,A78*'Global Assumptions'!$C$23/1000*$H$6*1.08*12,$H$7*'Global Assumptions'!$C$23/1000*$H$6*1.08*12) -> 243 | L78: ='Global Assumptions'!$C$24 -> 281 | M78: 0 | N78: 5,200 | O78: 325 | P78: 195 | Q78: 0
A79: 135,000 | B79: 27.91% | C79: 37,683 | D79: =IF(A79<'Global Assumptions'!$C$7,(A79-'Global Assumptions'!$C$8)*'Global Assumptions'!$C$9,('Global Assumptions'!$C$7-'Global Assumptions'!$C$8)*'Global Assumptions'!$C$9) -> 2,529 | E79: =IF(A79<'Global Assumptions'!$C$10,A79*'Global Assumptions'!$C$11*$H$3,'Global Assumptions'!$C$10*'Global Assumptions'!$C$11*$H$3) -> 1,169 | F79: =+A79*'Global Assumptions'!$C$12 -> 2,633 | G79: =IF(A79<'Global Assumptions'!$C$14,A79*'Global Assumptions'!$C$13,'Global Assumptions'!$C$14*'Global Assumptions'!$C$13) -> 317 | H79: =IF(A79<'Global Assumptions'!$C$7,A79*$D$11,IF(A79<$F$11,(A79-'Global Assumptions'!$C$7)*$E$11+'Global Assumptions'!$C$7*$D$11,($F$11-'Global Assumptions'!$C$7)*$E$11+'Global Assumptions'!$C$7*$D$11))*$G$11 -> 20,759 | I79: =+'Global Assumptions'!$C$19*$H$4+'Global Assumptions'!$C$20*$H$5 -> 2,326 | J79: =+'Global Assumptions'!$C$21*$H$4+'Global Assumptions'!$C$22*$H$5 -> 1,487 | K79: =IF(A79<$H$7,A79*'Global Assumptions'!$C$23/1000*$H$6*1.08*12,$H$7*'Global Assumptions'!$C$23/1000*$H$6*1.08*12) -> 243 | L79: ='Global Assumptions'!$C$24 -> 281 | M79: 0 | N79: 5,400 | O79: 338 | P79: 203 | Q79: 0
A80: 140,000 | B80: 27.77% | C80: 38,875 | D80: =IF(A80<'Global Assumptions'!$C$7,(A80-'Global Assumptions'!$C$8)*'Global Assumptions'!$C$9,('Global Assumptions'!$C$7-'Global Assumptions'!$C$8)*'Global Assumptions'!$C$9) -> 2,529 | E80: =IF(A80<'Global Assumptions'!$C$10,A80*'Global Assumptions'!$C$11*$H$3,'Global Assumptions'!$C$10*'Global Assumptions'!$C$11*$H$3) -> 1,169 | F80: =+A80*'Global Assumptions'!$C$12 -> 2,730 | G80: =IF(A80<'Global Assumptions'!$C$14,A80*'Global Assumptions'!$C$13,'Global Assumptions'!$C$14*'Global Assumptions'!$C$13) -> 317 | H80: =IF(A80<'Global Assumptions'!$C$7,A80*$D$11,IF(A80<$F$11,(A80-'Global Assumptions'!$C$7)*$E$11+'Global Assumptions'!$C$7*$D$11,($F$11-'Global Assumptions'!$C$7)*$E$11+'Global Assumptions'!$C$7*$D$11))*$G$11 -> 21,634 | I80: =+'Global Assumptions'!$C$19*$H$4+'Global Assumptions'!$C$20*$H$5 -> 2,326 | J80: =+'Global Assumptions'!$C$21*$H$4+'Global Assumptions'!$C$22*$H$5 -> 1,487 | K80: =IF(A80<$H$7,A80*'Global Assumptions'!$C$23/1000*$H$6*1.08*12,$H$7*'Global Assumptions'!$C$23/1000*$H$6*1.08*12) -> 243 | L80: ='Global Assumptions'!$C$24 -> 281 | M80: 0 | N80: 5,600 | O80: 350 | P80: 210 | Q80: 0
A81: 145,000 | B81: 27.63% | C81: 40,068 | D81: =IF(A81<'Global Assumptions'!$C$7,(A81-'Global Assumptions'!$C$8)*'Global Assumptions'!$C$9,('Global Assumptions'!$C$7-'Global Assumptions'!$C$8)*'Global Assumptions'!$C$9) -> 2,529 | E81: =IF(A81<'Global Assumptions'!$C$10,A81*'Global Assumptions'!$C$11*$H$3,'Global Assumptions'!$C$10*'Global Assumptions'!$C$11*$H$3) -> 1,169 | F81: =+A81*'Global Assumptions'!$C$12 -> 2,828 | G81: =IF(A81<'Global Assumptions'!$C$14,A81*'Global Assumptions'!$C$13,'Global Assumptions'!$C$14*'Global Assumptions'!$C$13) -> 317 | H81: =IF(A81<'Global Assumptions'!$C$7,A81*$D$11,IF(A81<$F$11,(A81-'Global Assumptions'!$C$7)*$E$11+'Global Assumptions'!$C$7*$D$11,($F$11-'Global Assumptions'!$C$7)*$E$11+'Global Assumptions'!$C$7*$D$11))*$G$11 -> 22,509 | I81: =+'Global Assumptions'!$C$19*$H$4+'Global Assumptions'!$C$20*$H$5 -> 2,326 | J81: =+'Global Assumptions'!$C$21*$H$4+'Global Assumptions'!$C$22*$H$5 -> 1,487 | K81: =IF(A81<$H$7,A81*'Global Assumptions'!$C$23/1000*$H$6*1.08*12,$H$7*'Global Assumptions'!$C$23/1000*$H$6*1.08*12) -> 243 | L81: ='Global Assumptions'!$C$24 -> 281 | M81: 0 | N81: 5,800 | O81: 363 | P81: 218 | Q81: 0
A82: 150,000 | B82: 27.51% | C82: 41,260 | D82: =IF(A82<'Global Assumptions'!$C$7,(A82-'Global Assumptions'!$C$8)*'Global Assumptions'!$C$9,('Global Assumptions'!$C$7-'Global Assumptions'!$C$8)*'Global Assumptions'!$C$9) -> 2,529 | E82: =IF(A82<'Global Assumptions'!$C$10,A82*'Global Assumptions'!$C$11*$H$3,'Global Assumptions'!$C$10*'Global Assumptions'!$C$11*$H$3) -> 1,169 | F82: =+A82*'Global Assumptions'!$C$12 -> 2,925 | G82: =IF(A82<'Global Assumptions'!$C$14,A82*'Global Assumptions'!$C$13,'Global Assumptions'!$C$14*'Global Assumptions'!$C$13) -> 317 | H82: =IF(A82<'Global Assumptions'!$C$7,A82*$D$11,IF(A82<$F$11,(A82-'Global Assumptions'!$C$7)*$E$11+'Global Assumptions'!$C$7*$D$11,($F$11-'Global Assumptions'!$C$7)*$E$11+'Global Assumptions'!$C$7*$D$11))*$G$11 -> 23,384 | I82: =+'Global Assumptions'!$C$19*$H$4+'Global Assumptions'!$C$20*$H$5 -> 2,326 | J82: =+'Global Assumptions'!$C$21*$H$4+'Global Assumptions'!$C$22*$H$5 -> 1,487 | K82: =IF(A82<$H$7,A82*'Global Assumptions'!$C$23/1000*$H$6*1.08*12,$H$7*'Global Assumptions'!$C$23/1000*$H$6*1.08*12) -> 243 | L82: ='Global Assumptions'!$C$24 -> 281 | M82: 0 | N82: 6,000 | O82: 375 | P82: 225 | Q82: 0
A83: 155,000 | B83: 27.39% | C83: 42,453 | D83: =IF(A83<'Global Assumptions'!$C$7,(A83-'Global Assumptions'!$C$8)*'Global Assumptions'!$C$9,('Global Assumptions'!$C$7-'Global Assumptions'!$C$8)*'Global Assumptions'!$C$9) -> 2,529 | E83: =IF(A83<'Global Assumptions'!$C$10,A83*'Global Assumptions'!$C$11*$H$3,'Global Assumptions'!$C$10*'Global Assumptions'!$C$11*$H$3) -> 1,169 | F83: =+A83*'Global Assumptions'!$C$12 -> 3,023 | G83: =IF(A83<'Global Assumptions'!$C$14,A83*'Global Assumptions'!$C$13,'Global Assumptions'!$C$14*'Global Assumptions'!$C$13) -> 317 | H83: =IF(A83<'Global Assumptions'!$C$7,A83*$D$11,IF(A83<$F$11,(A83-'Global Assumptions'!$C$7)*$E$11+'Global Assumptions'!$C$7*$D$11,($F$11-'Global Assumptions'!$C$7)*$E$11+'Global Assumptions'!$C$7*$D$11))*$G$11 -> 24,259 | I83: =+'Global Assumptions'!$C$19*$H$4+'Global Assumptions'!$C$20*$H$5 -> 2,326 | J83: =+'Global Assumptions'!$C$21*$H$4+'Global Assumptions'!$C$22*$H$5 -> 1,487 | K83: =IF(A83<$H$7,A83*'Global Assumptions'!$C$23/1000*$H$6*1.08*12,$H$7*'Global Assumptions'!$C$23/1000*$H$6*1.08*12) -> 243 | L83: ='Global Assumptions'!$C$24 -> 281 | M83: 0 | N83: 6,200 | O83: 388 | P83: 233 | Q83: 0
A84: 160,000 | B84: 27.28% | C84: 43,645 | D84: =IF(A84<'Global Assumptions'!$C$7,(A84-'Global Assumptions'!$C$8)*'Global Assumptions'!$C$9,('Global Assumptions'!$C$7-'Global Assumptions'!$C$8)*'Global Assumptions'!$C$9) -> 2,529 | E84: =IF(A84<'Global Assumptions'!$C$10,A84*'Global Assumptions'!$C$11*$H$3,'Global Assumptions'!$C$10*'Global Assumptions'!$C$11*$H$3) -> 1,169 | F84: =+A84*'Global Assumptions'!$C$12 -> 3,120 | G84: =IF(A84<'Global Assumptions'!$C$14,A84*'Global Assumptions'!$C$13,'Global Assumptions'!$C$14*'Global Assumptions'!$C$13) -> 317 | H84: =IF(A84<'Global Assumptions'!$C$7,A84*$D$11,IF(A84<$F$11,(A84-'Global Assumptions'!$C$7)*$E$11+'Global Assumptions'!$C$7*$D$11,($F$11-'Global Assumptions'!$C$7)*$E$11+'Global Assumptions'!$C$7*$D$11))*$G$11 -> 25,134 | I84: =+'Global Assumptions'!$C$19*$H$4+'Global Assumptions'!$C$20*$H$5 -> 2,326 | J84: =+'Global Assumptions'!$C$21*$H$4+'Global Assumptions'!$C$22*$H$5 -> 1,487 | K84: =IF(A84<$H$7,A84*'Global Assumptions'!$C$23/1000*$H$6*1.08*12,$H$7*'Global Assumptions'!$C$23/1000*$H$6*1.08*12) -> 243 | L84: ='Global Assumptions'!$C$24 -> 281 | M84: 0 | N84: 6,400 | O84: 400 | P84: 240 | Q84: 0
A85: 165,000 | B85: 26.64% | C85: 43,963 | D85: =IF(A85<'Global Assumptions'!$C$7,(A85-'Global Assumptions'!$C$8)*'Global Assumptions'!$C$9,('Global Assumptions'!$C$7-'Global Assumptions'!$C$8)*'Global Assumptions'!$C$9) -> 2,529 | E85: =IF(A85<'Global Assumptions'!$C$10,A85*'Global Assumptions'!$C$11*$H$3,'Global Assumptions'!$C$10*'Global Assumptions'!$C$11*$H$3) -> 1,169 | F85: =+A85*'Global Assumptions'!$C$12 -> 3,218 | G85: =IF(A85<'Global Assumptions'!$C$14,A85*'Global Assumptions'!$C$13,'Global Assumptions'!$C$14*'Global Assumptions'!$C$13) -> 317 | H85: =IF(A85<'Global Assumptions'!$C$7,A85*$D$11,IF(A85<$F$11,(A85-'Global Assumptions'!$C$7)*$E$11+'Global Assumptions'!$C$7*$D$11,($F$11-'Global Assumptions'!$C$7)*$E$11+'Global Assumptions'!$C$7*$D$11))*$G$11 -> 25,134 | I85: =+'Global Assumptions'!$C$19*$H$4+'Global Assumptions'!$C$20*$H$5 -> 2,326 | J85: =+'Global Assumptions'!$C$21*$H$4+'Global Assumptions'!$C$22*$H$5 -> 1,487 | K85: =IF(A85<$H$7,A85*'Global Assumptions'!$C$23/1000*$H$6*1.08*12,$H$7*'Global Assumptions'!$C$23/1000*$H$6*1.08*12) -> 243 | L85: ='Global Assumptions'!$C$24 -> 281 | M85: 0 | N85: 6,600 | O85: 413 | P85: 248 | Q85: 0
A86: 170,000 | B86: 26.05% | C86: 44,280 | D86: =IF(A86<'Global Assumptions'!$C$7,(A86-'Global Assumptions'!$C$8)*'Global Assumptions'!$C$9,('Global Assumptions'!$C$7-'Global Assumptions'!$C$8)*'Global Assumptions'!$C$9) -> 2,529 | E86: =IF(A86<'Global Assumptions'!$C$10,A86*'Global Assumptions'!$C$11*$H$3,'Global Assumptions'!$C$10*'Global Assumptions'!$C$11*$H$3) -> 1,169 | F86: =+A86*'Global Assumptions'!$C$12 -> 3,315 | G86: =IF(A86<'Global Assumptions'!$C$14,A86*'Global Assumptions'!$C$13,'Global Assumptions'!$C$14*'Global Assumptions'!$C$13) -> 317 | H86: =IF(A86<'Global Assumptions'!$C$7,A86*$D$11,IF(A86<$F$11,(A86-'Global Assumptions'!$C$7)*$E$11+'Global Assumptions'!$C$7*$D$11,($F$11-'Global Assumptions'!$C$7)*$E$11+'Global Assumptions'!$C$7*$D$11))*$G$11 -> 25,134 | I86: =+'Global Assumptions'!$C$19*$H$4+'Global Assumptions'!$C$20*$H$5 -> 2,326 | J86: =+'Global Assumptions'!$C$21*$H$4+'Global Assumptions'!$C$22*$H$5 -> 1,487 | K86: =IF(A86<$H$7,A86*'Global Assumptions'!$C$23/1000*$H$6*1.08*12,$H$7*'Global Assumptions'!$C$23/1000*$H$6*1.08*12) -> 243 | L86: ='Global Assumptions'!$C$24 -> 281 | M86: 0 | N86: 6,800 | O86: 425 | P86: 255 | Q86: 0
A87: 175,000 | B87: 25.48% | C87: 44,598 | D87: =IF(A87<'Global Assumptions'!$C$7,(A87-'Global Assumptions'!$C$8)*'Global Assumptions'!$C$9,('Global Assumptions'!$C$7-'Global Assumptions'!$C$8)*'Global Assumptions'!$C$9) -> 2,529 | E87: =IF(A87<'Global Assumptions'!$C$10,A87*'Global Assumptions'!$C$11*$H$3,'Global Assumptions'!$C$10*'Global Assumptions'!$C$11*$H$3) -> 1,169 | F87: =+A87*'Global Assumptions'!$C$12 -> 3,413 | G87: =IF(A87<'Global Assumptions'!$C$14,A87*'Global Assumptions'!$C$13,'Global Assumptions'!$C$14*'Global Assumptions'!$C$13) -> 317 | H87: =IF(A87<'Global Assumptions'!$C$7,A87*$D$11,IF(A87<$F$11,(A87-'Global Assumptions'!$C$7)*$E$11+'Global Assumptions'!$C$7*$D$11,($F$11-'Global Assumptions'!$C$7)*$E$11+'Global Assumptions'!$C$7*$D$11))*$G$11 -> 25,134 | I87: =+'Global Assumptions'!$C$19*$H$4+'Global Assumptions'!$C$20*$H$5 -> 2,326 | J87: =+'Global Assumptions'!$C$21*$H$4+'Global Assumptions'!$C$22*$H$5 -> 1,487 | K87: =IF(A87<$H$7,A87*'Global Assumptions'!$C$23/1000*$H$6*1.08*12,$H$7*'Global Assumptions'!$C$23/1000*$H$6*1.08*12) -> 243 | L87: ='Global Assumptions'!$C$24 -> 281 | M87: 0 | N87: 7,000 | O87: 438 | P87: 263 | Q87: 0
A88: 180,000 | B88: 24.95% | C88: 44,915 | D88: =IF(A88<'Global Assumptions'!$C$7,(A88-'Global Assumptions'!$C$8)*'Global Assumptions'!$C$9,('Global Assumptions'!$C$7-'Global Assumptions'!$C$8)*'Global Assumptions'!$C$9) -> 2,529 | E88: =IF(A88<'Global Assumptions'!$C$10,A88*'Global Assumptions'!$C$11*$H$3,'Global Assumptions'!$C$10*'Global Assumptions'!$C$11*$H$3) -> 1,169 | F88: =+A88*'Global Assumptions'!$C$12 -> 3,510 | G88: =IF(A88<'Global Assumptions'!$C$14,A88*'Global Assumptions'!$C$13,'Global Assumptions'!$C$14*'Global Assumptions'!$C$13) -> 317 | H88: =IF(A88<'Global Assumptions'!$C$7,A88*$D$11,IF(A88<$F$11,(A88-'Global Assumptions'!$C$7)*$E$11+'Global Assumptions'!$C$7*$D$11,($F$11-'Global Assumptions'!$C$7)*$E$11+'Global Assumptions'!$C$7*$D$11))*$G$11 -> 25,134 | I88: =+'Global Assumptions'!$C$19*$H$4+'Global Assumptions'!$C$20*$H$5 -> 2,326 | J88: =+'Global Assumptions'!$C$21*$H$4+'Global Assumptions'!$C$22*$H$5 -> 1,487 | K88: =IF(A88<$H$7,A88*'Global Assumptions'!$C$23/1000*$H$6*1.08*12,$H$7*'Global Assumptions'!$C$23/1000*$H$6*1.08*12) -> 243 | L88: ='Global Assumptions'!$C$24 -> 281 | M88: 0 | N88: 7,200 | O88: 450 | P88: 270 | Q88: 0
A89: 185,000 | B89: 24.45% | C89: 45,233 | D89: =IF(A89<'Global Assumptions'!$C$7,(A89-'Global Assumptions'!$C$8)*'Global Assumptions'!$C$9,('Global Assumptions'!$C$7-'Global Assumptions'!$C$8)*'Global Assumptions'!$C$9) -> 2,529 | E89: =IF(A89<'Global Assumptions'!$C$10,A89*'Global Assumptions'!$C$11*$H$3,'Global Assumptions'!$C$10*'Global Assumptions'!$C$11*$H$3) -> 1,169 | F89: =+A89*'Global Assumptions'!$C$12 -> 3,608 | G89: =IF(A89<'Global Assumptions'!$C$14,A89*'Global Assumptions'!$C$13,'Global Assumptions'!$C$14*'Global Assumptions'!$C$13) -> 317 | H89: =IF(A89<'Global Assumptions'!$C$7,A89*$D$11,IF(A89<$F$11,(A89-'Global Assumptions'!$C$7)*$E$11+'Global Assumptions'!$C$7*$D$11,($F$11-'Global Assumptions'!$C$7)*$E$11+'Global Assumptions'!$C$7*$D$11))*$G$11 -> 25,134 | I89: =+'Global Assumptions'!$C$19*$H$4+'Global Assumptions'!$C$20*$H$5 -> 2,326 | J89: =+'Global Assumptions'!$C$21*$H$4+'Global Assumptions'!$C$22*$H$5 -> 1,487 | K89: =IF(A89<$H$7,A89*'Global Assumptions'!$C$23/1000*$H$6*1.08*12,$H$7*'Global Assumptions'!$C$23/1000*$H$6*1.08*12) -> 243 | L89: ='Global Assumptions'!$C$24 -> 281 | M89: 0 | N89: 7,400 | O89: 463 | P89: 278 | Q89: 0
A90: 190,000 | B90: 23.97% | C90: 45,550 | D90: =IF(A90<'Global Assumptions'!$C$7,(A90-'Global Assumptions'!$C$8)*'Global Assumptions'!$C$9,('Global Assumptions'!$C$7-'Global Assumptions'!$C$8)*'Global Assumptions'!$C$9) -> 2,529 | E90: =IF(A90<'Global Assumptions'!$C$10,A90*'Global Assumptions'!$C$11*$H$3,'Global Assumptions'!$C$10*'Global Assumptions'!$C$11*$H$3) -> 1,169 | F90: =+A90*'Global Assumptions'!$C$12 -> 3,705 | G90: =IF(A90<'Global Assumptions'!$C$14,A90*'Global Assumptions'!$C$13,'Global Assumptions'!$C$14*'Global Assumptions'!$C$13) -> 317 | H90: =IF(A90<'Global Assumptions'!$C$7,A90*$D$11,IF(A90<$F$11,(A90-'Global Assumptions'!$C$7)*$E$11+'Global Assumptions'!$C$7*$D$11,($F$11-'Global Assumptions'!$C$7)*$E$11+'Global Assumptions'!$C$7*$D$11))*$G$11 -> 25,134 | I90: =+'Global Assumptions'!$C$19*$H$4+'Global Assumptions'!$C$20*$H$5 -> 2,326 | J90: =+'Global Assumptions'!$C$21*$H$4+'Global Assumptions'!$C$22*$H$5 -> 1,487 | K90: =IF(A90<$H$7,A90*'Global Assumptions'!$C$23/1000*$H$6*1.08*12,$H$7*'Global Assumptions'!$C$23/1000*$H$6*1.08*12) -> 243 | L90: ='Global Assumptions'!$C$24 -> 281 | M90: 0 | N90: 7,600 | O90: 475 | P90: 285 | Q90: 0
A91: 195,000 | B91: 23.52% | C91: 45,868 | D91: =IF(A91<'Global Assumptions'!$C$7,(A91-'Global Assumptions'!$C$8)*'Global Assumptions'!$C$9,('Global Assumptions'!$C$7-'Global Assumptions'!$C$8)*'Global Assumptions'!$C$9) -> 2,529 | E91: =IF(A91<'Global Assumptions'!$C$10,A91*'Global Assumptions'!$C$11*$H$3,'Global Assumptions'!$C$10*'Global Assumptions'!$C$11*$H$3) -> 1,169 | F91: =+A91*'Global Assumptions'!$C$12 -> 3,803 | G91: =IF(A91<'Global Assumptions'!$C$14,A91*'Global Assumptions'!$C$13,'Global Assumptions'!$C$14*'Global Assumptions'!$C$13) -> 317 | H91: =IF(A91<'Global Assumptions'!$C$7,A91*$D$11,IF(A91<$F$11,(A91-'Global Assumptions'!$C$7)*$E$11+'Global Assumptions'!$C$7*$D$11,($F$11-'Global Assumptions'!$C$7)*$E$11+'Global Assumptions'!$C$7*$D$11))*$G$11 -> 25,134 | I91: =+'Global Assumptions'!$C$19*$H$4+'Global Assumptions'!$C$20*$H$5 -> 2,326 | J91: =+'Global Assumptions'!$C$21*$H$4+'Global Assumptions'!$C$22*$H$5 -> 1,487 | K91: =IF(A91<$H$7,A91*'Global Assumptions'!$C$23/1000*$H$6*1.08*12,$H$7*'Global Assumptions'!$C$23/1000*$H$6*1.08*12) -> 243 | L91: ='Global Assumptions'!$C$24 -> 281 | M91: 0 | N91: 7,800 | O91: 488 | P91: 293 | Q91: 0
A92: 200,000 | B92: 23.09% | C92: 46,185 | D92: =IF(A92<'Global Assumptions'!$C$7,(A92-'Global Assumptions'!$C$8)*'Global Assumptions'!$C$9,('Global Assumptions'!$C$7-'Global Assumptions'!$C$8)*'Global Assumptions'!$C$9) -> 2,529 | E92: =IF(A92<'Global Assumptions'!$C$10,A92*'Global Assumptions'!$C$11*$H$3,'Global Assumptions'!$C$10*'Global Assumptions'!$C$11*$H$3) -> 1,169 | F92: =+A92*'Global Assumptions'!$C$12 -> 3,900 | G92: =IF(A92<'Global Assumptions'!$C$14,A92*'Global Assumptions'!$C$13,'Global Assumptions'!$C$14*'Global Assumptions'!$C$13) -> 317 | H92: =IF(A92<'Global Assumptions'!$C$7,A92*$D$11,IF(A92<$F$11,(A92-'Global Assumptions'!$C$7)*$E$11+'Global Assumptions'!$C$7*$D$11,($F$11-'Global Assumptions'!$C$7)*$E$11+'Global Assumptions'!$C$7*$D$11))*$G$11 -> 25,134 | I92: =+'Global Assumptions'!$C$19*$H$4+'Global Assumptions'!$C$20*$H$5 -> 2,326 | J92: =+'Global Assumptions'!$C$21*$H$4+'Global Assumptions'!$C$22*$H$5 -> 1,487 | K92: =IF(A92<$H$7,A92*'Global Assumptions'!$C$23/1000*$H$6*1.08*12,$H$7*'Global Assumptions'!$C$23/1000*$H$6*1.08*12) -> 243 | L92: ='Global Assumptions'!$C$24 -> 281 | M92: 0 | N92: 8,000 | O92: 500 | P92: 300 | Q92: 0
A94: =+'Global Assumptions'!D4 -> FY18 Plan
A95: 20,000 | B95: =+C95/A95 -> 46.20% | C95: =SUM(D95:Q95) -> 9,240 | D95: =IF(A95<'Global Assumptions'!$D$7,(A95-'Global Assumptions'!$D$8)*'Global Assumptions'!$D$9,('Global Assumptions'!$D$7-'Global Assumptions'!$D$8)*'Global Assumptions'!$D$9) -> 817 | E95: =IF(A95<'Global Assumptions'!$D$10,A95*'Global Assumptions'!$D$11*$H$3,'Global Assumptions'!$D$10*'Global Assumptions'!$D$11*$H$3) -> 460 | F95: =+A95*'Global Assumptions'!$D$12 -> 390 | G95: =IF(A95<'Global Assumptions'!$D$14,A95*'Global Assumptions'!$D$13,'Global Assumptions'!$D$14*'Global Assumptions'!$D$13) -> 72 | H95: =IF(A95<'Global Assumptions'!$D$7,A95*$D$12,IF(A95<$F$12,(A95-'Global Assumptions'!$D$7)*$E$12+'Global Assumptions'!$D$7*$D$12,($F$12-'Global Assumptions'!$D$7)*$E$12+'Global Assumptions'!$D$7*$D$12))*$G$12 -> 2,450 | I95: =+'Global Assumptions'!$D$19*$H$4+'Global Assumptions'!$D$20*$H$5 -> 2,349 | J95: =+'Global Assumptions'!$D$21*$H$4+'Global Assumptions'!$D$22*$H$5 -> 1,502 | K95: =IF(A95<$H$7,A95*'Global Assumptions'!$D$23/1000*$H$6*1.08*12,$H$7*'Global Assumptions'!$D$23/1000*$H$6*1.08*12) -> 49 | L95: ='Global Assumptions'!$D$24 -> 281 | M95: =1825*$M$12 -> 0 | N95: =+$A95*N$12 -> 800 | O95: 50 | P95: 20 | Q95: 0
A96: 25,000 | B96: 42.24% | C96: 10,560 | D96: =IF(A96<'Global Assumptions'!$D$7,(A96-'Global Assumptions'!$D$8)*'Global Assumptions'!$D$9,('Global Assumptions'!$D$7-'Global Assumptions'!$D$8)*'Global Assumptions'!$D$9) -> 1,064 | E96: =IF(A96<'Global Assumptions'!$D$10,A96*'Global Assumptions'!$D$11*$H$3,'Global Assumptions'!$D$10*'Global Assumptions'!$D$11*$H$3) -> 575 | F96: =+A96*'Global Assumptions'!$D$12 -> 488 | G96: =IF(A96<'Global Assumptions'!$D$14,A96*'Global Assumptions'!$D$13,'Global Assumptions'!$D$14*'Global Assumptions'!$D$13) -> 90 | H96: =IF(A96<'Global Assumptions'!$D$7,A96*$D$12,IF(A96<$F$12,(A96-'Global Assumptions'!$D$7)*$E$12+'Global Assumptions'!$D$7*$D$12,($F$12-'Global Assumptions'!$D$7)*$E$12+'Global Assumptions'!$D$7*$D$12))*$G$12 -> 3,063 | I96: =+'Global Assumptions'!$D$19*$H$4+'Global Assumptions'!$D$20*$H$5 -> 2,349 | J96: =+'Global Assumptions'!$D$21*$H$4+'Global Assumptions'!$D$22*$H$5 -> 1,502 | K96: =IF(A96<$H$7,A96*'Global Assumptions'!$D$23/1000*$H$6*1.08*12,$H$7*'Global Assumptions'!$D$23/1000*$H$6*1.08*12) -> 61 | L96: ='Global Assumptions'!$D$24 -> 281 | M96: 0 | N96: 1,000 | O96: 63 | P96: 25 | Q96: 0
A97: 30,000 | B97: 39.60% | C97: 11,880 | D97: =IF(A97<'Global Assumptions'!$D$7,(A97-'Global Assumptions'!$D$8)*'Global Assumptions'!$D$9,('Global Assumptions'!$D$7-'Global Assumptions'!$D$8)*'Global Assumptions'!$D$9) -> 1,312 | E97: =IF(A97<'Global Assumptions'!$D$10,A97*'Global Assumptions'!$D$11*$H$3,'Global Assumptions'!$D$10*'Global Assumptions'!$D$11*$H$3) -> 690 | F97: =+A97*'Global Assumptions'!$D$12 -> 585 | G97: =IF(A97<'Global Assumptions'!$D$14,A97*'Global Assumptions'!$D$13,'Global Assumptions'!$D$14*'Global Assumptions'!$D$13) -> 108 | H97: =IF(A97<'Global Assumptions'!$D$7,A97*$D$12,IF(A97<$F$12,(A97-'Global Assumptions'!$D$7)*$E$12+'Global Assumptions'!$D$7*$D$12,($F$12-'Global Assumptions'!$D$7)*$E$12+'Global Assumptions'!$D$7*$D$12))*$G$12 -> 3,675 | I97: =+'Global Assumptions'!$D$19*$H$4+'Global Assumptions'!$D$20*$H$5 -> 2,349 | J97: =+'Global Assumptions'!$D$21*$H$4+'Global Assumptions'!$D$22*$H$5 -> 1,502 | K97: =IF(A97<$H$7,A97*'Global Assumptions'!$D$23/1000*$H$6*1.08*12,$H$7*'Global Assumptions'!$D$23/1000*$H$6*1.08*12) -> 73 | L97: ='Global Assumptions'!$D$24 -> 281 | M97: 0 | N97: 1,200 | O97: 75 | P97: 30 | Q97: 0
A98: 35,000 | B98: 37.71% | C98: 13,200 | D98: =IF(A98<'Global Assumptions'!$D$7,(A98-'Global Assumptions'!$D$8)*'Global Assumptions'!$D$9,('Global Assumptions'!$D$7-'Global Assumptions'!$D$8)*'Global Assumptions'!$D$9) -> 1,559 | E98: =IF(A98<'Global Assumptions'!$D$10,A98*'Global Assumptions'!$D$11*$H$3,'Global Assumptions'!$D$10*'Global Assumptions'!$D$11*$H$3) -> 805 | F98: =+A98*'Global Assumptions'!$D$12 -> 683 | G98: =IF(A98<'Global Assumptions'!$D$14,A98*'Global Assumptions'!$D$13,'Global Assumptions'!$D$14*'Global Assumptions'!$D$13) -> 126 | H98: =IF(A98<'Global Assumptions'!$D$7,A98*$D$12,IF(A98<$F$12,(A98-'Global Assumptions'!$D$7)*$E$12+'Global Assumptions'!$D$7*$D$12,($F$12-'Global Assumptions'!$D$7)*$E$12+'Global Assumptions'!$D$7*$D$12))*$G$12 -> 4,288 | I98: =+'Global Assumptions'!$D$19*$H$4+'Global Assumptions'!$D$20*$H$5 -> 2,349 | J98: =+'Global Assumptions'!$D$21*$H$4+'Global Assumptions'!$D$22*$H$5 -> 1,502 | K98: =IF(A98<$H$7,A98*'Global Assumptions'!$D$23/1000*$H$6*1.08*12,$H$7*'Global Assumptions'!$D$23/1000*$H$6*1.08*12) -> 85 | L98: ='Global Assumptions'!$D$24 -> 281 | M98: 0 | N98: 1,400 | O98: 88 | P98: 35 | Q98: 0
A99: 40,000 | B99: 36.30% | C99: 14,520 | D99: =IF(A99<'Global Assumptions'!$D$7,(A99-'Global Assumptions'!$D$8)*'Global Assumptions'!$D$9,('Global Assumptions'!$D$7-'Global Assumptions'!$D$8)*'Global Assumptions'!$D$9) -> 1,807 | E99: =IF(A99<'Global Assumptions'!$D$10,A99*'Global Assumptions'!$D$11*$H$3,'Global Assumptions'!$D$10*'Global Assumptions'!$D$11*$H$3) -> 920 | F99: =+A99*'Global Assumptions'!$D$12 -> 780 | G99: =IF(A99<'Global Assumptions'!$D$14,A99*'Global Assumptions'!$D$13,'Global Assumptions'!$D$14*'Global Assumptions'!$D$13) -> 144 | H99: =IF(A99<'Global Assumptions'!$D$7,A99*$D$12,IF(A99<$F$12,(A99-'Global Assumptions'!$D$7)*$E$12+'Global Assumptions'!$D$7*$D$12,($F$12-'Global Assumptions'!$D$7)*$E$12+'Global Assumptions'!$D$7*$D$12))*$G$12 -> 4,900 | I99: =+'Global Assumptions'!$D$19*$H$4+'Global Assumptions'!$D$20*$H$5 -> 2,349 | J99: =+'Global Assumptions'!$D$21*$H$4+'Global Assumptions'!$D$22*$H$5 -> 1,502 | K99: =IF(A99<$H$7,A99*'Global Assumptions'!$D$23/1000*$H$6*1.08*12,$H$7*'Global Assumptions'!$D$23/1000*$H$6*1.08*12) -> 97 | L99: ='Global Assumptions'!$D$24 -> 281 | M99: 0 | N99: 1,600 | O99: 100 | P99: 40 | Q99: 0
A100: 45,000 | B100: 35.20% | C100: 15,841 | D100: =IF(A100<'Global Assumptions'!$D$7,(A100-'Global Assumptions'!$D$8)*'Global Assumptions'!$D$9,('Global Assumptions'!$D$7-'Global Assumptions'!$D$8)*'Global Assumptions'!$D$9) -> 2,054 | E100: =IF(A100<'Global Assumptions'!$D$10,A100*'Global Assumptions'!$D$11*$H$3,'Global Assumptions'!$D$10*'Global Assumptions'!$D$11*$H$3) -> 1,036 | F100: =+A100*'Global Assumptions'!$D$12 -> 878 | G100: =IF(A100<'Global Assumptions'!$D$14,A100*'Global Assumptions'!$D$13,'Global Assumptions'!$D$14*'Global Assumptions'!$D$13) -> 162 | H100: =IF(A100<'Global Assumptions'!$D$7,A100*$D$12,IF(A100<$F$12,(A100-'Global Assumptions'!$D$7)*$E$12+'Global Assumptions'!$D$7*$D$12,($F$12-'Global Assumptions'!$D$7)*$E$12+'Global Assumptions'!$D$7*$D$12))*$G$12 -> 5,513 | I100: =+'Global Assumptions'!$D$19*$H$4+'Global Assumptions'!$D$20*$H$5 -> 2,349 | J100: =+'Global Assumptions'!$D$21*$H$4+'Global Assumptions'!$D$22*$H$5 -> 1,502 | K100: =IF(A100<$H$7,A100*'Global Assumptions'!$D$23/1000*$H$6*1.08*12,$H$7*'Global Assumptions'!$D$23/1000*$H$6*1.08*12) -> 109 | L100: ='Global Assumptions'!$D$24 -> 281 | M100: 0 | N100: 1,800 | O100: 113 | P100: 45 | Q100: 0
A101: 50,000 | B101: 34.32% | C101: 17,161 | D101: =IF(A101<'Global Assumptions'!$D$7,(A101-'Global Assumptions'!$D$8)*'Global Assumptions'!$D$9,('Global Assumptions'!$D$7-'Global Assumptions'!$D$8)*'Global Assumptions'!$D$9) -> 2,302 | E101: =IF(A101<'Global Assumptions'!$D$10,A101*'Global Assumptions'!$D$11*$H$3,'Global Assumptions'!$D$10*'Global Assumptions'!$D$11*$H$3) -> 1,151 | F101: =+A101*'Global Assumptions'!$D$12 -> 975 | G101: =IF(A101<'Global Assumptions'!$D$14,A101*'Global Assumptions'!$D$13,'Global Assumptions'!$D$14*'Global Assumptions'!$D$13) -> 180 | H101: =IF(A101<'Global Assumptions'!$D$7,A101*$D$12,IF(A101<$F$12,(A101-'Global Assumptions'!$D$7)*$E$12+'Global Assumptions'!$D$7*$D$12,($F$12-'Global Assumptions'!$D$7)*$E$12+'Global Assumptions'!$D$7*$D$12))*$G$12 -> 6,125 | I101: =+'Global Assumptions'!$D$19*$H$4+'Global Assumptions'!$D$20*$H$5 -> 2,349 | J101: =+'Global Assumptions'!$D$21*$H$4+'Global Assumptions'!$D$22*$H$5 -> 1,502 | K101: =IF(A101<$H$7,A101*'Global Assumptions'!$D$23/1000*$H$6*1.08*12,$H$7*'Global Assumptions'!$D$23/1000*$H$6*1.08*12) -> 121 | L101: ='Global Assumptions'!$D$24 -> 281 | M101: 0 | N101: 2,000 | O101: 125 | P101: 50 | Q101: 0
A102: 55,000 | B102: 33.48% | C102: 18,414 | D102: =IF(A102<'Global Assumptions'!$D$7,(A102-'Global Assumptions'!$D$8)*'Global Assumptions'!$D$9,('Global Assumptions'!$D$7-'Global Assumptions'!$D$8)*'Global Assumptions'!$D$9) -> 2,549 | E102: =IF(A102<'Global Assumptions'!$D$10,A102*'Global Assumptions'!$D$11*$H$3,'Global Assumptions'!$D$10*'Global Assumptions'!$D$11*$H$3) -> 1,199 | F102: =+A102*'Global Assumptions'!$D$12 -> 1,073 | G102: =IF(A102<'Global Assumptions'!$D$14,A102*'Global Assumptions'!$D$13,'Global Assumptions'!$D$14*'Global Assumptions'!$D$13) -> 198 | H102: =IF(A102<'Global Assumptions'!$D$7,A102*$D$12,IF(A102<$F$12,(A102-'Global Assumptions'!$D$7)*$E$12+'Global Assumptions'!$D$7*$D$12,($F$12-'Global Assumptions'!$D$7)*$E$12+'Global Assumptions'!$D$7*$D$12))*$G$12 -> 6,738 | I102: =+'Global Assumptions'!$D$19*$H$4+'Global Assumptions'!$D$20*$H$5 -> 2,349 | J102: =+'Global Assumptions'!$D$21*$H$4+'Global Assumptions'!$D$22*$H$5 -> 1,502 | K102: =IF(A102<$H$7,A102*'Global Assumptions'!$D$23/1000*$H$6*1.08*12,$H$7*'Global Assumptions'!$D$23/1000*$H$6*1.08*12) -> 133 | L102: ='Global Assumptions'!$D$24 -> 281 | M102: 0 | N102: 2,200 | O102: 138 | P102: 55 | Q102: 0
A103: 60,000 | B103: 32.72% | C103: 19,633 | D103: =IF(A103<'Global Assumptions'!$D$7,(A103-'Global Assumptions'!$D$8)*'Global Assumptions'!$D$9,('Global Assumptions'!$D$7-'Global Assumptions'!$D$8)*'Global Assumptions'!$D$9) -> 2,579 | E103: =IF(A103<'Global Assumptions'!$D$10,A103*'Global Assumptions'!$D$11*$H$3,'Global Assumptions'!$D$10*'Global Assumptions'!$D$11*$H$3) -> 1,199 | F103: =+A103*'Global Assumptions'!$D$12 -> 1,170 | G103: =IF(A103<'Global Assumptions'!$D$14,A103*'Global Assumptions'!$D$13,'Global Assumptions'!$D$14*'Global Assumptions'!$D$13) -> 216 | H103: =IF(A103<'Global Assumptions'!$D$7,A103*$D$12,IF(A103<$F$12,(A103-'Global Assumptions'!$D$7)*$E$12+'Global Assumptions'!$D$7*$D$12,($F$12-'Global Assumptions'!$D$7)*$E$12+'Global Assumptions'!$D$7*$D$12))*$G$12 -> 7,581 | I103: =+'Global Assumptions'!$D$19*$H$4+'Global Assumptions'!$D$20*$H$5 -> 2,349 | J103: =+'Global Assumptions'!$D$21*$H$4+'Global Assumptions'!$D$22*$H$5 -> 1,502 | K103: =IF(A103<$H$7,A103*'Global Assumptions'!$D$23/1000*$H$6*1.08*12,$H$7*'Global Assumptions'!$D$23/1000*$H$6*1.08*12) -> 146 | L103: ='Global Assumptions'!$D$24 -> 281 | M103: 0 | N103: 2,400 | O103: 150 | P103: 60 | Q103: 0
A104: 65,000 | B104: 32.08% | C104: 20,853 | D104: =IF(A104<'Global Assumptions'!$D$7,(A104-'Global Assumptions'!$D$8)*'Global Assumptions'!$D$9,('Global Assumptions'!$D$7-'Global Assumptions'!$D$8)*'Global Assumptions'!$D$9) -> 2,579 | E104: =IF(A104<'Global Assumptions'!$D$10,A104*'Global Assumptions'!$D$11*$H$3,'Global Assumptions'!$D$10*'Global Assumptions'!$D$11*$H$3) -> 1,199 | F104: =+A104*'Global Assumptions'!$D$12 -> 1,268 | G104: =IF(A104<'Global Assumptions'!$D$14,A104*'Global Assumptions'!$D$13,'Global Assumptions'!$D$14*'Global Assumptions'!$D$13) -> 234 | H104: =IF(A104<'Global Assumptions'!$D$7,A104*$D$12,IF(A104<$F$12,(A104-'Global Assumptions'!$D$7)*$E$12+'Global Assumptions'!$D$7*$D$12,($F$12-'Global Assumptions'!$D$7)*$E$12+'Global Assumptions'!$D$7*$D$12))*$G$12 -> 8,456 | I104: =+'Global Assumptions'!$D$19*$H$4+'Global Assumptions'!$D$20*$H$5 -> 2,349 | J104: =+'Global Assumptions'!$D$21*$H$4+'Global Assumptions'!$D$22*$H$5 -> 1,502 | K104: =IF(A104<$H$7,A104*'Global Assumptions'!$D$23/1000*$H$6*1.08*12,$H$7*'Global Assumptions'!$D$23/1000*$H$6*1.08*12) -> 158 | L104: ='Global Assumptions'!$D$24 -> 281 | M104: 0 | N104: 2,600 | O104: 163 | P104: 65 | Q104: 0
A105: 70,000 | B105: 31.53% | C105: 22,073 | D105: =IF(A105<'Global Assumptions'!$D$7,(A105-'Global Assumptions'!$D$8)*'Global Assumptions'!$D$9,('Global Assumptions'!$D$7-'Global Assumptions'!$D$8)*'Global Assumptions'!$D$9) -> 2,579 | E105: =IF(A105<'Global Assumptions'!$D$10,A105*'Global Assumptions'!$D$11*$H$3,'Global Assumptions'!$D$10*'Global Assumptions'!$D$11*$H$3) -> 1,199 | F105: =+A105*'Global Assumptions'!$D$12 -> 1,365 | G105: =IF(A105<'Global Assumptions'!$D$14,A105*'Global Assumptions'!$D$13,'Global Assumptions'!$D$14*'Global Assumptions'!$D$13) -> 252 | H105: =IF(A105<'Global Assumptions'!$D$7,A105*$D$12,IF(A105<$F$12,(A105-'Global Assumptions'!$D$7)*$E$12+'Global Assumptions'!$D$7*$D$12,($F$12-'Global Assumptions'!$D$7)*$E$12+'Global Assumptions'!$D$7*$D$12))*$G$12 -> 9,331 | I105: =+'Global Assumptions'!$D$19*$H$4+'Global Assumptions'!$D$20*$H$5 -> 2,349 | J105: =+'Global Assumptions'!$D$21*$H$4+'Global Assumptions'!$D$22*$H$5 -> 1,502 | K105: =IF(A105<$H$7,A105*'Global Assumptions'!$D$23/1000*$H$6*1.08*12,$H$7*'Global Assumptions'!$D$23/1000*$H$6*1.08*12) -> 170 | L105: ='Global Assumptions'!$D$24 -> 281 | M105: 0 | N105: 2,800 | O105: 175 | P105: 70 | Q105: 0
A106: 75,000 | B106: 31.06% | C106: 23,293 | D106: =IF(A106<'Global Assumptions'!$D$7,(A106-'Global Assumptions'!$D$8)*'Global Assumptions'!$D$9,('Global Assumptions'!$D$7-'Global Assumptions'!$D$8)*'Global Assumptions'!$D$9) -> 2,579 | E106: =IF(A106<'Global Assumptions'!$D$10,A106*'Global Assumptions'!$D$11*$H$3,'Global Assumptions'!$D$10*'Global Assumptions'!$D$11*$H$3) -> 1,199 | F106: =+A106*'Global Assumptions'!$D$12 -> 1,463 | G106: =IF(A106<'Global Assumptions'!$D$14,A106*'Global Assumptions'!$D$13,'Global Assumptions'!$D$14*'Global Assumptions'!$D$13) -> 270 | H106: =IF(A106<'Global Assumptions'!$D$7,A106*$D$12,IF(A106<$F$12,(A106-'Global Assumptions'!$D$7)*$E$12+'Global Assumptions'!$D$7*$D$12,($F$12-'Global Assumptions'!$D$7)*$E$12+'Global Assumptions'!$D$7*$D$12))*$G$12 -> 10,206 | I106: =+'Global Assumptions'!$D$19*$H$4+'Global Assumptions'!$D$20*$H$5 -> 2,349 | J106: =+'Global Assumptions'!$D$21*$H$4+'Global Assumptions'!$D$22*$H$5 -> 1,502 | K106: =IF(A106<$H$7,A106*'Global Assumptions'!$D$23/1000*$H$6*1.08*12,$H$7*'Global Assumptions'!$D$23/1000*$H$6*1.08*12) -> 182 | L106: ='Global Assumptions'!$D$24 -> 281 | M106: 0 | N106: 3,000 | O106: 188 | P106: 75 | Q106: 0
A107: 80,000 | B107: 30.64% | C107: 24,513 | D107: =IF(A107<'Global Assumptions'!$D$7,(A107-'Global Assumptions'!$D$8)*'Global Assumptions'!$D$9,('Global Assumptions'!$D$7-'Global Assumptions'!$D$8)*'Global Assumptions'!$D$9) -> 2,579 | E107: =IF(A107<'Global Assumptions'!$D$10,A107*'Global Assumptions'!$D$11*$H$3,'Global Assumptions'!$D$10*'Global Assumptions'!$D$11*$H$3) -> 1,199 | F107: =+A107*'Global Assumptions'!$D$12 -> 1,560 | G107: =IF(A107<'Global Assumptions'!$D$14,A107*'Global Assumptions'!$D$13,'Global Assumptions'!$D$14*'Global Assumptions'!$D$13) -> 288 | H107: =IF(A107<'Global Assumptions'!$D$7,A107*$D$12,IF(A107<$F$12,(A107-'Global Assumptions'!$D$7)*$E$12+'Global Assumptions'!$D$7*$D$12,($F$12-'Global Assumptions'!$D$7)*$E$12+'Global Assumptions'!$D$7*$D$12))*$G$12 -> 11,081 | I107: =+'Global Assumptions'!$D$19*$H$4+'Global Assumptions'!$D$20*$H$5 -> 2,349 | J107: =+'Global Assumptions'!$D$21*$H$4+'Global Assumptions'!$D$22*$H$5 -> 1,502 | K107: =IF(A107<$H$7,A107*'Global Assumptions'!$D$23/1000*$H$6*1.08*12,$H$7*'Global Assumptions'!$D$23/1000*$H$6*1.08*12) -> 194 | L107: ='Global Assumptions'!$D$24 -> 281 | M107: 0 | N107: 3,200 | O107: 200 | P107: 80 | Q107: 0
A108: 85,000 | B108: 30.27% | C108: 25,733 | D108: =IF(A108<'Global Assumptions'!$D$7,(A108-'Global Assumptions'!$D$8)*'Global Assumptions'!$D$9,('Global Assumptions'!$D$7-'Global Assumptions'!$D$8)*'Global Assumptions'!$D$9) -> 2,579 | E108: =IF(A108<'Global Assumptions'!$D$10,A108*'Global Assumptions'!$D$11*$H$3,'Global Assumptions'!$D$10*'Global Assumptions'!$D$11*$H$3) -> 1,199 | F108: =+A108*'Global Assumptions'!$D$12 -> 1,658 | G108: =IF(A108<'Global Assumptions'!$D$14,A108*'Global Assumptions'!$D$13,'Global Assumptions'!$D$14*'Global Assumptions'!$D$13) -> 306 | H108: =IF(A108<'Global Assumptions'!$D$7,A108*$D$12,IF(A108<$F$12,(A108-'Global Assumptions'!$D$7)*$E$12+'Global Assumptions'!$D$7*$D$12,($F$12-'Global Assumptions'!$D$7)*$E$12+'Global Assumptions'!$D$7*$D$12))*$G$12 -> 11,956 | I108: =+'Global Assumptions'!$D$19*$H$4+'Global Assumptions'!$D$20*$H$5 -> 2,349 | J108: =+'Global Assumptions'!$D$21*$H$4+'Global Assumptions'!$D$22*$H$5 -> 1,502 | K108: =IF(A108<$H$7,A108*'Global Assumptions'!$D$23/1000*$H$6*1.08*12,$H$7*'Global Assumptions'!$D$23/1000*$H$6*1.08*12) -> 206 | L108: ='Global Assumptions'!$D$24 -> 281 | M108: 0 | N108: 3,400 | O108: 213 | P108: 85 | Q108: 0
A109: 90,000 | B109: 29.95% | C109: 26,953 | D109: =IF(A109<'Global Assumptions'!$D$7,(A109-'Global Assumptions'!$D$8)*'Global Assumptions'!$D$9,('Global Assumptions'!$D$7-'Global Assumptions'!$D$8)*'Global Assumptions'!$D$9) -> 2,579 | E109: =IF(A109<'Global Assumptions'!$D$10,A109*'Global Assumptions'!$D$11*$H$3,'Global Assumptions'!$D$10*'Global Assumptions'!$D$11*$H$3) -> 1,199 | F109: =+A109*'Global Assumptions'!$D$12 -> 1,755 | G109: =IF(A109<'Global Assumptions'!$D$14,A109*'Global Assumptions'!$D$13,'Global Assumptions'!$D$14*'Global Assumptions'!$D$13) -> 324 | H109: =IF(A109<'Global Assumptions'!$D$7,A109*$D$12,IF(A109<$F$12,(A109-'Global Assumptions'!$D$7)*$E$12+'Global Assumptions'!$D$7*$D$12,($F$12-'Global Assumptions'!$D$7)*$E$12+'Global Assumptions'!$D$7*$D$12))*$G$12 -> 12,831 | I109: =+'Global Assumptions'!$D$19*$H$4+'Global Assumptions'!$D$20*$H$5 -> 2,349 | J109: =+'Global Assumptions'!$D$21*$H$4+'Global Assumptions'!$D$22*$H$5 -> 1,502 | K109: =IF(A109<$H$7,A109*'Global Assumptions'!$D$23/1000*$H$6*1.08*12,$H$7*'Global Assumptions'!$D$23/1000*$H$6*1.08*12) -> 218 | L109: ='Global Assumptions'!$D$24 -> 281 | M109: 0 | N109: 3,600 | O109: 225 | P109: 90 | Q109: 0
A110: 95,000 | B110: 29.64% | C110: 28,159 | D110: =IF(A110<'Global Assumptions'!$D$7,(A110-'Global Assumptions'!$D$8)*'Global Assumptions'!$D$9,('Global Assumptions'!$D$7-'Global Assumptions'!$D$8)*'Global Assumptions'!$D$9) -> 2,579 | E110: =IF(A110<'Global Assumptions'!$D$10,A110*'Global Assumptions'!$D$11*$H$3,'Global Assumptions'!$D$10*'Global Assumptions'!$D$11*$H$3) -> 1,199 | F110: =+A110*'Global Assumptions'!$D$12 -> 1,853 | G110: =IF(A110<'Global Assumptions'!$D$14,A110*'Global Assumptions'!$D$13,'Global Assumptions'!$D$14*'Global Assumptions'!$D$13) -> 327 | H110: =IF(A110<'Global Assumptions'!$D$7,A110*$D$12,IF(A110<$F$12,(A110-'Global Assumptions'!$D$7)*$E$12+'Global Assumptions'!$D$7*$D$12,($F$12-'Global Assumptions'!$D$7)*$E$12+'Global Assumptions'!$D$7*$D$12))*$G$12 -> 13,706 | I110: =+'Global Assumptions'!$D$19*$H$4+'Global Assumptions'!$D$20*$H$5 -> 2,349 | J110: =+'Global Assumptions'!$D$21*$H$4+'Global Assumptions'!$D$22*$H$5 -> 1,502 | K110: =IF(A110<$H$7,A110*'Global Assumptions'!$D$23/1000*$H$6*1.08*12,$H$7*'Global Assumptions'!$D$23/1000*$H$6*1.08*12) -> 231 | L110: ='Global Assumptions'!$D$24 -> 281 | M110: 0 | N110: 3,800 | O110: 238 | P110: 95 | Q110: 0
